Workbook

Sheet Region
D1: ='ASO View'!$O$3 -> 469 | H1: ='ASO View'!$S$3 -> 96 | L1: ='ASO View'!$W$3 -> 109 | Q1: ='ASO View'!$AA$3 -> 700 | U1: ='ASO View'!$AH$3 -> 240 | Y1: ='ASO View'!$AE$3 -> 223 | AC1: ='ASO View'!$AT$3 -> 97 | AG1: ='ASO View'!$AX$3 -> 39
C2: =CONCATENATE("Distribution Sales Dash Board as on ",'Dec Pivot'!$H$2," ") -> Distribution Sales Dash Board as on 09-Dec'25 | BC2: Mar'24
C3: =C11+C15 -> 16384 | D3: =D11+D15 -> 469 | E3: =IFERROR(D3/C3,0) -> 3% | F3: =IFERROR(D3/BC3-1,0) -> -0% | G3: =G11+G15 -> 1865 | H3: =H11+H15 -> 96 | I3: =IFERROR(H3/G3,0) -> 5% | J3: =IFERROR(H3/BD3-1,0) -> -36% | K3: =K11+K15 -> 2381 | L3: =L11+L15 -> 135 | M3: =IFERROR(L3/K3,0) -> 6% | N3: =IFERROR(L3/BE3-1,0) -> 44% | O3: =O11+O15 -> 21265 | P3: =P11+P15 -> 0 | Q3: =Q11+Q15 -> 700 | R3: =IFERROR(Q3/O3,0) -> 3% | S3: =IFERROR(Q3/BF3-1,0) -> 248% | T3: =T11+T15 -> 4091 | U3: =U11+U15 -> 240 | V3: =IFERROR(U3/T3,0) -> 6% | W3: =IFERROR(U3/BG3-1,0) -> -24% | X3: =X11+X15 -> 3115 | Y3: =Y11+Y15 -> 223 | Z3: =IFERROR(Y3/X3,0) -> 7% | AA3: =IFERROR(Y3/BF20-1,0) -> -83% | AB3: =AB11+AB15 -> 2683 | AC3: =AC11+AC15 -> 97 | AD3: =IFERROR(AC3/AB3,0) -> 4% | AE3: =IFERROR(AC3/BG20-1,0) -> -89% | AF3: =AF11+AF15 -> 1413 | AG3: =AG11+AG15 -> 39 | AH3: =IFERROR(AG3/AF3,0) -> 3% | AI3: =IFERROR(AG3/BH20-1,0) -> -91% | BC3: =BC11+BC15 -> 470 | BD3: =BD11+BD15 -> 150 | BE3: =BE11+BE15 -> 94 | BF3: =BF11+BF15 -> 201 | BG3: =BG11+BG15 -> 316
C4: CA | BC4: LMTD
C5: NB | G5: AIO | K5: TDT | O5: Total | T5: PM | X5: PM NB | AB5: PM Gaming NB | AF5: PM Non-Gaming NB | BC5: NB | BD5: AIO | BE5: TDT | BF5: TTL CA | BG5: PM CA
B6: Region | C6: TGT | D6: Ach | E6: % | F6: MOM | G6: TGT | H6: Ach | I6: % | J6: MOM | K6: TGT | L6: Ach | M6: % | N6: MOM | O6: TGT | P6: RCB | Q6: Ach | R6: % | S6: MOM | T6: TGT | U6: Ach | V6: % | W6: MOM | X6: TGT | Y6: Ach | Z6: % | AA6: MOM | AB6: TGT | AC6: Ach | AD6: % | AE6: MOM | AF6: TGT | AG6: Ach | AH6: % | AI6: MOM | AY6: 100 | BF6: =SUMIFS('ASO View'!DA:DA,'ASO View'!$F:$F,Region!$B6) -> 0
A7: East1 | B7: East 1 | C7: =SUMIFS('ASO View'!$N$6:$N$93,'ASO View'!$F$6:$F$93,Region!B7) -> 1504 | D7: =SUMIFS('ASO View'!O:O,'ASO View'!$F:$F,Region!$B7) -> 57 | E7: =IFERROR(D7/C7,0) -> 4% | F7: =IFERROR(D7/BC7-1,0) -> -50% | G7: =SUMIFS('ASO View'!$R$6:$R$93,'ASO View'!$F$6:$F$93,Region!B7) -> 165 | H7: =SUMIFS('ASO View'!S:S,'ASO View'!$F:$F,Region!$B7) -> 7 | I7: =IFERROR(H7/G7,0) -> 4% | J7: =IFERROR(H7/BD7-1,0) -> -79% | K7: =SUMIFS('ASO View'!$V$6:$V$93,'ASO View'!$F$6:$F$93,Region!B7) -> 211 | L7: =SUMIFS('ASO View'!W:W,'ASO View'!$F:$F,Region!$B7) -> 9 | M7: =IFERROR(L7/K7,0) -> 4% | N7: =IFERROR(L7/BE7-1,0) -> -44% | O7: 1880 | P7: =SUMIFS('RCM View'!$N$6:$N$36,'RCM View'!$B$6:$B$36,Region!B7) -> 0 | Q7: =SUMIFS('Dec Raw Data'!$BL:$BL,'Dec Raw Data'!$BU:$BU,"Consumer",'Dec Raw Data'!$Q:$Q,Region!$A7) -> 73 | R7: =IFERROR(Q7/O7,0) -> 4% | S7: =IFERROR(Q7/BF7-1,0) -> 135% | T7: 376 | U7: =SUMIFS('Dec Raw Data'!$BL:$BL,'Dec Raw Data'!$BU:$BU,"Consumer",'Dec Raw Data'!$Q:$Q,Region!$A7,'Dec Raw Data'!$BS:$BS,"Premium") -> 24 | V7: =IFERROR(U7/T7,0) -> 6% | W7: =IFERROR(U7/BG7-1,0) -> -75% | X7: =SUMIFS('ASO View'!$AD$6:$AD$93,'ASO View'!$F$6:$F$93,Region!B7) -> 285 | Y7: =SUMIFS('ASO View'!AE:AE,'ASO View'!$F:$F,Region!$B7) -> 24 | Z7: =IFERROR(Y7/X7,0) -> 8% | AA7: =IFERROR(Y7/BF24-1,0) -> -49% | AB7: =SUMIFS('ASO View'!$AS$6:$AS$93,'ASO View'!$F$6:$F$93,Region!B7) -> 245 | AC7: =SUMIFS('ASO View'!AT:AT,'ASO View'!$F:$F,Region!$B7) -> 8 | AD7: =IFERROR(AC7/AB7,0) -> 3% | AE7: =IFERROR(AC7/BG24-1,0) -> -50% | AF7: =SUMIFS('ASO View'!$AW$6:$AW$93,'ASO View'!$F$6:$F$93,Region!B7) -> 131 | AG7: =SUMIFS('ASO View'!AX:AX,'ASO View'!$F:$F,Region!$B7) -> 4 | AH7: =IFERROR(AG7/AF7,0) -> 3% | AI7: =IFERROR(AG7/BH24-1,0) -> -87% | AY7: =C24*$AY$6 -> 17.5 | AZ7: =SUMIFS('ASO View'!BI:BI,'ASO View'!$F:$F,Region!$B7) -> 203 | BA7: =SUMIFS('ASO View'!AD:AD,'ASO View'!$F:$F,Region!$B7) -> 285 | BB7: East1 | BC7: =VLOOKUP($BB7,'Nov Pivot'!$BF$8:$BI$15,2,0) -> 115 | BD7: =VLOOKUP($BB7,'Nov Pivot'!$BF$8:$BI$15,3,0) -> 34 | BE7: =VLOOKUP($BB7,'Nov Pivot'!$BF$8:$BI$15,4,0) -> 16 | BF7: =VLOOKUP($B7,'Nov Pivot'!$AQ$6:$AV$12,6,0) -> 31 | BG7: =VLOOKUP($B7,'Nov Pivot'!$AQ$6:$AV$12,5,0) -> 95
A8: East2 | B8: East 2 | C8: =SUMIFS('ASO View'!$N$6:$N$93,'ASO View'!$F$6:$F$93,Region!B8) -> 1308 | D8: =SUMIFS('ASO View'!O:O,'ASO View'!$F:$F,Region!$B8) -> 49 | E8: 4% | F8: =IFERROR(D8/BC8-1,0) -> 48% | G8: =SUMIFS('ASO View'!$R$6:$R$93,'ASO View'!$F$6:$F$93,Region!B8) -> 143 | H8: =SUMIFS('ASO View'!S:S,'ASO View'!$F:$F,Region!$B8) -> 5 | I8: 3% | J8: -50% | K8: =SUMIFS('ASO View'!$V$6:$V$93,'ASO View'!$F$6:$F$93,Region!B8) -> 184 | L8: =SUMIFS('ASO View'!W:W,'ASO View'!$F:$F,Region!$B8) -> 3 | M8: 2% | N8: -57% | O8: 1635 | P8: =SUMIFS('RCM View'!$N$6:$N$36,'RCM View'!$B$6:$B$36,Region!B8) -> 0 | Q8: =SUMIFS('Dec Raw Data'!$BL:$BL,'Dec Raw Data'!$BU:$BU,"Consumer",'Dec Raw Data'!$Q:$Q,Region!$A8) -> 57 | R8: 3% | S8: 217% | T8: 327 | U8: =SUMIFS('Dec Raw Data'!$BL:$BL,'Dec Raw Data'!$BU:$BU,"Consumer",'Dec Raw Data'!$Q:$Q,Region!$A8,'Dec Raw Data'!$BS:$BS,"Premium") -> 15 | V8: 5% | W8: =IFERROR(U8/BG8-1,0) -> -25% | X8: =SUMIFS('ASO View'!$AD$6:$AD$93,'ASO View'!$F$6:$F$93,Region!B8) -> 249 | Y8: =SUMIFS('ASO View'!AE:AE,'ASO View'!$F:$F,Region!$B8) -> 15 | Z8: 6% | AA8: -78% | AB8: =SUMIFS('ASO View'!$AS$6:$AS$93,'ASO View'!$F$6:$F$93,Region!B8) -> 215 | AC8: =SUMIFS('ASO View'!AT:AT,'ASO View'!$F:$F,Region!$B8) -> 9 | AD8: 4% | AE8: -69% | AF8: =SUMIFS('ASO View'!$AW$6:$AW$93,'ASO View'!$F$6:$F$93,Region!B8) -> 112 | AG8: =SUMIFS('ASO View'!AX:AX,'ASO View'!$F:$F,Region!$B8) -> 4 | AH8: 4% | AI8: =IFERROR(AG8/BH25-1,0) -> -90% | AY8: =C25*$AY$6 -> 14.275 | AZ8: =SUMIFS('ASO View'!BI:BI,'ASO View'!$F:$F,Region!$B8) -> 164 | BA8: =SUMIFS('ASO View'!AD:AD,'ASO View'!$F:$F,Region!$B8) -> 249 | BB8: East2 | BC8: =VLOOKUP($BB8,'Nov Pivot'!$BF$8:$BI$15,2,0) -> 33 | BD8: =VLOOKUP($BB8,'Nov Pivot'!$BF$8:$BI$15,3,0) -> 10 | BE8: =VLOOKUP($BB8,'Nov Pivot'!$BF$8:$BI$15,4,0) -> 7 | BF8: =VLOOKUP($B8,'Nov Pivot'!$AQ$6:$AV$12,6,0) -> 18 | BG8: =VLOOKUP($B8,'Nov Pivot'!$AQ$6:$AV$12,5,0) -> 20
A9: North1 | B9: North 1 | C9: =SUMIFS('ASO View'!$N$6:$N$93,'ASO View'!$F$6:$F$93,Region!B9) -> 2660 | D9: =SUMIFS('ASO View'!O:O,'ASO View'!$F:$F,Region!$B9) -> 61 | E9: 2% | F9: -27% | G9: =SUMIFS('ASO View'!$R$6:$R$93,'ASO View'!$F$6:$F$93,Region!B9) -> 291 | H9: =SUMIFS('ASO View'!S:S,'ASO View'!$F:$F,Region!$B9) -> 40 | I9: 14% | J9: 82% | K9: =SUMIFS('ASO View'!$V$6:$V$93,'ASO View'!$F$6:$F$93,Region!B9) -> 374 | L9: =SUMIFS('ASO View'!W:W,'ASO View'!$F:$F,Region!$B9) -> 79 | M9: 21% | N9: 888% | O9: 3545 | P9: =SUMIFS('RCM View'!$N$6:$N$36,'RCM View'!$B$6:$B$36,Region!B9) -> 0 | Q9: =SUMIFS('Dec Raw Data'!$BL:$BL,'Dec Raw Data'!$BU:$BU,"Consumer",'Dec Raw Data'!$Q:$Q,Region!$A9) -> 180 | R9: 5% | S9: 374% | T9: 709 | U9: =SUMIFS('Dec Raw Data'!$BL:$BL,'Dec Raw Data'!$BU:$BU,"Consumer",'Dec Raw Data'!$Q:$Q,Region!$A9,'Dec Raw Data'!$BS:$BS,"Premium") -> 40 | V9: 6% | W9: =IFERROR(U9/BG9-1,0) -> -30% | X9: =SUMIFS('ASO View'!$AD$6:$AD$93,'ASO View'!$F$6:$F$93,Region!B9) -> 506 | Y9: =SUMIFS('ASO View'!AE:AE,'ASO View'!$F:$F,Region!$B9) -> 28 | Z9: 6% | AA9: -80% | AB9: =SUMIFS('ASO View'!$AS$6:$AS$93,'ASO View'!$F$6:$F$93,Region!B9) -> 437 | AC9: =SUMIFS('ASO View'!AT:AT,'ASO View'!$F:$F,Region!$B9) -> 22 | AD9: 5% | AE9: -61% | AF9: =SUMIFS('ASO View'!$AW$6:$AW$93,'ASO View'!$F$6:$F$93,Region!B9) -> 228 | AG9: =SUMIFS('ASO View'!AX:AX,'ASO View'!$F:$F,Region!$B9) -> 2 | AH9: 1% | AI9: -98% | AY9: =C26*$AY$6 -> 22.95 | AZ9: =SUMIFS('ASO View'!BI:BI,'ASO View'!$F:$F,Region!$B9) -> 644 | BA9: =SUMIFS('ASO View'!AD:AD,'ASO View'!$F:$F,Region!$B9) -> 506 | BB9: North1 | BC9: =VLOOKUP($BB9,'Nov Pivot'!$BF$8:$BI$15,2,0) -> 84 | BD9: =VLOOKUP($BB9,'Nov Pivot'!$BF$8:$BI$15,3,0) -> 22 | BE9: =VLOOKUP($BB9,'Nov Pivot'!$BF$8:$BI$15,4,0) -> 8 | BF9: =VLOOKUP($B9,'Nov Pivot'!$AQ$6:$AV$12,6,0) -> 38 | BG9: =VLOOKUP($B9,'Nov Pivot'!$AQ$6:$AV$12,5,0) -> 57
A10: North2 | B10: North 2 | C10: =SUMIFS('ASO View'!$N$6:$N$93,'ASO View'!$F$6:$F$93,Region!B10) -> 2084 | D10: =SUMIFS('ASO View'!O:O,'ASO View'!$F:$F,Region!$B10) -> 90 | E10: 4% | F10: 221% | G10: =SUMIFS('ASO View'!$R$6:$R$93,'ASO View'!$F$6:$F$93,Region!B10) -> 297 | H10: =SUMIFS('ASO View'!S:S,'ASO View'!$F:$F,Region!$B10) -> 10 | I10: 3% | J10: -52% | K10: =SUMIFS('ASO View'!$V$6:$V$93,'ASO View'!$F$6:$F$93,Region!B10) -> 374 | L10: =SUMIFS('ASO View'!W:W,'ASO View'!$F:$F,Region!$B10) -> 13 | M10: 3% | N10: 333% | O10: 2655 | P10: =SUMIFS('RCM View'!$N$6:$N$36,'RCM View'!$B$6:$B$36,Region!B10) -> 0 | Q10: =SUMIFS('Dec Raw Data'!$BL:$BL,'Dec Raw Data'!$BU:$BU,"Consumer",'Dec Raw Data'!$Q:$Q,Region!$A10) -> 113 | R10: 4% | S10: 842% | T10: 367 | U10: =SUMIFS('Dec Raw Data'!$BL:$BL,'Dec Raw Data'!$BU:$BU,"Consumer",'Dec Raw Data'!$Q:$Q,Region!$A10,'Dec Raw Data'!$BS:$BS,"Premium") -> 66 | V10: 18% | W10: =IFERROR(U10/BG10-1,0) -> 340% | X10: =SUMIFS('ASO View'!$AD$6:$AD$93,'ASO View'!$F$6:$F$93,Region!B10) -> 398 | Y10: =SUMIFS('ASO View'!AE:AE,'ASO View'!$F:$F,Region!$B10) -> 65 | Z10: 16% | AA10: -52% | AB10: =SUMIFS('ASO View'!$AS$6:$AS$93,'ASO View'!$F$6:$F$93,Region!B10) -> 343 | AC10: =SUMIFS('ASO View'!AT:AT,'ASO View'!$F:$F,Region!$B10) -> 8 | AD10: 2% | AE10: -90% | AF10: =SUMIFS('ASO View'!$AW$6:$AW$93,'ASO View'!$F$6:$F$93,Region!B10) -> 178 | AG10: =SUMIFS('ASO View'!AX:AX,'ASO View'!$F:$F,Region!$B10) -> 0 | AH10: 0% | AI10: -100% | AY10: =C27*$AY$6 -> 29.35 | AZ10: =SUMIFS('ASO View'!BI:BI,'ASO View'!$F:$F,Region!$B10) -> 535 | BA10: =SUMIFS('ASO View'!AD:AD,'ASO View'!$F:$F,Region!$B10) -> 398 | BB10: North2 | BC10: =VLOOKUP($BB10,'Nov Pivot'!$BF$8:$BI$15,2,0) -> 28 | BD10: =VLOOKUP($BB10,'Nov Pivot'!$BF$8:$BI$15,3,0) -> 21 | BE10: =VLOOKUP($BB10,'Nov Pivot'!$BF$8:$BI$15,4,0) -> 3 | BF10: =VLOOKUP($B10,'Nov Pivot'!$AQ$6:$AV$12,6,0) -> 12 | BG10: =VLOOKUP($B10,'Nov Pivot'!$AQ$6:$AV$12,5,0) -> 15
B11: N+E | C11: =SUM(C7:C10) -> 7556 | D11: =SUM(D7:D10) -> 257 | E11: 3% | F11: -1% | G11: =SUM(G7:G10) -> 896 | H11: =SUM(H7:H10) -> 62 | I11: 7% | J11: -29% | K11: =SUM(K7:K10) -> 1143 | L11: =SUM(L7:L10) -> 104 | M11: 9% | N11: 206% | O11: =SUM(O7:O10) -> 9715 | P11: =SUM(P7:P10) -> 0 | Q11: =SUM(Q7:Q10) -> 423 | R11: 4% | S11: 327% | T11: =SUM(T7:T10) -> 1779 | U11: =SUM(U7:U10) -> 145 | V11: 8% | W11: -22% | X11: =SUM(X7:X10) -> 1438 | Y11: =SUM(Y7:Y10) -> 132 | Z11: 9% | AA11: -66% | AB11: =SUM(AB7:AB10) -> 1240 | AC11: =SUM(AC7:AC10) -> 47 | AD11: 4% | AE11: -75% | AF11: =SUM(AF7:AF10) -> 649 | AG11: =SUM(AG7:AG10) -> 10 | AH11: 2% | AI11: -95% | AZ11: =SUM(AZ7:AZ10) -> 1546 | BC11: =SUM(BC7:BC10) -> 260 | BD11: =SUM(BD7:BD10) -> 87 | BE11: =SUM(BE7:BE10) -> 34 | BF11: =SUM(BF7:BF10) -> 99 | BG11: =SUM(BG7:BG10) -> 187
A12: South1 | B12: South 1 | C12: =SUMIFS('ASO View'!$N$6:$N$93,'ASO View'!$F$6:$F$93,Region!B12) -> 2192 | D12: =SUMIFS('ASO View'!O:O,'ASO View'!$F:$F,Region!$B12) -> 46 | E12: 2% | F12: 18% | G12: =SUMIFS('ASO View'!$R$6:$R$93,'ASO View'!$F$6:$F$93,Region!B12) -> 241 | H12: =SUMIFS('ASO View'!S:S,'ASO View'!$F:$F,Region!$B12) -> 0 | I12: 0% | J12: -100% | K12: =SUMIFS('ASO View'!$V$6:$V$93,'ASO View'!$F$6:$F$93,Region!B12) -> 307 | L12: =SUMIFS('ASO View'!W:W,'ASO View'!$F:$F,Region!$B12) -> 5 | M12: 2% | N12: 400% | O12: 3185 | P12: =SUMIFS('RCM View'!$N$6:$N$36,'RCM View'!$B$6:$B$36,Region!B12) -> 0 | Q12: =SUMIFS('Dec Raw Data'!$BL:$BL,'Dec Raw Data'!$BU:$BU,"Consumer",'Dec Raw Data'!$Q:$Q,Region!$A12) -> 51 | R12: 2% | S12: 82% | T12: 639 | U12: =SUMIFS('Dec Raw Data'!$BL:$BL,'Dec Raw Data'!$BU:$BU,"Consumer",'Dec Raw Data'!$Q:$Q,Region!$A12,'Dec Raw Data'!$BS:$BS,"Premium") -> 20 | V12: 3% | W12: 100% | X12: =SUMIFS('ASO View'!$AD$6:$AD$93,'ASO View'!$F$6:$F$93,Region!B12) -> 416 | Y12: =SUMIFS('ASO View'!AE:AE,'ASO View'!$F:$F,Region!$B12) -> 20 | Z12: 5% | AA12: -93% | AB12: =SUMIFS('ASO View'!$AS$6:$AS$93,'ASO View'!$F$6:$F$93,Region!B12) -> 359 | AC12: =SUMIFS('ASO View'!AT:AT,'ASO View'!$F:$F,Region!$B12) -> 15 | AD12: 4% | AE12: -93% | AF12: =SUMIFS('ASO View'!$AW$6:$AW$93,'ASO View'!$F$6:$F$93,Region!B12) -> 189 | AG12: =SUMIFS('ASO View'!AX:AX,'ASO View'!$F:$F,Region!$B12) -> 1 | AH12: 1% | AI12: -99% | AY12: =C29*$AY$6 -> 37 | AZ12: =SUMIFS('ASO View'!BI:BI,'ASO View'!$F:$F,Region!$B12) -> 223 | BA12: =SUMIFS('ASO View'!AD:AD,'ASO View'!$F:$F,Region!$B12) -> 416 | BB12: South1 | BC12: =VLOOKUP($BB12,'Nov Pivot'!$BF$8:$BI$15,2,0) -> 39 | BD12: =VLOOKUP($BB12,'Nov Pivot'!$BF$8:$BI$15,3,0) -> 2 | BE12: =VLOOKUP($BB12,'Nov Pivot'!$BF$8:$BI$15,4,0) -> 1 | BF12: =VLOOKUP($B12,'Nov Pivot'!$AQ$6:$AV$12,6,0) -> 28 | BG12: =VLOOKUP($B12,'Nov Pivot'!$AQ$6:$AV$12,5,0) -> 10
A13: South2 | B13: South 2 | C13: =SUMIFS('ASO View'!$N$6:$N$93,'ASO View'!$F$6:$F$93,Region!B13) -> 1864 | D13: =SUMIFS('ASO View'!O:O,'ASO View'!$F:$F,Region!$B13) -> 25 | E13: 1% | F13: -58% | G13: =SUMIFS('ASO View'!$R$6:$R$93,'ASO View'!$F$6:$F$93,Region!B13) -> 205 | H13: =SUMIFS('ASO View'!S:S,'ASO View'!$F:$F,Region!$B13) -> 10 | I13: 5% | J13: -29% | K13: =SUMIFS('ASO View'!$V$6:$V$93,'ASO View'!$F$6:$F$93,Region!B13) -> 261 | L13: =SUMIFS('ASO View'!W:W,'ASO View'!$F:$F,Region!$B13) -> 12 | M13: 5% | N13: -25% | O13: 2240 | P13: =SUMIFS('RCM View'!$N$6:$N$36,'RCM View'!$B$6:$B$36,Region!B13) -> 0 | Q13: =SUMIFS('Dec Raw Data'!$BL:$BL,'Dec Raw Data'!$BU:$BU,"Consumer",'Dec Raw Data'!$Q:$Q,Region!$A13) -> 47 | R13: 2% | S13: 88% | T13: 448 | U13: =SUMIFS('Dec Raw Data'!$BL:$BL,'Dec Raw Data'!$BU:$BU,"Consumer",'Dec Raw Data'!$Q:$Q,Region!$A13,'Dec Raw Data'!$BS:$BS,"Premium") -> 13 | V13: 3% | W13: -72% | X13: =SUMIFS('ASO View'!$AD$6:$AD$93,'ASO View'!$F$6:$F$93,Region!B13) -> 354 | Y13: =SUMIFS('ASO View'!AE:AE,'ASO View'!$F:$F,Region!$B13) -> 11 | Z13: 3% | AA13: -92% | AB13: =SUMIFS('ASO View'!$AS$6:$AS$93,'ASO View'!$F$6:$F$93,Region!B13) -> 306 | AC13: =SUMIFS('ASO View'!AT:AT,'ASO View'!$F:$F,Region!$B13) -> 5 | AD13: 2% | AE13: -94% | AF13: =SUMIFS('ASO View'!$AW$6:$AW$93,'ASO View'!$F$6:$F$93,Region!B13) -> 160 | AG13: =SUMIFS('ASO View'!AX:AX,'ASO View'!$F:$F,Region!$B13) -> 3 | AH13: 2% | AI13: -93% | AY13: =C30*$AY$6 -> 18.8 | AZ13: =SUMIFS('ASO View'!BI:BI,'ASO View'!$F:$F,Region!$B13) -> 175 | BA13: =SUMIFS('ASO View'!AD:AD,'ASO View'!$F:$F,Region!$B13) -> 354 | BB13: South2 | BC13: =VLOOKUP($BB13,'Nov Pivot'!$BF$8:$BI$15,2,0) -> 60 | BD13: =VLOOKUP($BB13,'Nov Pivot'!$BF$8:$BI$15,3,0) -> 14 | BE13: =VLOOKUP($BB13,'Nov Pivot'!$BF$8:$BI$15,4,0) -> 16 | BF13: =VLOOKUP($B13,'Nov Pivot'!$AQ$6:$AV$12,6,0) -> 25 | BG13: =VLOOKUP($B13,'Nov Pivot'!$AQ$6:$AV$12,5,0) -> 47
A14: West1 | B14: West 1 | C14: =SUMIFS('ASO View'!$N$6:$N$93,'ASO View'!$F$6:$F$93,Region!B14) -> 4772 | D14: =SUMIFS('ASO View'!O:O,'ASO View'!$F:$F,Region!$B14) -> 141 | E14: 3% | F14: 27% | G14: =SUMIFS('ASO View'!$R$6:$R$93,'ASO View'!$F$6:$F$93,Region!B14) -> 523 | H14: =SUMIFS('ASO View'!S:S,'ASO View'!$F:$F,Region!$B14) -> 24 | I14: 5% | J14: -49% | K14: =SUMIFS('ASO View'!$V$6:$V$93,'ASO View'!$F$6:$F$93,Region!B14) -> 670 | L14: =SUMIFS('ASO View'!W:W,'ASO View'!$F:$F,Region!$B14) -> 14 | M14: 2% | N14: -67% | O14: 6125 | P14: =SUMIFS('RCM View'!$N$6:$N$36,'RCM View'!$B$6:$B$36,Region!B14) -> 0 | Q14: =SUMIFS('Dec Raw Data'!$BL:$BL,'Dec Raw Data'!$BU:$BU,"Consumer",'Dec Raw Data'!$Q:$Q,Region!$A14) -> 179 | R14: 3% | S14: 265% | T14: 1225 | U14: =SUMIFS('Dec Raw Data'!$BL:$BL,'Dec Raw Data'!$BU:$BU,"Consumer",'Dec Raw Data'!$Q:$Q,Region!$A14,'Dec Raw Data'!$BS:$BS,"Premium") -> 62 | V14: 5% | W14: -14% | X14: =SUMIFS('ASO View'!$AD$6:$AD$93,'ASO View'!$F$6:$F$93,Region!B14) -> 907 | Y14: =SUMIFS('ASO View'!AE:AE,'ASO View'!$F:$F,Region!$B14) -> 60 | Z14: 7% | AA14: -88% | AB14: =SUMIFS('ASO View'!$AS$6:$AS$93,'ASO View'!$F$6:$F$93,Region!B14) -> 778 | AC14: =SUMIFS('ASO View'!AT:AT,'ASO View'!$F:$F,Region!$B14) -> 30 | AD14: 4% | AE14: -92% | AF14: =SUMIFS('ASO View'!$AW$6:$AW$93,'ASO View'!$F$6:$F$93,Region!B14) -> 415 | AG14: =SUMIFS('ASO View'!AX:AX,'ASO View'!$F:$F,Region!$B14) -> 25 | AH14: 6% | AI14: -81% | AY14: =C31*$AY$6 -> 40.25 | AZ14: =SUMIFS('ASO View'!BI:BI,'ASO View'!$F:$F,Region!$B14) -> 45 | BA14: =SUMIFS('ASO View'!AD:AD,'ASO View'!$F:$F,Region!$B14) -> 907 | BB14: West1 | BC14: =VLOOKUP($BB14,'Nov Pivot'!$BF$8:$BI$15,2,0) -> 111 | BD14: =VLOOKUP($BB14,'Nov Pivot'!$BF$8:$BI$15,3,0) -> 47 | BE14: =VLOOKUP($BB14,'Nov Pivot'!$BF$8:$BI$15,4,0) -> 43 | BF14: =VLOOKUP($B14,'Nov Pivot'!$AQ$6:$AV$12,6,0) -> 49 | BG14: =VLOOKUP($B14,'Nov Pivot'!$AQ$6:$AV$12,5,0) -> 72
B15: S+W | C15: =SUM(C12:C14) -> 8828 | D15: =SUM(D12:D14) -> 212 | E15: 2% | F15: 1% | G15: =SUM(G12:G14) -> 969 | H15: =SUM(H12:H14) -> 34 | I15: 4% | J15: -46% | K15: =SUM(K12:K14) -> 1238 | L15: =SUM(L12:L14) -> 31 | M15: 3% | N15: =IFERROR(L15/BD32-1,0) -> -58% | O15: =SUM(O12:O14) -> 11550 | P15: =SUM(P12:P14) -> 0 | Q15: =SUM(Q12:Q14) -> 277 | R15: 2% | S15: 172% | T15: =SUM(T12:T14) -> 2312 | U15: =SUM(U12:U14) -> 95 | V15: 4% | W15: -26% | X15: =SUM(X12:X14) -> 1677 | Y15: =SUM(Y12:Y14) -> 91 | Z15: 5% | AA15: -90% | AB15: =SUM(AB12:AB14) -> 1443 | AC15: =SUM(AC12:AC14) -> 50 | AD15: 3% | AE15: -93% | AF15: =SUM(AF12:AF14) -> 764 | AG15: =SUM(AG12:AG14) -> 29 | AH15: 4% | AI15: -88% | AZ15: =SUM(AZ12:AZ14) -> 443 | BC15: =SUM(BC12:BC14) -> 210 | BD15: =SUM(BD12:BD14) -> 63 | BE15: =SUM(BE12:BE14) -> 60 | BF15: =SUM(BF12:BF14) -> 102 | BG15: =SUM(BG12:BG14) -> 129
B17: INDIA | C17: =C3 -> 16384 | D17: 469 | E17: 3% | F17: -0% | G17: 1865 | H17: 96 | I17: 5% | J17: -36% | K17: 2381 | L17: 135 | M17: 6% | N17: 44% | O17: 21265 | P17: 0 | Q17: 700 | R17: 3% | S17: 248% | T17: 4091 | U17: 240 | V17: 6% | W17: -24% | X17: 3115 | Y17: 223 | Z17: 7% | AA17: -83% | AB17: =AB3 -> 2683 | AC17: =AC3 -> 97 | AD17: =AD3 -> 4% | AE17: =IFERROR(AC17/BG34-1,0) -> -89% | AF17: =AF3 -> 1413 | AG17: =AG3 -> 39 | AH17: =AH3 -> 3% | AI17: =IFERROR(AG17/BH34-1,0) -> -91% | AZ17: =AZ3 -> 0 | BC17: =BC3 -> 470 | BD17: =BD3 -> 150 | BE17: =BE3 -> 94 | BF17: =BF3 -> 201 | BG17: =BG3 -> 316
D19: ='ASO View'!$AL$3 -> 0.0521406 | H19: ='ASO View'!$BB$3 -> 113 | L19: ='ASO View'!$BF$3 -> 37
C20: =C28+C32 -> 1.80 | D20: =D28+D32 -> 0.05 | E20: =IFERROR(D20/C20,0) -> 3% | F20: =IFERROR(D20/BC20-1,0) -> -94% | G20: =G28+G32 -> 9437 | H20: =H28+H32 -> 113 | I20: =IFERROR(H20/G20,0) -> 1% | J20: =IFERROR(H20/BD20-1,0) -> -31% | K20: =K28+K32 -> 1780 | L20: =L28+L32 -> 37 | M20: =IFERROR(L20/K20,0) -> 2% | N20: =IFERROR(L20/BE20-1,0) -> -96% | BC20: =BC28+BC32 -> 0.84 | BD20: 163.00 | BE20: 1045.00 | BF20: 1312.00 | BG20: 857.00 | BH20: 455.00
C21: VAS
C22: SNP Rev.(Cr.) | G22: Visuals | K22: Prem Visuals | BC22: LMTD
B23: Region | C23: TGT | D23: Ach | E23: % | F23: MOM | G23: TGT | H23: Ach | I23: % | J23: MOM | K23: TGT | L23: Ach | M23: % | N23: MOM | BC23: SnP Rev | BD23: Visuals CA | BE23: Prem Visuals | BF23: SPM CA NB | BG23: SPM Gaming NB | BH23: SPM Non-Gaming NB
B24: East 1 | C24: =SUMIFS('ASO View'!$AK$6:$AK$93,'ASO View'!$F$6:$F$93,Region!B24) -> 0.18 | D24: =SUMIFS('Dec Raw Data'!$BY:$BY,'Dec Raw Data'!$BU:$BU,"Accessories",'Dec Raw Data'!$Q:$Q,Region!$BB24) -> 0.00 | E24: =IFERROR(D24/C24,0) -> 0% | F24: =IFERROR(D24/BC24-1,0) -> -100% | G24: =SUMIFS('ASO View'!$BA$6:$BA$93,'ASO View'!$F$6:$F$93,Region!B24) -> 1250 | H24: =SUMIFS('ASO View'!BB:BB,'ASO View'!$F:$F,Region!$B7) -> 19 | I24: =IFERROR(H24/G24,0) -> 2% | J24: =IFERROR(H24/BD24-1,0) -> -17% | K24: =SUMIFS('ASO View'!$BE$6:$BE$93,'ASO View'!$F$6:$F$93,Region!B24) -> 250 | L24: =SUMIFS('ASO View'!BF:BF,'ASO View'!$F:$F,Region!$B7) -> 2 | M24: =IFERROR(L24/K24,0) -> 1% | N24: =IFERROR(L24/BE24-1,0) -> -94% | BA24: East 1 | BB24: East1 | BC24: =SUMIFS('Nov Raw Data'!$BY:$BY,'Nov Raw Data'!$CC:$CC,"MTD",'Nov Raw Data'!$BU:$BU,"Accessories",'Nov Raw Data'!$Q:$Q,Region!$BB24) -> 0.0 | BD24: =VLOOKUP($BB24,'Nov Pivot'!BC:BD,2,0) -> 23 | BE24: =SUMIFS('ASO View'!$DK:$DK,'ASO View'!F:F,BA24) -> 31 | BF24: =SUMIFS('ASO View'!DL:DL,'ASO View'!$F:$F,Region!$B7) -> 47 | BG24: =SUMIFS('ASO View'!DM:DM,'ASO View'!$F:$F,Region!$B7) -> 16 | BH24: =SUMIFS('ASO View'!DN:DN,'ASO View'!$F:$F,Region!$B7) -> 31
B25: East 2 | C25: =SUMIFS('ASO View'!$AK$6:$AK$93,'ASO View'!$F$6:$F$93,Region!B25) -> 0.14 | D25: =SUMIFS('Dec Raw Data'!$BY:$BY,'Dec Raw Data'!$BU:$BU,"Accessories",'Dec Raw Data'!$Q:$Q,Region!$BB25) -> 0.02 | E25: =IFERROR(D25/C25,0) -> 12% | F25: =IFERROR(D25/BC25-1,0) -> -89% | G25: =SUMIFS('ASO View'!$BA$6:$BA$93,'ASO View'!$F$6:$F$93,Region!B25) -> 1000 | H25: =SUMIFS('ASO View'!BB:BB,'ASO View'!$F:$F,Region!$B8) -> 33 | I25: 3% | J25: -15% | K25: =SUMIFS('ASO View'!$BE$6:$BE$93,'ASO View'!$F$6:$F$93,Region!B25) -> 200 | L25: =SUMIFS('ASO View'!BF:BF,'ASO View'!$F:$F,Region!$B8) -> 15 | M25: 8% | N25: =IFERROR(L25/BE25-1,0) -> -88% | BA25: East 2 | BB25: East2 | BC25: =SUMIFS('Nov Raw Data'!$BY:$BY,'Nov Raw Data'!$CC:$CC,"MTD",'Nov Raw Data'!$BU:$BU,"Accessories",'Nov Raw Data'!$Q:$Q,Region!$BB25) -> 0.2 | BD25: =VLOOKUP($BB25,'Nov Pivot'!BC:BD,2,0) -> 39 | BE25: =SUMIFS('ASO View'!$DK:$DK,'ASO View'!F:F,BA25) -> 130 | BF25: =SUMIFS('ASO View'!DL:DL,'ASO View'!$F:$F,Region!$B8) -> 68 | BG25: =SUMIFS('ASO View'!DM:DM,'ASO View'!$F:$F,Region!$B8) -> 29 | BH25: =SUMIFS('ASO View'!DN:DN,'ASO View'!$F:$F,Region!$B8) -> 39
B26: North 1 | C26: =SUMIFS('ASO View'!$AK$6:$AK$93,'ASO View'!$F$6:$F$93,Region!B26) -> 0.23 | D26: =SUMIFS('Dec Raw Data'!$BY:$BY,'Dec Raw Data'!$BU:$BU,"Accessories",'Dec Raw Data'!$Q:$Q,Region!$BB26) -> 0.01 | E26: 3% | F26: -95% | G26: =SUMIFS('ASO View'!$BA$6:$BA$93,'ASO View'!$F$6:$F$93,Region!B26) -> 1750 | H26: =SUMIFS('ASO View'!BB:BB,'ASO View'!$F:$F,Region!$B9) -> 20 | I26: 1% | J26: 122% | K26: =SUMIFS('ASO View'!$BE$6:$BE$93,'ASO View'!$F$6:$F$93,Region!B26) -> 350 | L26: =SUMIFS('ASO View'!BF:BF,'ASO View'!$F:$F,Region!$B9) -> 10 | M26: 3% | N26: -97% | BA26: North 1 | BB26: North1 | BC26: =SUMIFS('Nov Raw Data'!$BY:$BY,'Nov Raw Data'!$CC:$CC,"MTD",'Nov Raw Data'!$BU:$BU,"Accessories",'Nov Raw Data'!$Q:$Q,Region!$BB26) -> 0.1 | BD26: =VLOOKUP($BB26,'Nov Pivot'!BC:BD,2,0) -> 9 | BE26: =SUMIFS('ASO View'!$DK:$DK,'ASO View'!F:F,BA26) -> 330 | BF26: =SUMIFS('ASO View'!DL:DL,'ASO View'!$F:$F,Region!$B9) -> 139 | BG26: =SUMIFS('ASO View'!DM:DM,'ASO View'!$F:$F,Region!$B9) -> 56 | BH26: =SUMIFS('ASO View'!DN:DN,'ASO View'!$F:$F,Region!$B9) -> 83
B27: North 2 | C27: =SUMIFS('ASO View'!$AK$6:$AK$93,'ASO View'!$F$6:$F$93,Region!B27) -> 0.29 | D27: =SUMIFS('Dec Raw Data'!$BY:$BY,'Dec Raw Data'!$BU:$BU,"Accessories",'Dec Raw Data'!$Q:$Q,Region!$BB27) -> 0.01 | E27: 3% | F27: -93% | G27: =SUMIFS('ASO View'!$BA$6:$BA$93,'ASO View'!$F$6:$F$93,Region!B27) -> 1590 | H27: =SUMIFS('ASO View'!BB:BB,'ASO View'!$F:$F,Region!$B10) -> 5 | I27: 0% | J27: -72% | K27: =SUMIFS('ASO View'!$BE$6:$BE$93,'ASO View'!$F$6:$F$93,Region!B27) -> 293 | L27: =SUMIFS('ASO View'!BF:BF,'ASO View'!$F:$F,Region!$B10) -> 0 | M27: 0% | N27: -100% | BA27: North 2 | BB27: North2 | BC27: =SUMIFS('Nov Raw Data'!$BY:$BY,'Nov Raw Data'!$CC:$CC,"MTD",'Nov Raw Data'!$BU:$BU,"Accessories",'Nov Raw Data'!$Q:$Q,Region!$BB27) -> 0.1 | BD27: =VLOOKUP($BB27,'Nov Pivot'!BC:BD,2,0) -> 18 | BE27: =SUMIFS('ASO View'!$DK:$DK,'ASO View'!F:F,BA27) -> 85 | BF27: =SUMIFS('ASO View'!DL:DL,'ASO View'!$F:$F,Region!$B10) -> 135 | BG27: =SUMIFS('ASO View'!DM:DM,'ASO View'!$F:$F,Region!$B10) -> 84 | BH27: =SUMIFS('ASO View'!DN:DN,'ASO View'!$F:$F,Region!$B10) -> 51
B28: N+E | C28: =SUM(C24:C27) -> 0.84 | D28: =SUM(D24:D27) -> 0.03 | E28: =IFERROR(D28/C28,0) -> 4% | F28: -92% | G28: =SUM(G24:G27) -> 5590 | H28: =SUM(H24:H27) -> 77 | I28: 1% | J28: -13% | K28: =SUM(K24:K27) -> 1093 | L28: =SUM(L24:L27) -> 27 | M28: 2% | N28: -95% | BB28: N+E | BC28: =SUM(BC24:BC27) -> 0.4 | BD28: 89 | BE28: 576 | BF28: 389 | BG28: 185 | BH28: 204
B29: South 1 | C29: =SUMIFS('ASO View'!$AK$6:$AK$93,'ASO View'!$F$6:$F$93,Region!B29) -> 0.37 | D29: =SUMIFS('Dec Raw Data'!$BY:$BY,'Dec Raw Data'!$BU:$BU,"Accessories",'Dec Raw Data'!$Q:$Q,Region!$BB29) -> 0.01 | E29: 4% | F29: -92% | G29: =SUMIFS('ASO View'!$BA$6:$BA$93,'ASO View'!$F$6:$F$93,Region!B29) -> 1200 | H29: =SUMIFS('ASO View'!BB:BB,'ASO View'!$F:$F,Region!$B12) -> 0 | I29: 0% | J29: -100% | K29: =SUMIFS('ASO View'!$BE$6:$BE$93,'ASO View'!$F$6:$F$93,Region!B29) -> 173 | L29: =SUMIFS('ASO View'!BF:BF,'ASO View'!$F:$F,Region!$B12) -> 0 | M29: 0% | N29: -100% | BA29: South 1 | BB29: South1 | BC29: =SUMIFS('Nov Raw Data'!$BY:$BY,'Nov Raw Data'!$CC:$CC,"MTD",'Nov Raw Data'!$BU:$BU,"Accessories",'Nov Raw Data'!$Q:$Q,Region!$BB29) -> 0.2 | BD29: =VLOOKUP($BB29,'Nov Pivot'!BC:BD,2,0) -> 8 | BE29: =SUMIFS('ASO View'!$DK:$DK,'ASO View'!F:F,BA29) -> 170 | BF29: =SUMIFS('ASO View'!DL:DL,'ASO View'!$F:$F,Region!$B12) -> 284 | BG29: =SUMIFS('ASO View'!DM:DM,'ASO View'!$F:$F,Region!$B12) -> 209 | BH29: =SUMIFS('ASO View'!DN:DN,'ASO View'!$F:$F,Region!$B12) -> 75
B30: South 2 | C30: =SUMIFS('ASO View'!$AK$6:$AK$93,'ASO View'!$F$6:$F$93,Region!B30) -> 0.19 | D30: =SUMIFS('Dec Raw Data'!$BY:$BY,'Dec Raw Data'!$BU:$BU,"Accessories",'Dec Raw Data'!$Q:$Q,Region!$BB30) -> 0.00 | E30: 0% | F30: -100% | G30: =SUMIFS('ASO View'!$BA$6:$BA$93,'ASO View'!$F$6:$F$93,Region!B30) -> 1000 | H30: =SUMIFS('ASO View'!BB:BB,'ASO View'!$F:$F,Region!$B13) -> 3 | I30: 0% | J30: -90% | K30: =SUMIFS('ASO View'!$BE$6:$BE$93,'ASO View'!$F$6:$F$93,Region!B30) -> 134 | L30: =SUMIFS('ASO View'!BF:BF,'ASO View'!$F:$F,Region!$B13) -> 0 | M30: 0% | N30: =IFERROR(L30/BE30-1,0) -> -100% | BA30: South 2 | BB30: South2 | BC30: =SUMIFS('Nov Raw Data'!$BY:$BY,'Nov Raw Data'!$CC:$CC,"MTD",'Nov Raw Data'!$BU:$BU,"Accessories",'Nov Raw Data'!$Q:$Q,Region!$BB30) -> 0.1 | BD30: =IFERROR(VLOOKUP($BB30,'Nov Pivot'!BC:BD,2,0),0) -> 30 | BE30: =SUMIFS('ASO View'!$DK:$DK,'ASO View'!F:F,BA30) -> 126 | BF30: =SUMIFS('ASO View'!DL:DL,'ASO View'!$F:$F,Region!$B13) -> 133 | BG30: =SUMIFS('ASO View'!DM:DM,'ASO View'!$F:$F,Region!$B13) -> 87 | BH30: =SUMIFS('ASO View'!DN:DN,'ASO View'!$F:$F,Region!$B13) -> 46
B31: West 1 | C31: =SUMIFS('ASO View'!$AK$6:$AK$93,'ASO View'!$F$6:$F$93,Region!B31) -> 0.40 | D31: =SUMIFS('Dec Raw Data'!$BY:$BY,'Dec Raw Data'!$BU:$BU,"Accessories",'Dec Raw Data'!$Q:$Q,Region!$BB31) -> 0.00 | E31: 1% | F31: -95% | G31: =SUMIFS('ASO View'!$BA$6:$BA$93,'ASO View'!$F$6:$F$93,Region!B31) -> 1647 | H31: =SUMIFS('ASO View'!BB:BB,'ASO View'!$F:$F,Region!$B14) -> 33 | I31: 2% | J31: -8% | K31: =SUMIFS('ASO View'!$BE$6:$BE$93,'ASO View'!$F$6:$F$93,Region!B31) -> 380 | L31: =SUMIFS('ASO View'!BF:BF,'ASO View'!$F:$F,Region!$B14) -> 10 | M31: 3% | N31: -94% | BA31: West 1 | BB31: West1 | BC31: =SUMIFS('Nov Raw Data'!$BY:$BY,'Nov Raw Data'!$CC:$CC,"MTD",'Nov Raw Data'!$BU:$BU,"Accessories",'Nov Raw Data'!$Q:$Q,Region!$BB31) -> 0.1 | BD31: =VLOOKUP($BB31,'Nov Pivot'!BC:BD,2,0) -> 36 | BE31: =SUMIFS('ASO View'!$DK:$DK,'ASO View'!F:F,BA31) -> 173 | BF31: =SUMIFS('ASO View'!DL:DL,'ASO View'!$F:$F,Region!$B14) -> 506 | BG31: =SUMIFS('ASO View'!DM:DM,'ASO View'!$F:$F,Region!$B14) -> 376 | BH31: =SUMIFS('ASO View'!DN:DN,'ASO View'!$F:$F,Region!$B14) -> 130
B32: S+W | C32: =SUM(C29:C31) -> 0.96 | D32: =SUM(D29:D31) -> 0.02 | E32: 2% | F32: -95% | G32: =SUM(G29:G31) -> 3847 | H32: =SUM(H29:H31) -> 36 | I32: 1% | J32: -51% | K32: =SUM(K29:K31) -> 687 | L32: =SUM(L29:L31) -> 10 | M32: 1% | N32: -98% | BC32: =SUM(BC29:BC31) -> 0.4 | BD32: 74 | BE32: 469 | BF32: 923 | BG32: 672 | BH32: 251
B34: INDIA | C34: =C20 -> 1.80 | D34: =D20 -> 0.05 | E34: 3% | F34: -94% | G34: 9437 | H34: 113 | I34: 1% | J34: -31% | K34: 1780 | L34: 37 | M34: 2% | N34: -96% | BC34: =BH3 -> 0.00 | BD34: =SUM(BD32,BD28) -> 163 | BE34: =SUM(BE32,BE28) -> 1045 | BF34: =SUM(BF32,BF28) -> 1312 | BG34: =SUM(BG32,BG28) -> 857 | BH34: =SUM(BH32,BH28) -> 455
D36: ='ASO View'!$BN$3 -> 478 | H36: ='ASO View'!BR3 -> 178 | L36: ='ASO View'!$BV$3 -> 116 | P36: ='ASO View'!$BZ$3 -> 165 | T36: ='ASO View'!$CD$3 -> 165 | X36: ='ASO View'!$CH$3 -> 96 | AB36: ='ASO View'!$CL$3 -> 78 | AF36: ='ASO View'!$CP$3 -> 80 | AJ36: ='ASO View'!$CT$3 -> 67
C37: =C45+C49 -> 6300 | D37: =D45+D49 -> 477 | E37: =IFERROR(D37/C37,0) -> 8% | F37: =IFERROR(D37/BD37-1,0) -> 216% | G37: =G45+G49 -> 3094 | H37: =H45+H49 -> 178 | I37: =IFERROR(H37/G37,0) -> 6% | J37: =IFERROR(H37/BE37-1,0) -> -29% | K37: =K45+K49 -> 478 | L37: =L45+L49 -> 165 | M37: =IFERROR(L37/K37,0) -> 35% | N37: =IFERROR(L37/BI37-1,0) -> 237% | O37: =O45+O49 -> 434 | P37: =P45+P49 -> 165 | Q37: =IFERROR(P37/O37,0) -> 38% | R37: =IFERROR(P37/BJ37-1,0) -> 416% | S37: =S45+S49 -> 1673 | T37: =T45+T49 -> 96 | U37: =IFERROR(T37/S37,0) -> 6% | V37: =IFERROR(T37/BL37-1,0) -> 48% | W37: =W45+W49 -> 1122 | X37: =X45+X49 -> 78 | Y37: =IFERROR(X37/W37,0) -> 7% | Z37: =IFERROR(X37/BK37-1,0) -> 50% | AA37: =AA45+AA49 -> 3200 | AB37: =AB45+AB49 -> 80 | AC37: =IFERROR(AB37/AA37,0) -> 3% | AD37: =IFERROR(AB37/BF37-1,0) -> 40% | AE37: =AE45+AE49 -> 2308 | AF37: =AF45+AF49 -> 67 | AG37: =IFERROR(AF37/AE37,0) -> 3% | AH37: =IFERROR(AF37/BG37-1,0) -> 6600% | BD37: =BD45+BD49 -> 151 | BE37: 250 | BF37: 57 | BG37: 1 | BH37: 81 | BI37: 49 | BJ37: 32 | BK37: 52 | BL37: 65
C38: Coverage | BD38: Coverage
C39: T3 | G39: PM | K39: PM Gaming NB | O39: PM Non-Gaming NB | S39: TDT | W39: AIO | AA39: SnP | AE39: Visuals | BD39: T3 Cov App | BE39: T3 PM Cov | BF39: SnP Cov | BG39: Visuals Cov | BH39: SPM CA NB | BI39: SPM Gaming NB | BJ39: SPM Non-Gaming NB | BK39: AIO | BL39: TDT
B40: Region | C40: TGT | D40: Ach | E40: % | F40: MOM | G40: TGT | H40: Ach | I40: % | J40: MOM | K40: TGT | L40: Ach | M40: % | N40: MOM | O40: TGT | P40: Ach | Q40: % | R40: MOM | S40: TGT | T40: Ach | U40: % | V40: MOM | W40: TGT | X40: Ach | Y40: % | Z40: MOM | AA40: TGT | AB40: Ach | AC40: % | AD40: MOM | AE40: TGT | AF40: Ach | AG40: % | AH40: MOM
A41: East1 | B41: East 1 | C41: 660 | D41: =IFERROR(VLOOKUP($A41,'Dec Pivot'!$T:$U,2,0),0) -> 42 | E41: =IFERROR(D41/C41,0) -> 6% | F41: =IFERROR(D41/BD41-1,0) -> 75% | G41: 355 | H41: =IFERROR(VLOOKUP(A41,'Dec Pivot'!$BA:$BB,2,0),0) -> 21 | I41: =IFERROR(H41/G41,0) -> 6% | J41: =IFERROR(H41/BE41-1,0) -> -69% | K41: =SUMIFS('ASO View'!$BY$6:$BY$93,'ASO View'!$F$6:$F$93,Region!B41) -> 51 | L41: =SUMIFS('ASO View'!BZ:BZ,'ASO View'!$F:$F,Region!$B41) -> 21 | M41: =IFERROR(L41/K41,0) -> 41% | N41: =IFERROR(L41/BI41-1,0) -> 950% | O41: =SUMIFS('ASO View'!$CC$6:$CC$93,'ASO View'!$F$6:$F$93,Region!B41) -> 46 | P41: =SUMIFS('ASO View'!CD:CD,'ASO View'!$F:$F,Region!$B41) -> 21 | Q41: =IFERROR(P41/O41,0) -> 46% | R41: =IFERROR(P41/BJ41-1,0) -> 0% | S41: =SUMIFS('ASO View'!$CG$6:$CG$93,'ASO View'!$F$6:$F$93,Region!B41) -> 178 | T41: =SUMIFS('ASO View'!CH:CH,'ASO View'!$F:$F,Region!$B41) -> 8 | U41: =IFERROR(T41/S41,0) -> 4% | V41: =IFERROR(T41/BL41-1,0) -> -58% | W41: =SUMIFS('ASO View'!$CK$6:$CK$93,'ASO View'!$F$6:$F$93,Region!B41) -> 119 | X41: =SUMIFS('ASO View'!CL:CL,'ASO View'!$F:$F,Region!$B41) -> 4 | Y41: =IFERROR(X41/W41,0) -> 3% | Z41: =IFERROR(X41/BK41-1,0) -> -64% | AA41: =SUMIFS('ASO View'!$CO$6:$CO$93,'ASO View'!$F$6:$F$93,Region!B41) -> 326 | AB41: =SUMIFS('ASO View'!CP:CP,'ASO View'!$F:$F,Region!$B41) -> 0 | AC41: =IFERROR(AB41/AA41,0) -> 0% | AD41: =IFERROR(AB41/BF41-1,0) -> -100% | AE41: =SUMIFS('ASO View'!$CS$6:$CS$93,'ASO View'!$F$6:$F$93,Region!B41) -> 305 | AF41: =SUMIFS('ASO View'!CT:CT,'ASO View'!$F:$F,Region!$B41) -> 14 | AG41: =IFERROR(AF41/AE41,0) -> 5% | AH41: =IFERROR(AF41/BG41-1,0) -> 1300% | BD41: =VLOOKUP($B41,'Nov Pivot'!$AJ$6:$AO$13,6,0) -> 24 | BE41: =VLOOKUP($B41,'Nov Pivot'!$AJ$6:$AO$13,5,0) -> 68 | BF41: =SUMIFS('ASO View'!DI:DI,'ASO View'!$F:$F,Region!$B41) -> 6 | BG41: =SUMIFS('ASO View'!DJ:DJ,'ASO View'!$F:$F,Region!$B41) -> 1 | BH41: =VLOOKUP($A41,'Nov Pivot'!$AX:$BA,4,0) -> 2 | BI41: =VLOOKUP($A41,'Nov Pivot'!$AX:$BA,2,0) -> 2 | BJ41: =VLOOKUP($A41,'Nov Pivot'!$AX:$BA,3,0) -> 0 | BK41: =SUMIFS('ASO View'!$DE:$DE,'ASO View'!$F:$F,Region!$B41) -> 11 | BL41: =SUMIFS('ASO View'!$DF:$DF,'ASO View'!$F:$F,Region!$B41) -> 19
A42: East2 | B42: East 2 | C42: 460 | D42: =IFERROR(VLOOKUP($A42,'Dec Pivot'!$T:$U,2,0),0) -> 39 | E42: 8% | F42: =IFERROR(D42/BD42-1,0) -> 144% | G42: 205 | H42: =IFERROR(VLOOKUP(A42,'Dec Pivot'!$BA:$BB,2,0),0) -> 12 | I42: 6% | J42: -33% | K42: =SUMIFS('ASO View'!$BY$6:$BY$93,'ASO View'!$F$6:$F$93,Region!B42) -> 37 | L42: =SUMIFS('ASO View'!BZ:BZ,'ASO View'!$F:$F,Region!$B42) -> 12 | M42: 32% | N42: =IFERROR(L42/BI42-1,0) -> 300% | O42: =SUMIFS('ASO View'!$CC$6:$CC$93,'ASO View'!$F$6:$F$93,Region!B42) -> 35 | P42: =SUMIFS('ASO View'!CD:CD,'ASO View'!$F:$F,Region!$B42) -> 12 | Q42: 34% | R42: =IFERROR(P42/BJ42-1,0) -> 140% | S42: =SUMIFS('ASO View'!$CG$6:$CG$93,'ASO View'!$F$6:$F$93,Region!B42) -> 134 | T42: =SUMIFS('ASO View'!CH:CH,'ASO View'!$F:$F,Region!$B42) -> 3 | U42: 2% | V42: =IFERROR(T42/BL42-1,0) -> 50% | W42: =SUMIFS('ASO View'!$CK$6:$CK$93,'ASO View'!$F$6:$F$93,Region!B42) -> 89 | X42: =SUMIFS('ASO View'!CL:CL,'ASO View'!$F:$F,Region!$B42) -> 5 | Y42: 6% | Z42: =IFERROR(X42/BK42-1,0) -> 0% | AA42: =SUMIFS('ASO View'!$CO$6:$CO$93,'ASO View'!$F$6:$F$93,Region!B42) -> 356 | AB42: =SUMIFS('ASO View'!CP:CP,'ASO View'!$F:$F,Region!$B42) -> 15 | AC42: 4% | AD42: =IFERROR(AB42/BF42-1,0) -> 150% | AE42: =SUMIFS('ASO View'!$CS$6:$CS$93,'ASO View'!$F$6:$F$93,Region!B42) -> 140 | AF42: =SUMIFS('ASO View'!CT:CT,'ASO View'!$F:$F,Region!$B42) -> 17 | AG42: 12% | AH42: =IFERROR(AF42/BG42-1,0) -> 0% | BD42: =VLOOKUP($B42,'Nov Pivot'!$AJ$6:$AO$13,6,0) -> 16 | BE42: =VLOOKUP($B42,'Nov Pivot'!$AJ$6:$AO$13,5,0) -> 18 | BF42: =SUMIFS('ASO View'!DI:DI,'ASO View'!$F:$F,Region!$B42) -> 6 | BG42: =SUMIFS('ASO View'!DJ:DJ,'ASO View'!$F:$F,Region!$B42) -> 0 | BH42: =VLOOKUP($A42,'Nov Pivot'!$AX:$BA,4,0) -> 8 | BI42: =VLOOKUP($A42,'Nov Pivot'!$AX:$BA,2,0) -> 3 | BJ42: =VLOOKUP($A42,'Nov Pivot'!$AX:$BA,3,0) -> 5 | BK42: =SUMIFS('ASO View'!$DE:$DE,'ASO View'!$F:$F,Region!$B42) -> 5 | BL42: =SUMIFS('ASO View'!$DF:$DF,'ASO View'!$F:$F,Region!$B42) -> 2
A43: North1 | B43: North 1 | C43: 1025 | D43: =IFERROR(VLOOKUP($A43,'Dec Pivot'!$T:$U,2,0),0) -> 128 | E43: 12% | F43: =IFERROR(D43/BD43-1,0) -> 327% | G43: 468 | H43: =IFERROR(VLOOKUP(A43,'Dec Pivot'!$BA:$BB,2,0),0) -> 34 | I43: 7% | J43: -35% | K43: =SUMIFS('ASO View'!$BY$6:$BY$93,'ASO View'!$F$6:$F$93,Region!B43) -> 81 | L43: =SUMIFS('ASO View'!BZ:BZ,'ASO View'!$F:$F,Region!$B43) -> 25 | M43: 31% | N43: 257% | O43: =SUMIFS('ASO View'!$CC$6:$CC$93,'ASO View'!$F$6:$F$93,Region!B43) -> 73 | P43: =SUMIFS('ASO View'!CD:CD,'ASO View'!$F:$F,Region!$B43) -> 25 | Q43: 34% | R43: 178% | S43: =SUMIFS('ASO View'!$CG$6:$CG$93,'ASO View'!$F$6:$F$93,Region!B43) -> 275 | T43: =SUMIFS('ASO View'!CH:CH,'ASO View'!$F:$F,Region!$B43) -> 53 | U43: 19% | V43: 165% | W43: =SUMIFS('ASO View'!$CK$6:$CK$93,'ASO View'!$F$6:$F$93,Region!B43) -> 184 | X43: =SUMIFS('ASO View'!CL:CL,'ASO View'!$F:$F,Region!$B43) -> 32 | Y43: 17% | Z43: 300% | AA43: =SUMIFS('ASO View'!$CO$6:$CO$93,'ASO View'!$F$6:$F$93,Region!B43) -> 656 | AB43: =SUMIFS('ASO View'!CP:CP,'ASO View'!$F:$F,Region!$B43) -> 28 | AC43: 4% | AD43: 8% | AE43: =SUMIFS('ASO View'!$CS$6:$CS$93,'ASO View'!$F$6:$F$93,Region!B43) -> 415 | AF43: =SUMIFS('ASO View'!CT:CT,'ASO View'!$F:$F,Region!$B43) -> 17 | AG43: 4% | AH43: 0% | BD43: =VLOOKUP($B43,'Nov Pivot'!$AJ$6:$AO$13,6,0) -> 30 | BE43: =VLOOKUP($B43,'Nov Pivot'!$AJ$6:$AO$13,5,0) -> 52 | BF43: =SUMIFS('ASO View'!DI:DI,'ASO View'!$F:$F,Region!$B43) -> 26 | BG43: =SUMIFS('ASO View'!DJ:DJ,'ASO View'!$F:$F,Region!$B43) -> 0 | BH43: =VLOOKUP($A43,'Nov Pivot'!$AX:$BA,4,0) -> 16 | BI43: =VLOOKUP($A43,'Nov Pivot'!$AX:$BA,2,0) -> 7 | BJ43: =VLOOKUP($A43,'Nov Pivot'!$AX:$BA,3,0) -> 9 | BK43: =SUMIFS('ASO View'!$DE:$DE,'ASO View'!$F:$F,Region!$B43) -> 8 | BL43: =SUMIFS('ASO View'!$DF:$DF,'ASO View'!$F:$F,Region!$B43) -> 20
A44: North2 | B44: North 2 | C44: 900 | D44: =IFERROR(VLOOKUP($A44,'Dec Pivot'!$T:$U,2,0),0) -> 73 | E44: 8% | F44: =IFERROR(D44/BD44-1,0) -> 564% | G44: 385 | H44: =IFERROR(VLOOKUP(A44,'Dec Pivot'!$BA:$BB,2,0),0) -> 43 | I44: 11% | J44: 258% | K44: =SUMIFS('ASO View'!$BY$6:$BY$93,'ASO View'!$F$6:$F$93,Region!B44) -> 69 | L44: =SUMIFS('ASO View'!BZ:BZ,'ASO View'!$F:$F,Region!$B44) -> 42 | M44: 61% | N44: 740% | O44: =SUMIFS('ASO View'!$CC$6:$CC$93,'ASO View'!$F$6:$F$93,Region!B44) -> 65 | P44: =SUMIFS('ASO View'!CD:CD,'ASO View'!$F:$F,Region!$B44) -> 42 | Q44: 65% | R44: 0% | S44: =SUMIFS('ASO View'!$CG$6:$CG$93,'ASO View'!$F$6:$F$93,Region!B44) -> 261 | T44: =SUMIFS('ASO View'!CH:CH,'ASO View'!$F:$F,Region!$B44) -> 9 | U44: 3% | V44: 0% | W44: =SUMIFS('ASO View'!$CK$6:$CK$93,'ASO View'!$F$6:$F$93,Region!B44) -> 181 | X44: =SUMIFS('ASO View'!CL:CL,'ASO View'!$F:$F,Region!$B44) -> 8 | Y44: 4% | Z44: 0% | AA44: =SUMIFS('ASO View'!$CO$6:$CO$93,'ASO View'!$F$6:$F$93,Region!B44) -> 499 | AB44: =SUMIFS('ASO View'!CP:CP,'ASO View'!$F:$F,Region!$B44) -> 4 | AC44: 1% | AD44: 300% | AE44: =SUMIFS('ASO View'!$CS$6:$CS$93,'ASO View'!$F$6:$F$93,Region!B44) -> 286 | AF44: =SUMIFS('ASO View'!CT:CT,'ASO View'!$F:$F,Region!$B44) -> 1 | AG44: 0% | AH44: 0% | BD44: =VLOOKUP($B44,'Nov Pivot'!$AJ$6:$AO$13,6,0) -> 11 | BE44: =VLOOKUP($B44,'Nov Pivot'!$AJ$6:$AO$13,5,0) -> 12 | BF44: =SUMIFS('ASO View'!DI:DI,'ASO View'!$F:$F,Region!$B44) -> 1 | BG44: =SUMIFS('ASO View'!DJ:DJ,'ASO View'!$F:$F,Region!$B44) -> 0 | BH44: =VLOOKUP($A44,'Nov Pivot'!$AX:$BA,4,0) -> 5 | BI44: =VLOOKUP($A44,'Nov Pivot'!$AX:$BA,2,0) -> 5 | BJ44: =VLOOKUP($A44,'Nov Pivot'!$AX:$BA,3,0) -> 0 | BK44: =SUMIFS('ASO View'!$DE:$DE,'ASO View'!$F:$F,Region!$B44) -> 0 | BL44: =SUMIFS('ASO View'!$DF:$DF,'ASO View'!$F:$F,Region!$B44) -> 0
A45: N+E | B45: N+E | C45: =SUM(C41:C44) -> 3045 | D45: =SUM(D41:D44) -> 282 | E45: 9% | F45: 248% | G45: =SUM(G41:G44) -> 1413 | H45: =SUM(H41:H44) -> 110 | I45: 8% | J45: -27% | K45: =SUM(K41:K44) -> 238 | L45: =SUM(L41:L44) -> 100 | M45: 42% | N45: 488% | O45: =SUM(O41:O44) -> 219 | P45: =SUM(P41:P44) -> 100 | Q45: 46% | R45: 614% | S45: =SUM(S41:S44) -> 848 | T45: =SUM(T41:T44) -> 73 | U45: 9% | V45: 78% | W45: =SUM(W41:W44) -> 572 | X45: =SUM(X41:X44) -> 49 | Y45: 9% | Z45: 104% | AA45: =SUM(AA41:AA44) -> 1837 | AB45: =SUM(AB41:AB44) -> 47 | AC45: 3% | AD45: 21% | AE45: =SUM(AE41:AE44) -> 1146 | AF45: =SUM(AF41:AF44) -> 49 | AG45: 4% | AH45: 4800% | BD45: =SUM(BD41:BD44) -> 81 | BE45: 150 | BF45: 39 | BG45: 1 | BH45: 31 | BI45: 17 | BJ45: 14 | BK45: 24 | BL45: 41
A46: South1 | B46: South 1 | C46: 730 | D46: =IFERROR(VLOOKUP($A46,'Dec Pivot'!$T:$U,2,0),0) -> 42 | E46: 6% | F46: 200% | G46: 388 | H46: =IFERROR(VLOOKUP(A46,'Dec Pivot'!$BA:$BB,2,0),0) -> 14 | I46: 4% | J46: 40% | K46: =SUMIFS('ASO View'!$BY$6:$BY$93,'ASO View'!$F$6:$F$93,Region!B46) -> 54 | L46: =SUMIFS('ASO View'!BZ:BZ,'ASO View'!$F:$F,Region!$B46) -> 14 | M46: 26% | N46: -22% | O46: =SUMIFS('ASO View'!$CC$6:$CC$93,'ASO View'!$F$6:$F$93,Region!B46) -> 48 | P46: =SUMIFS('ASO View'!CD:CD,'ASO View'!$F:$F,Region!$B46) -> 14 | Q46: 29% | R46: 367% | S46: =SUMIFS('ASO View'!$CG$6:$CG$93,'ASO View'!$F$6:$F$93,Region!B46) -> 184 | T46: =SUMIFS('ASO View'!CH:CH,'ASO View'!$F:$F,Region!$B46) -> 1 | U46: 1% | V46: 0% | W46: =SUMIFS('ASO View'!$CK$6:$CK$93,'ASO View'!$F$6:$F$93,Region!B46) -> 122 | X46: =SUMIFS('ASO View'!CL:CL,'ASO View'!$F:$F,Region!$B46) -> 0 | Y46: 0% | Z46: 0% | AA46: =SUMIFS('ASO View'!$CO$6:$CO$93,'ASO View'!$F$6:$F$93,Region!B46) -> 295 | AB46: =SUMIFS('ASO View'!CP:CP,'ASO View'!$F:$F,Region!$B46) -> 20 | AC46: 7% | AD46: 900% | AE46: =SUMIFS('ASO View'!$CS$6:$CS$93,'ASO View'!$F$6:$F$93,Region!B46) -> 310 | AF46: =SUMIFS('ASO View'!CT:CT,'ASO View'!$F:$F,Region!$B46) -> 0 | AG46: 0% | AH46: 0% | BD46: =VLOOKUP($B46,'Nov Pivot'!$AJ$6:$AO$13,6,0) -> 14 | BE46: =VLOOKUP($B46,'Nov Pivot'!$AJ$6:$AO$13,5,0) -> 10 | BF46: =SUMIFS('ASO View'!DI:DI,'ASO View'!$F:$F,Region!$B46) -> 2 | BG46: =SUMIFS('ASO View'!DJ:DJ,'ASO View'!$F:$F,Region!$B46) -> 0 | BH46: =VLOOKUP($A46,'Nov Pivot'!$AX:$BA,4,0) -> 21 | BI46: =VLOOKUP($A46,'Nov Pivot'!$AX:$BA,2,0) -> 18 | BJ46: =VLOOKUP($A46,'Nov Pivot'!$AX:$BA,3,0) -> 3 | BK46: =SUMIFS('ASO View'!$DE:$DE,'ASO View'!$F:$F,Region!$B46) -> 0 | BL46: =SUMIFS('ASO View'!$DF:$DF,'ASO View'!$F:$F,Region!$B46) -> 1
A47: South2 | B47: South 2 | C47: 680 | D47: =IFERROR(VLOOKUP($A47,'Dec Pivot'!$T:$U,2,0),0) -> 34 | E47: 5% | F47: 113% | G47: 410 | H47: =IFERROR(VLOOKUP(A47,'Dec Pivot'!$BA:$BB,2,0),0) -> 9 | I47: 2% | J47: -74% | K47: =SUMIFS('ASO View'!$BY$6:$BY$93,'ASO View'!$F$6:$F$93,Region!B47) -> 52 | L47: =SUMIFS('ASO View'!BZ:BZ,'ASO View'!$F:$F,Region!$B47) -> 8 | M47: 15% | N47: 700% | O47: =SUMIFS('ASO View'!$CC$6:$CC$93,'ASO View'!$F$6:$F$93,Region!B47) -> 45 | P47: =SUMIFS('ASO View'!CD:CD,'ASO View'!$F:$F,Region!$B47) -> 8 | Q47: 18% | R47: 100% | S47: =SUMIFS('ASO View'!$CG$6:$CG$93,'ASO View'!$F$6:$F$93,Region!B47) -> 174 | T47: =SUMIFS('ASO View'!CH:CH,'ASO View'!$F:$F,Region!$B47) -> 10 | U47: 6% | V47: 0% | W47: =SUMIFS('ASO View'!$CK$6:$CK$93,'ASO View'!$F$6:$F$93,Region!B47) -> 116 | X47: =SUMIFS('ASO View'!CL:CL,'ASO View'!$F:$F,Region!$B47) -> 8 | Y47: 7% | Z47: 33% | AA47: =SUMIFS('ASO View'!$CO$6:$CO$93,'ASO View'!$F$6:$F$93,Region!B47) -> 339 | AB47: =SUMIFS('ASO View'!CP:CP,'ASO View'!$F:$F,Region!$B47) -> 7 | AC47: 2% | AD47: -30% | AE47: =SUMIFS('ASO View'!$CS$6:$CS$93,'ASO View'!$F$6:$F$93,Region!B47) -> 240 | AF47: =SUMIFS('ASO View'!CT:CT,'ASO View'!$F:$F,Region!$B47) -> 3 | AG47: 1% | AH47: 0% | BD47: =VLOOKUP($B47,'Nov Pivot'!$AJ$6:$AO$13,6,0) -> 16 | BE47: =VLOOKUP($B47,'Nov Pivot'!$AJ$6:$AO$13,5,0) -> 34 | BF47: =SUMIFS('ASO View'!DI:DI,'ASO View'!$F:$F,Region!$B47) -> 10 | BG47: =SUMIFS('ASO View'!DJ:DJ,'ASO View'!$F:$F,Region!$B47) -> 0 | BH47: =VLOOKUP($A47,'Nov Pivot'!$AX:$BA,4,0) -> 5 | BI47: =VLOOKUP($A47,'Nov Pivot'!$AX:$BA,2,0) -> 1 | BJ47: =VLOOKUP($A47,'Nov Pivot'!$AX:$BA,3,0) -> 4 | BK47: =SUMIFS('ASO View'!$DE:$DE,'ASO View'!$F:$F,Region!$B47) -> 6 | BL47: =SUMIFS('ASO View'!$DF:$DF,'ASO View'!$F:$F,Region!$B47) -> 10
A48: West1 | B48: West 1 | C48: 1845 | D48: =IFERROR(VLOOKUP($A48,'Dec Pivot'!$T:$U,2,0),0) -> 119 | E48: 6% | F48: 198% | G48: 883 | H48: =IFERROR(VLOOKUP(A48,'Dec Pivot'!$BA:$BB,2,0),0) -> 45 | I48: 5% | J48: -20% | K48: =SUMIFS('ASO View'!$BY$6:$BY$93,'ASO View'!$F$6:$F$93,Region!B48) -> 134 | L48: =SUMIFS('ASO View'!BZ:BZ,'ASO View'!$F:$F,Region!$B48) -> 43 | M48: 32% | N48: 231% | O48: =SUMIFS('ASO View'!$CC$6:$CC$93,'ASO View'!$F$6:$F$93,Region!B48) -> 122 | P48: =SUMIFS('ASO View'!CD:CD,'ASO View'!$F:$F,Region!$B48) -> 43 | Q48: 35% | R48: 291% | S48: =SUMIFS('ASO View'!$CG$6:$CG$93,'ASO View'!$F$6:$F$93,Region!B48) -> 467 | T48: =SUMIFS('ASO View'!CH:CH,'ASO View'!$F:$F,Region!$B48) -> 12 | U48: 3% | V48: -8% | W48: =SUMIFS('ASO View'!$CK$6:$CK$93,'ASO View'!$F$6:$F$93,Region!B48) -> 311 | X48: =SUMIFS('ASO View'!CL:CL,'ASO View'!$F:$F,Region!$B48) -> 21 | Y48: 7% | Z48: -5% | AA48: =SUMIFS('ASO View'!$CO$6:$CO$93,'ASO View'!$F$6:$F$93,Region!B48) -> 729 | AB48: =SUMIFS('ASO View'!CP:CP,'ASO View'!$F:$F,Region!$B48) -> 6 | AC48: 1% | AD48: 0% | AE48: =SUMIFS('ASO View'!$CS$6:$CS$93,'ASO View'!$F$6:$F$93,Region!B48) -> 612 | AF48: =SUMIFS('ASO View'!CT:CT,'ASO View'!$F:$F,Region!$B48) -> 15 | AG48: 2% | AH48: 0% | BD48: =VLOOKUP($B48,'Nov Pivot'!$AJ$6:$AO$13,6,0) -> 40 | BE48: =VLOOKUP($B48,'Nov Pivot'!$AJ$6:$AO$13,5,0) -> 56 | BF48: =SUMIFS('ASO View'!DI:DI,'ASO View'!$F:$F,Region!$B48) -> 6 | BG48: =SUMIFS('ASO View'!DJ:DJ,'ASO View'!$F:$F,Region!$B48) -> 0 | BH48: =VLOOKUP($A48,'Nov Pivot'!$AX:$BA,4,0) -> 24 | BI48: =VLOOKUP($A48,'Nov Pivot'!$AX:$BA,2,0) -> 13 | BJ48: =VLOOKUP($A48,'Nov Pivot'!$AX:$BA,3,0) -> 11 | BK48: =SUMIFS('ASO View'!$DE:$DE,'ASO View'!$F:$F,Region!$B48) -> 22 | BL48: =SUMIFS('ASO View'!$DF:$DF,'ASO View'!$F:$F,Region!$B48) -> 13
A49: S+W | B49: S+W | C49: =SUM(C46:C48) -> 3255 | D49: =SUM(D46:D48) -> 195 | E49: 6% | F49: 179% | G49: =SUM(G46:G48) -> 1681 | H49: =SUM(H46:H48) -> 68 | I49: 4% | J49: -32% | K49: =SUM(K46:K48) -> 240 | L49: =SUM(L46:L48) -> 65 | M49: 27% | N49: 103% | O49: =SUM(O46:O48) -> 215 | P49: =SUM(P46:P48) -> 65 | Q49: 30% | R49: 261% | S49: =SUM(S46:S48) -> 825 | T49: =SUM(T46:T48) -> 23 | U49: 3% | V49: -4% | W49: =SUM(W46:W48) -> 550 | X49: =SUM(X46:X48) -> 29 | Y49: 5% | Z49: 4% | AA49: =SUM(AA46:AA48) -> 1363 | AB49: =SUM(AB46:AB48) -> 33 | AC49: 2% | AD49: 83% | AE49: =SUM(AE46:AE48) -> 1162 | AF49: =SUM(AF46:AF48) -> 18 | AG49: 2% | AH49: 0% | BD49: =SUM(BD46:BD48) -> 70 | BE49: 100 | BF49: 18 | BG49: 0 | BH49: 50 | BI49: 32 | BJ49: 18 | BK49: 28 | BL49: 24
B51: INDIA | C51: =C37 -> 6300 | D51: 477 | E51: 8% | F51: 216% | G51: =G37-1 -> 3093 | H51: 178 | I51: 6% | J51: -29% | K51: 478 | L51: 165 | M51: =M37 -> 35% | N51: 237% | O51: =O37 -> 434 | P51: 165 | Q51: 38% | R51: 416% | S51: 1673 | T51: 96 | U51: =U37 -> 6% | V51: 48% | W51: 1122 | X51: 78 | Y51: 7% | Z51: 50% | AA51: 3200 | AB51: 80 | AC51: 3% | AD51: 40% | AE51: 2308 | AF51: 67 | AG51: 3% | AH51: 6600% | BD51: =BD49+BD45 -> 151 | BE51: 250 | BF51: 57 | BG51: 1 | BH51: 81 | BI51: 49 | BJ51: 32 | BK51: 52 | BL51: 65
A53: .
B54: New | C54: =C62+C66 -> 6027 | D54: =D62+D66 -> 477 | E54: =IFERROR(D54/C54,0) -> 8% | F54: =IFERROR(D54/BD54-1,0) -> 216% | G54: =G62+G66 -> 2411 | H54: =H62+H66 -> 178 | I54: =IFERROR(H54/G54,0) -> 7% | J54: =IFERROR(H54/BE54-1,0) -> -29% | K54: =K62+K66 -> 758 | L54: =L62+L66 -> 116 | M54: =IFERROR(L54/K54,0) -> 15% | N54: =IFERROR(L54/BH54-1,0) -> 43% | O54: =O62+O66 -> 0 | P54: =P62+P66 -> 0 | Q54: =IFERROR(P54/O54,0) -> 0% | R54: =IFERROR(P54/BI54-1,0) -> -100% | S54: =S62+S66 -> 302 | T54: =T62+T66 -> 116 | U54: =IFERROR(T54/S54,0) -> 38% | V54: =IFERROR(T54/BJ54-1,0) -> 263% | W54: =W62+W66 -> 0 | X54: =X62+X66 -> 0 | Y54: =IFERROR(X54/W54,0) -> 0% | AA54: =AA62+AA66 -> 0 | AB54: =AB62+AB66 -> 0 | AC54: =IFERROR(AB54/AA54,0) -> 0% | AE54: =AE62+AE66 -> 0 | AF54: =AF62+AF66 -> 0 | AG54: =IFERROR(AF54/AE54,0) -> 0% | AH54: =IFERROR(AF54/BF54-1,0) -> -100% | AI54: =AI62+AI66 -> 0 | AJ54: =AJ62+AJ66 -> 0 | AK54: =IFERROR(AJ54/AI54,0) -> 0% | AL54: =IFERROR(AJ54/BG54-1,0) -> -100% | BD54: =BD62+BD66 -> 151 | BE54: 250 | BF54: 57 | BG54: 1 | BH54: 81 | BI54: 49 | BJ54: 32 | BK54: 52 | BL54: 65
C55: Coverage | BD55: Coverage
C56: T3 | G56: PM | K56: PM NB | O56: PM Gaming NB | S56: PM Non-Gaming NB | W56: TDT | AA56: AIO | AE56: SnP | AI56: Visuals | BD56: T3 Cov App | BE56: T3 PM Cov | BF56: SnP Cov | BG56: Visuals Cov | BH56: SPM CA NB | BI56: SPM Gaming NB | BJ56: SPM Non-Gaming NB | BK56: AIO | BL56: TDT
B57: Region | C57: TGT | D57: Ach | E57: % | F57: MOM | G57: TGT | H57: Ach | I57: % | J57: MOM | K57: TGT | L57: Ach | M57: % | N57: MOM | O57: TGT | P57: Ach | Q57: % | R57: MOM | S57: TGT | T57: Ach | U57: % | V57: MOM | W57: TGT | X57: Ach | Y57: % | Z57: MOM | AA57: TGT | AB57: Ach | AC57: % | AD57: MOM | AE57: TGT | AF57: Ach | AG57: % | AH57: MOM | AI57: TGT | AJ57: Ach | AK57: % | AL57: MOM
A58: East1 | B58: East 1 | C58: 710 | D58: =IFERROR(VLOOKUP($A58,'Dec Pivot'!$T:$U,2,0),0) -> 42 | E58: =IFERROR(D58/C58,0) -> 6% | F58: =IFERROR(D58/BD58-1,0) -> 75% | G58: 284 | H58: =IFERROR(VLOOKUP(A58,'Dec Pivot'!$BA:$BB,2,0),0) -> 21 | I58: =IFERROR(H58/G58,0) -> 7% | J58: =IFERROR(H58/BE58-1,0) -> -69% | K58: 93 | L58: =SUMIFS('ASO View'!BV:BV,'ASO View'!$F:$F,Region!$B58) -> 21 | M58: =IFERROR(L58/K58,0) -> 23% | N58: =IFERROR(L58/BH58-1,0) -> 950% | Q58: =IFERROR(P58/O58,0) -> 0% | R58: =IFERROR(P58/BI58-1,0) -> -100% | S58: 38 | T58: =SUMIFS('ASO View'!DS:DS,'ASO View'!$F:$F,Region!$B58) -> 12 | U58: =IFERROR(T58/S58,0) -> 32% | V58: =IFERROR(T58/BJ58-1,0) -> 0% | Y58: =IFERROR(X58/W58,0) -> 0% | Z58: =IFERROR(X58/BL58-1,0) -> -100% | AC58: =IFERROR(AB58/AA58,0) -> 0% | AD58: =IFERROR(AB58/BK58-1,0) -> -100% | AG58: =IFERROR(AF58/AE58,0) -> 0% | AH58: =IFERROR(AF58/BF58-1,0) -> -100% | AK58: =IFERROR(AJ58/AI58,0) -> 0% | AL58: =IFERROR(AJ58/BG58-1,0) -> -100% | BD58: =VLOOKUP($B58,'Nov Pivot'!$AJ$6:$AO$13,6,0) -> 24 | BE58: =VLOOKUP($B58,'Nov Pivot'!$AJ$6:$AO$13,5,0) -> 68 | BF58: =SUMIFS('ASO View'!DI:DI,'ASO View'!$F:$F,Region!$B58) -> 6 | BG58: =SUMIFS('ASO View'!DJ:DJ,'ASO View'!$F:$F,Region!$B58) -> 1 | BH58: =VLOOKUP($A58,'Nov Pivot'!$AX:$BA,4,0) -> 2 | BI58: =VLOOKUP($A58,'Nov Pivot'!$AX:$BA,2,0) -> 2 | BJ58: =VLOOKUP($A58,'Nov Pivot'!$AX:$BA,3,0) -> 0 | BK58: =SUMIFS('ASO View'!$DE:$DE,'ASO View'!$F:$F,Region!$B58) -> 11 | BL58: =SUMIFS('ASO View'!$DF:$DF,'ASO View'!$F:$F,Region!$B58) -> 19
A59: East2 | B59: East 2 | C59: 495 | D59: =IFERROR(VLOOKUP($A59,'Dec Pivot'!$T:$U,2,0),0) -> 39 | E59: 8% | F59: =IFERROR(D59/BD59-1,0) -> 144% | G59: 198 | H59: =IFERROR(VLOOKUP(A59,'Dec Pivot'!$BA:$BB,2,0),0) -> 12 | I59: 6% | J59: -33% | K59: 56 | L59: =SUMIFS('ASO View'!BV:BV,'ASO View'!$F:$F,Region!$B59) -> 7 | M59: 13% | N59: -13% | Q59: 0% | R59: -100% | S59: 22 | T59: =SUMIFS('ASO View'!DS:DS,'ASO View'!$F:$F,Region!$B59) -> 10 | U59: 45% | V59: 100% | Y59: 0% | Z59: =IFERROR(X59/BL59-1,0) -> -100% | AC59: 0% | AD59: =IFERROR(AB59/BK59-1,0) -> -100% | AG59: 0% | AH59: -100% | AK59: 0% | AL59: 0% | BD59: =VLOOKUP($B59,'Nov Pivot'!$AJ$6:$AO$13,6,0) -> 16 | BE59: =VLOOKUP($B59,'Nov Pivot'!$AJ$6:$AO$13,5,0) -> 18 | BF59: =SUMIFS('ASO View'!DI:DI,'ASO View'!$F:$F,Region!$B59) -> 6 | BG59: =SUMIFS('ASO View'!DJ:DJ,'ASO View'!$F:$F,Region!$B59) -> 0 | BH59: =VLOOKUP($A59,'Nov Pivot'!$AX:$BA,4,0) -> 8 | BI59: =VLOOKUP($A59,'Nov Pivot'!$AX:$BA,2,0) -> 3 | BJ59: =VLOOKUP($A59,'Nov Pivot'!$AX:$BA,3,0) -> 5 | BK59: =SUMIFS('ASO View'!$DE:$DE,'ASO View'!$F:$F,Region!$B59) -> 5 | BL59: =SUMIFS('ASO View'!$DF:$DF,'ASO View'!$F:$F,Region!$B59) -> 2
A60: North1 | B60: North 1 | C60: 937 | D60: =IFERROR(VLOOKUP($A60,'Dec Pivot'!$T:$U,2,0),0) -> 128 | E60: 14% | F60: =IFERROR(D60/BD60-1,0) -> 327% | G60: 375 | H60: =IFERROR(VLOOKUP(A60,'Dec Pivot'!$BA:$BB,2,0),0) -> 34 | I60: 9% | J60: -35% | K60: 119 | L60: =SUMIFS('ASO View'!BV:BV,'ASO View'!$F:$F,Region!$B60) -> 24 | M60: 20% | N60: 50% | Q60: 0% | R60: -100% | S60: 47 | T60: =SUMIFS('ASO View'!DS:DS,'ASO View'!$F:$F,Region!$B60) -> 22 | U60: 47% | V60: 144% | Y60: 0% | Z60: -100% | AC60: 0% | AD60: -100% | AG60: 0% | AH60: -100% | AK60: 0% | AL60: 0% | BD60: =VLOOKUP($B60,'Nov Pivot'!$AJ$6:$AO$13,6,0) -> 30 | BE60: =VLOOKUP($B60,'Nov Pivot'!$AJ$6:$AO$13,5,0) -> 52 | BF60: =SUMIFS('ASO View'!DI:DI,'ASO View'!$F:$F,Region!$B60) -> 26 | BG60: =SUMIFS('ASO View'!DJ:DJ,'ASO View'!$F:$F,Region!$B60) -> 0 | BH60: =VLOOKUP($A60,'Nov Pivot'!$AX:$BA,4,0) -> 16 | BI60: =VLOOKUP($A60,'Nov Pivot'!$AX:$BA,2,0) -> 7 | BJ60: =VLOOKUP($A60,'Nov Pivot'!$AX:$BA,3,0) -> 9 | BK60: =SUMIFS('ASO View'!$DE:$DE,'ASO View'!$F:$F,Region!$B60) -> 8 | BL60: =SUMIFS('ASO View'!$DF:$DF,'ASO View'!$F:$F,Region!$B60) -> 20
A61: North2 | B61: North 2 | C61: 733 | D61: =IFERROR(VLOOKUP($A61,'Dec Pivot'!$T:$U,2,0),0) -> 73 | E61: 10% | F61: =IFERROR(D61/BD61-1,0) -> 564% | G61: 293 | H61: =IFERROR(VLOOKUP(A61,'Dec Pivot'!$BA:$BB,2,0),0) -> 43 | I61: 15% | J61: 258% | K61: 89 | L61: =SUMIFS('ASO View'!BV:BV,'ASO View'!$F:$F,Region!$B61) -> 13 | M61: 15% | N61: 160% | Q61: 0% | R61: -100% | S61: 35 | T61: =SUMIFS('ASO View'!DS:DS,'ASO View'!$F:$F,Region!$B61) -> 7 | U61: 20% | V61: 0% | Y61: 0% | Z61: 0% | AC61: 0% | AD61: 0% | AG61: 0% | AH61: -100% | AK61: 0% | AL61: 0% | BD61: =VLOOKUP($B61,'Nov Pivot'!$AJ$6:$AO$13,6,0) -> 11 | BE61: =VLOOKUP($B61,'Nov Pivot'!$AJ$6:$AO$13,5,0) -> 12 | BF61: =SUMIFS('ASO View'!DI:DI,'ASO View'!$F:$F,Region!$B61) -> 1 | BG61: =SUMIFS('ASO View'!DJ:DJ,'ASO View'!$F:$F,Region!$B61) -> 0 | BH61: =VLOOKUP($A61,'Nov Pivot'!$AX:$BA,4,0) -> 5 | BI61: =VLOOKUP($A61,'Nov Pivot'!$AX:$BA,2,0) -> 5 | BJ61: =VLOOKUP($A61,'Nov Pivot'!$AX:$BA,3,0) -> 0 | BK61: =SUMIFS('ASO View'!$DE:$DE,'ASO View'!$F:$F,Region!$B61) -> 0 | BL61: =SUMIFS('ASO View'!$DF:$DF,'ASO View'!$F:$F,Region!$B61) -> 0
A62: N+E | B62: N+E | C62: =SUM(C58:C61) -> 2875 | D62: =SUM(D58:D61) -> 282 | E62: 10% | F62: 248% | G62: =SUM(G58:G61) -> 1150 | H62: =SUM(H58:H61) -> 110 | I62: 10% | J62: -27% | K62: =SUM(K58:K61) -> 357 | L62: =SUM(L58:L61) -> 65 | M62: 18% | N62: 110% | O62: =SUM(O58:O61) -> 0 | P62: =SUM(P58:P61) -> 0 | Q62: 0% | R62: -100% | S62: =SUM(S58:S61) -> 142 | T62: =SUM(T58:T61) -> 51 | U62: 36% | V62: 264% | W62: =SUM(W58:W61) -> 0 | X62: =SUM(X58:X61) -> 0 | Y62: 0% | Z62: -100% | AA62: =SUM(AA58:AA61) -> 0 | AB62: =SUM(AB58:AB61) -> 0 | AC62: 0% | AD62: -100% | AE62: =SUM(AE58:AE61) -> 0 | AF62: =SUM(AF58:AF61) -> 0 | AG62: 0% | AH62: -100% | AI62: =SUM(AI58:AI61) -> 0 | AJ62: =SUM(AJ58:AJ61) -> 0 | AK62: 0% | AL62: -100% | BD62: =SUM(BD58:BD61) -> 81 | BE62: 150 | BF62: 39 | BG62: 1 | BH62: 31 | BI62: 17 | BJ62: 14 | BK62: 24 | BL62: 41
A63: South1 | B63: South 1 | C63: 777 | D63: =IFERROR(VLOOKUP($A63,'Dec Pivot'!$T:$U,2,0),0) -> 42 | E63: 5% | F63: 200% | G63: 311 | H63: =IFERROR(VLOOKUP(A63,'Dec Pivot'!$BA:$BB,2,0),0) -> 14 | I63: 5% | J63: 40% | K63: 101 | L63: =SUMIFS('ASO View'!BV:BV,'ASO View'!$F:$F,Region!$B63) -> 7 | M63: 7% | N63: -67% | Q63: 0% | R63: -100% | S63: 40 | T63: =SUMIFS('ASO View'!CD:CD,'ASO View'!$F:$F,Region!$B63) -> 14 | U63: 35% | V63: 367% | Y63: 0% | Z63: -100% | AC63: 0% | AD63: 0% | AG63: 0% | AH63: -100% | AK63: 0% | AL63: 0% | BD63: =VLOOKUP($B63,'Nov Pivot'!$AJ$6:$AO$13,6,0) -> 14 | BE63: =VLOOKUP($B63,'Nov Pivot'!$AJ$6:$AO$13,5,0) -> 10 | BF63: =SUMIFS('ASO View'!DI:DI,'ASO View'!$F:$F,Region!$B63) -> 2 | BG63: =SUMIFS('ASO View'!DJ:DJ,'ASO View'!$F:$F,Region!$B63) -> 0 | BH63: =VLOOKUP($A63,'Nov Pivot'!$AX:$BA,4,0) -> 21 | BI63: =VLOOKUP($A63,'Nov Pivot'!$AX:$BA,2,0) -> 18 | BJ63: =VLOOKUP($A63,'Nov Pivot'!$AX:$BA,3,0) -> 3 | BK63: =SUMIFS('ASO View'!$DE:$DE,'ASO View'!$F:$F,Region!$B63) -> 0 | BL63: =SUMIFS('ASO View'!$DF:$DF,'ASO View'!$F:$F,Region!$B63) -> 1
A64: South2 | B64: South 2 | C64: 740 | D64: =IFERROR(VLOOKUP($A64,'Dec Pivot'!$T:$U,2,0),0) -> 34 | E64: 5% | F64: 113% | G64: 296 | H64: =IFERROR(VLOOKUP(A64,'Dec Pivot'!$BA:$BB,2,0),0) -> 9 | I64: 3% | J64: -74% | K64: 92 | L64: =SUMIFS('ASO View'!BV:BV,'ASO View'!$F:$F,Region!$B64) -> 7 | M64: 8% | N64: 40% | Q64: 0% | R64: -100% | S64: 37 | T64: =SUMIFS('ASO View'!CD:CD,'ASO View'!$F:$F,Region!$B64) -> 8 | U64: 22% | V64: 100% | Y64: 0% | Z64: -100% | AC64: 0% | AD64: -100% | AG64: 0% | AH64: -100% | AK64: 0% | AL64: 0% | BD64: =VLOOKUP($B64,'Nov Pivot'!$AJ$6:$AO$13,6,0) -> 16 | BE64: =VLOOKUP($B64,'Nov Pivot'!$AJ$6:$AO$13,5,0) -> 34 | BF64: =SUMIFS('ASO View'!DI:DI,'ASO View'!$F:$F,Region!$B64) -> 10 | BG64: =SUMIFS('ASO View'!DJ:DJ,'ASO View'!$F:$F,Region!$B64) -> 0 | BH64: =VLOOKUP($A64,'Nov Pivot'!$AX:$BA,4,0) -> 5 | BI64: =VLOOKUP($A64,'Nov Pivot'!$AX:$BA,2,0) -> 1 | BJ64: =VLOOKUP($A64,'Nov Pivot'!$AX:$BA,3,0) -> 4 | BK64: =SUMIFS('ASO View'!$DE:$DE,'ASO View'!$F:$F,Region!$B64) -> 6 | BL64: =SUMIFS('ASO View'!$DF:$DF,'ASO View'!$F:$F,Region!$B64) -> 10
A65: West1 | B65: West 1 | C65: 1635 | D65: =IFERROR(VLOOKUP($A65,'Dec Pivot'!$T:$U,2,0),0) -> 119 | E65: 7% | F65: 198% | G65: 654 | H65: =IFERROR(VLOOKUP(A65,'Dec Pivot'!$BA:$BB,2,0),0) -> 45 | I65: 7% | J65: -20% | K65: 208 | L65: =SUMIFS('ASO View'!BV:BV,'ASO View'!$F:$F,Region!$B65) -> 37 | M65: 18% | N65: 54% | Q65: 0% | R65: -100% | S65: 83 | T65: =SUMIFS('ASO View'!CD:CD,'ASO View'!$F:$F,Region!$B65) -> 43 | U65: 52% | V65: 291% | Y65: 0% | Z65: -100% | AC65: 0% | AD65: -100% | AG65: 0% | AH65: -100% | AK65: 0% | AL65: 0% | BD65: =VLOOKUP($B65,'Nov Pivot'!$AJ$6:$AO$13,6,0) -> 40 | BE65: =VLOOKUP($B65,'Nov Pivot'!$AJ$6:$AO$13,5,0) -> 56 | BF65: =SUMIFS('ASO View'!DI:DI,'ASO View'!$F:$F,Region!$B65) -> 6 | BG65: =SUMIFS('ASO View'!DJ:DJ,'ASO View'!$F:$F,Region!$B65) -> 0 | BH65: =VLOOKUP($A65,'Nov Pivot'!$AX:$BA,4,0) -> 24 | BI65: =VLOOKUP($A65,'Nov Pivot'!$AX:$BA,2,0) -> 13 | BJ65: =VLOOKUP($A65,'Nov Pivot'!$AX:$BA,3,0) -> 11 | BK65: =SUMIFS('ASO View'!$DE:$DE,'ASO View'!$F:$F,Region!$B65) -> 22 | BL65: =SUMIFS('ASO View'!$DF:$DF,'ASO View'!$F:$F,Region!$B65) -> 13
A66: S+W | B66: S+W | C66: =SUM(C63:C65) -> 3152 | D66: =SUM(D63:D65) -> 195 | E66: 6% | F66: 179% | G66: =SUM(G63:G65) -> 1261 | H66: =SUM(H63:H65) -> 68 | I66: 5% | J66: -32% | K66: =SUM(K63:K65) -> 401 | L66: =SUM(L63:L65) -> 51 | M66: 13% | N66: 2% | O66: =SUM(O63:O65) -> 0 | P66: =SUM(P63:P65) -> 0 | Q66: 0% | R66: -100% | S66: =SUM(S63:S65) -> 160 | T66: =SUM(T63:T65) -> 65 | U66: 41% | V66: 261% | W66: =SUM(W63:W65) -> 0 | X66: =SUM(X63:X65) -> 0 | Y66: 0% | Z66: -100% | AA66: =SUM(AA63:AA65) -> 0 | AB66: =SUM(AB63:AB65) -> 0 | AC66: 0% | AD66: -100% | AE66: =SUM(AE63:AE65) -> 0 | AF66: =SUM(AF63:AF65) -> 0 | AG66: 0% | AH66: -100% | AI66: =SUM(AI63:AI65) -> 0 | AJ66: =SUM(AJ63:AJ65) -> 0 | AK66: 0% | AL66: 0% | BD66: =SUM(BD63:BD65) -> 70 | BE66: 100 | BF66: 18 | BG66: 0 | BH66: 50 | BI66: 32 | BJ66: 18 | BK66: 28 | BL66: 24
B68: INDIA | C68: =C54 -> 6027 | D68: 477 | E68: 8% | F68: 216% | G68: 2411 | H68: 178 | I68: 7% | J68: -29% | K68: 758 | L68: 116 | M68: 15% | N68: 43% | O68: 0 | P68: 0 | Q68: 0% | R68: -100% | S68: 302 | T68: 116 | U68: 38% | V68: 263% | W68: 0 | X68: 0 | Y68: 0% | Z68: =IFERROR(X68/BL68-1,0) -> -100% | AA68: =AA54 -> 0 | AB68: =AB54 -> 0 | AC68: =AC54 -> 0% | AD68: =IFERROR(AB68/BK68-1,0) -> -100% | AE68: =AE54 -> 0 | AF68: 0 | AG68: 0% | AH68: -100% | AI68: 0 | AJ68: 0 | AK68: 0% | AL68: -100% | BD68: =BD66+BD62 -> 151 | BE68: 250 | BF68: 57 | BG68: 1 | BH68: 81 | BI68: 49 | BJ68: 32 | BK68: 52 | BL68: 65
A71: .
B72: NEW
B73: Dash Board WIP
B75: Requirements
B76: Map
B77: Popup
B78: Charts
B79: Tables
B80: Indicators
A130: COVERAGE TREND
F132: COVERAGE
F133: CA | M133: Premium | T133: AIO | AA133: TDT | AH133: Visuals | AO133: SNP
C134: State | D134: Region | E134: State | F134: Avg-2223 | G134: Avg-2324 | H134: Avg-2425 | I134: L6M (Jan'24-Jun'25) | J134: L3M (Apr'25-Jun'25) | K134: LM(Jun'25) | M134: Avg-2223 | N134: Avg-2324 | O134: Avg-2425 | P134: =I134 -> L6M (Jan'24-Jun'25) | Q134: =J134 -> L3M (Apr'25-Jun'25) | R134: =K134 -> LM(Jun'25) | T134: Avg-2223 | U134: Avg-2324 | V134: Avg-2425 | W134: =P134 -> L6M (Jan'24-Jun'25) | X134: =Q134 -> L3M (Apr'25-Jun'25) | Y134: =R134 -> LM(Jun'25) | AA134: Avg-2223 | AB134: Avg-2324 | AC134: Avg-2425 | AD134: =W134 -> L6M (Jan'24-Jun'25) | AE134: =X134 -> L3M (Apr'25-Jun'25) | AF134: LM(Jun'25) | AH134: Avg-2223 | AI134: Avg-2324 | AJ134: Avg-2425 | AK134: =AD134 -> L6M (Jan'24-Jun'25) | AL134: =AE134 -> L3M (Apr'25-Jun'25) | AM134: LM(Jun'25) | AO134: Avg-2223 | AP134: Avg-2324 | AQ134: Avg-2425 | AR134: =AK134 -> L6M (Jan'24-Jun'25) | AS134: =AL134 -> L3M (Apr'25-Jun'25) | AT134: LM(Jun'25)
C135: WEST BENGAL | D135: E 1 | E135: WB | F135: 288 | G135: 267 | H135: 293 | I135: 411 | J135: 423 | K135: 392 | M135: 22 | N135: 39 | O135: 80 | P135: 97 | Q135: 125 | R135: 146 | T135: 11 | U135: 19 | V135: 290 | W135: 24 | X135: 23 | Y135: 8 | AA135: 39 | AB135: 42 | AC135: 339 | AD135: 51 | AE135: 33 | AF135: 40 | AH135: 97 | AI135: 54 | AJ135: 51 | AK135: 51 | AL135: 24 | AM135: 24 | AO135: 158 | AP135: 28 | AQ135: 4 | AR135: 51 | AS135: 24 | AT135: 24
C136: North East | D136: E 1 | E136: NE | F136: 189 | G136: 186 | H136: 225 | I136: 273 | J136: 290 | K136: 297 | M136: 26 | N136: 36 | O136: 58 | P136: 61 | Q136: 63 | R136: 71 | T136: 19 | U136: 25 | V136: 319 | W136: 88 | X136: 87 | Y136: 114 | AA136: 35 | AB136: 33 | AC136: 232 | AD136: 35 | AE136: 35 | AF136: 25 | AH136: 43 | AI136: 54 | AJ136: 62 | AK136: 37 | AL136: 29 | AM136: 32 | AO136: 76 | AP136: 33 | AQ136: 16 | AR136: 37 | AS136: 29 | AT136: 32
C137: BIHAR | D137: E 2 | E137: BH | F137: 98 | G137: 129 | H137: 133 | I137: 149 | J137: 159 | K137: 193 | M137: 10 | N137: 19 | O137: 24 | P137: 27 | Q137: 32 | R137: 36 | T137: 7 | U137: 16 | V137: 108 | W137: 26 | X137: 32 | Y137: 20 | AA137: 10 | AB137: 32 | AC137: 138 | AD137: 27 | AE137: 30 | AF137: 17 | AH137: 35 | AI137: 38 | AJ137: 41 | AK137: 40 | AL137: 35 | AM137: 37 | AO137: 103 | AP137: 35 | AQ137: 23 | AR137: 40 | AS137: 35 | AT137: 37
C138: Odisha | D138: E 2 | E138: Ori | F138: 129 | G138: 133 | H138: 163 | I138: 169 | J138: 167 | K138: 168 | M138: 9 | N138: 17 | O138: 35 | P138: 39 | Q138: 41 | R138: 59 | T138: 10 | U138: 15 | V138: 156 | W138: 24 | X138: 19 | Y138: 17 | AA138: 48 | AB138: 58 | AC138: 244 | AD138: 48 | AE138: 51 | AF138: 49 | AH138: 45 | AI138: 47 | AJ138: 42 | AK138: 35 | AL138: 27 | AM138: 21 | AO138: 101 | AP138: 34 | AQ138: 12 | AR138: 35 | AS138: 27 | AT138: 21
C139: JHARKHAND | D139: E 2 | E139: JH | F139: 49 | G139: 30 | H139: 52 | I139: 66 | J139: 75 | K139: 89 | M139: 3 | N139: 6 | O139: 15 | P139: 25 | Q139: 32 | R139: 56 | T139: 3 | U139: 2 | V139: 49 | W139: 6 | X139: 5 | Y139: 6 | AA139: 4 | AB139: 5 | AC139: 37 | AD139: 5 | AE139: 7 | AF139: 6 | AH139: 13 | AI139: 9 | AJ139: 16 | AK139: 18 | AL139: 9 | AM139: 15 | AO139: 51 | AP139: 20 | AQ139: 10 | AR139: 18 | AS139: 9 | AT139: 15
C140: CHHATTISGARH | D140: E 2 | E140: CG | F140: 84 | G140: 46 | H140: 64 | I140: 108 | J140: 126 | K140: 128 | M140: 19 | N140: 10 | O140: 26 | P140: 42 | Q140: 47 | R140: 58 | T140: 8 | U140: 5 | V140: 61 | W140: 9 | X140: 11 | Y140: 10 | AA140: 26 | AB140: 18 | AC140: 119 | AD140: 23 | AE140: 19 | AF140: 14 | AH140: 23 | AI140: 10 | AJ140: 13 | AK140: 19 | AL140: 17 | AM140: 26 | AO140: 43 | AP140: 10 | AQ140: 11 | AR140: 19 | AS140: 17 | AT140: 26
C141: HARYANA | D141: N 1 | E141: Har | F141: 116 | G141: 89 | H141: 112 | I141: 121 | J141: 109 | K141: 88 | M141: 10 | N141: 16 | O141: 26 | P141: 29 | Q141: 27 | R141: 25 | T141: 12 | U141: 16 | V141: 104 | W141: 20 | X141: 16 | Y141: 7 | AA141: 15 | AB141: 13 | AC141: 131 | AD141: 32 | AE141: 39 | AF141: 20 | AH141: 27 | AI141: 16 | AJ141: 28 | AK141: 48 | AL141: 46 | AM141: 67 | AO141: 83 | AP141: 45 | AQ141: 41 | AR141: 48 | AS141: 46 | AT141: 67
C142: GP | D142: N 1 | E142: GP | F142: 186 | G142: 159 | H142: 209 | I142: 207 | J142: 226 | K142: 236 | M142: 10 | N142: 17 | O142: 53 | P142: 48 | Q142: 51 | R142: 65 | T142: 14 | U142: 21 | V142: 255 | W142: 40 | X142: 27 | Y142: 20 | AA142: 16 | AB142: 16 | AC142: 134 | AD142: 19 | AE142: 20 | AF142: 18 | AH142: 57 | AI142: 46 | AJ142: 70 | AK142: 76 | AL142: 49 | AM142: 55 | AO142: 145 | AP142: 117 | AQ142: 71 | AR142: 76 | AS142: 49 | AT142: 55
C143: New Delhi | D143: N 1 | E143: Del | F143: 115 | G143: 191 | H143: 296 | I143: 284 | J143: 294 | K143: 301 | M143: 20 | N143: 31 | O143: 46 | P143: 46 | Q143: 53 | R143: 73 | T143: 24 | U143: 28 | V143: 285 | W143: 43 | X143: 42 | Y143: 33 | AA143: 28 | AB143: 60 | AC143: 372 | AD143: 65 | AE143: 78 | AF143: 91 | AH143: 81 | AI143: 44 | AJ143: 97 | AK143: 135 | AL143: 141 | AM143: 160 | AO143: 225 | AP143: 120 | AQ143: 152 | AR143: 135 | AS143: 141 | AT143: 160
C144: RAJASTHAN | D144: N 1 | E144: Raj | F144: 130 | G144: 174 | H144: 291 | I144: 305 | J144: 297 | K144: 292 | M144: 10 | N144: 15 | O144: 44 | P144: 59 | Q144: 64 | R144: 52 | T144: 16 | U144: 29 | V144: 396 | W144: 58 | X144: 62 | Y144: 59 | AA144: 27 | AB144: 38 | AC144: 358 | AD144: 60 | AE144: 42 | AF144: 38 | AH144: 57 | AI144: 36 | AJ144: 87 | AK144: 79 | AL144: 56 | AM144: 45 | AO144: 105 | AP144: 31 | AQ144: 40 | AR144: 79 | AS144: 56 | AT144: 45
C145: UP+UK | D145: N 2 | E145: UP+UK | F145: 203 | G145: 288 | H145: 437 | I145: 507 | J145: 535 | K145: 580 | M145: 20 | N145: 49 | O145: 81 | P145: 79 | Q145: 87 | R145: 111 | T145: 15 | U145: 21 | V145: 304 | W145: 57 | X145: 42 | Y145: 49 | AA145: 27 | AB145: 31 | AC145: 287 | AD145: 62 | AE145: 50 | AF145: 37 | AH145: 69 | AI145: 56 | AJ145: 76 | AK145: 94 | AL145: 51 | AM145: 54 | AO145: 244 | AP145: 103 | AQ145: 33 | AR145: 94 | AS145: 51 | AT145: 54
C146: Madhya pradesh | D146: N 2 | E146: MP | F146: 363 | G146: 228 | H146: 217 | I146: 211 | J146: 219 | K146: 238 | M146: 34 | N146: 35 | O146: 49 | P146: 47 | Q146: 51 | R146: 87 | T146: 21 | U146: 21 | V146: 127 | W146: 20 | X146: 23 | Y146: 27 | AA146: 26 | AB146: 22 | AC146: 243 | AD146: 39 | AE146: 28 | AF146: 38 | AH146: 87 | AI146: 46 | AJ146: 39 | AK146: 38 | AL146: 18 | AM146: 14 | AO146: 213 | AP146: 77 | AQ146: 16 | AR146: 38 | AS146: 18 | AT146: 14
C147: KARNATAKA | D147: S 1 | E147: Kar | F147: 250 | G147: 347 | H147: 383 | I147: 345 | J147: 362 | K147: 520 | M147: 30 | N147: 70 | O147: 114 | P147: 72 | Q147: 71 | R147: 84 | T147: 47 | U147: 82 | V147: 348 | W147: 86 | X147: 108 | Y147: 176 | AA147: 63 | AB147: 121 | AC147: 761 | AD147: 151 | AE147: 107 | AF147: 192 | AH147: 140 | AI147: 56 | AJ147: 122 | AK147: 120 | AL147: 71 | AM147: 121 | AO147: 291 | AP147: 55 | AQ147: 33 | AR147: 120 | AS147: 71 | AT147: 121
C148: KERALA | D148: S 1 | E148: Ker | F148: 284 | G148: 113 | H148: 198 | I148: 210 | J148: 204 | K148: 211 | M148: 36 | N148: 33 | O148: 81 | P148: 79 | Q148: 84 | R148: 113 | T148: 9 | U148: 6 | V148: 97 | W148: 14 | X148: 14 | Y148: 28 | AA148: 40 | AB148: 12 | AC148: 145 | AD148: 22 | AE148: 10 | AF148: 13 | AH148: 120 | AI148: 15 | AJ148: 53 | AK148: 60 | AL148: 52 | AM148: 52 | AO148: 301 | AP148: 29 | AQ148: 45 | AR148: 60 | AS148: 52 | AT148: 52
C149: Tamil nadu | D149: S 2 | E149: TN | F149: 345 | G149: 307 | H149: 411 | I149: 431 | J149: 418 | K149: 390 | M149: 63 | N149: 80 | O149: 128 | P149: 114 | Q149: 108 | R149: 130 | T149: 43 | U149: 62 | V149: 557 | W149: 76 | X149: 80 | Y149: 70 | AA149: 63 | AB149: 59 | AC149: 503 | AD149: 80 | AE149: 61 | AF149: 56 | AH149: 129 | AI149: 111 | AJ149: 130 | AK149: 139 | AL149: 139 | AM149: 117 | AO149: 451 | AP149: 224 | AQ149: 117 | AR149: 139 | AS149: 139 | AT149: 117
C150: Andhra Pradesh | D150: S 2 | E150: AP | F150: 177 | G150: 145 | H150: 165 | I150: 176 | J150: 179 | K150: 182 | M150: 33 | N150: 33 | O150: 48 | P150: 53 | Q150: 54 | R150: 71 | T150: 17 | U150: 26 | V150: 226 | W150: 49 | X150: 50 | Y150: 50 | AA150: 39 | AB150: 33 | AC150: 220 | AD150: 56 | AE150: 62 | AF150: 60 | AH150: 87 | AI150: 56 | AJ150: 73 | AK150: 60 | AL150: 46 | AM150: 46 | AO150: 246 | AP150: 133 | AQ150: 54 | AR150: 60 | AS150: 46 | AT150: 46
C151: Maharashtra | D151: W 1 | E151: MH | F151: 829 | G151: 1012 | H151: 1256 | I151: 1,271 | J151: 1,255 | K151: 1195 | M151: 142 | N151: 182 | O151: 310 | P151: 327 | Q151: 335 | R151: 395 | T151: 162 | U151: 239 | V151: 1,351 | W151: 261 | X151: 227 | Y151: 229 | AA151: 104 | AB151: 116 | AC151: 574 | AD151: 98 | AE151: 98 | AF151: 98 | AH151: 335 | AI151: 305 | AJ151: 245 | AK151: 302 | AL151: 231 | AM151: 172 | AO151: 816 | AP151: 562 | AQ151: 129 | AR151: 302 | AS151: 231 | AT151: 172
C152: GUJARAT | D152: W 1 | E152: Guj | F152: 370 | G152: 363 | H152: 498 | I152: 389 | J152: 377 | K152: 432 | M152: 40 | N152: 57 | O152: 112 | P152: 71 | Q152: 63 | R152: 74 | T152: 93 | U152: 130 | V152: 952 | W152: 133 | X152: 130 | Y152: 237 | AA152: 47 | AB152: 37 | AC152: 392 | AD152: 37 | AE152: 16 | AF152: 15 | AH152: 231 | AI152: 94 | AJ152: 117 | AK152: 104 | AL152: 41 | AM152: 36 | AO152: 357 | AP152: 85 | AQ152: 36 | AR152: 104 | AS152: 41 | AT152: 36
C154: =D154 -> E 1 | D154: E 1 | F154: 477 | G154: 453 | H154: 518 | I154: =SUMIF($D$135:$D$152,$C$154:$C$160,I$135:I$152) -> 684 | J154: =SUMIF($D$135:$D$152,$C$154:$C$160,J$135:J$152) -> 713 | K154: =SUMIF($D$135:$D$152,$C$154:$C$160,K$135:K$152) -> 689 | M154: 48 | N154: 75 | O154: 138 | P154: =SUMIF($D$135:$D$152,$C$154:$C$160,P$135:P$152) -> 159 | Q154: =SUMIF($D$135:$D$152,$C$154:$C$160,Q$135:Q$152) -> 187 | R154: =SUMIF($D$135:$D$152,$C$154:$C$160,R$135:R$152) -> 217 | T154: 30 | U154: 43 | V154: 609 | W154: =SUMIF($D$135:$D$152,$C$154:$C$160,W$135:W$152) -> 112 | X154: =SUMIF($D$135:$D$152,$C$154:$C$160,X$135:X$152) -> 111 | Y154: =SUMIF($D$135:$D$152,$C$154:$C$160,Y$135:Y$152) -> 122 | AA154: 73 | AB154: 75 | AC154: 571 | AD154: =SUMIF($D$135:$D$152,$C$154:$C$160,AD$135:AD$152) -> 86 | AE154: =SUMIF($D$135:$D$152,$C$154:$C$160,AE$135:AE$152) -> 68 | AF154: =SUMIF($D$135:$D$152,$C$154:$C$160,AF$135:AF$152) -> 65 | AH154: 140 | AI154: 108 | AJ154: 113 | AK154: =SUMIF($D$135:$D$152,$C$154:$C$160,AK$135:AK$152) -> 88 | AL154: =SUMIF($D$135:$D$152,$C$154:$C$160,AL$135:AL$152) -> 53 | AM154: =SUMIF($D$135:$D$152,$C$154:$C$160,AM$135:AM$152) -> 56 | AO154: 233 | AP154: 61 | AQ154: 19 | AR154: =SUMIF($D$135:$D$152,$C$154:$C$160,AR$135:AR$152) -> 88 | AS154: =SUMIF($D$135:$D$152,$C$154:$C$160,AS$135:AS$152) -> 53 | AT154: =SUMIF($D$135:$D$152,$C$154:$C$160,AT$135:AT$152) -> 56
C155: =D155 -> E 2 | D155: E 2 | F155: 361 | G155: 338 | H155: 412 | I155: 491 | J155: 526 | K155: 578 | M155: 41 | N155: 52 | O155: 100 | P155: 132 | Q155: 152 | R155: 209 | T155: 27 | U155: 37 | V155: 374 | W155: 66 | X155: 66 | Y155: 53 | AA155: 88 | AB155: 113 | AC155: 538 | AD155: 103 | AE155: 108 | AF155: 86 | AH155: 116 | AI155: 104 | AJ155: 111 | AK155: 112 | AL155: 87 | AM155: 99 | AO155: 297 | AP155: 98 | AQ155: 56 | AR155: 112 | AS155: 87 | AT155: 99
C156: N 1 | D156: N 1 | F156: 547 | G156: 613 | H156: 908 | I156: 917 | J156: 925 | K156: 917 | M156: 50 | N156: 78 | O156: 169 | P156: 181 | Q156: 194 | R156: 215 | T156: 67 | U156: 94 | V156: 1040 | W156: 160 | X156: 147 | Y156: 119 | AA156: 85 | AB156: 127 | AC156: 995 | AD156: 177 | AE156: 179 | AF156: 167 | AH156: 221 | AI156: 142 | AJ156: 282 | AK156: 339 | AL156: 291 | AM156: 327 | AO156: 558 | AP156: 314 | AQ156: 304 | AR156: 339 | AS156: 291 | AT156: 327
C157: N 2 | D157: N 2 | F157: 566 | G157: 516 | H157: 654 | I157: 718 | J157: 753 | K157: 818 | M157: 54 | N157: 84 | O157: 130 | P157: 125 | Q157: 138 | R157: 198 | T157: 35 | U157: 42 | V157: 431 | W157: 77 | X157: 64 | Y157: 76 | AA157: 53 | AB157: 53 | AC157: 530 | AD157: 101 | AE157: 79 | AF157: 75 | AH157: 156 | AI157: 102 | AJ157: 115 | AK157: 132 | AL157: 69 | AM157: 68 | AO157: 456 | AP157: 180 | AQ157: 49 | AR157: 132 | AS157: 69 | AT157: 68
C158: S 1 | D158: S 1 | F158: 534 | G158: 460 | H158: 581 | I158: 556 | J158: 565 | K158: 731 | M158: 66 | N158: 103 | O158: 195 | P158: 151 | Q158: 155 | R158: 197 | T158: 56 | U158: 88 | V158: 445 | W158: 100 | X158: 122 | Y158: 204 | AA158: 103 | AB158: 132 | AC158: 906 | AD158: 173 | AE158: 117 | AF158: 205 | AH158: 260 | AI158: 71 | AJ158: 175 | AK158: 180 | AL158: 123 | AM158: 173 | AO158: 592 | AP158: 84 | AQ158: 78 | AR158: 180 | AS158: 123 | AT158: 173
C159: S 2 | D159: S 2 | F159: 522 | G159: 452 | H159: 576 | I159: 607 | J159: 597 | K159: 572 | M159: 96 | N159: 113 | O159: 176 | P159: 167 | Q159: 162 | R159: 201 | T159: 60 | U159: 88 | V159: 783 | W159: 125 | X159: 130 | Y159: 120 | AA159: 102 | AB159: 91 | AC159: 723 | AD159: 136 | AE159: 123 | AF159: 116 | AH159: 216 | AI159: 168 | AJ159: 203 | AK159: 200 | AL159: 185 | AM159: 163 | AO159: 697 | AP159: 357 | AQ159: 171 | AR159: 200 | AS159: 185 | AT159: 163
C160: W 1 | D160: W 1 | F160: 1199 | G160: 1375 | H160: 1754 | I160: 1660 | J160: 1632 | K160: 1627 | M160: 182 | N160: 239 | O160: 422 | P160: 399 | Q160: 398 | R160: 469 | T160: 255 | U160: 369 | V160: 2303 | W160: 393 | X160: 357 | Y160: 466 | AA160: 151 | AB160: 153 | AC160: 966 | AD160: 134 | AE160: 114 | AF160: 113 | AH160: 565 | AI160: 399 | AJ160: 362 | AK160: 406 | AL160: 271 | AM160: 208 | AO160: 1173 | AP160: 647 | AQ160: 165 | AR160: 406 | AS160: 271 | AT160: 208
D162: N+E | F162: 1951 | G162: 1920 | H162: 2492 | I162: =SUM(I154:I157) -> 2810 | J162: =SUM(J154:J157) -> 2918 | K162: 3002 | M162: 193 | N162: 290 | O162: 536 | P162: =SUM(P154:P157) -> 598 | Q162: 672 | R162: 839 | T162: 159 | U162: 216 | V162: 2454 | W162: =SUM(W154:W157) -> 415 | X162: 388 | Y162: 370 | AA162: 300 | AB162: 367 | AC162: 2634 | AD162: =SUM(AD154:AD157) -> 467 | AE162: 433 | AF162: 393 | AH162: 632 | AI162: 456 | AJ162: 621 | AK162: 784 | AL162: 649 | AM162: 459 | AO162: 1545 | AP162: 653 | AQ162: 428 | AR162: 431 | AS162: 388 | AT162: 365
D163: S+W | F163: 2255 | G163: 2287 | H163: 2911 | I163: =SUM(I158:I160) -> 2823 | J163: =SUM(J158:J160) -> 2794 | K163: 2930 | M163: 343 | N163: 455 | O163: 793 | P163: =SUM(P158:P160) -> 716 | Q163: 715 | R163: 867 | T163: 371 | U163: 545 | V163: 3531 | W163: =SUM(W158:W160) -> 618 | X163: 609 | Y163: 790 | AA163: 356 | AB163: 377 | AC163: 2595 | AD163: =SUM(AD158:AD160) -> 443 | AE163: 354 | AF163: 434 | AH163: 1042 | AI163: 637 | AJ163: 740 | AK163: 909 | AL163: 786 | AM163: 483 | AO163: 2462 | AP163: 1088 | AQ163: 415 | AR163: 350 | AS163: 362 | AT163: 285
D165: Total | F165: 4207 | G165: 4207 | H165: 5403 | I165: =SUM(I162:I163) -> 5632 | J165: =SUM(J162:J163) -> 5712 | K165: 5932 | M165: 536 | N165: 744 | O165: 1329 | P165: =SUM(P162:P163) -> 1313 | Q165: 1387 | R165: 1706 | T165: 530 | U165: 761 | V165: 5985 | W165: =SUM(W162:W163) -> 1033 | X165: 997 | Y165: 1160 | AA165: 655 | AB165: 744 | AC165: 5229 | AD165: =SUM(AD162:AD163) -> 909 | AE165: 788 | AF165: 827 | AH165: 1674 | AI165: 1093 | AJ165: 1361 | AK165: 1694 | AL165: 1435 | AM165: 942 | AO165: 4007 | AP165: 1742 | AQ165: 843 | AR165: 781 | AS165: 750 | AT165: 650
B168: COVERAGE TREND
G170: COVERAGE
G171: CA | N171: Premium | U171: AIO
D172: State | E172: Region | F172: State | G172: Avg-2223 | H172: Avg-2324 | I172: Avg-2425 | J172: L6M | K172: L3M | L172: LM(Oct'25) | N172: Avg-2223 | O172: Avg-2324 | P172: Avg-2425 | Q172: L6M | R172: L3M | S172: =L172 -> LM(Oct'25) | U172: Avg-2223 | V172: Avg-2324 | W172: Avg-2425 | X172: L6M | Y172: L3M | Z172: =S172 -> LM(Oct'25)
J173: (May'24-Oct'25) | K173: (Aug'25-Oct'25) | Q173: =J173 -> (May'24-Oct'25) | R173: =K173 -> (Aug'25-Oct'25) | X173: =Q173 -> (May'24-Oct'25) | Y173: =R173 -> (Aug'25-Oct'25)
D174: WEST BENGAL | E174: E 1 | F174: WB | G174: 288 | H174: 267 | I174: 293 | J174: 382 | K174: 357 | L174: 350 | N174: 22 | O174: 39 | P174: 80 | Q174: 193 | R174: 168 | S174: 182 | U174: 11 | V174: 19 | W174: 290 | X174: 22 | Y174: 22 | Z174: 23
D175: North East | E175: E 1 | F175: NE | G175: 189 | H175: 186 | I175: 225 | J175: 295 | K175: 293 | L175: 316 | N175: 26 | O175: 36 | P175: 58 | Q175: 149 | R175: 156 | S175: 183 | U175: 19 | V175: 25 | W175: 319 | X175: 69 | Y175: 55 | Z175: 90
D176: BIHAR | E176: E 2 | F176: BH | G176: 98 | H176: 129 | I176: 133 | J176: 196 | K176: 220 | L176: 242 | N176: 10 | O176: 19 | P176: 24 | Q176: 94 | R176: 110 | S176: 135 | U176: 7 | V176: 16 | W176: 108 | X176: 31 | Y176: 43 | Z176: 44
D177: Odisha | E177: E 2 | F177: Ori | G177: 129 | H177: 133 | I177: 163 | J177: 195 | K177: 218 | L177: 229 | N177: 9 | O177: 17 | P177: 35 | Q177: 90 | R177: 102 | S177: 108 | U177: 10 | V177: 15 | W177: 156 | X177: 23 | Y177: 31 | Z177: 50
D178: JHARKHAND | E178: E 2 | F178: JH | G178: 49 | H178: 30 | I178: 52 | J178: 89 | K178: 91 | L178: 104 | N178: 3 | O178: 6 | P178: 15 | Q178: 67 | R178: 68 | S178: 87 | U178: 3 | V178: 2 | W178: 49 | X178: 5 | Y178: 5 | Z178: 6
D179: CHHATTISGARH | E179: E 2 | F179: CG | G179: 84 | H179: 46 | I179: 64 | J179: 125 | K179: 124 | L179: 132 | N179: 19 | O179: 10 | P179: 26 | Q179: 74 | R179: 74 | S179: 78 | U179: 8 | V179: 5 | W179: 61 | X179: 10 | Y179: 9 | Z179: 2
D180: HARYANA | E180: N 1 | F180: Har | G180: 116 | H180: 89 | I180: 112 | J180: 92 | K180: 73 | L180: 28 | N180: 10 | O180: 16 | P180: 26 | Q180: 42 | R180: 29 | S180: 12 | U180: 12 | V180: 16 | W180: 104 | X180: 15 | Y180: 15 | Z180: 5
D181: GP | E181: N 1 | F181: GP | G181: 186 | H181: 159 | I181: 209 | J181: 260 | K181: 280 | L181: 294 | N181: 10 | O181: 17 | P181: 53 | Q181: 125 | R181: 141 | S181: 144 | U181: 14 | V181: 21 | W181: 255 | X181: 31 | Y181: 35 | Z181: 46
D182: New Delhi | E182: N 1 | F182: Del | G182: 115 | H182: 191 | I182: 296 | J182: 303 | K182: 303 | L182: 266 | N182: 20 | O182: 31 | P182: 46 | Q182: 112 | R182: 112 | S182: 109 | U182: 24 | V182: 28 | W182: 285 | X182: 48 | Y182: 54 | Z182: 65
D183: RAJASTHAN | E183: N 1 | F183: Raj | G183: 130 | H183: 174 | I183: 291 | J183: 329 | K183: 356 | L183: 353 | N183: 10 | O183: 15 | P183: 44 | Q183: 138 | R183: 147 | S183: 193 | U183: 16 | V183: 29 | W183: 396 | X183: 54 | Y183: 57 | Z183: 57
D184: UP+UK | E184: N 2 | F184: UP+UK | G184: 203 | H184: 288 | I184: 437 | J184: 564 | K184: 592 | L184: 586 | N184: 20 | O184: 49 | P184: 81 | Q184: 262 | R184: 279 | S184: 287 | U184: 15 | V184: 21 | W184: 304 | X184: 64 | Y184: 72 | Z184: 39
D185: Madhya pradesh | E185: N 2 | F185: MP | G185: 363 | H185: 228 | I185: 217 | J185: 286 | K185: 312 | L185: 372 | N185: 34 | O185: 35 | P185: 49 | Q185: 137 | R185: 152 | S185: 200 | U185: 21 | V185: 21 | W185: 127 | X185: 18 | Y185: 15 | Z185: 16
D186: KARNATAKA | E186: S 1 | F186: Kar | G186: 250 | H186: 347 | I186: 383 | J186: 451 | K186: 486 | L186: 415 | N186: 30 | O186: 70 | P186: 114 | Q186: 186 | R186: 174 | S186: 150 | U186: 47 | V186: 82 | W186: 348 | X186: 98 | Y186: 89 | Z186: 59
D187: KERALA | E187: S 1 | F187: Ker | G187: 284 | H187: 113 | I187: 198 | J187: 216 | K187: 218 | L187: 196 | N187: 36 | O187: 33 | P187: 81 | Q187: 151 | R187: 150 | S187: 126 | U187: 9 | V187: 6 | W187: 97 | X187: 15 | Y187: 15 | Z187: 30
D188: Tamil nadu | E188: S 2 | F188: TN | G188: 345 | H188: 307 | I188: 411 | J188: 449 | K188: 486 | L188: 529 | N188: 63 | O188: 80 | P188: 128 | Q188: 236 | R188: 245 | S188: 256 | U188: 43 | V188: 62 | W188: 557 | X188: 86 | Y188: 98 | Z188: 119
D189: Andhra Pradesh | E189: S 2 | F189: AP | G189: 177 | H189: 145 | I189: 165 | J189: 124 | K189: 151 | L189: 230 | N189: 33 | O189: 33 | P189: 48 | Q189: 84 | R189: 107 | S189: 171 | U189: 17 | V189: 26 | W189: 226 | X189: 22 | Y189: 27 | Z189: 60
D190: Maharashtra | E190: W 1 | F190: MH | G190: 829 | H190: 1012 | I190: 1256 | J190: 1,406 | K190: 1,485 | L190: 1693 | N190: 142 | O190: 182 | P190: 310 | Q190: 733 | R190: 781 | S190: 925 | U190: 162 | V190: 239 | W190: 1,351 | X190: 276 | Y190: 330 | Z190: 456
D191: GUJARAT | E191: W 1 | F191: Guj | G191: 370 | H191: 363 | I191: 498 | J191: 425 | K191: 455 | L191: 523 | N191: 40 | O191: 57 | P191: 112 | Q191: 190 | R191: 209 | S191: 211 | U191: 93 | V191: 130 | W191: 952 | X191: 180 | Y191: 206 | Z191: 221
D193: E 1 | E193: E 1 | G193: =SUMIF($E$174:$E$191,$E193,G$174:G$191) -> 477 | H193: =SUMIF($E$174:$E$191,$E193,H$174:H$191) -> 453 | I193: 518 | J193: 677 | K193: 650 | L193: 666 | N193: 48 | O193: 75 | P193: 138 | Q193: 342 | R193: 324 | S193: 365 | U193: 30 | V193: 44 | W193: 609 | X193: =SUMIF($E$174:$E$191,$E193,X$174:X$191) -> 91 | Y193: 77 | Z193: 113
D194: E 2 | E194: E 2 | G194: =SUMIF($E$174:$E$191,$E194,G$174:G$191) -> 360 | H194: 338 | I194: 412 | J194: 605 | K194: 653 | L194: 707 | N194: 41 | O194: 52 | P194: 100 | Q194: 325 | R194: 354 | S194: 408 | U194: 28 | V194: 38 | W194: 374 | X194: 69 | Y194: 88 | Z194: 102
D195: N 1 | E195: N 1 | G195: 547 | H195: 613 | I195: 908 | J195: 984 | K195: 1012 | L195: 941 | N195: 50 | O195: 79 | P195: 169 | Q195: 417 | R195: 429 | S195: 458 | U195: 66 | V195: 94 | W195: 1040 | X195: 148 | Y195: 161 | Z195: 173
D196: N 2 | E196: N 2 | G196: 566 | H196: 516 | I196: 654 | J196: 850 | K196: 904 | L196: 958 | N196: 54 | O196: 84 | P196: 130 | Q196: 399 | R196: 431 | S196: 487 | U196: 36 | V196: 42 | W196: 431 | X196: 82 | Y196: 87 | Z196: 55
D197: S 1 | E197: S 1 | G197: 534 | H197: 460 | I197: 581 | J197: 667 | K197: 704 | L197: 611 | N197: 66 | O197: 103 | P197: 195 | Q197: 337 | R197: 324 | S197: 276 | U197: 56 | V197: 88 | W197: 445 | X197: 113 | Y197: 104 | Z197: 89
D198: S 2 | E198: S 2 | G198: 522 | H198: 452 | I198: 576 | J198: 573 | K198: 637 | L198: 759 | N198: 96 | O198: 113 | P198: 176 | Q198: 320 | R198: 352 | S198: 427 | U198: 60 | V198: 88 | W198: 783 | X198: 108 | Y198: 125 | Z198: 179
D199: W 1 | E199: W 1 | G199: 1199 | H199: 1375 | I199: 1754 | J199: 1831 | K199: 1940 | L199: 2216 | N199: 182 | O199: 239 | P199: 422 | Q199: 923 | R199: 990 | S199: 1136 | U199: 255 | V199: 369 | W199: 2303 | X199: 456 | Y199: 536 | Z199: 677
E201: N+E | G201: =SUM(G193:G196) -> 1950 | H201: =SUM(H193:H196) -> 1920 | I201: 2492 | J201: 3116 | K201: 3219 | L201: 3272 | N201: =SUM(N193:N196) -> 193 | O201: 290 | P201: 537 | Q201: 1483 | R201: 1538 | S201: 1718 | U201: =SUM(U193:U196) -> 160 | V201: 218 | W201: 2454 | X201: 390 | Y201: 413 | Z201: 443
E202: S+W | G202: =SUM(G197:G199) -> 2255 | H202: =SUM(H197:H199) -> 2287 | I202: 2911 | J202: 3071 | K202: 3281 | L202: 3586 | N202: =SUM(N197:N199) -> 344 | O202: 455 | P202: 793 | Q202: 1580 | R202: 1666 | S202: 1839 | U202: =SUM(U197:U199) -> 371 | V202: 545 | W202: 3531 | X202: 677 | Y202: 765 | Z202: 945
E204: Total | G204: =G201+G202 -> 4205 | H204: =H201+H202 -> 4207 | I204: 5403 | J204: 6187 | K204: 6500 | L204: 6858 | N204: =N201+N202 -> 537 | O204: 745 | P204: 1330 | Q204: 3063 | R204: 3204 | S204: 3557 | U204: =U201+U202 -> 531 | V204: 763 | W204: 5985 | X204: 1067 | Y204: 1178 | Z204: 1388
B208: COVERAGE TREND
G210: COVERAGE
G211: TDT | N211: Visuals | U211: SNP
D212: State | E212: Region | F212: State | G212: Avg-2223 | H212: Avg-2324 | I212: Avg-2425 | J212: L6M | K212: L3M | L212: =L172 -> LM(Oct'25) | N212: Avg-2223 | O212: Avg-2324 | P212: Avg-2425 | Q212: L6M | R212: L3M | S212: =L212 -> LM(Oct'25) | U212: Avg-2223 | V212: Avg-2324 | W212: Avg-2425 | X212: L6M | Y212: L3M | Z212: =S212 -> LM(Oct'25)
J213: =J173 -> (May'24-Oct'25) | K213: =K173 -> (Aug'25-Oct'25) | Q213: =J213 -> (May'24-Oct'25) | R213: =K213 -> (Aug'25-Oct'25) | X213: =Q213 -> (May'24-Oct'25) | Y213: =R213 -> (Aug'25-Oct'25)
D214: WEST BENGAL | E214: E 1 | F214: WB | G214: 39 | H214: 42 | I214: 339 | J214: 63 | K214: 79 | L214: 67 | N214: 97 | O214: 54 | P214: 51 | Q214: 19 | R214: 12 | S214: 6 | U214: 158 | V214: 28 | W214: 4 | X214: 6 | Y214: 0 | Z214: 0
D215: North East | E215: E 1 | F215: NE | G215: 35 | H215: 33 | I215: 232 | J215: 36 | K215: 37 | L215: 44 | N215: 43 | O215: 54 | P215: 62 | Q215: 27 | R215: 21 | S215: 11 | U215: 76 | V215: 33 | W215: 16 | X215: 17 | Y215: 17 | Z215: 11
D216: BIHAR | E216: E 2 | F216: BH | G216: 10 | H216: 32 | I216: 138 | J216: 29 | K216: 37 | L216: 20 | N216: 35 | O216: 38 | P216: 41 | Q216: 46 | R216: 54 | S216: 59 | U216: 103 | V216: 35 | W216: 23 | X216: 39 | Y216: 46 | Z216: 50
D217: Odisha | E217: E 2 | F217: Ori | G217: 48 | H217: 58 | I217: 244 | J217: 69 | K217: 80 | L217: 63 | N217: 45 | O217: 47 | P217: 42 | Q217: 51 | R217: 67 | S217: 63 | U217: 101 | V217: 34 | W217: 12 | X217: 23 | Y217: 31 | Z217: 16
D218: JHARKHAND | E218: E 2 | F218: JH | G218: 4 | H218: 5 | I218: 37 | J218: 6 | K218: 5 | L218: 6 | N218: 13 | O218: 9 | P218: 16 | Q218: 13 | R218: 14 | S218: 1 | U218: 51 | V218: 20 | W218: 10 | X218: 15 | Y218: 13 | Z218: 2
D219: CHHATTISGARH | E219: E 2 | F219: CG | G219: 26 | H219: 18 | I219: 119 | J219: 12 | K219: 10 | L219: 1 | N219: 23 | O219: 10 | P219: 13 | Q219: 26 | R219: 29 | S219: 16 | U219: 43 | V219: 10 | W219: 11 | X219: 12 | Y219: 13 | Z219: 37
D220: HARYANA | E220: N 1 | F220: Har | G220: 15 | H220: 13 | I220: 131 | J220: 25 | K220: 17 | L220: 2 | N220: 27 | O220: 16 | P220: 28 | Q220: 37 | R220: 24 | S220: 19 | U220: 83 | V220: 45 | W220: 41 | X220: 31 | Y220: 18 | Z220: 13
D221: GP | E221: N 1 | F221: GP | G221: 16 | H221: 16 | I221: 134 | J221: 35 | K221: 51 | L221: 26 | N221: 57 | O221: 46 | P221: 70 | Q221: 66 | R221: 71 | S221: 69 | U221: 145 | V221: 117 | W221: 71 | X221: 56 | Y221: 54 | Z221: 49
D222: New Delhi | E222: N 1 | F222: Del | G222: 28 | H222: 60 | I222: 372 | J222: 68 | K222: 54 | L222: 81 | N222: 81 | O222: 44 | P222: 97 | Q222: 128 | R222: 128 | S222: 76 | U222: 225 | V222: 120 | W222: 152 | X222: 131 | Y222: 135 | Z222: 93
D223: RAJASTHAN | E223: N 1 | F223: Raj | G223: 27 | H223: 38 | I223: 358 | J223: 72 | K223: 108 | L223: 87 | N223: 57 | O223: 36 | P223: 87 | Q223: 71 | R223: 89 | S223: 71 | U223: 105 | V223: 31 | W223: 40 | X223: 35 | Y223: 60 | Z223: 73
D224: UP+UK | E224: N 2 | F224: UP+UK | G224: 27 | H224: 31 | I224: 287 | J224: 73 | K224: 99 | L224: 93 | N224: 69 | O224: 56 | P224: 76 | Q224: 80 | R224: 97 | S224: 88 | U224: 244 | V224: 103 | W224: 33 | X224: 36 | Y224: 43 | Z224: 19
D225: Madhya pradesh | E225: N 2 | F225: MP | G225: 26 | H225: 22 | I225: 243 | J225: 60 | K225: 79 | L225: 40 | N225: 87 | O225: 46 | P225: 39 | Q225: 44 | R225: 55 | S225: 11 | U225: 213 | V225: 77 | W225: 16 | X225: 19 | Y225: 30 | Z225: 5
D226: KARNATAKA | E226: S 1 | F226: Kar | G226: 63 | H226: 121 | I226: 761 | J226: 233 | K226: 293 | L226: 283 | N226: 140 | O226: 56 | P226: 122 | Q226: 183 | R226: 246 | S226: 48 | U226: 291 | V226: 55 | W226: 33 | X226: 27 | Y226: 26 | Z226: 29
D227: KERALA | E227: S 1 | F227: Ker | G227: 40 | H227: 12 | I227: 145 | J227: 13 | K227: 15 | L227: 19 | N227: 120 | O227: 15 | P227: 53 | Q227: 50 | R227: 51 | S227: 39 | U227: 301 | V227: 29 | W227: 45 | X227: 100 | Y227: 106 | Z227: 93
D228: Tamil nadu | E228: S 2 | F228: TN | G228: 63 | H228: 59 | I228: 503 | J228: 73 | K228: 83 | L228: 79 | N228: 129 | O228: 111 | P228: 130 | Q228: 131 | R228: 149 | S228: 139 | U228: 451 | V228: 224 | W228: 117 | X228: 84 | Y228: 91 | Z228: 78
D229: Andhra Pradesh | E229: S 2 | F229: AP | G229: 39 | H229: 33 | I229: 220 | J229: 37 | K229: 45 | L229: 67 | N229: 87 | O229: 56 | P229: 73 | Q229: 41 | R229: 44 | S229: 39 | U229: 246 | V229: 133 | W229: 54 | X229: 38 | Y229: 40 | Z229: 29
D230: Maharashtra | E230: W 1 | F230: MH | G230: 104 | H230: 116 | I230: 574 | J230: 160 | K230: 214 | L230: 217 | N230: 335 | O230: 305 | P230: 245 | Q230: 161 | R230: 112 | S230: 110 | U230: 816 | V230: 562 | W230: 129 | X230: 87 | Y230: 61 | Z230: 80
D231: GUJARAT | E231: W 1 | F231: Guj | G231: 47 | H231: 37 | I231: 392 | J231: 53 | K231: 90 | L231: 146 | N231: 231 | O231: 94 | P231: 117 | Q231: 35 | R231: 22 | S231: 27 | U231: 357 | V231: 85 | W231: 36 | X231: 27 | Y231: 19 | Z231: 13
D233: E 1 | E233: E 1 | G233: =SUMIF($E$214:$E$231,$E233,G$214:G$231) -> 74 | H233: =SUMIF($E$214:$E$231,$E233,H$214:H$231) -> 75 | I233: 571 | J233: 99 | K233: 116 | L233: 111 | N233: 140 | O233: 108 | P233: 113 | Q233: 46 | R233: 33 | S233: 17 | U233: 234 | V233: 61 | W233: 20 | X233: =SUMIF($E$214:$E$231,$E233,X$214:X$231) -> 23 | Y233: 17 | Z233: 11
D234: E 2 | E234: E 2 | G234: =SUMIF($E$214:$E$231,$E234,G$214:G$231) -> 88 | H234: 113 | I234: 538 | J234: 116 | K234: 132 | L234: 90 | N234: 116 | O234: 104 | P234: 112 | Q234: 136 | R234: 164 | S234: 139 | U234: 298 | V234: 99 | W234: 56 | X234: 89 | Y234: 103 | Z234: 105
D235: N 1 | E235: N 1 | G235: 86 | H235: 127 | I235: 995 | J235: 200 | K235: 230 | L235: 196 | N235: 222 | O235: 142 | P235: 282 | Q235: 302 | R235: 312 | S235: 235 | U235: 558 | V235: 313 | W235: 304 | X235: 253 | Y235: 267 | Z235: 228
D236: N 2 | E236: N 2 | G236: 53 | H236: 53 | I236: 530 | J236: 133 | K236: 178 | L236: 133 | N236: 156 | O236: 102 | P236: 115 | Q236: 124 | R236: 152 | S236: 99 | U236: 457 | V236: 180 | W236: 49 | X236: 55 | Y236: 73 | Z236: 24
D237: S 1 | E237: S 1 | G237: 103 | H237: 133 | I237: 906 | J237: 246 | K237: 308 | L237: 302 | N237: 260 | O237: 71 | P237: 175 | Q237: 233 | R237: 297 | S237: 87 | U237: 592 | V237: 84 | W237: 78 | X237: 127 | Y237: 132 | Z237: 122
D238: S 2 | E238: S 2 | G238: 102 | H238: 92 | I238: 723 | J238: 110 | K238: 128 | L238: 146 | N238: 216 | O238: 167 | P238: 203 | Q238: 172 | R238: 193 | S238: 178 | U238: 697 | V238: 357 | W238: 171 | X238: 122 | Y238: 131 | Z238: 107
D239: W 1 | E239: W 1 | G239: 151 | H239: 153 | I239: 966 | J239: 213 | K239: 304 | L239: 363 | N239: 566 | O239: 399 | P239: 362 | Q239: 196 | R239: 134 | S239: 137 | U239: 1173 | V239: 647 | W239: 165 | X239: 114 | Y239: 80 | Z239: 93
E241: N+E | G241: =SUM(G233:G236) -> 301 | H241: =SUM(H233:H236) -> 368 | I241: 2634 | J241: 548 | K241: 656 | L241: 530 | N241: =SUM(N233:N236) -> 634 | O241: 456 | P241: 622 | Q241: 608 | R241: 661 | S241: 490 | U241: =SUM(U233:U236) -> 1547 | V241: 653 | W241: 429 | X241: 420 | Y241: 460 | Z241: 368
E242: S+W | G242: =SUM(G237:G239) -> 356 | H242: =SUM(H237:H239) -> 378 | I242: 2595 | J242: 569 | K242: 740 | L242: 811 | N242: =SUM(N237:N239) -> 1042 | O242: 637 | P242: 740 | Q242: 601 | R242: 624 | S242: 402 | U242: =SUM(U237:U239) -> 2462 | V242: 1088 | W242: 414 | X242: 363 | Y242: 343 | Z242: 322
E244: Total | G244: =G241+G242 -> 657 | H244: =H241+H242 -> 746 | I244: 5229 | J244: 1117 | K244: 1396 | L244: 1341 | N244: =N241+N242 -> 1676 | O244: 1093 | P244: 1362 | Q244: 1209 | R244: 1285 | S244: 892 | U244: =U241+U242 -> 4009 | V244: 1741 | W244: 843 | X244: 783 | Y244: 803 | Z244: 690

Sheet ASO View
C2: =CONCATENATE("Distribution Sales Dash Board as on ",'Dec Pivot'!$H$2," ") -> Distribution Sales Dash Board as on 09-Dec'25 | N2: 80% | R2: 44% | V2: 56% | AD2: 19% | AG2: 20% | AS2: 13% | AW2: 6% | BM2: . | BQ2: 15% | BU2: 19% | BY2: 53% | CC2: 47% | CG2: 56% | CK2: 44%
N3: =SUBTOTAL(9,N7:N183) -> 16384 | O3: =SUBTOTAL(9,O7:O183) -> 469 | P3: =IFERROR(O3/N3,0) -> 3% | Q3: =IFERROR(O3/CX3-1,0) -> -96% | R3: =SUBTOTAL(9,R7:R183) -> 1865 | S3: =SUBTOTAL(9,S7:S183) -> 96 | T3: =IFERROR(S3/R3,0) -> 5% | U3: =IFERROR(S3/CY3-1,0) -> -95.6% | V3: =SUBTOTAL(9,V7:V183) -> 2381 | W3: =SUBTOTAL(9,W7:W62) -> 109 | X3: =IFERROR(W3/V3,0) -> 5% | Y3: =IFERROR(W3/CZ3-1,0) -> -97% | Z3: =SUBTOTAL(9,Z7:Z183) -> 20630 | AA3: =SUBTOTAL(9,AA7:AA183) -> 700 | AB3: =IFERROR(AA3/Z3,0) -> 3% | AC3: =IFERROR(AA3/DA3-1,0) -> -96% | AD3: =SUBTOTAL(9,AD7:AD183) -> 3115 | AE3: =SUBTOTAL(9,AE7:AE183) -> 223 | AF3: =IFERROR(AE3/AD3,0) -> 7% | AG3: =SUBTOTAL(9,AG7:AG183) -> 4096 | AH3: =SUBTOTAL(9,AH7:AH183) -> 240 | AI3: =IFERROR(AH3/AG3,0) -> 6% | AJ3: =IFERROR(AH3/DB3-1,0) -> -94% | AK3: =SUBTOTAL(9,AK7:AK183) -> 1.8 | AL3: =SUBTOTAL(9,AL7:AL183) -> 0.1 | AM3: =IFERROR(AL3/AK3,0) -> 3% | AN3: =IFERROR(AL3/DH3-1,0) -> -100% | AO3: =SUBTOTAL(9,AO7:AO56) -> 753 | AP3: =SUBTOTAL(9,AP7:AP56) -> 64 | AQ3: =IFERROR(AP3/AO3,0) -> 8% | AR3: =IFERROR(AP3/DL3-1,0) -> -95% | AS3: =SUBTOTAL(9,AS7:AS183) -> 2683 | AT3: =SUBTOTAL(9,AT7:AT183) -> 97 | AU3: =IFERROR(AT3/AS3,0) -> 4% | AV3: =IFERROR(AT3/DP3-1,0) -> 362% | AW3: =SUBTOTAL(9,AW7:AW183) -> 1413 | AX3: =SUBTOTAL(9,AX7:AX183) -> 39 | AY3: =IFERROR(AX3/AW3,0) -> 3% | AZ3: =IFERROR(AX3/DT3-1,0) -> 0% | BA3: =SUBTOTAL(9,BA7:BA183) -> 9437 | BB3: =SUBTOTAL(9,BB7:BB183) -> 113 | BC3: =IFERROR(BB3/BA3,0) -> 1% | BD3: =IFERROR(BB3/DH3-1,0) -> -97% | BE3: =SUBTOTAL(9,BE7:BE183) -> 1780 | BF3: =SUBTOTAL(9,BF7:BF183) -> 37 | BG3: =IFERROR(BF3/BE3,0) -> 2% | BH3: =IFERROR(BF3/DK3-1,0) -> -96% | BI3: =SUBTOTAL(9,BI7:BI62) -> 1799 | BJ3: =SUBTOTAL(9,BJ7:BJ62) -> 1937 | BK3: =IFERROR(BJ3/BI3,0) -> 108% | BM3: =SUBTOTAL(9,BM7:BM183) -> 6163 | BN3: =SUBTOTAL(9,BN7:BN183) -> 478 | BO3: =IFERROR(BN3/BM3,0) -> 8% | BP3: =IFERROR(BN3/DC3-1,0) -> 302% | BQ3: =SUBTOTAL(9,BQ7:BQ183) -> 2449 | BR3: =SUBTOTAL(9,BR7:BR183) -> 178 | BS3: =IFERROR(BR3/BQ3,0) -> 7% | BT3: =IFERROR(BR3/DD3-1,0) -> -13% | BU3: =SUBTOTAL(9,BU7:BU183) -> 906 | BV3: =SUBTOTAL(9,BV7:BV183) -> 116 | BW3: =IFERROR(BV3/BU3,0) -> 13% | BX3: =IFERROR(BV3/DO3-1,0) -> 183% | BY3: =SUBTOTAL(9,BY7:BY183) -> 478 | BZ3: =SUBTOTAL(9,BZ7:BZ183) -> 165 | CA3: =IFERROR(BZ3/BY3,0) -> 35% | CB3: =IFERROR(BZ3/DP3-1,0) -> 686% | CC3: =SUBTOTAL(9,CC7:CC183) -> 434 | CD3: =SUBTOTAL(9,CD7:CD183) -> 165 | CE3: =IFERROR(CD3/CC3,0) -> 38% | CF3: =IFERROR(CD3/DQ3-1,0) -> 650% | CG3: =SUBTOTAL(9,CG7:CG183) -> 1673 | CH3: =SUBTOTAL(9,CH7:CH183) -> 96 | CI3: =IFERROR(CH3/CG3,0) -> 6% | CK3: =SUBTOTAL(9,CK7:CK183) -> 1122 | CL3: =SUBTOTAL(9,CL7:CL183) -> 78 | CM3: =IFERROR(CL3/CK3,0) -> 7% | CO3: =SUBTOTAL(9,CO7:CO183) -> 3200 | CP3: =SUBTOTAL(9,CP7:CP183) -> 80 | CQ3: =IFERROR(CP3/CO3,0) -> 3% | CR3: =IFERROR(CP3/DI3-1,0) -> 40% | CS3: =SUBTOTAL(9,CS7:CS183) -> 2308 | CT3: =SUBTOTAL(9,CT7:CT183) -> 67 | CU3: =IFERROR(CT3/CS3,0) -> 3% | CV3: =IFERROR(CT3/DJ3-1,0) -> 6600% | CX3: =SUBTOTAL(9,CX7:CX183) -> 12905 | CY3: 2161 | CZ3: 3217 | DA3: 18284 | DB3: 4172 | DC3: 119 | DD3: 204 | DE3: 52 | DF3: 65 | DG3: 0.84 | DH3: 3431 | DI3: 57 | DJ3: 1 | DK3: 1045 | DL3: 1312 | DM3: 857 | DN3: 455 | DO3: 41 | DP3: 21 | DQ3: 22
E4: Area Sales Officer- Monthly Track | N4: CA | BM4: Coverage | CX4: LMTD
N5: NB | R5: AIO | V5: TDT | Z5: CA | AD5: PM NB | AG5: PM CA | AK5: SnP Rev(Cr) | AO5: PM CA | AS5: PM Gaming CA | AW5: PM Non-Gaming CA | BA5: Visuals CA | BE5: Prem Visuals CA | BI5: Services CA | BM5: T3 | BQ5: PM | BU5: PM NB | BY5: PM Gaming NB | CC5: PM Non-Gaming NB | CG5: TDT | CK5: AIO | CO5: SnP | CS5: Visuals | DL5: CA | DO5: Coverage | DS5: PM Non-Gaming NB
E6: EMP Code | F6: Region | G6: Region1 | H6: State | I6: City | J6: ASO Name | K6: RCM | L6: DSM | M6: Status | N6: TGT | O6: Ach | P6: % | Q6: MOM | R6: TGT | S6: Ach | T6: % | U6: MOM | V6: TGT | W6: Ach | X6: % | Y6: MOM | Z6: TGT | AA6: Ach | AB6: % | AC6: MOM | AD6: TGT | AE6: Ach | AF6: % | AG6: TGT | AH6: Ach | AI6: % | AJ6: MOM | AK6: TGT | AL6: Ach | AM6: % | AN6: MOM | AO6: TGT | AP6: Ach | AQ6: % | AR6: MOM | AS6: TGT | AT6: Ach | AU6: % | AV6: MOM | AW6: TGT | AX6: Ach | AY6: % | AZ6: MOM | BA6: TGT | BB6: Ach | BC6: % | BD6: MOM | BE6: TGT | BF6: Ach | BG6: % | BH6: MOM | BI6: TGT | BJ6: Ach | BK6: % | BL6: MOM | BM6: TGT | BN6: Ach | BO6: % | BP6: MOM | BQ6: TGT | BR6: Ach | BS6: % | BT6: MOM | BU6: TGT | BV6: Ach | BW6: % | BX6: MOM | BY6: TGT | BZ6: Ach | CA6: % | CB6: MOM | CC6: TGT | CD6: Ach | CE6: % | CF6: MOM | CG6: TGT | CH6: Ach | CI6: % | CJ6: MOM | CK6: Tgt | CL6: Ach | CM6: % | CN6: MOM | CO6: Tgt | CP6: Ach | CQ6: % | CR6: MOM | CS6: Tgt | CT6: Ach | CU6: % | CV6: MOM | CW6: . | CX6: NB | CY6: AIO | CZ6: TDT | DA6: TTL CA | DB6: PM CA | DC6: T3 Cov App | DD6: T3 Cov PM | DE6: T3 Cov AIO | DF6: T3 Cov TDT | DG6: SnP Rev(Cr) | DH6: Visuals CA | DI6: SnP Cov | DJ6: Visuals Cov | DK6: Prem Visuals | DL6: pm CA NB | DM6: pm Gaming CA NB | DN6: pm Non-Gaming CA NB | DO6: pm CA NB | DP6: pm Gaming CA NB | DQ6: pm Non-Gaming CA NB | DS6: Ach
E7: V5287255 | F7: East 1 | G7: East1 | H7: West Bengal | I7: Bolpur | J7: Samya Roy | K7: Ashique Ali | L7: Amit Thakuri | M7: Active | N7: 144 | O7: =SUMIFS('Dec Raw Data'!$BL:$BL,'Dec Raw Data'!$G:$G,'ASO View'!$E7,'Dec Raw Data'!$BX:$BX,"NB") -> 11 | P7: =IFERROR(O7/N7,0) -> 8% | Q7: =IFERROR(O7/CX7-1,0) -> -94% | R7: 16 | S7: =SUMIFS('Dec Raw Data'!$BL:$BL,'Dec Raw Data'!$G:$G,'ASO View'!$E7,'Dec Raw Data'!$BX:$BX,"AIO") -> 3 | T7: =IFERROR(S7/R7,0) -> 19% | U7: =IFERROR(S7/CY7-1,0) -> -40% | V7: 20 | W7: =SUMIFS('Dec Raw Data'!$BL:$BL,'Dec Raw Data'!$G:$G,'ASO View'!$E7,'Dec Raw Data'!$BX:$BX,"TDT") -> 1 | X7: =IFERROR(W7/V7,0) -> 5% | Y7: =IFERROR(W7/CZ7-1,0) -> -50% | Z7: 180 | AA7: =SUMIFS('Dec Raw Data'!$BL:$BL,'Dec Raw Data'!$G:$G,'ASO View'!$E7,'Dec Raw Data'!$BU:$BU,"Consumer") -> 15 | AB7: =IFERROR(AA7/Z7,0) -> 8% | AC7: =IFERROR(AA7/DA7-1,0) -> -92% | AD7: 27 | AE7: =SUMIFS('Dec Raw Data'!$BL:$BL,'Dec Raw Data'!$G:$G,'ASO View'!$E7,'Dec Raw Data'!$BX:$BX,"NB",'Dec Raw Data'!$BS:$BS,"premium") -> 6 | AF7: =IFERROR(AE7/AD7,0) -> 22% | AG7: 36 | AH7: =SUMIFS('Dec Raw Data'!$BL:$BL,'Dec Raw Data'!$G:$G,'ASO View'!$E7,'Dec Raw Data'!$BU:$BU,"Consumer",'Dec Raw Data'!$BS:$BS,"premium") -> 6 | AI7: =IFERROR(AH7/AG7,0) -> 17% | AJ7: =IFERROR(AH7/DB7-1,0) -> -85% | AK7: 0.02 | AL7: =SUMIFS('Dec Raw Data'!$BY:$BY,'Dec Raw Data'!$BU:$BU,"Accessories",'Dec Raw Data'!$G:$G,'ASO View'!E7) -> 0.000 | AM7: =IFERROR(AL7/AK7,0) -> 0% | AN7: =IFERROR(AL7/DG7-1,0) -> 0% | AO7: 0 | AP7: =SUMIFS('Dec Raw Data'!$BL:$BL,'Dec Raw Data'!$G:$G,'ASO View'!$E7,'Dec Raw Data'!$BU:$BU,"Consumer",'Dec Raw Data'!$BS:$BS,"premium",'Dec Raw Data'!$BX:$BX,"NB",'Dec Raw Data'!$CA:$CA,"SP") -> 1 | AQ7: =IFERROR(AP7/AO7,0) -> 0% | AR7: =IFERROR(AP7/DL7-1,0) -> -88% | AS7: 23 | AT7: =SUMIFS('Dec Raw Data'!$BL:$BL,'Dec Raw Data'!$G:$G,'ASO View'!$E7,'Dec Raw Data'!$BU:$BU,"Consumer",'Dec Raw Data'!$BS:$BS,"premium",'Dec Raw Data'!$BX:$BX,"NB",'Dec Raw Data'!$CB:$CB,"Gaming") -> 1 | AU7: =IFERROR(AT7/AS7,0) -> 4% | AV7: =IFERROR(AT7/DM7-1,0) -> -67% | AW7: 13 | AX7: =SUMIFS('Dec Raw Data'!$BL:$BL,'Dec Raw Data'!$G:$G,'ASO View'!$E7,'Dec Raw Data'!$BU:$BU,"Consumer",'Dec Raw Data'!$BS:$BS,"premium",'Dec Raw Data'!$BX:$BX,"NB",'Dec Raw Data'!$CB:$CB,"Non-Gaming") -> 0 | AY7: =IFERROR(AX7/AW7,0) -> 0% | AZ7: =IFERROR(AX7/DN7-1,0) -> -100% | BA7: 125 | BB7: =SUMIFS('Dec Raw Data'!$BL:$BL,'Dec Raw Data'!$BU:$BU,"visuals",'Dec Raw Data'!$G:$G,'ASO View'!E7) -> 0 | BC7: =IFERROR(BB7/BA7,0) -> 0% | BD7: =IFERROR(BB7/DH7-1,0) -> 0% | BE7: 25 | BF7: =SUMIFS('Dec Raw Data'!$BL:$BL,'Dec Raw Data'!$BU:$BU,"visuals",'Dec Raw Data'!$G:$G,'ASO View'!E7,'Dec Raw Data'!$BS:$BS,"Premium") -> 0 | BG7: =IFERROR(BF7/BE7,0) -> 0% | BH7: =IFERROR(BF7/DK7-1,0) -> 0% | BI7: 10 | BJ7: 34 | BK7: =IFERROR(BJ7/BI7,0) -> 340% | BM7: 70 | BN7: =IFERROR(VLOOKUP($E7,'Dec Pivot'!$A:$F,6,0),0) -> 10 | BO7: =IFERROR(BN7/BM7,0) -> 14% | BP7: =IFERROR(BN7/DC7-1,0) -> 150% | BQ7: 28 | BR7: =IFERROR(VLOOKUP($E7,'Dec Pivot'!$A:$F,5,0),0) -> 5 | BS7: =IFERROR(BR7/BQ7,0) -> 18% | BT7: =IFERROR(BR7/DD7-1,0) -> 0% | BU7: 10 | BV7: =IFERROR(VLOOKUP($E7,'Dec Pivot'!$AF:$AH,3,0),0) -> 5 | BW7: =IFERROR(BV7/BU7,0) -> 48% | BX7: =IFERROR(BV7/DO7-1,0) -> 0% | BY7: 6 | BZ7: =IFERROR(VLOOKUP($E7,'Dec Pivot'!$AI:$AK,3,0),0) -> 5 | CA7: =IFERROR(BZ7/BY7,0) -> 83% | CB7: =IFERROR(BZ7/DP7-1,0) -> 0% | CC7: 5 | CD7: =IFERROR(VLOOKUP($E7,'Dec Pivot'!$AL:$AN,3,0),0) -> 5 | CE7: =IFERROR(CD7/CC7,0) -> 100% | CF7: =IFERROR(CD7/DQ7-1,0) -> 0% | CG7: 19 | CH7: =IFERROR(VLOOKUP($E7,'Dec Pivot'!$J:$O,4,0),0) -> 1 | CI7: =IFERROR(CH7/CG7,0) -> 5% | CJ7: =IFERROR(CH7/DF7-1,0) -> 0% | CK7: 13 | CL7: =IFERROR(VLOOKUP($E7,'Dec Pivot'!$J:$O,3,0),0) -> 2 | CM7: =IFERROR(CL7/CK7,0) -> 16% | CO7: 63 | CP7: =IFERROR(VLOOKUP($E7,'Dec Pivot'!$X:$AA,4,0),0) -> 0 | CQ7: =IFERROR(CP7/CO7,0) -> 0% | CR7: =IFERROR(CP7/DI7-1,0) -> 0% | CS7: 35 | CT7: =IFERROR(VLOOKUP(E7,'Dec Pivot'!$AB:$AD,3,0),0) -> 0 | CU7: =IFERROR(CT7/CS7,0) -> 0% | CV7: =IFERROR(CT7/DJ7-1,0) -> 0% | CX7: =SUMIFS('Nov Raw Data'!$BL:$BL,'Nov Raw Data'!$G:$G,'ASO View'!E7,'Nov Raw Data'!$BX:$BX,"NB",'Nov Raw Data'!$CC:$CC,"MTD") -> 177 | CY7: =SUMIFS('Nov Raw Data'!$BL:$BL,'Nov Raw Data'!$G:$G,'ASO View'!E7,'Nov Raw Data'!$BX:$BX,"AIO",'Nov Raw Data'!$CC:$CC,"MTD") -> 5 | CZ7: =SUMIFS('Nov Raw Data'!$BL:$BL,'Nov Raw Data'!$G:$G,'ASO View'!E7,'Nov Raw Data'!$BX:$BX,"TDT",'Nov Raw Data'!$CC:$CC,"MTD") -> 2 | DA7: =SUMIFS('Nov Raw Data'!$BL:$BL,'Nov Raw Data'!$G:$G,'ASO View'!E7,'Nov Raw Data'!$BU:$BU,"consumer",'Nov Raw Data'!$CC:$CC,"MTD") -> 184 | DB7: =SUMIFS('Nov Raw Data'!$BL:$BL,'Nov Raw Data'!$G:$G,'ASO View'!$E7,'Nov Raw Data'!$BU:$BU,"consumer",'Nov Raw Data'!$BS:$BS,"Premium",'Nov Raw Data'!$CC:$CC,"MTD") -> 40 | DC7: =IFERROR(VLOOKUP(E7,'Nov Pivot'!$A:$F,5,0),0) -> 4 | DD7: =IFERROR(VLOOKUP(E7,'Nov Pivot'!$A:$F,4,0),0) -> 0 | DE7: =IFERROR(VLOOKUP($E7,'Nov Pivot'!$AD:$AF,2,0),0) -> 0 | DF7: =IFERROR(VLOOKUP($E7,'Nov Pivot'!$AD:$AF,3,0),0) -> 0 | DG7: =SUMIFS('Nov Raw Data'!$BY:$BY,'Nov Raw Data'!$BU:$BU,"Accessories",'Nov Raw Data'!$G:$G,'ASO View'!E7,'Nov Raw Data'!$CC:$CC,"MTD") -> 0.00 | DH7: =SUMIFS('Nov Raw Data'!$BL:$BL,'Nov Raw Data'!$G:$G,'ASO View'!E7,'Nov Raw Data'!$BU:$BU,"Visuals",'Nov Raw Data'!$CC:$CC,"MTD") -> 0 | DI7: =IFERROR(VLOOKUP(E7,'Nov Pivot'!$K:$P,2,0),0) -> 0 | DJ7: =IFERROR(VLOOKUP(E7,'Nov Pivot'!$K:$P,4,0),0) -> 0 | DK7: =SUMIFS('Nov Raw Data'!$BL:$BL,'Nov Raw Data'!$G:$G,'ASO View'!E7,'Nov Raw Data'!$BU:$BU,"Visuals",'Nov Raw Data'!$BS:$BS,"premium") -> 0 | DL7: =SUMIFS('Nov Raw Data'!$BL:$BL,'Nov Raw Data'!$G:$G,'ASO View'!$E7,'Nov Raw Data'!$BU:$BU,"consumer",'Nov Raw Data'!$BS:$BS,"Premium",'Nov Raw Data'!$CA:$CA,"SP",'Nov Raw Data'!$CC:$CC,"MTD") -> 8 | DM7: =SUMIFS('Nov Raw Data'!$BL:$BL,'Nov Raw Data'!$G:$G,'ASO View'!$E7,'Nov Raw Data'!$BU:$BU,"consumer",'Nov Raw Data'!$BS:$BS,"Premium",'Nov Raw Data'!$CA:$CA,"SP",'Nov Raw Data'!$CB:$CB,"Gaming",'Nov Raw Data'!$CC:$CC,"MTD") -> 3 | DN7: =SUMIFS('Nov Raw Data'!$BL:$BL,'Nov Raw Data'!$G:$G,'ASO View'!$E7,'Nov Raw Data'!$BU:$BU,"consumer",'Nov Raw Data'!$BS:$BS,"Premium",'Nov Raw Data'!$CA:$CA,"SP",'Nov Raw Data'!$CB:$CB,"Non-Gaming",'Nov Raw Data'!$CC:$CC,"MTD") -> 5 | DO7: =IFERROR(VLOOKUP($E7,'Nov Pivot'!$T:$U,2,0),0) -> 0 | DP7: =IFERROR(VLOOKUP($E7,'Nov Pivot'!$W:$X,2,0),0) -> 0 | DQ7: =IFERROR(VLOOKUP($E7,'Nov Pivot'!$Z:$AA,2,0),0) -> 0 | DS7: =IFERROR(VLOOKUP($E7,Kiran!A:C,3,0),0) -> 1
E8: V5326187 | F8: East 1 | G8: East1 | H8: West Bengal | I8: Siliguri | J8: Biplab Barman | K8: Kapil Tiwari | L8: Amit Thakuri | M8: Active | N8: 128 | O8: =SUMIFS('Dec Raw Data'!$BL:$BL,'Dec Raw Data'!$G:$G,'ASO View'!$E8,'Dec Raw Data'!$BX:$BX,"NB") -> 0 | P8: =IFERROR(O8/N8,0) -> 0% | Q8: =IFERROR(O8/CX8-1,0) -> -100% | R8: 14 | S8: =SUMIFS('Dec Raw Data'!$BL:$BL,'Dec Raw Data'!$G:$G,'ASO View'!$E8,'Dec Raw Data'!$BX:$BX,"AIO") -> 0 | T8: =IFERROR(S8/R8,0) -> 0% | U8: =IFERROR(S8/CY8-1,0) -> -100% | V8: 18 | W8: =SUMIFS('Dec Raw Data'!$BL:$BL,'Dec Raw Data'!$G:$G,'ASO View'!$E8,'Dec Raw Data'!$BX:$BX,"TDT") -> 0 | X8: =IFERROR(W8/V8,0) -> 0% | Y8: =IFERROR(W8/CZ8-1,0) -> -100% | Z8: 160 | AA8: =SUMIFS('Dec Raw Data'!$BL:$BL,'Dec Raw Data'!$G:$G,'ASO View'!$E8,'Dec Raw Data'!$BU:$BU,"Consumer") -> 0 | AB8: =IFERROR(AA8/Z8,0) -> 0% | AC8: =IFERROR(AA8/DA8-1,0) -> -100% | AD8: 24 | AE8: =SUMIFS('Dec Raw Data'!$BL:$BL,'Dec Raw Data'!$G:$G,'ASO View'!$E8,'Dec Raw Data'!$BX:$BX,"NB",'Dec Raw Data'!$BS:$BS,"premium") -> 0 | AF8: =IFERROR(AE8/AD8,0) -> 0% | AG8: 32 | AH8: =SUMIFS('Dec Raw Data'!$BL:$BL,'Dec Raw Data'!$G:$G,'ASO View'!$E8,'Dec Raw Data'!$BU:$BU,"Consumer",'Dec Raw Data'!$BS:$BS,"premium") -> 0 | AI8: =IFERROR(AH8/AG8,0) -> 0% | AJ8: =IFERROR(AH8/DB8-1,0) -> -100% | AK8: 0.018 | AL8: =SUMIFS('Dec Raw Data'!$BY:$BY,'Dec Raw Data'!$BU:$BU,"Accessories",'Dec Raw Data'!$G:$G,'ASO View'!E8) -> 0.000 | AM8: 0% | AN8: 0% | AO8: 0 | AP8: =SUMIFS('Dec Raw Data'!$BL:$BL,'Dec Raw Data'!$G:$G,'ASO View'!$E8,'Dec Raw Data'!$BU:$BU,"Consumer",'Dec Raw Data'!$BS:$BS,"premium",'Dec Raw Data'!$BX:$BX,"NB",'Dec Raw Data'!$CA:$CA,"SP") -> 0 | AQ8: 0% | AR8: -100% | AS8: 21 | AT8: =SUMIFS('Dec Raw Data'!$BL:$BL,'Dec Raw Data'!$G:$G,'ASO View'!$E8,'Dec Raw Data'!$BU:$BU,"Consumer",'Dec Raw Data'!$BS:$BS,"premium",'Dec Raw Data'!$BX:$BX,"NB",'Dec Raw Data'!$CB:$CB,"Gaming") -> 0 | AU8: =IFERROR(AT8/AS8,0) -> 0% | AV8: =IFERROR(AT8/DM8-1,0) -> -100% | AW8: 11 | AX8: =SUMIFS('Dec Raw Data'!$BL:$BL,'Dec Raw Data'!$G:$G,'ASO View'!$E8,'Dec Raw Data'!$BU:$BU,"Consumer",'Dec Raw Data'!$BS:$BS,"premium",'Dec Raw Data'!$BX:$BX,"NB",'Dec Raw Data'!$CB:$CB,"Non-Gaming") -> 0 | AY8: =IFERROR(AX8/AW8,0) -> 0% | AZ8: =IFERROR(AX8/DN8-1,0) -> -100% | BA8: 125 | BB8: =SUMIFS('Dec Raw Data'!$BL:$BL,'Dec Raw Data'!$BU:$BU,"visuals",'Dec Raw Data'!$G:$G,'ASO View'!E8) -> 0 | BC8: 0% | BD8: -100% | BE8: 25 | BF8: =SUMIFS('Dec Raw Data'!$BL:$BL,'Dec Raw Data'!$BU:$BU,"visuals",'Dec Raw Data'!$G:$G,'ASO View'!E8,'Dec Raw Data'!$BS:$BS,"Premium") -> 0 | BG8: 0% | BH8: 0% | BI8: 10 | BJ8: 3 | BK8: 30% | BM8: 80 | BN8: =IFERROR(VLOOKUP($E8,'Dec Pivot'!$A:$F,6,0),0) -> 0 | BO8: 0% | BP8: -100% | BQ8: 32 | BR8: =IFERROR(VLOOKUP($E8,'Dec Pivot'!$A:$F,5,0),0) -> 0 | BS8: 0% | BT8: -100% | BU8: 11.8 | BV8: =IFERROR(VLOOKUP($E8,'Dec Pivot'!$AF:$AH,3,0),0) -> 0 | BW8: 0% | BX8: 0% | BY8: 6 | BZ8: =IFERROR(VLOOKUP($E8,'Dec Pivot'!$AI:$AK,3,0),0) -> 0 | CA8: 0% | CB8: 0% | CC8: 6 | CD8: =IFERROR(VLOOKUP($E8,'Dec Pivot'!$AL:$AN,3,0),0) -> 0 | CE8: 0% | CF8: 0% | CG8: 21.6 | CH8: =IFERROR(VLOOKUP($E8,'Dec Pivot'!$J:$O,4,0),0) -> 0 | CI8: 0% | CJ8: =IFERROR(CH8/DF8-1,0) -> -100% | CK8: 14.4 | CL8: =IFERROR(VLOOKUP($E8,'Dec Pivot'!$J:$O,3,0),0) -> 0 | CM8: 0% | CO8: 24 | CP8: =IFERROR(VLOOKUP($E8,'Dec Pivot'!$X:$AA,4,0),0) -> 0 | CQ8: 0% | CR8: =IFERROR(CP8/DI8-1,0) -> 0% | CS8: 40 | CT8: =IFERROR(VLOOKUP(E8,'Dec Pivot'!$AB:$AD,3,0),0) -> 0 | CU8: 0% | CV8: =IFERROR(CT8/DJ8-1,0) -> 0% | CX8: =SUMIFS('Nov Raw Data'!$BL:$BL,'Nov Raw Data'!$G:$G,'ASO View'!E8,'Nov Raw Data'!$BX:$BX,"NB",'Nov Raw Data'!$CC:$CC,"MTD") -> 105 | CY8: =SUMIFS('Nov Raw Data'!$BL:$BL,'Nov Raw Data'!$G:$G,'ASO View'!E8,'Nov Raw Data'!$BX:$BX,"AIO",'Nov Raw Data'!$CC:$CC,"MTD") -> 17 | CZ8: =SUMIFS('Nov Raw Data'!$BL:$BL,'Nov Raw Data'!$G:$G,'ASO View'!E8,'Nov Raw Data'!$BX:$BX,"TDT",'Nov Raw Data'!$CC:$CC,"MTD") -> 43 | DA8: =SUMIFS('Nov Raw Data'!$BL:$BL,'Nov Raw Data'!$G:$G,'ASO View'!E8,'Nov Raw Data'!$BU:$BU,"consumer",'Nov Raw Data'!$CC:$CC,"MTD") -> 165 | DB8: =SUMIFS('Nov Raw Data'!$BL:$BL,'Nov Raw Data'!$G:$G,'ASO View'!$E8,'Nov Raw Data'!$BU:$BU,"consumer",'Nov Raw Data'!$BS:$BS,"Premium",'Nov Raw Data'!$CC:$CC,"MTD") -> 32 | DC8: =IFERROR(VLOOKUP(E8,'Nov Pivot'!$A:$F,5,0),0) -> 7 | DD8: =IFERROR(VLOOKUP(E8,'Nov Pivot'!$A:$F,4,0),0) -> 58 | DE8: =IFERROR(VLOOKUP($E8,'Nov Pivot'!$AD:$AF,2,0),0) -> 1 | DF8: =IFERROR(VLOOKUP($E8,'Nov Pivot'!$AD:$AF,3,0),0) -> 15 | DG8: =SUMIFS('Nov Raw Data'!$BY:$BY,'Nov Raw Data'!$BU:$BU,"Accessories",'Nov Raw Data'!$G:$G,'ASO View'!E8,'Nov Raw Data'!$CC:$CC,"MTD") -> 0.00 | DH8: =SUMIFS('Nov Raw Data'!$BL:$BL,'Nov Raw Data'!$G:$G,'ASO View'!E8,'Nov Raw Data'!$BU:$BU,"Visuals",'Nov Raw Data'!$CC:$CC,"MTD") -> 11 | DI8: =IFERROR(VLOOKUP(E8,'Nov Pivot'!$K:$P,2,0),0) -> 0 | DJ8: =IFERROR(VLOOKUP(E8,'Nov Pivot'!$K:$P,4,0),0) -> 0 | DK8: =SUMIFS('Nov Raw Data'!$BL:$BL,'Nov Raw Data'!$G:$G,'ASO View'!E8,'Nov Raw Data'!$BU:$BU,"Visuals",'Nov Raw Data'!$BS:$BS,"premium") -> 0 | DL8: =SUMIFS('Nov Raw Data'!$BL:$BL,'Nov Raw Data'!$G:$G,'ASO View'!$E8,'Nov Raw Data'!$BU:$BU,"consumer",'Nov Raw Data'!$BS:$BS,"Premium",'Nov Raw Data'!$CA:$CA,"SP",'Nov Raw Data'!$CC:$CC,"MTD") -> 7 | DM8: =SUMIFS('Nov Raw Data'!$BL:$BL,'Nov Raw Data'!$G:$G,'ASO View'!$E8,'Nov Raw Data'!$BU:$BU,"consumer",'Nov Raw Data'!$BS:$BS,"Premium",'Nov Raw Data'!$CA:$CA,"SP",'Nov Raw Data'!$CB:$CB,"Gaming",'Nov Raw Data'!$CC:$CC,"MTD") -> 3 | DN8: =SUMIFS('Nov Raw Data'!$BL:$BL,'Nov Raw Data'!$G:$G,'ASO View'!$E8,'Nov Raw Data'!$BU:$BU,"consumer",'Nov Raw Data'!$BS:$BS,"Premium",'Nov Raw Data'!$CA:$CA,"SP",'Nov Raw Data'!$CB:$CB,"Non-Gaming",'Nov Raw Data'!$CC:$CC,"MTD") -> 4 | DO8: =IFERROR(VLOOKUP($E8,'Nov Pivot'!$T:$U,2,0),0) -> 0 | DP8: =IFERROR(VLOOKUP($E8,'Nov Pivot'!$W:$X,2,0),0) -> 0 | DQ8: =IFERROR(VLOOKUP($E8,'Nov Pivot'!$Z:$AA,2,0),0) -> 0 | DS8: =IFERROR(VLOOKUP($E8,Kiran!A:C,3,0),0) -> 0
E9: V5367944 | F9: East 1 | G9: East1 | H9: West Bengal | I9: Medinipur | J9: Siddhartha Saha | K9: Kapil Tiwari | L9: Amit Thakuri | M9: Active | N9: 144 | O9: =SUMIFS('Dec Raw Data'!$BL:$BL,'Dec Raw Data'!$G:$G,'ASO View'!$E9,'Dec Raw Data'!$BX:$BX,"NB") -> 16 | P9: 11% | Q9: -88% | R9: 16 | S9: =SUMIFS('Dec Raw Data'!$BL:$BL,'Dec Raw Data'!$G:$G,'ASO View'!$E9,'Dec Raw Data'!$BX:$BX,"AIO") -> 1 | T9: 6% | U9: -92% | V9: 20 | W9: =SUMIFS('Dec Raw Data'!$BL:$BL,'Dec Raw Data'!$G:$G,'ASO View'!$E9,'Dec Raw Data'!$BX:$BX,"TDT") -> 6 | X9: 30% | Y9: -84% | Z9: 180 | AA9: =SUMIFS('Dec Raw Data'!$BL:$BL,'Dec Raw Data'!$G:$G,'ASO View'!$E9,'Dec Raw Data'!$BU:$BU,"Consumer") -> 23 | AB9: 13% | AC9: -88% | AD9: 27 | AE9: =SUMIFS('Dec Raw Data'!$BL:$BL,'Dec Raw Data'!$G:$G,'ASO View'!$E9,'Dec Raw Data'!$BX:$BX,"NB",'Dec Raw Data'!$BS:$BS,"premium") -> 10 | AF9: 37% | AG9: 36 | AH9: =SUMIFS('Dec Raw Data'!$BL:$BL,'Dec Raw Data'!$G:$G,'ASO View'!$E9,'Dec Raw Data'!$BU:$BU,"Consumer",'Dec Raw Data'!$BS:$BS,"premium") -> 10 | AI9: 28% | AJ9: -79% | AK9: 0.018 | AL9: =SUMIFS('Dec Raw Data'!$BY:$BY,'Dec Raw Data'!$BU:$BU,"Accessories",'Dec Raw Data'!$G:$G,'ASO View'!E9) -> 0.000 | AM9: =IFERROR(AL9/AK9,0) -> 0% | AN9: =IFERROR(AL9/DG9-1,0) -> -100% | AO9: 0 | AP9: =SUMIFS('Dec Raw Data'!$BL:$BL,'Dec Raw Data'!$G:$G,'ASO View'!$E9,'Dec Raw Data'!$BU:$BU,"Consumer",'Dec Raw Data'!$BS:$BS,"premium",'Dec Raw Data'!$BX:$BX,"NB",'Dec Raw Data'!$CA:$CA,"SP") -> 9 | AQ9: =IFERROR(AP9/AO9,0) -> 0% | AR9: =IFERROR(AP9/DL9-1,0) -> -18% | AS9: 23 | AT9: =SUMIFS('Dec Raw Data'!$BL:$BL,'Dec Raw Data'!$G:$G,'ASO View'!$E9,'Dec Raw Data'!$BU:$BU,"Consumer",'Dec Raw Data'!$BS:$BS,"premium",'Dec Raw Data'!$BX:$BX,"NB",'Dec Raw Data'!$CB:$CB,"Gaming") -> 6 | AU9: 26% | AV9: 20% | AW9: 13 | AX9: =SUMIFS('Dec Raw Data'!$BL:$BL,'Dec Raw Data'!$G:$G,'ASO View'!$E9,'Dec Raw Data'!$BU:$BU,"Consumer",'Dec Raw Data'!$BS:$BS,"premium",'Dec Raw Data'!$BX:$BX,"NB",'Dec Raw Data'!$CB:$CB,"Non-Gaming") -> 3 | AY9: 23% | AZ9: -50% | BA9: 125 | BB9: =SUMIFS('Dec Raw Data'!$BL:$BL,'Dec Raw Data'!$BU:$BU,"visuals",'Dec Raw Data'!$G:$G,'ASO View'!E9) -> 0 | BC9: =IFERROR(BB9/BA9,0) -> 0% | BD9: =IFERROR(BB9/DH9-1,0) -> -100% | BE9: 25 | BF9: =SUMIFS('Dec Raw Data'!$BL:$BL,'Dec Raw Data'!$BU:$BU,"visuals",'Dec Raw Data'!$G:$G,'ASO View'!E9,'Dec Raw Data'!$BS:$BS,"Premium") -> 0 | BG9: =IFERROR(BF9/BE9,0) -> 0% | BH9: =IFERROR(BF9/DK9-1,0) -> -100% | BI9: 10 | BJ9: 4 | BK9: =IFERROR(BJ9/BI9,0) -> 40% | BM9: 60 | BN9: =IFERROR(VLOOKUP($E9,'Dec Pivot'!$A:$F,6,0),0) -> 20 | BO9: =IFERROR(BN9/BM9,0) -> 33% | BP9: =IFERROR(BN9/DC9-1,0) -> 300% | BQ9: 24 | BR9: =IFERROR(VLOOKUP($E9,'Dec Pivot'!$A:$F,5,0),0) -> 9 | BS9: =IFERROR(BR9/BQ9,0) -> 38% | BT9: =IFERROR(BR9/DD9-1,0) -> 50% | BU9: 8.8 | BV9: =IFERROR(VLOOKUP($E9,'Dec Pivot'!$AF:$AH,3,0),0) -> 9 | BW9: =IFERROR(BV9/BU9,0) -> 102% | BX9: =IFERROR(BV9/DO9-1,0) -> 800% | BY9: 5 | BZ9: =IFERROR(VLOOKUP($E9,'Dec Pivot'!$AI:$AK,3,0),0) -> 9 | CA9: =IFERROR(BZ9/BY9,0) -> 180% | CB9: =IFERROR(BZ9/DP9-1,0) -> 800% | CC9: 4 | CD9: =IFERROR(VLOOKUP($E9,'Dec Pivot'!$AL:$AN,3,0),0) -> 9 | CE9: =IFERROR(CD9/CC9,0) -> 225% | CF9: =IFERROR(CD9/DQ9-1,0) -> 0% | CG9: 16.2 | CH9: =IFERROR(VLOOKUP($E9,'Dec Pivot'!$J:$O,4,0),0) -> 6 | CI9: =IFERROR(CH9/CG9,0) -> 37% | CJ9: 200% | CK9: 10.8 | CL9: =IFERROR(VLOOKUP($E9,'Dec Pivot'!$J:$O,3,0),0) -> 1 | CM9: =IFERROR(CL9/CK9,0) -> 9% | CO9: 30 | CP9: =IFERROR(VLOOKUP($E9,'Dec Pivot'!$X:$AA,4,0),0) -> 0 | CQ9: =IFERROR(CP9/CO9,0) -> 0% | CR9: =IFERROR(CP9/DI9-1,0) -> -100% | CS9: 30 | CT9: =IFERROR(VLOOKUP(E9,'Dec Pivot'!$AB:$AD,3,0),0) -> 0 | CU9: =IFERROR(CT9/CS9,0) -> 0% | CV9: =IFERROR(CT9/DJ9-1,0) -> -100% | CX9: =SUMIFS('Nov Raw Data'!$BL:$BL,'Nov Raw Data'!$G:$G,'ASO View'!E9,'Nov Raw Data'!$BX:$BX,"NB",'Nov Raw Data'!$CC:$CC,"MTD") -> 135 | CY9: =SUMIFS('Nov Raw Data'!$BL:$BL,'Nov Raw Data'!$G:$G,'ASO View'!E9,'Nov Raw Data'!$BX:$BX,"AIO",'Nov Raw Data'!$CC:$CC,"MTD") -> 13 | CZ9: =SUMIFS('Nov Raw Data'!$BL:$BL,'Nov Raw Data'!$G:$G,'ASO View'!E9,'Nov Raw Data'!$BX:$BX,"TDT",'Nov Raw Data'!$CC:$CC,"MTD") -> 37 | DA9: =SUMIFS('Nov Raw Data'!$BL:$BL,'Nov Raw Data'!$G:$G,'ASO View'!E9,'Nov Raw Data'!$BU:$BU,"consumer",'Nov Raw Data'!$CC:$CC,"MTD") -> 185 | DB9: =SUMIFS('Nov Raw Data'!$BL:$BL,'Nov Raw Data'!$G:$G,'ASO View'!$E9,'Nov Raw Data'!$BU:$BU,"consumer",'Nov Raw Data'!$BS:$BS,"Premium",'Nov Raw Data'!$CC:$CC,"MTD") -> 47 | DC9: =IFERROR(VLOOKUP(E9,'Nov Pivot'!$A:$F,5,0),0) -> 5 | DD9: =IFERROR(VLOOKUP(E9,'Nov Pivot'!$A:$F,4,0),0) -> 6 | DE9: =IFERROR(VLOOKUP($E9,'Nov Pivot'!$AD:$AF,2,0),0) -> 6 | DF9: =IFERROR(VLOOKUP($E9,'Nov Pivot'!$AD:$AF,3,0),0) -> 2 | DG9: =SUMIFS('Nov Raw Data'!$BY:$BY,'Nov Raw Data'!$BU:$BU,"Accessories",'Nov Raw Data'!$G:$G,'ASO View'!E9,'Nov Raw Data'!$CC:$CC,"MTD") -> 0.00 | DH9: =SUMIFS('Nov Raw Data'!$BL:$BL,'Nov Raw Data'!$G:$G,'ASO View'!E9,'Nov Raw Data'!$BU:$BU,"Visuals",'Nov Raw Data'!$CC:$CC,"MTD") -> 50 | DI9: =IFERROR(VLOOKUP(E9,'Nov Pivot'!$K:$P,2,0),0) -> 4 | DJ9: =IFERROR(VLOOKUP(E9,'Nov Pivot'!$K:$P,4,0),0) -> 1 | DK9: =SUMIFS('Nov Raw Data'!$BL:$BL,'Nov Raw Data'!$G:$G,'ASO View'!E9,'Nov Raw Data'!$BU:$BU,"Visuals",'Nov Raw Data'!$BS:$BS,"premium") -> 23 | DL9: =SUMIFS('Nov Raw Data'!$BL:$BL,'Nov Raw Data'!$G:$G,'ASO View'!$E9,'Nov Raw Data'!$BU:$BU,"consumer",'Nov Raw Data'!$BS:$BS,"Premium",'Nov Raw Data'!$CA:$CA,"SP",'Nov Raw Data'!$CC:$CC,"MTD") -> 11 | DM9: =SUMIFS('Nov Raw Data'!$BL:$BL,'Nov Raw Data'!$G:$G,'ASO View'!$E9,'Nov Raw Data'!$BU:$BU,"consumer",'Nov Raw Data'!$BS:$BS,"Premium",'Nov Raw Data'!$CA:$CA,"SP",'Nov Raw Data'!$CB:$CB,"Gaming",'Nov Raw Data'!$CC:$CC,"MTD") -> 5 | DN9: =SUMIFS('Nov Raw Data'!$BL:$BL,'Nov Raw Data'!$G:$G,'ASO View'!$E9,'Nov Raw Data'!$BU:$BU,"consumer",'Nov Raw Data'!$BS:$BS,"Premium",'Nov Raw Data'!$CA:$CA,"SP",'Nov Raw Data'!$CB:$CB,"Non-Gaming",'Nov Raw Data'!$CC:$CC,"MTD") -> 6 | DO9: =IFERROR(VLOOKUP($E9,'Nov Pivot'!$T:$U,2,0),0) -> 1 | DP9: =IFERROR(VLOOKUP($E9,'Nov Pivot'!$W:$X,2,0),0) -> 1 | DQ9: =IFERROR(VLOOKUP($E9,'Nov Pivot'!$Z:$AA,2,0),0) -> 0 | DS9: =IFERROR(VLOOKUP($E9,Kiran!A:C,3,0),0) -> 9
E10: V5468689 | F10: East 1 | G10: East1 | H10: West Bengal | I10: Krishna Nagar | J10: Soumen Das | K10: Ashique Ali | L10: Amit Thakuri | M10: Active | N10: 120 | O10: =SUMIFS('Dec Raw Data'!$BL:$BL,'Dec Raw Data'!$G:$G,'ASO View'!$E10,'Dec Raw Data'!$BX:$BX,"NB") -> 0 | P10: 0% | Q10: -100% | R10: 13 | S10: =SUMIFS('Dec Raw Data'!$BL:$BL,'Dec Raw Data'!$G:$G,'ASO View'!$E10,'Dec Raw Data'!$BX:$BX,"AIO") -> 0 | T10: 0% | U10: 0% | V10: 17 | W10: =SUMIFS('Dec Raw Data'!$BL:$BL,'Dec Raw Data'!$G:$G,'ASO View'!$E10,'Dec Raw Data'!$BX:$BX,"TDT") -> 0 | X10: 0% | Y10: 0% | Z10: 150 | AA10: =SUMIFS('Dec Raw Data'!$BL:$BL,'Dec Raw Data'!$G:$G,'ASO View'!$E10,'Dec Raw Data'!$BU:$BU,"Consumer") -> 0 | AB10: 0% | AC10: -100% | AD10: 23 | AE10: =SUMIFS('Dec Raw Data'!$BL:$BL,'Dec Raw Data'!$G:$G,'ASO View'!$E10,'Dec Raw Data'!$BX:$BX,"NB",'Dec Raw Data'!$BS:$BS,"premium") -> 0 | AF10: 0% | AG10: 30 | AH10: =SUMIFS('Dec Raw Data'!$BL:$BL,'Dec Raw Data'!$G:$G,'ASO View'!$E10,'Dec Raw Data'!$BU:$BU,"Consumer",'Dec Raw Data'!$BS:$BS,"premium") -> 0 | AI10: 0% | AJ10: -100% | AK10: 0.018 | AL10: =SUMIFS('Dec Raw Data'!$BY:$BY,'Dec Raw Data'!$BU:$BU,"Accessories",'Dec Raw Data'!$G:$G,'ASO View'!E10) -> 0.000 | AM10: 0% | AN10: 0% | AO10: 0 | AP10: =SUMIFS('Dec Raw Data'!$BL:$BL,'Dec Raw Data'!$G:$G,'ASO View'!$E10,'Dec Raw Data'!$BU:$BU,"Consumer",'Dec Raw Data'!$BS:$BS,"premium",'Dec Raw Data'!$BX:$BX,"NB",'Dec Raw Data'!$CA:$CA,"SP") -> 0 | AQ10: 0% | AR10: -100% | AS10: 20 | AT10: =SUMIFS('Dec Raw Data'!$BL:$BL,'Dec Raw Data'!$G:$G,'ASO View'!$E10,'Dec Raw Data'!$BU:$BU,"Consumer",'Dec Raw Data'!$BS:$BS,"premium",'Dec Raw Data'!$BX:$BX,"NB",'Dec Raw Data'!$CB:$CB,"Gaming") -> 0 | AU10: 0% | AV10: 0% | AW10: 10 | AX10: =SUMIFS('Dec Raw Data'!$BL:$BL,'Dec Raw Data'!$G:$G,'ASO View'!$E10,'Dec Raw Data'!$BU:$BU,"Consumer",'Dec Raw Data'!$BS:$BS,"premium",'Dec Raw Data'!$BX:$BX,"NB",'Dec Raw Data'!$CB:$CB,"Non-Gaming") -> 0 | AY10: 0% | AZ10: -100% | BA10: 125 | BB10: =SUMIFS('Dec Raw Data'!$BL:$BL,'Dec Raw Data'!$BU:$BU,"visuals",'Dec Raw Data'!$G:$G,'ASO View'!E10) -> 0 | BC10: 0% | BD10: 0% | BE10: 25 | BF10: =SUMIFS('Dec Raw Data'!$BL:$BL,'Dec Raw Data'!$BU:$BU,"visuals",'Dec Raw Data'!$G:$G,'ASO View'!E10,'Dec Raw Data'!$BS:$BS,"Premium") -> 0 | BG10: 0% | BH10: 0% | BI10: 15 | BJ10: - | BK10: 0% | BM10: 70 | BN10: =IFERROR(VLOOKUP($E10,'Dec Pivot'!$A:$F,6,0),0) -> 0 | BO10: 0% | BP10: -100% | BQ10: 28 | BR10: =IFERROR(VLOOKUP($E10,'Dec Pivot'!$A:$F,5,0),0) -> 0 | BS10: 0% | BT10: 0% | BU10: 10.4 | BV10: =IFERROR(VLOOKUP($E10,'Dec Pivot'!$AF:$AH,3,0),0) -> 0 | BW10: 0% | BX10: 0% | BY10: 6 | BZ10: =IFERROR(VLOOKUP($E10,'Dec Pivot'!$AI:$AK,3,0),0) -> 0 | CA10: 0% | CB10: 0% | CC10: 5 | CD10: =IFERROR(VLOOKUP($E10,'Dec Pivot'!$AL:$AN,3,0),0) -> 0 | CE10: 0% | CF10: 0% | CG10: 18.9 | CH10: =IFERROR(VLOOKUP($E10,'Dec Pivot'!$J:$O,4,0),0) -> 0 | CI10: 0% | CJ10: 0% | CK10: 12.6 | CL10: =IFERROR(VLOOKUP($E10,'Dec Pivot'!$J:$O,3,0),0) -> 0 | CM10: 0% | CO10: 30 | CP10: =IFERROR(VLOOKUP($E10,'Dec Pivot'!$X:$AA,4,0),0) -> 0 | CQ10: 0% | CR10: =IFERROR(CP10/DI10-1,0) -> 0% | CS10: 30 | CT10: =IFERROR(VLOOKUP(E10,'Dec Pivot'!$AB:$AD,3,0),0) -> 0 | CU10: 0% | CV10: 0% | CX10: =SUMIFS('Nov Raw Data'!$BL:$BL,'Nov Raw Data'!$G:$G,'ASO View'!E10,'Nov Raw Data'!$BX:$BX,"NB",'Nov Raw Data'!$CC:$CC,"MTD") -> 137 | CY10: =SUMIFS('Nov Raw Data'!$BL:$BL,'Nov Raw Data'!$G:$G,'ASO View'!E10,'Nov Raw Data'!$BX:$BX,"AIO",'Nov Raw Data'!$CC:$CC,"MTD") -> 0 | CZ10: =SUMIFS('Nov Raw Data'!$BL:$BL,'Nov Raw Data'!$G:$G,'ASO View'!E10,'Nov Raw Data'!$BX:$BX,"TDT",'Nov Raw Data'!$CC:$CC,"MTD") -> 0 | DA10: =SUMIFS('Nov Raw Data'!$BL:$BL,'Nov Raw Data'!$G:$G,'ASO View'!E10,'Nov Raw Data'!$BU:$BU,"consumer",'Nov Raw Data'!$CC:$CC,"MTD") -> 137 | DB10: =SUMIFS('Nov Raw Data'!$BL:$BL,'Nov Raw Data'!$G:$G,'ASO View'!$E10,'Nov Raw Data'!$BU:$BU,"consumer",'Nov Raw Data'!$BS:$BS,"Premium",'Nov Raw Data'!$CC:$CC,"MTD") -> 15 | DC10: =IFERROR(VLOOKUP(E10,'Nov Pivot'!$A:$F,5,0),0) -> 1 | DD10: =IFERROR(VLOOKUP(E10,'Nov Pivot'!$A:$F,4,0),0) -> 0 | DE10: =IFERROR(VLOOKUP($E10,'Nov Pivot'!$AD:$AF,2,0),0) -> 0 | DF10: =IFERROR(VLOOKUP($E10,'Nov Pivot'!$AD:$AF,3,0),0) -> 0 | DG10: =SUMIFS('Nov Raw Data'!$BY:$BY,'Nov Raw Data'!$BU:$BU,"Accessories",'Nov Raw Data'!$G:$G,'ASO View'!E10,'Nov Raw Data'!$CC:$CC,"MTD") -> 0.00 | DH10: =SUMIFS('Nov Raw Data'!$BL:$BL,'Nov Raw Data'!$G:$G,'ASO View'!E10,'Nov Raw Data'!$BU:$BU,"Visuals",'Nov Raw Data'!$CC:$CC,"MTD") -> 0 | DI10: =IFERROR(VLOOKUP(E10,'Nov Pivot'!$K:$P,2,0),0) -> 0 | DJ10: =IFERROR(VLOOKUP(E10,'Nov Pivot'!$K:$P,4,0),0) -> 0 | DK10: =SUMIFS('Nov Raw Data'!$BL:$BL,'Nov Raw Data'!$G:$G,'ASO View'!E10,'Nov Raw Data'!$BU:$BU,"Visuals",'Nov Raw Data'!$BS:$BS,"premium") -> 0 | DL10: =SUMIFS('Nov Raw Data'!$BL:$BL,'Nov Raw Data'!$G:$G,'ASO View'!$E10,'Nov Raw Data'!$BU:$BU,"consumer",'Nov Raw Data'!$BS:$BS,"Premium",'Nov Raw Data'!$CA:$CA,"SP",'Nov Raw Data'!$CC:$CC,"MTD") -> 3 | DM10: =SUMIFS('Nov Raw Data'!$BL:$BL,'Nov Raw Data'!$G:$G,'ASO View'!$E10,'Nov Raw Data'!$BU:$BU,"consumer",'Nov Raw Data'!$BS:$BS,"Premium",'Nov Raw Data'!$CA:$CA,"SP",'Nov Raw Data'!$CB:$CB,"Gaming",'Nov Raw Data'!$CC:$CC,"MTD") -> 0 | DN10: =SUMIFS('Nov Raw Data'!$BL:$BL,'Nov Raw Data'!$G:$G,'ASO View'!$E10,'Nov Raw Data'!$BU:$BU,"consumer",'Nov Raw Data'!$BS:$BS,"Premium",'Nov Raw Data'!$CA:$CA,"SP",'Nov Raw Data'!$CB:$CB,"Non-Gaming",'Nov Raw Data'!$CC:$CC,"MTD") -> 3 | DO10: =IFERROR(VLOOKUP($E10,'Nov Pivot'!$T:$U,2,0),0) -> 0 | DP10: =IFERROR(VLOOKUP($E10,'Nov Pivot'!$W:$X,2,0),0) -> 0 | DQ10: =IFERROR(VLOOKUP($E10,'Nov Pivot'!$Z:$AA,2,0),0) -> 0 | DS10: =IFERROR(VLOOKUP($E10,Kiran!A:C,3,0),0) -> 0
E11: V5426139 | F11: East 1 | G11: East1 | H11: Assam | I11: Guwahati | J11: Abinash Rabha | K11: Partha Chakraborty | L11: Amit Thakuri | M11: Active | N11: 120 | O11: =SUMIFS('Dec Raw Data'!$BL:$BL,'Dec Raw Data'!$G:$G,'ASO View'!$E11,'Dec Raw Data'!$BX:$BX,"NB") -> 0 | P11: 0% | Q11: -100% | R11: 13 | S11: =SUMIFS('Dec Raw Data'!$BL:$BL,'Dec Raw Data'!$G:$G,'ASO View'!$E11,'Dec Raw Data'!$BX:$BX,"AIO") -> 0 | T11: 0% | U11: -100% | V11: 17 | W11: =SUMIFS('Dec Raw Data'!$BL:$BL,'Dec Raw Data'!$G:$G,'ASO View'!$E11,'Dec Raw Data'!$BX:$BX,"TDT") -> 0 | X11: 0% | Y11: -100% | Z11: 150 | AA11: =SUMIFS('Dec Raw Data'!$BL:$BL,'Dec Raw Data'!$G:$G,'ASO View'!$E11,'Dec Raw Data'!$BU:$BU,"Consumer") -> 0 | AB11: 0% | AC11: -100% | AD11: 23 | AE11: =SUMIFS('Dec Raw Data'!$BL:$BL,'Dec Raw Data'!$G:$G,'ASO View'!$E11,'Dec Raw Data'!$BX:$BX,"NB",'Dec Raw Data'!$BS:$BS,"premium") -> 0 | AF11: 0% | AG11: 30 | AH11: =SUMIFS('Dec Raw Data'!$BL:$BL,'Dec Raw Data'!$G:$G,'ASO View'!$E11,'Dec Raw Data'!$BU:$BU,"Consumer",'Dec Raw Data'!$BS:$BS,"premium") -> 0 | AI11: 0% | AJ11: -100% | AK11: 0.016 | AL11: =SUMIFS('Dec Raw Data'!$BY:$BY,'Dec Raw Data'!$BU:$BU,"Accessories",'Dec Raw Data'!$G:$G,'ASO View'!E11) -> 0.000 | AM11: 0% | AN11: 0% | AO11: 0 | AP11: =SUMIFS('Dec Raw Data'!$BL:$BL,'Dec Raw Data'!$G:$G,'ASO View'!$E11,'Dec Raw Data'!$BU:$BU,"Consumer",'Dec Raw Data'!$BS:$BS,"premium",'Dec Raw Data'!$BX:$BX,"NB",'Dec Raw Data'!$CA:$CA,"SP") -> 0 | AQ11: 0% | AR11: -100% | AS11: 20 | AT11: =SUMIFS('Dec Raw Data'!$BL:$BL,'Dec Raw Data'!$G:$G,'ASO View'!$E11,'Dec Raw Data'!$BU:$BU,"Consumer",'Dec Raw Data'!$BS:$BS,"premium",'Dec Raw Data'!$BX:$BX,"NB",'Dec Raw Data'!$CB:$CB,"Gaming") -> 0 | AU11: 0% | AV11: 0% | AW11: 10 | AX11: =SUMIFS('Dec Raw Data'!$BL:$BL,'Dec Raw Data'!$G:$G,'ASO View'!$E11,'Dec Raw Data'!$BU:$BU,"Consumer",'Dec Raw Data'!$BS:$BS,"premium",'Dec Raw Data'!$BX:$BX,"NB",'Dec Raw Data'!$CB:$CB,"Non-Gaming") -> 0 | AY11: 0% | AZ11: -100% | BA11: 125 | BB11: =SUMIFS('Dec Raw Data'!$BL:$BL,'Dec Raw Data'!$BU:$BU,"visuals",'Dec Raw Data'!$G:$G,'ASO View'!E11) -> 0 | BC11: 0% | BD11: 0% | BE11: 25 | BF11: =SUMIFS('Dec Raw Data'!$BL:$BL,'Dec Raw Data'!$BU:$BU,"visuals",'Dec Raw Data'!$G:$G,'ASO View'!E11,'Dec Raw Data'!$BS:$BS,"Premium") -> 0 | BG11: 0% | BH11: 0% | BI11: 27 | BJ11: 19 | BK11: 70% | BM11: 50 | BN11: =IFERROR(VLOOKUP($E11,'Dec Pivot'!$A:$F,6,0),0) -> 0 | BO11: 0% | BP11: 0% | BQ11: 20 | BR11: =IFERROR(VLOOKUP($E11,'Dec Pivot'!$A:$F,5,0),0) -> 0 | BS11: 0% | BT11: 0% | BU11: 7.4 | BV11: =IFERROR(VLOOKUP($E11,'Dec Pivot'!$AF:$AH,3,0),0) -> 0 | BW11: 0% | BX11: 0% | BY11: 4 | BZ11: =IFERROR(VLOOKUP($E11,'Dec Pivot'!$AI:$AK,3,0),0) -> 0 | CA11: 0% | CB11: 0% | CC11: 3 | CD11: =IFERROR(VLOOKUP($E11,'Dec Pivot'!$AL:$AN,3,0),0) -> 0 | CE11: 0% | CF11: 0% | CG11: 13.5 | CH11: =IFERROR(VLOOKUP($E11,'Dec Pivot'!$J:$O,4,0),0) -> 0 | CI11: 0% | CJ11: 0% | CK11: 9 | CL11: =IFERROR(VLOOKUP($E11,'Dec Pivot'!$J:$O,3,0),0) -> 0 | CM11: 0% | CO11: 26 | CP11: =IFERROR(VLOOKUP($E11,'Dec Pivot'!$X:$AA,4,0),0) -> 0 | CQ11: 0% | CR11: 0% | CS11: 25 | CT11: =IFERROR(VLOOKUP(E11,'Dec Pivot'!$AB:$AD,3,0),0) -> 0 | CU11: 0% | CV11: 0% | CX11: =SUMIFS('Nov Raw Data'!$BL:$BL,'Nov Raw Data'!$G:$G,'ASO View'!E11,'Nov Raw Data'!$BX:$BX,"NB",'Nov Raw Data'!$CC:$CC,"MTD") -> 85 | CY11: =SUMIFS('Nov Raw Data'!$BL:$BL,'Nov Raw Data'!$G:$G,'ASO View'!E11,'Nov Raw Data'!$BX:$BX,"AIO",'Nov Raw Data'!$CC:$CC,"MTD") -> 53 | CZ11: =SUMIFS('Nov Raw Data'!$BL:$BL,'Nov Raw Data'!$G:$G,'ASO View'!E11,'Nov Raw Data'!$BX:$BX,"TDT",'Nov Raw Data'!$CC:$CC,"MTD") -> 15 | DA11: =SUMIFS('Nov Raw Data'!$BL:$BL,'Nov Raw Data'!$G:$G,'ASO View'!E11,'Nov Raw Data'!$BU:$BU,"consumer",'Nov Raw Data'!$CC:$CC,"MTD") -> 153 | DB11: =SUMIFS('Nov Raw Data'!$BL:$BL,'Nov Raw Data'!$G:$G,'ASO View'!$E11,'Nov Raw Data'!$BU:$BU,"consumer",'Nov Raw Data'!$BS:$BS,"Premium",'Nov Raw Data'!$CC:$CC,"MTD") -> 23 | DC11: =IFERROR(VLOOKUP(E11,'Nov Pivot'!$A:$F,5,0),0) -> 0 | DD11: =IFERROR(VLOOKUP(E11,'Nov Pivot'!$A:$F,4,0),0) -> 0 | DE11: =IFERROR(VLOOKUP($E11,'Nov Pivot'!$AD:$AF,2,0),0) -> 0 | DF11: =IFERROR(VLOOKUP($E11,'Nov Pivot'!$AD:$AF,3,0),0) -> 0 | DG11: =SUMIFS('Nov Raw Data'!$BY:$BY,'Nov Raw Data'!$BU:$BU,"Accessories",'Nov Raw Data'!$G:$G,'ASO View'!E11,'Nov Raw Data'!$CC:$CC,"MTD") -> 0.00 | DH11: =SUMIFS('Nov Raw Data'!$BL:$BL,'Nov Raw Data'!$G:$G,'ASO View'!E11,'Nov Raw Data'!$BU:$BU,"Visuals",'Nov Raw Data'!$CC:$CC,"MTD") -> 0 | DI11: =IFERROR(VLOOKUP(E11,'Nov Pivot'!$K:$P,2,0),0) -> 0 | DJ11: =IFERROR(VLOOKUP(E11,'Nov Pivot'!$K:$P,4,0),0) -> 0 | DK11: =SUMIFS('Nov Raw Data'!$BL:$BL,'Nov Raw Data'!$G:$G,'ASO View'!E11,'Nov Raw Data'!$BU:$BU,"Visuals",'Nov Raw Data'!$BS:$BS,"premium") -> 0 | DL11: =SUMIFS('Nov Raw Data'!$BL:$BL,'Nov Raw Data'!$G:$G,'ASO View'!$E11,'Nov Raw Data'!$BU:$BU,"consumer",'Nov Raw Data'!$BS:$BS,"Premium",'Nov Raw Data'!$CA:$CA,"SP",'Nov Raw Data'!$CC:$CC,"MTD") -> 4 | DM11: =SUMIFS('Nov Raw Data'!$BL:$BL,'Nov Raw Data'!$G:$G,'ASO View'!$E11,'Nov Raw Data'!$BU:$BU,"consumer",'Nov Raw Data'!$BS:$BS,"Premium",'Nov Raw Data'!$CA:$CA,"SP",'Nov Raw Data'!$CB:$CB,"Gaming",'Nov Raw Data'!$CC:$CC,"MTD") -> 0 | DN11: =SUMIFS('Nov Raw Data'!$BL:$BL,'Nov Raw Data'!$G:$G,'ASO View'!$E11,'Nov Raw Data'!$BU:$BU,"consumer",'Nov Raw Data'!$BS:$BS,"Premium",'Nov Raw Data'!$CA:$CA,"SP",'Nov Raw Data'!$CB:$CB,"Non-Gaming",'Nov Raw Data'!$CC:$CC,"MTD") -> 4 | DO11: =IFERROR(VLOOKUP($E11,'Nov Pivot'!$T:$U,2,0),0) -> 0 | DP11: =IFERROR(VLOOKUP($E11,'Nov Pivot'!$W:$X,2,0),0) -> 0 | DQ11: =IFERROR(VLOOKUP($E11,'Nov Pivot'!$Z:$AA,2,0),0) -> 0 | DS11: =IFERROR(VLOOKUP($E11,Kiran!A:C,3,0),0) -> 0
E12: V5266930 | F12: East 1 | G12: East1 | H12: Assam | I12: Agartala | J12: Titan Bhowmik | K12: Partha Chakraborty | L12: Amit Thakuri | M12: Active | N12: 120 | O12: =SUMIFS('Dec Raw Data'!$BL:$BL,'Dec Raw Data'!$G:$G,'ASO View'!$E12,'Dec Raw Data'!$BX:$BX,"NB") -> 0 | P12: 0% | Q12: -100% | R12: 13 | S12: =SUMIFS('Dec Raw Data'!$BL:$BL,'Dec Raw Data'!$G:$G,'ASO View'!$E12,'Dec Raw Data'!$BX:$BX,"AIO") -> 0 | T12: 0% | U12: -100% | V12: 17 | W12: =SUMIFS('Dec Raw Data'!$BL:$BL,'Dec Raw Data'!$G:$G,'ASO View'!$E12,'Dec Raw Data'!$BX:$BX,"TDT") -> 0 | X12: 0% | Y12: -100% | Z12: 150 | AA12: =SUMIFS('Dec Raw Data'!$BL:$BL,'Dec Raw Data'!$G:$G,'ASO View'!$E12,'Dec Raw Data'!$BU:$BU,"Consumer") -> 0 | AB12: 0% | AC12: -100% | AD12: 23 | AE12: =SUMIFS('Dec Raw Data'!$BL:$BL,'Dec Raw Data'!$G:$G,'ASO View'!$E12,'Dec Raw Data'!$BX:$BX,"NB",'Dec Raw Data'!$BS:$BS,"premium") -> 0 | AF12: 0% | AG12: 30 | AH12: =SUMIFS('Dec Raw Data'!$BL:$BL,'Dec Raw Data'!$G:$G,'ASO View'!$E12,'Dec Raw Data'!$BU:$BU,"Consumer",'Dec Raw Data'!$BS:$BS,"premium") -> 0 | AI12: 0% | AJ12: -100% | AK12: 0.017 | AL12: =SUMIFS('Dec Raw Data'!$BY:$BY,'Dec Raw Data'!$BU:$BU,"Accessories",'Dec Raw Data'!$G:$G,'ASO View'!E12) -> 0.000 | AM12: 0% | AN12: 0% | AO12: 0 | AP12: =SUMIFS('Dec Raw Data'!$BL:$BL,'Dec Raw Data'!$G:$G,'ASO View'!$E12,'Dec Raw Data'!$BU:$BU,"Consumer",'Dec Raw Data'!$BS:$BS,"premium",'Dec Raw Data'!$BX:$BX,"NB",'Dec Raw Data'!$CA:$CA,"SP") -> 0 | AQ12: 0% | AR12: -100% | AS12: 20 | AT12: =SUMIFS('Dec Raw Data'!$BL:$BL,'Dec Raw Data'!$G:$G,'ASO View'!$E12,'Dec Raw Data'!$BU:$BU,"Consumer",'Dec Raw Data'!$BS:$BS,"premium",'Dec Raw Data'!$BX:$BX,"NB",'Dec Raw Data'!$CB:$CB,"Gaming") -> 0 | AU12: 0% | AV12: 0% | AW12: 10 | AX12: =SUMIFS('Dec Raw Data'!$BL:$BL,'Dec Raw Data'!$G:$G,'ASO View'!$E12,'Dec Raw Data'!$BU:$BU,"Consumer",'Dec Raw Data'!$BS:$BS,"premium",'Dec Raw Data'!$BX:$BX,"NB",'Dec Raw Data'!$CB:$CB,"Non-Gaming") -> 0 | AY12: 0% | AZ12: -100% | BA12: 125 | BB12: =SUMIFS('Dec Raw Data'!$BL:$BL,'Dec Raw Data'!$BU:$BU,"visuals",'Dec Raw Data'!$G:$G,'ASO View'!E12) -> 0 | BC12: 0% | BD12: 0% | BE12: 25 | BF12: =SUMIFS('Dec Raw Data'!$BL:$BL,'Dec Raw Data'!$BU:$BU,"visuals",'Dec Raw Data'!$G:$G,'ASO View'!E12,'Dec Raw Data'!$BS:$BS,"Premium") -> 0 | BG12: 0% | BH12: 0% | BI12: 14 | BJ12: 12 | BK12: 86% | BM12: 45 | BN12: =IFERROR(VLOOKUP($E12,'Dec Pivot'!$A:$F,6,0),0) -> 0 | BO12: 0% | BP12: 0% | BQ12: 18 | BR12: =IFERROR(VLOOKUP($E12,'Dec Pivot'!$A:$F,5,0),0) -> 0 | BS12: 0% | BT12: 0% | BU12: 6.6 | BV12: =IFERROR(VLOOKUP($E12,'Dec Pivot'!$AF:$AH,3,0),0) -> 0 | BW12: 0% | BX12: 0% | BY12: 3 | BZ12: =IFERROR(VLOOKUP($E12,'Dec Pivot'!$AI:$AK,3,0),0) -> 0 | CA12: 0% | CB12: 0% | CC12: 3 | CD12: =IFERROR(VLOOKUP($E12,'Dec Pivot'!$AL:$AN,3,0),0) -> 0 | CE12: 0% | CF12: 0% | CG12: 12.15 | CH12: =IFERROR(VLOOKUP($E12,'Dec Pivot'!$J:$O,4,0),0) -> 0 | CI12: 0% | CJ12: 0% | CK12: 8.1 | CL12: =IFERROR(VLOOKUP($E12,'Dec Pivot'!$J:$O,3,0),0) -> 0 | CM12: 0% | CO12: 30 | CP12: =IFERROR(VLOOKUP($E12,'Dec Pivot'!$X:$AA,4,0),0) -> 0 | CQ12: 0% | CR12: 0% | CS12: 35 | CT12: =IFERROR(VLOOKUP(E12,'Dec Pivot'!$AB:$AD,3,0),0) -> 0 | CU12: 0% | CV12: 0% | CX12: =SUMIFS('Nov Raw Data'!$BL:$BL,'Nov Raw Data'!$G:$G,'ASO View'!E12,'Nov Raw Data'!$BX:$BX,"NB",'Nov Raw Data'!$CC:$CC,"MTD") -> 77 | CY12: =SUMIFS('Nov Raw Data'!$BL:$BL,'Nov Raw Data'!$G:$G,'ASO View'!E12,'Nov Raw Data'!$BX:$BX,"AIO",'Nov Raw Data'!$CC:$CC,"MTD") -> 17 | CZ12: =SUMIFS('Nov Raw Data'!$BL:$BL,'Nov Raw Data'!$G:$G,'ASO View'!E12,'Nov Raw Data'!$BX:$BX,"TDT",'Nov Raw Data'!$CC:$CC,"MTD") -> 12 | DA12: =SUMIFS('Nov Raw Data'!$BL:$BL,'Nov Raw Data'!$G:$G,'ASO View'!E12,'Nov Raw Data'!$BU:$BU,"consumer",'Nov Raw Data'!$CC:$CC,"MTD") -> 106 | DB12: =SUMIFS('Nov Raw Data'!$BL:$BL,'Nov Raw Data'!$G:$G,'ASO View'!$E12,'Nov Raw Data'!$BU:$BU,"consumer",'Nov Raw Data'!$BS:$BS,"Premium",'Nov Raw Data'!$CC:$CC,"MTD") -> 7 | DC12: =IFERROR(VLOOKUP(E12,'Nov Pivot'!$A:$F,5,0),0) -> 0 | DD12: =IFERROR(VLOOKUP(E12,'Nov Pivot'!$A:$F,4,0),0) -> 0 | DE12: =IFERROR(VLOOKUP($E12,'Nov Pivot'!$AD:$AF,2,0),0) -> 0 | DF12: =IFERROR(VLOOKUP($E12,'Nov Pivot'!$AD:$AF,3,0),0) -> 0 | DG12: =SUMIFS('Nov Raw Data'!$BY:$BY,'Nov Raw Data'!$BU:$BU,"Accessories",'Nov Raw Data'!$G:$G,'ASO View'!E12,'Nov Raw Data'!$CC:$CC,"MTD") -> 0.00 | DH12: =SUMIFS('Nov Raw Data'!$BL:$BL,'Nov Raw Data'!$G:$G,'ASO View'!E12,'Nov Raw Data'!$BU:$BU,"Visuals",'Nov Raw Data'!$CC:$CC,"MTD") -> 0 | DI12: =IFERROR(VLOOKUP(E12,'Nov Pivot'!$K:$P,2,0),0) -> 0 | DJ12: =IFERROR(VLOOKUP(E12,'Nov Pivot'!$K:$P,4,0),0) -> 0 | DK12: =SUMIFS('Nov Raw Data'!$BL:$BL,'Nov Raw Data'!$G:$G,'ASO View'!E12,'Nov Raw Data'!$BU:$BU,"Visuals",'Nov Raw Data'!$BS:$BS,"premium") -> 0 | DL12: =SUMIFS('Nov Raw Data'!$BL:$BL,'Nov Raw Data'!$G:$G,'ASO View'!$E12,'Nov Raw Data'!$BU:$BU,"consumer",'Nov Raw Data'!$BS:$BS,"Premium",'Nov Raw Data'!$CA:$CA,"SP",'Nov Raw Data'!$CC:$CC,"MTD") -> 2 | DM12: =SUMIFS('Nov Raw Data'!$BL:$BL,'Nov Raw Data'!$G:$G,'ASO View'!$E12,'Nov Raw Data'!$BU:$BU,"consumer",'Nov Raw Data'!$BS:$BS,"Premium",'Nov Raw Data'!$CA:$CA,"SP",'Nov Raw Data'!$CB:$CB,"Gaming",'Nov Raw Data'!$CC:$CC,"MTD") -> 0 | DN12: =SUMIFS('Nov Raw Data'!$BL:$BL,'Nov Raw Data'!$G:$G,'ASO View'!$E12,'Nov Raw Data'!$BU:$BU,"consumer",'Nov Raw Data'!$BS:$BS,"Premium",'Nov Raw Data'!$CA:$CA,"SP",'Nov Raw Data'!$CB:$CB,"Non-Gaming",'Nov Raw Data'!$CC:$CC,"MTD") -> 2 | DO12: =IFERROR(VLOOKUP($E12,'Nov Pivot'!$T:$U,2,0),0) -> 0 | DP12: =IFERROR(VLOOKUP($E12,'Nov Pivot'!$W:$X,2,0),0) -> 0 | DQ12: =IFERROR(VLOOKUP($E12,'Nov Pivot'!$Z:$AA,2,0),0) -> 0 | DS12: =IFERROR(VLOOKUP($E12,Kiran!A:C,3,0),0) -> 0
E13: V5354315 | F13: East 1 | G13: East1 | H13: Assam | I13: Jorhat | J13: Bhaskar Borah | K13: Partha Chakraborty | L13: Amit Thakuri | M13: Active | N13: 144 | O13: =SUMIFS('Dec Raw Data'!$BL:$BL,'Dec Raw Data'!$G:$G,'ASO View'!$E13,'Dec Raw Data'!$BX:$BX,"NB") -> 0 | P13: 0% | Q13: -100% | R13: 16 | S13: =SUMIFS('Dec Raw Data'!$BL:$BL,'Dec Raw Data'!$G:$G,'ASO View'!$E13,'Dec Raw Data'!$BX:$BX,"AIO") -> 0 | T13: 0% | U13: -100% | V13: 20 | W13: =SUMIFS('Dec Raw Data'!$BL:$BL,'Dec Raw Data'!$G:$G,'ASO View'!$E13,'Dec Raw Data'!$BX:$BX,"TDT") -> 0 | X13: 0% | Y13: -100% | Z13: 180 | AA13: =SUMIFS('Dec Raw Data'!$BL:$BL,'Dec Raw Data'!$G:$G,'ASO View'!$E13,'Dec Raw Data'!$BU:$BU,"Consumer") -> 0 | AB13: 0% | AC13: -100% | AD13: 27 | AE13: =SUMIFS('Dec Raw Data'!$BL:$BL,'Dec Raw Data'!$G:$G,'ASO View'!$E13,'Dec Raw Data'!$BX:$BX,"NB",'Dec Raw Data'!$BS:$BS,"premium") -> 0 | AF13: 0% | AG13: 36 | AH13: =SUMIFS('Dec Raw Data'!$BL:$BL,'Dec Raw Data'!$G:$G,'ASO View'!$E13,'Dec Raw Data'!$BU:$BU,"Consumer",'Dec Raw Data'!$BS:$BS,"premium") -> 0 | AI13: 0% | AJ13: -100% | AK13: 0.016 | AL13: =SUMIFS('Dec Raw Data'!$BY:$BY,'Dec Raw Data'!$BU:$BU,"Accessories",'Dec Raw Data'!$G:$G,'ASO View'!E13) -> 0.000 | AM13: 0% | AN13: 0% | AO13: 0 | AP13: =SUMIFS('Dec Raw Data'!$BL:$BL,'Dec Raw Data'!$G:$G,'ASO View'!$E13,'Dec Raw Data'!$BU:$BU,"Consumer",'Dec Raw Data'!$BS:$BS,"premium",'Dec Raw Data'!$BX:$BX,"NB",'Dec Raw Data'!$CA:$CA,"SP") -> 0 | AQ13: 0% | AR13: 0% | AS13: 23 | AT13: =SUMIFS('Dec Raw Data'!$BL:$BL,'Dec Raw Data'!$G:$G,'ASO View'!$E13,'Dec Raw Data'!$BU:$BU,"Consumer",'Dec Raw Data'!$BS:$BS,"premium",'Dec Raw Data'!$BX:$BX,"NB",'Dec Raw Data'!$CB:$CB,"Gaming") -> 0 | AU13: 0% | AV13: 0% | AW13: 13 | AX13: =SUMIFS('Dec Raw Data'!$BL:$BL,'Dec Raw Data'!$G:$G,'ASO View'!$E13,'Dec Raw Data'!$BU:$BU,"Consumer",'Dec Raw Data'!$BS:$BS,"premium",'Dec Raw Data'!$BX:$BX,"NB",'Dec Raw Data'!$CB:$CB,"Non-Gaming") -> 0 | AY13: 0% | AZ13: 0% | BA13: 125 | BB13: =SUMIFS('Dec Raw Data'!$BL:$BL,'Dec Raw Data'!$BU:$BU,"visuals",'Dec Raw Data'!$G:$G,'ASO View'!E13) -> 0 | BC13: 0% | BD13: 0% | BE13: 25 | BF13: =SUMIFS('Dec Raw Data'!$BL:$BL,'Dec Raw Data'!$BU:$BU,"visuals",'Dec Raw Data'!$G:$G,'ASO View'!E13,'Dec Raw Data'!$BS:$BS,"Premium") -> 0 | BG13: 0% | BH13: 0% | BI13: - | BJ13: - | BK13: 0% | BM13: 45 | BN13: =IFERROR(VLOOKUP($E13,'Dec Pivot'!$A:$F,6,0),0) -> 0 | BO13: 0% | BP13: -100% | BQ13: 18 | BR13: =IFERROR(VLOOKUP($E13,'Dec Pivot'!$A:$F,5,0),0) -> 0 | BS13: 0% | BT13: -100% | BU13: 6.6 | BV13: =IFERROR(VLOOKUP($E13,'Dec Pivot'!$AF:$AH,3,0),0) -> 0 | BW13: 0% | BX13: 0% | BY13: 3 | BZ13: =IFERROR(VLOOKUP($E13,'Dec Pivot'!$AI:$AK,3,0),0) -> 0 | CA13: 0% | CB13: 0% | CC13: 3 | CD13: =IFERROR(VLOOKUP($E13,'Dec Pivot'!$AL:$AN,3,0),0) -> 0 | CE13: 0% | CF13: 0% | CG13: 12.15 | CH13: =IFERROR(VLOOKUP($E13,'Dec Pivot'!$J:$O,4,0),0) -> 0 | CI13: 0% | CJ13: -100% | CK13: 8.1 | CL13: =IFERROR(VLOOKUP($E13,'Dec Pivot'!$J:$O,3,0),0) -> 0 | CM13: 0% | CO13: 30 | CP13: =IFERROR(VLOOKUP($E13,'Dec Pivot'!$X:$AA,4,0),0) -> 0 | CQ13: 0% | CR13: 0% | CS13: 40 | CT13: =IFERROR(VLOOKUP(E13,'Dec Pivot'!$AB:$AD,3,0),0) -> 0 | CU13: 0% | CV13: 0% | CX13: =SUMIFS('Nov Raw Data'!$BL:$BL,'Nov Raw Data'!$G:$G,'ASO View'!E13,'Nov Raw Data'!$BX:$BX,"NB",'Nov Raw Data'!$CC:$CC,"MTD") -> 82 | CY13: =SUMIFS('Nov Raw Data'!$BL:$BL,'Nov Raw Data'!$G:$G,'ASO View'!E13,'Nov Raw Data'!$BX:$BX,"AIO",'Nov Raw Data'!$CC:$CC,"MTD") -> 13 | CZ13: =SUMIFS('Nov Raw Data'!$BL:$BL,'Nov Raw Data'!$G:$G,'ASO View'!E13,'Nov Raw Data'!$BX:$BX,"TDT",'Nov Raw Data'!$CC:$CC,"MTD") -> 12 | DA13: =SUMIFS('Nov Raw Data'!$BL:$BL,'Nov Raw Data'!$G:$G,'ASO View'!E13,'Nov Raw Data'!$BU:$BU,"consumer",'Nov Raw Data'!$CC:$CC,"MTD") -> 107 | DB13: =SUMIFS('Nov Raw Data'!$BL:$BL,'Nov Raw Data'!$G:$G,'ASO View'!$E13,'Nov Raw Data'!$BU:$BU,"consumer",'Nov Raw Data'!$BS:$BS,"Premium",'Nov Raw Data'!$CC:$CC,"MTD") -> 12 | DC13: =IFERROR(VLOOKUP(E13,'Nov Pivot'!$A:$F,5,0),0) -> 1 | DD13: =IFERROR(VLOOKUP(E13,'Nov Pivot'!$A:$F,4,0),0) -> 1 | DE13: =IFERROR(VLOOKUP($E13,'Nov Pivot'!$AD:$AF,2,0),0) -> 1 | DF13: =IFERROR(VLOOKUP($E13,'Nov Pivot'!$AD:$AF,3,0),0) -> 2 | DG13: =SUMIFS('Nov Raw Data'!$BY:$BY,'Nov Raw Data'!$BU:$BU,"Accessories",'Nov Raw Data'!$G:$G,'ASO View'!E13,'Nov Raw Data'!$CC:$CC,"MTD") -> 0.00 | DH13: =SUMIFS('Nov Raw Data'!$BL:$BL,'Nov Raw Data'!$G:$G,'ASO View'!E13,'Nov Raw Data'!$BU:$BU,"Visuals",'Nov Raw Data'!$CC:$CC,"MTD") -> 0 | DI13: =IFERROR(VLOOKUP(E13,'Nov Pivot'!$K:$P,2,0),0) -> 0 | DJ13: =IFERROR(VLOOKUP(E13,'Nov Pivot'!$K:$P,4,0),0) -> 0 | DK13: =SUMIFS('Nov Raw Data'!$BL:$BL,'Nov Raw Data'!$G:$G,'ASO View'!E13,'Nov Raw Data'!$BU:$BU,"Visuals",'Nov Raw Data'!$BS:$BS,"premium") -> 0 | DL13: =SUMIFS('Nov Raw Data'!$BL:$BL,'Nov Raw Data'!$G:$G,'ASO View'!$E13,'Nov Raw Data'!$BU:$BU,"consumer",'Nov Raw Data'!$BS:$BS,"Premium",'Nov Raw Data'!$CA:$CA,"SP",'Nov Raw Data'!$CC:$CC,"MTD") -> 0 | DM13: =SUMIFS('Nov Raw Data'!$BL:$BL,'Nov Raw Data'!$G:$G,'ASO View'!$E13,'Nov Raw Data'!$BU:$BU,"consumer",'Nov Raw Data'!$BS:$BS,"Premium",'Nov Raw Data'!$CA:$CA,"SP",'Nov Raw Data'!$CB:$CB,"Gaming",'Nov Raw Data'!$CC:$CC,"MTD") -> 0 | DN13: =SUMIFS('Nov Raw Data'!$BL:$BL,'Nov Raw Data'!$G:$G,'ASO View'!$E13,'Nov Raw Data'!$BU:$BU,"consumer",'Nov Raw Data'!$BS:$BS,"Premium",'Nov Raw Data'!$CA:$CA,"SP",'Nov Raw Data'!$CB:$CB,"Non-Gaming",'Nov Raw Data'!$CC:$CC,"MTD") -> 0 | DO13: =IFERROR(VLOOKUP($E13,'Nov Pivot'!$T:$U,2,0),0) -> 0 | DP13: =IFERROR(VLOOKUP($E13,'Nov Pivot'!$W:$X,2,0),0) -> 0 | DQ13: =IFERROR(VLOOKUP($E13,'Nov Pivot'!$Z:$AA,2,0),0) -> 0 | DS13: =IFERROR(VLOOKUP($E13,Kiran!A:C,3,0),0) -> 0
E14: V5424243 | F14: East 1 | G14: East1 | H14: Assam | I14: Guwahati | J14: Manoj Baishya | K14: Partha Chakraborty | L14: Amit Thakuri | M14: Active | N14: 120 | O14: =SUMIFS('Dec Raw Data'!$BL:$BL,'Dec Raw Data'!$G:$G,'ASO View'!$E14,'Dec Raw Data'!$BX:$BX,"NB") -> 9 | P14: 8% | Q14: -93% | R14: 13 | S14: =SUMIFS('Dec Raw Data'!$BL:$BL,'Dec Raw Data'!$G:$G,'ASO View'!$E14,'Dec Raw Data'!$BX:$BX,"AIO") -> 0 | T14: 0% | U14: -100% | V14: 17 | W14: =SUMIFS('Dec Raw Data'!$BL:$BL,'Dec Raw Data'!$G:$G,'ASO View'!$E14,'Dec Raw Data'!$BX:$BX,"TDT") -> 0 | X14: 0% | Y14: -100% | Z14: 150 | AA14: =SUMIFS('Dec Raw Data'!$BL:$BL,'Dec Raw Data'!$G:$G,'ASO View'!$E14,'Dec Raw Data'!$BU:$BU,"Consumer") -> 9 | AB14: 6% | AC14: -94% | AD14: 23 | AE14: =SUMIFS('Dec Raw Data'!$BL:$BL,'Dec Raw Data'!$G:$G,'ASO View'!$E14,'Dec Raw Data'!$BX:$BX,"NB",'Dec Raw Data'!$BS:$BS,"premium") -> 1 | AF14: 4% | AG14: 30 | AH14: =SUMIFS('Dec Raw Data'!$BL:$BL,'Dec Raw Data'!$G:$G,'ASO View'!$E14,'Dec Raw Data'!$BU:$BU,"Consumer",'Dec Raw Data'!$BS:$BS,"premium") -> 1 | AI14: 3% | AJ14: -97% | AK14: 0.016 | AL14: =SUMIFS('Dec Raw Data'!$BY:$BY,'Dec Raw Data'!$BU:$BU,"Accessories",'Dec Raw Data'!$G:$G,'ASO View'!E14) -> 0.000 | AM14: 0% | AN14: 0% | AO14: 0 | AP14: =SUMIFS('Dec Raw Data'!$BL:$BL,'Dec Raw Data'!$G:$G,'ASO View'!$E14,'Dec Raw Data'!$BU:$BU,"Consumer",'Dec Raw Data'!$BS:$BS,"premium",'Dec Raw Data'!$BX:$BX,"NB",'Dec Raw Data'!$CA:$CA,"SP") -> 1 | AQ14: 0% | AR14: 0% | AS14: 20 | AT14: =SUMIFS('Dec Raw Data'!$BL:$BL,'Dec Raw Data'!$G:$G,'ASO View'!$E14,'Dec Raw Data'!$BU:$BU,"Consumer",'Dec Raw Data'!$BS:$BS,"premium",'Dec Raw Data'!$BX:$BX,"NB",'Dec Raw Data'!$CB:$CB,"Gaming") -> 1 | AU14: 5% | AV14: 0% | AW14: 10 | AX14: =SUMIFS('Dec Raw Data'!$BL:$BL,'Dec Raw Data'!$G:$G,'ASO View'!$E14,'Dec Raw Data'!$BU:$BU,"Consumer",'Dec Raw Data'!$BS:$BS,"premium",'Dec Raw Data'!$BX:$BX,"NB",'Dec Raw Data'!$CB:$CB,"Non-Gaming") -> 0 | AY14: 0% | AZ14: -100% | BA14: 125 | BB14: =SUMIFS('Dec Raw Data'!$BL:$BL,'Dec Raw Data'!$BU:$BU,"visuals",'Dec Raw Data'!$G:$G,'ASO View'!E14) -> 0 | BC14: 0% | BD14: 0% | BE14: 25 | BF14: =SUMIFS('Dec Raw Data'!$BL:$BL,'Dec Raw Data'!$BU:$BU,"visuals",'Dec Raw Data'!$G:$G,'ASO View'!E14,'Dec Raw Data'!$BS:$BS,"Premium") -> 0 | BG14: 0% | BH14: 0% | BI14: 27 | BJ14: 52 | BK14: 193% | BM14: 40 | BN14: =IFERROR(VLOOKUP($E14,'Dec Pivot'!$A:$F,6,0),0) -> 3 | BO14: 8% | BP14: 0% | BQ14: 16 | BR14: =IFERROR(VLOOKUP($E14,'Dec Pivot'!$A:$F,5,0),0) -> 1 | BS14: 6% | BT14: 0% | BU14: 6 | BV14: =IFERROR(VLOOKUP($E14,'Dec Pivot'!$AF:$AH,3,0),0) -> 1 | BW14: 17% | BX14: 0% | BY14: 3 | BZ14: =IFERROR(VLOOKUP($E14,'Dec Pivot'!$AI:$AK,3,0),0) -> 1 | CA14: 33% | CB14: 0% | CC14: 3 | CD14: =IFERROR(VLOOKUP($E14,'Dec Pivot'!$AL:$AN,3,0),0) -> 1 | CE14: 33% | CF14: 0% | CG14: 10.8 | CH14: =IFERROR(VLOOKUP($E14,'Dec Pivot'!$J:$O,4,0),0) -> 0 | CI14: 0% | CJ14: 0% | CK14: 7.2 | CL14: =IFERROR(VLOOKUP($E14,'Dec Pivot'!$J:$O,3,0),0) -> 0 | CM14: 0% | CO14: 23 | CP14: =IFERROR(VLOOKUP($E14,'Dec Pivot'!$X:$AA,4,0),0) -> 0 | CQ14: 0% | CR14: 0% | CS14: 25 | CT14: =IFERROR(VLOOKUP(E14,'Dec Pivot'!$AB:$AD,3,0),0) -> 0 | CU14: 0% | CV14: 0% | CX14: =SUMIFS('Nov Raw Data'!$BL:$BL,'Nov Raw Data'!$G:$G,'ASO View'!E14,'Nov Raw Data'!$BX:$BX,"NB",'Nov Raw Data'!$CC:$CC,"MTD") -> 124 | CY14: =SUMIFS('Nov Raw Data'!$BL:$BL,'Nov Raw Data'!$G:$G,'ASO View'!E14,'Nov Raw Data'!$BX:$BX,"AIO",'Nov Raw Data'!$CC:$CC,"MTD") -> 13 | CZ14: =SUMIFS('Nov Raw Data'!$BL:$BL,'Nov Raw Data'!$G:$G,'ASO View'!E14,'Nov Raw Data'!$BX:$BX,"TDT",'Nov Raw Data'!$CC:$CC,"MTD") -> 22 | DA14: =SUMIFS('Nov Raw Data'!$BL:$BL,'Nov Raw Data'!$G:$G,'ASO View'!E14,'Nov Raw Data'!$BU:$BU,"consumer",'Nov Raw Data'!$CC:$CC,"MTD") -> 159 | DB14: =SUMIFS('Nov Raw Data'!$BL:$BL,'Nov Raw Data'!$G:$G,'ASO View'!$E14,'Nov Raw Data'!$BU:$BU,"consumer",'Nov Raw Data'!$BS:$BS,"Premium",'Nov Raw Data'!$CC:$CC,"MTD") -> 34 | DC14: =IFERROR(VLOOKUP(E14,'Nov Pivot'!$A:$F,5,0),0) -> 0 | DD14: =IFERROR(VLOOKUP(E14,'Nov Pivot'!$A:$F,4,0),0) -> 0 | DE14: =IFERROR(VLOOKUP($E14,'Nov Pivot'!$AD:$AF,2,0),0) -> 0 | DF14: =IFERROR(VLOOKUP($E14,'Nov Pivot'!$AD:$AF,3,0),0) -> 0 | DG14: =SUMIFS('Nov Raw Data'!$BY:$BY,'Nov Raw Data'!$BU:$BU,"Accessories",'Nov Raw Data'!$G:$G,'ASO View'!E14,'Nov Raw Data'!$CC:$CC,"MTD") -> 0.00 | DH14: =SUMIFS('Nov Raw Data'!$BL:$BL,'Nov Raw Data'!$G:$G,'ASO View'!E14,'Nov Raw Data'!$BU:$BU,"Visuals",'Nov Raw Data'!$CC:$CC,"MTD") -> 0 | DI14: =IFERROR(VLOOKUP(E14,'Nov Pivot'!$K:$P,2,0),0) -> 0 | DJ14: =IFERROR(VLOOKUP(E14,'Nov Pivot'!$K:$P,4,0),0) -> 0 | DK14: =SUMIFS('Nov Raw Data'!$BL:$BL,'Nov Raw Data'!$G:$G,'ASO View'!E14,'Nov Raw Data'!$BU:$BU,"Visuals",'Nov Raw Data'!$BS:$BS,"premium") -> 0 | DL14: =SUMIFS('Nov Raw Data'!$BL:$BL,'Nov Raw Data'!$G:$G,'ASO View'!$E14,'Nov Raw Data'!$BU:$BU,"consumer",'Nov Raw Data'!$BS:$BS,"Premium",'Nov Raw Data'!$CA:$CA,"SP",'Nov Raw Data'!$CC:$CC,"MTD") -> 1 | DM14: =SUMIFS('Nov Raw Data'!$BL:$BL,'Nov Raw Data'!$G:$G,'ASO View'!$E14,'Nov Raw Data'!$BU:$BU,"consumer",'Nov Raw Data'!$BS:$BS,"Premium",'Nov Raw Data'!$CA:$CA,"SP",'Nov Raw Data'!$CB:$CB,"Gaming",'Nov Raw Data'!$CC:$CC,"MTD") -> 0 | DN14: =SUMIFS('Nov Raw Data'!$BL:$BL,'Nov Raw Data'!$G:$G,'ASO View'!$E14,'Nov Raw Data'!$BU:$BU,"consumer",'Nov Raw Data'!$BS:$BS,"Premium",'Nov Raw Data'!$CA:$CA,"SP",'Nov Raw Data'!$CB:$CB,"Non-Gaming",'Nov Raw Data'!$CC:$CC,"MTD") -> 1 | DO14: =IFERROR(VLOOKUP($E14,'Nov Pivot'!$T:$U,2,0),0) -> 0 | DP14: =IFERROR(VLOOKUP($E14,'Nov Pivot'!$W:$X,2,0),0) -> 0 | DQ14: =IFERROR(VLOOKUP($E14,'Nov Pivot'!$Z:$AA,2,0),0) -> 0 | DS14: =IFERROR(VLOOKUP($E14,Kiran!A:C,3,0),0) -> 1
E15: V5266867 | F15: East 1 | G15: East1 | H15: Assam | I15: Guwahati | J15: Sukanta Sinha | K15: Partha Chakraborty | L15: Amit Thakuri | M15: Active | N15: 160 | O15: =SUMIFS('Dec Raw Data'!$BL:$BL,'Dec Raw Data'!$G:$G,'ASO View'!$E15,'Dec Raw Data'!$BX:$BX,"NB") -> 21 | P15: 13% | Q15: -73% | R15: 18 | S15: =SUMIFS('Dec Raw Data'!$BL:$BL,'Dec Raw Data'!$G:$G,'ASO View'!$E15,'Dec Raw Data'!$BX:$BX,"AIO") -> 3 | T15: 17% | U15: -92% | V15: 22 | W15: =SUMIFS('Dec Raw Data'!$BL:$BL,'Dec Raw Data'!$G:$G,'ASO View'!$E15,'Dec Raw Data'!$BX:$BX,"TDT") -> 2 | X15: 9% | Y15: -95% | Z15: 200 | AA15: =SUMIFS('Dec Raw Data'!$BL:$BL,'Dec Raw Data'!$G:$G,'ASO View'!$E15,'Dec Raw Data'!$BU:$BU,"Consumer") -> 26 | AB15: 13% | AC15: -83% | AD15: 30 | AE15: =SUMIFS('Dec Raw Data'!$BL:$BL,'Dec Raw Data'!$G:$G,'ASO View'!$E15,'Dec Raw Data'!$BX:$BX,"NB",'Dec Raw Data'!$BS:$BS,"premium") -> 7 | AF15: 23% | AG15: 40 | AH15: =SUMIFS('Dec Raw Data'!$BL:$BL,'Dec Raw Data'!$G:$G,'ASO View'!$E15,'Dec Raw Data'!$BU:$BU,"Consumer",'Dec Raw Data'!$BS:$BS,"premium") -> 7 | AI15: 18% | AJ15: -78% | AK15: 0.018 | AL15: =SUMIFS('Dec Raw Data'!$BY:$BY,'Dec Raw Data'!$BU:$BU,"Accessories",'Dec Raw Data'!$G:$G,'ASO View'!E15) -> 0.000 | AM15: 0% | AN15: -100% | AO15: 0 | AP15: =SUMIFS('Dec Raw Data'!$BL:$BL,'Dec Raw Data'!$G:$G,'ASO View'!$E15,'Dec Raw Data'!$BU:$BU,"Consumer",'Dec Raw Data'!$BS:$BS,"premium",'Dec Raw Data'!$BX:$BX,"NB",'Dec Raw Data'!$CA:$CA,"SP") -> 1 | AQ15: 0% | AR15: -50% | AS15: 26 | AT15: =SUMIFS('Dec Raw Data'!$BL:$BL,'Dec Raw Data'!$G:$G,'ASO View'!$E15,'Dec Raw Data'!$BU:$BU,"Consumer",'Dec Raw Data'!$BS:$BS,"premium",'Dec Raw Data'!$BX:$BX,"NB",'Dec Raw Data'!$CB:$CB,"Gaming") -> 0 | AU15: 0% | AV15: -100% | AW15: 14 | AX15: =SUMIFS('Dec Raw Data'!$BL:$BL,'Dec Raw Data'!$G:$G,'ASO View'!$E15,'Dec Raw Data'!$BU:$BU,"Consumer",'Dec Raw Data'!$BS:$BS,"premium",'Dec Raw Data'!$BX:$BX,"NB",'Dec Raw Data'!$CB:$CB,"Non-Gaming") -> 1 | AY15: 7% | AZ15: 0% | BA15: 125 | BB15: =SUMIFS('Dec Raw Data'!$BL:$BL,'Dec Raw Data'!$BU:$BU,"visuals",'Dec Raw Data'!$G:$G,'ASO View'!E15) -> 19 | BC15: 15% | BD15: -67% | BE15: 25 | BF15: =SUMIFS('Dec Raw Data'!$BL:$BL,'Dec Raw Data'!$BU:$BU,"visuals",'Dec Raw Data'!$G:$G,'ASO View'!E15,'Dec Raw Data'!$BS:$BS,"Premium") -> 2 | BG15: 8% | BH15: -75% | BI15: 50 | BJ15: 58 | BK15: 116% | BM15: 80 | BN15: =IFERROR(VLOOKUP($E15,'Dec Pivot'!$A:$F,6,0),0) -> 9 | BO15: 11% | BP15: 50% | BQ15: 32 | BR15: =IFERROR(VLOOKUP($E15,'Dec Pivot'!$A:$F,5,0),0) -> 6 | BS15: 19% | BT15: 100% | BU15: 11.8 | BV15: =IFERROR(VLOOKUP($E15,'Dec Pivot'!$AF:$AH,3,0),0) -> 6 | BW15: 51% | BX15: 500% | BY15: 6 | BZ15: =IFERROR(VLOOKUP($E15,'Dec Pivot'!$AI:$AK,3,0),0) -> 6 | CA15: 100% | CB15: 500% | CC15: 6 | CD15: =IFERROR(VLOOKUP($E15,'Dec Pivot'!$AL:$AN,3,0),0) -> 6 | CE15: 100% | CF15: 0% | CG15: 21.6 | CH15: =IFERROR(VLOOKUP($E15,'Dec Pivot'!$J:$O,4,0),0) -> 1 | CI15: 5% | CJ15: 0% | CK15: 14.4 | CL15: =IFERROR(VLOOKUP($E15,'Dec Pivot'!$J:$O,3,0),0) -> 1 | CM15: 7% | CO15: 35 | CP15: =IFERROR(VLOOKUP($E15,'Dec Pivot'!$X:$AA,4,0),0) -> 0 | CQ15: 0% | CR15: -100% | CS15: 30 | CT15: =IFERROR(VLOOKUP(E15,'Dec Pivot'!$AB:$AD,3,0),0) -> 14 | CU15: 47% | CV15: 0% | CX15: =SUMIFS('Nov Raw Data'!$BL:$BL,'Nov Raw Data'!$G:$G,'ASO View'!E15,'Nov Raw Data'!$BX:$BX,"NB",'Nov Raw Data'!$CC:$CC,"MTD") -> 77 | CY15: =SUMIFS('Nov Raw Data'!$BL:$BL,'Nov Raw Data'!$G:$G,'ASO View'!E15,'Nov Raw Data'!$BX:$BX,"AIO",'Nov Raw Data'!$CC:$CC,"MTD") -> 37 | CZ15: =SUMIFS('Nov Raw Data'!$BL:$BL,'Nov Raw Data'!$G:$G,'ASO View'!E15,'Nov Raw Data'!$BX:$BX,"TDT",'Nov Raw Data'!$CC:$CC,"MTD") -> 38 | DA15: =SUMIFS('Nov Raw Data'!$BL:$BL,'Nov Raw Data'!$G:$G,'ASO View'!E15,'Nov Raw Data'!$BU:$BU,"consumer",'Nov Raw Data'!$CC:$CC,"MTD") -> 152 | DB15: =SUMIFS('Nov Raw Data'!$BL:$BL,'Nov Raw Data'!$G:$G,'ASO View'!$E15,'Nov Raw Data'!$BU:$BU,"consumer",'Nov Raw Data'!$BS:$BS,"Premium",'Nov Raw Data'!$CC:$CC,"MTD") -> 32 | DC15: =IFERROR(VLOOKUP(E15,'Nov Pivot'!$A:$F,5,0),0) -> 6 | DD15: =IFERROR(VLOOKUP(E15,'Nov Pivot'!$A:$F,4,0),0) -> 3 | DE15: =IFERROR(VLOOKUP($E15,'Nov Pivot'!$AD:$AF,2,0),0) -> 3 | DF15: =IFERROR(VLOOKUP($E15,'Nov Pivot'!$AD:$AF,3,0),0) -> 0 | DG15: =SUMIFS('Nov Raw Data'!$BY:$BY,'Nov Raw Data'!$BU:$BU,"Accessories",'Nov Raw Data'!$G:$G,'ASO View'!E15,'Nov Raw Data'!$CC:$CC,"MTD") -> 0.03 | DH15: =SUMIFS('Nov Raw Data'!$BL:$BL,'Nov Raw Data'!$G:$G,'ASO View'!E15,'Nov Raw Data'!$BU:$BU,"Visuals",'Nov Raw Data'!$CC:$CC,"MTD") -> 57 | DI15: =IFERROR(VLOOKUP(E15,'Nov Pivot'!$K:$P,2,0),0) -> 2 | DJ15: =IFERROR(VLOOKUP(E15,'Nov Pivot'!$K:$P,4,0),0) -> 0 | DK15: =SUMIFS('Nov Raw Data'!$BL:$BL,'Nov Raw Data'!$G:$G,'ASO View'!E15,'Nov Raw Data'!$BU:$BU,"Visuals",'Nov Raw Data'!$BS:$BS,"premium") -> 8 | DL15: =SUMIFS('Nov Raw Data'!$BL:$BL,'Nov Raw Data'!$G:$G,'ASO View'!$E15,'Nov Raw Data'!$BU:$BU,"consumer",'Nov Raw Data'!$BS:$BS,"Premium",'Nov Raw Data'!$CA:$CA,"SP",'Nov Raw Data'!$CC:$CC,"MTD") -> 2 | DM15: =SUMIFS('Nov Raw Data'!$BL:$BL,'Nov Raw Data'!$G:$G,'ASO View'!$E15,'Nov Raw Data'!$BU:$BU,"consumer",'Nov Raw Data'!$BS:$BS,"Premium",'Nov Raw Data'!$CA:$CA,"SP",'Nov Raw Data'!$CB:$CB,"Gaming",'Nov Raw Data'!$CC:$CC,"MTD") -> 2 | DN15: =SUMIFS('Nov Raw Data'!$BL:$BL,'Nov Raw Data'!$G:$G,'ASO View'!$E15,'Nov Raw Data'!$BU:$BU,"consumer",'Nov Raw Data'!$BS:$BS,"Premium",'Nov Raw Data'!$CA:$CA,"SP",'Nov Raw Data'!$CB:$CB,"Non-Gaming",'Nov Raw Data'!$CC:$CC,"MTD") -> 0 | DO15: =IFERROR(VLOOKUP($E15,'Nov Pivot'!$T:$U,2,0),0) -> 1 | DP15: =IFERROR(VLOOKUP($E15,'Nov Pivot'!$W:$X,2,0),0) -> 1 | DQ15: =IFERROR(VLOOKUP($E15,'Nov Pivot'!$Z:$AA,2,0),0) -> 0 | DS15: =IFERROR(VLOOKUP($E15,Kiran!A:C,3,0),0) -> 1
E16: V5474197 | F16: East 1 | G16: East1 | H16: West Bengal | I16: Kolkata | J16: Bijoy Sardar | K16: Kapil Tiwari | L16: Amit Thakuri | M16: Vacant | N16: 304 | O16: =SUMIFS('Dec Raw Data'!$BL:$BL,'Dec Raw Data'!$G:$G,'ASO View'!$E16,'Dec Raw Data'!$BX:$BX,"NB") -> 0 | P16: 0% | Q16: -100% | R16: 33 | S16: =SUMIFS('Dec Raw Data'!$BL:$BL,'Dec Raw Data'!$G:$G,'ASO View'!$E16,'Dec Raw Data'!$BX:$BX,"AIO") -> 0 | T16: 0% | U16: -100% | V16: 43 | W16: =SUMIFS('Dec Raw Data'!$BL:$BL,'Dec Raw Data'!$G:$G,'ASO View'!$E16,'Dec Raw Data'!$BX:$BX,"TDT") -> 0 | X16: 0% | Y16: -100% | Z16: 380 | AA16: =SUMIFS('Dec Raw Data'!$BL:$BL,'Dec Raw Data'!$G:$G,'ASO View'!$E16,'Dec Raw Data'!$BU:$BU,"Consumer") -> 0 | AB16: 0% | AC16: -100% | AD16: 58 | AE16: =SUMIFS('Dec Raw Data'!$BL:$BL,'Dec Raw Data'!$G:$G,'ASO View'!$E16,'Dec Raw Data'!$BX:$BX,"NB",'Dec Raw Data'!$BS:$BS,"premium") -> 0 | AF16: 0% | AG16: 76 | AH16: =SUMIFS('Dec Raw Data'!$BL:$BL,'Dec Raw Data'!$G:$G,'ASO View'!$E16,'Dec Raw Data'!$BU:$BU,"Consumer",'Dec Raw Data'!$BS:$BS,"premium") -> 0 | AI16: 0% | AJ16: -100% | AK16: 0.02 | AL16: =SUMIFS('Dec Raw Data'!$BY:$BY,'Dec Raw Data'!$BU:$BU,"Accessories",'Dec Raw Data'!$G:$G,'ASO View'!E16) -> 0.000 | AM16: 0% | AN16: 0% | AO16: 0 | AP16: =SUMIFS('Dec Raw Data'!$BL:$BL,'Dec Raw Data'!$G:$G,'ASO View'!$E16,'Dec Raw Data'!$BU:$BU,"Consumer",'Dec Raw Data'!$BS:$BS,"premium",'Dec Raw Data'!$BX:$BX,"NB",'Dec Raw Data'!$CA:$CA,"SP") -> 0 | AQ16: 0% | AR16: -100% | AS16: 49 | AT16: =SUMIFS('Dec Raw Data'!$BL:$BL,'Dec Raw Data'!$G:$G,'ASO View'!$E16,'Dec Raw Data'!$BU:$BU,"Consumer",'Dec Raw Data'!$BS:$BS,"premium",'Dec Raw Data'!$BX:$BX,"NB",'Dec Raw Data'!$CB:$CB,"Gaming") -> 0 | AU16: 0% | AV16: -100% | AW16: 27 | AX16: =SUMIFS('Dec Raw Data'!$BL:$BL,'Dec Raw Data'!$G:$G,'ASO View'!$E16,'Dec Raw Data'!$BU:$BU,"Consumer",'Dec Raw Data'!$BS:$BS,"premium",'Dec Raw Data'!$BX:$BX,"NB",'Dec Raw Data'!$CB:$CB,"Non-Gaming") -> 0 | AY16: 0% | AZ16: -100% | BA16: 125 | BB16: =SUMIFS('Dec Raw Data'!$BL:$BL,'Dec Raw Data'!$BU:$BU,"visuals",'Dec Raw Data'!$G:$G,'ASO View'!E16) -> 0 | BC16: 0% | BD16: 0% | BE16: 25 | BF16: =SUMIFS('Dec Raw Data'!$BL:$BL,'Dec Raw Data'!$BU:$BU,"visuals",'Dec Raw Data'!$G:$G,'ASO View'!E16,'Dec Raw Data'!$BS:$BS,"Premium") -> 0 | BG16: 0% | BH16: 0% | BI16: 40 | BJ16: 90 | BK16: 225% | BM16: 120 | BN16: =IFERROR(VLOOKUP($E16,'Dec Pivot'!$A:$F,6,0),0) -> 0 | BO16: 0% | BP16: 0% | BQ16: 48 | BR16: =IFERROR(VLOOKUP($E16,'Dec Pivot'!$A:$F,5,0),0) -> 0 | BS16: 0% | BT16: 0% | BU16: 17.8 | BV16: =IFERROR(VLOOKUP($E16,'Dec Pivot'!$AF:$AH,3,0),0) -> 0 | BW16: 0% | BX16: 0% | BY16: 9 | BZ16: =IFERROR(VLOOKUP($E16,'Dec Pivot'!$AI:$AK,3,0),0) -> 0 | CA16: 0% | CB16: 0% | CC16: 8 | CD16: =IFERROR(VLOOKUP($E16,'Dec Pivot'!$AL:$AN,3,0),0) -> 0 | CE16: 0% | CF16: 0% | CG16: 32.4 | CH16: =IFERROR(VLOOKUP($E16,'Dec Pivot'!$J:$O,4,0),0) -> 0 | CI16: 0% | CJ16: 0% | CK16: 21.6 | CL16: =IFERROR(VLOOKUP($E16,'Dec Pivot'!$J:$O,3,0),0) -> 0 | CM16: 0% | CO16: 35 | CP16: =IFERROR(VLOOKUP($E16,'Dec Pivot'!$X:$AA,4,0),0) -> 0 | CQ16: 0% | CR16: 0% | CS16: 15 | CT16: =IFERROR(VLOOKUP(E16,'Dec Pivot'!$AB:$AD,3,0),0) -> 0 | CU16: 0% | CV16: 0% | CX16: =SUMIFS('Nov Raw Data'!$BL:$BL,'Nov Raw Data'!$G:$G,'ASO View'!E16,'Nov Raw Data'!$BX:$BX,"NB",'Nov Raw Data'!$CC:$CC,"MTD") -> 115 | CY16: =SUMIFS('Nov Raw Data'!$BL:$BL,'Nov Raw Data'!$G:$G,'ASO View'!E16,'Nov Raw Data'!$BX:$BX,"AIO",'Nov Raw Data'!$CC:$CC,"MTD") -> 22 | CZ16: =SUMIFS('Nov Raw Data'!$BL:$BL,'Nov Raw Data'!$G:$G,'ASO View'!E16,'Nov Raw Data'!$BX:$BX,"TDT",'Nov Raw Data'!$CC:$CC,"MTD") -> 138 | DA16: =SUMIFS('Nov Raw Data'!$BL:$BL,'Nov Raw Data'!$G:$G,'ASO View'!E16,'Nov Raw Data'!$BU:$BU,"consumer",'Nov Raw Data'!$CC:$CC,"MTD") -> 275 | DB16: =SUMIFS('Nov Raw Data'!$BL:$BL,'Nov Raw Data'!$G:$G,'ASO View'!$E16,'Nov Raw Data'!$BU:$BU,"consumer",'Nov Raw Data'!$BS:$BS,"Premium",'Nov Raw Data'!$CC:$CC,"MTD") -> 37 | DC16: =IFERROR(VLOOKUP(E16,'Nov Pivot'!$A:$F,5,0),0) -> 0 | DD16: =IFERROR(VLOOKUP(E16,'Nov Pivot'!$A:$F,4,0),0) -> 0 | DE16: =IFERROR(VLOOKUP($E16,'Nov Pivot'!$AD:$AF,2,0),0) -> 0 | DF16: =IFERROR(VLOOKUP($E16,'Nov Pivot'!$AD:$AF,3,0),0) -> 0 | DG16: =SUMIFS('Nov Raw Data'!$BY:$BY,'Nov Raw Data'!$BU:$BU,"Accessories",'Nov Raw Data'!$G:$G,'ASO View'!E16,'Nov Raw Data'!$CC:$CC,"MTD") -> 0.00 | DH16: =SUMIFS('Nov Raw Data'!$BL:$BL,'Nov Raw Data'!$G:$G,'ASO View'!E16,'Nov Raw Data'!$BU:$BU,"Visuals",'Nov Raw Data'!$CC:$CC,"MTD") -> 0 | DI16: =IFERROR(VLOOKUP(E16,'Nov Pivot'!$K:$P,2,0),0) -> 0 | DJ16: =IFERROR(VLOOKUP(E16,'Nov Pivot'!$K:$P,4,0),0) -> 0 | DK16: =SUMIFS('Nov Raw Data'!$BL:$BL,'Nov Raw Data'!$G:$G,'ASO View'!E16,'Nov Raw Data'!$BU:$BU,"Visuals",'Nov Raw Data'!$BS:$BS,"premium") -> 0 | DL16: =SUMIFS('Nov Raw Data'!$BL:$BL,'Nov Raw Data'!$G:$G,'ASO View'!$E16,'Nov Raw Data'!$BU:$BU,"consumer",'Nov Raw Data'!$BS:$BS,"Premium",'Nov Raw Data'!$CA:$CA,"SP",'Nov Raw Data'!$CC:$CC,"MTD") -> 9 | DM16: =SUMIFS('Nov Raw Data'!$BL:$BL,'Nov Raw Data'!$G:$G,'ASO View'!$E16,'Nov Raw Data'!$BU:$BU,"consumer",'Nov Raw Data'!$BS:$BS,"Premium",'Nov Raw Data'!$CA:$CA,"SP",'Nov Raw Data'!$CB:$CB,"Gaming",'Nov Raw Data'!$CC:$CC,"MTD") -> 3 | DN16: =SUMIFS('Nov Raw Data'!$BL:$BL,'Nov Raw Data'!$G:$G,'ASO View'!$E16,'Nov Raw Data'!$BU:$BU,"consumer",'Nov Raw Data'!$BS:$BS,"Premium",'Nov Raw Data'!$CA:$CA,"SP",'Nov Raw Data'!$CB:$CB,"Non-Gaming",'Nov Raw Data'!$CC:$CC,"MTD") -> 6 | DO16: =IFERROR(VLOOKUP($E16,'Nov Pivot'!$T:$U,2,0),0) -> 0 | DP16: =IFERROR(VLOOKUP($E16,'Nov Pivot'!$W:$X,2,0),0) -> 0 | DQ16: =IFERROR(VLOOKUP($E16,'Nov Pivot'!$Z:$AA,2,0),0) -> 0 | DS16: =IFERROR(VLOOKUP($E16,Kiran!A:C,3,0),0) -> 0
E17: V5267291 | F17: East 2 | G17: East2 | H17: Jharkhand | I17: Dhanbad | J17: Abhisekh K | K17: Krishna Kumar Singh | L17: Imam Hassan | M17: Active | N17: 200 | O17: =SUMIFS('Dec Raw Data'!$BL:$BL,'Dec Raw Data'!$G:$G,'ASO View'!$E17,'Dec Raw Data'!$BX:$BX,"NB") -> 0 | P17: 0% | Q17: -100% | R17: 22 | S17: =SUMIFS('Dec Raw Data'!$BL:$BL,'Dec Raw Data'!$G:$G,'ASO View'!$E17,'Dec Raw Data'!$BX:$BX,"AIO") -> 0 | T17: 0% | U17: -100% | V17: 28 | W17: =SUMIFS('Dec Raw Data'!$BL:$BL,'Dec Raw Data'!$G:$G,'ASO View'!$E17,'Dec Raw Data'!$BX:$BX,"TDT") -> 0 | X17: 0% | Y17: -100% | Z17: 250 | AA17: =SUMIFS('Dec Raw Data'!$BL:$BL,'Dec Raw Data'!$G:$G,'ASO View'!$E17,'Dec Raw Data'!$BU:$BU,"Consumer") -> 0 | AB17: 0% | AC17: -100% | AD17: 38 | AE17: =SUMIFS('Dec Raw Data'!$BL:$BL,'Dec Raw Data'!$G:$G,'ASO View'!$E17,'Dec Raw Data'!$BX:$BX,"NB",'Dec Raw Data'!$BS:$BS,"premium") -> 0 | AF17: 0% | AG17: 50 | AH17: =SUMIFS('Dec Raw Data'!$BL:$BL,'Dec Raw Data'!$G:$G,'ASO View'!$E17,'Dec Raw Data'!$BU:$BU,"Consumer",'Dec Raw Data'!$BS:$BS,"premium") -> 0 | AI17: 0% | AJ17: -100% | AK17: 0.02475 | AL17: =SUMIFS('Dec Raw Data'!$BY:$BY,'Dec Raw Data'!$BU:$BU,"Accessories",'Dec Raw Data'!$G:$G,'ASO View'!E17) -> 0.000 | AM17: 0% | AN17: -100% | AO17: 0 | AP17: =SUMIFS('Dec Raw Data'!$BL:$BL,'Dec Raw Data'!$G:$G,'ASO View'!$E17,'Dec Raw Data'!$BU:$BU,"Consumer",'Dec Raw Data'!$BS:$BS,"premium",'Dec Raw Data'!$BX:$BX,"NB",'Dec Raw Data'!$CA:$CA,"SP") -> 0 | AQ17: 0% | AR17: -100% | AS17: 33 | AT17: =SUMIFS('Dec Raw Data'!$BL:$BL,'Dec Raw Data'!$G:$G,'ASO View'!$E17,'Dec Raw Data'!$BU:$BU,"Consumer",'Dec Raw Data'!$BS:$BS,"premium",'Dec Raw Data'!$BX:$BX,"NB",'Dec Raw Data'!$CB:$CB,"Gaming") -> 0 | AU17: 0% | AV17: -100% | AW17: 17 | AX17: =SUMIFS('Dec Raw Data'!$BL:$BL,'Dec Raw Data'!$G:$G,'ASO View'!$E17,'Dec Raw Data'!$BU:$BU,"Consumer",'Dec Raw Data'!$BS:$BS,"premium",'Dec Raw Data'!$BX:$BX,"NB",'Dec Raw Data'!$CB:$CB,"Non-Gaming") -> 0 | AY17: 0% | AZ17: 0% | BA17: 125 | BB17: =SUMIFS('Dec Raw Data'!$BL:$BL,'Dec Raw Data'!$BU:$BU,"visuals",'Dec Raw Data'!$G:$G,'ASO View'!E17) -> 0 | BC17: 0% | BD17: -100% | BE17: 25 | BF17: =SUMIFS('Dec Raw Data'!$BL:$BL,'Dec Raw Data'!$BU:$BU,"visuals",'Dec Raw Data'!$G:$G,'ASO View'!E17,'Dec Raw Data'!$BS:$BS,"Premium") -> 0 | BG17: 0% | BH17: 0% | BI17: 40 | BJ17: 0 | BK17: 0% | BM17: 45 | BN17: =IFERROR(VLOOKUP($E17,'Dec Pivot'!$A:$F,6,0),0) -> 0 | BO17: 0% | BP17: 0% | BQ17: 18 | BR17: =IFERROR(VLOOKUP($E17,'Dec Pivot'!$A:$F,5,0),0) -> 0 | BS17: 0% | BT17: 0% | BU17: 6.6 | BV17: =IFERROR(VLOOKUP($E17,'Dec Pivot'!$AF:$AH,3,0),0) -> 0 | BW17: 0% | BX17: 0% | BY17: 3 | BZ17: =IFERROR(VLOOKUP($E17,'Dec Pivot'!$AI:$AK,3,0),0) -> 0 | CA17: 0% | CB17: 0% | CC17: 3 | CD17: =IFERROR(VLOOKUP($E17,'Dec Pivot'!$AL:$AN,3,0),0) -> 0 | CE17: 0% | CF17: 0% | CG17: 12.15 | CH17: =IFERROR(VLOOKUP($E17,'Dec Pivot'!$J:$O,4,0),0) -> 0 | CI17: 0% | CJ17: 0% | CK17: 8.1 | CL17: =IFERROR(VLOOKUP($E17,'Dec Pivot'!$J:$O,3,0),0) -> 0 | CM17: 0% | CO17: 45 | CP17: =IFERROR(VLOOKUP($E17,'Dec Pivot'!$X:$AA,4,0),0) -> 0 | CQ17: 0% | CR17: 0% | CS17: 20 | CT17: =IFERROR(VLOOKUP(E17,'Dec Pivot'!$AB:$AD,3,0),0) -> 0 | CU17: 0% | CV17: 0% | CX17: =SUMIFS('Nov Raw Data'!$BL:$BL,'Nov Raw Data'!$G:$G,'ASO View'!E17,'Nov Raw Data'!$BX:$BX,"NB",'Nov Raw Data'!$CC:$CC,"MTD") -> 12 | CY17: =SUMIFS('Nov Raw Data'!$BL:$BL,'Nov Raw Data'!$G:$G,'ASO View'!E17,'Nov Raw Data'!$BX:$BX,"AIO",'Nov Raw Data'!$CC:$CC,"MTD") -> 16 | CZ17: =SUMIFS('Nov Raw Data'!$BL:$BL,'Nov Raw Data'!$G:$G,'ASO View'!E17,'Nov Raw Data'!$BX:$BX,"TDT",'Nov Raw Data'!$CC:$CC,"MTD") -> 123 | DA17: =SUMIFS('Nov Raw Data'!$BL:$BL,'Nov Raw Data'!$G:$G,'ASO View'!E17,'Nov Raw Data'!$BU:$BU,"consumer",'Nov Raw Data'!$CC:$CC,"MTD") -> 151 | DB17: =SUMIFS('Nov Raw Data'!$BL:$BL,'Nov Raw Data'!$G:$G,'ASO View'!$E17,'Nov Raw Data'!$BU:$BU,"consumer",'Nov Raw Data'!$BS:$BS,"Premium",'Nov Raw Data'!$CC:$CC,"MTD") -> 34 | DC17: =IFERROR(VLOOKUP(E17,'Nov Pivot'!$A:$F,5,0),0) -> 0 | DD17: =IFERROR(VLOOKUP(E17,'Nov Pivot'!$A:$F,4,0),0) -> 0 | DE17: =IFERROR(VLOOKUP($E17,'Nov Pivot'!$AD:$AF,2,0),0) -> 0 | DF17: =IFERROR(VLOOKUP($E17,'Nov Pivot'!$AD:$AF,3,0),0) -> 0 | DG17: =SUMIFS('Nov Raw Data'!$BY:$BY,'Nov Raw Data'!$BU:$BU,"Accessories",'Nov Raw Data'!$G:$G,'ASO View'!E17,'Nov Raw Data'!$CC:$CC,"MTD") -> 0.03 | DH17: =SUMIFS('Nov Raw Data'!$BL:$BL,'Nov Raw Data'!$G:$G,'ASO View'!E17,'Nov Raw Data'!$BU:$BU,"Visuals",'Nov Raw Data'!$CC:$CC,"MTD") -> 48 | DI17: =IFERROR(VLOOKUP(E17,'Nov Pivot'!$K:$P,2,0),0) -> 0 | DJ17: =IFERROR(VLOOKUP(E17,'Nov Pivot'!$K:$P,4,0),0) -> 0 | DK17: =SUMIFS('Nov Raw Data'!$BL:$BL,'Nov Raw Data'!$G:$G,'ASO View'!E17,'Nov Raw Data'!$BU:$BU,"Visuals",'Nov Raw Data'!$BS:$BS,"premium") -> 0 | DL17: =SUMIFS('Nov Raw Data'!$BL:$BL,'Nov Raw Data'!$G:$G,'ASO View'!$E17,'Nov Raw Data'!$BU:$BU,"consumer",'Nov Raw Data'!$BS:$BS,"Premium",'Nov Raw Data'!$CA:$CA,"SP",'Nov Raw Data'!$CC:$CC,"MTD") -> 6 | DM17: =SUMIFS('Nov Raw Data'!$BL:$BL,'Nov Raw Data'!$G:$G,'ASO View'!$E17,'Nov Raw Data'!$BU:$BU,"consumer",'Nov Raw Data'!$BS:$BS,"Premium",'Nov Raw Data'!$CA:$CA,"SP",'Nov Raw Data'!$CB:$CB,"Gaming",'Nov Raw Data'!$CC:$CC,"MTD") -> 6 | DN17: =SUMIFS('Nov Raw Data'!$BL:$BL,'Nov Raw Data'!$G:$G,'ASO View'!$E17,'Nov Raw Data'!$BU:$BU,"consumer",'Nov Raw Data'!$BS:$BS,"Premium",'Nov Raw Data'!$CA:$CA,"SP",'Nov Raw Data'!$CB:$CB,"Non-Gaming",'Nov Raw Data'!$CC:$CC,"MTD") -> 0 | DO17: =IFERROR(VLOOKUP($E17,'Nov Pivot'!$T:$U,2,0),0) -> 0 | DP17: =IFERROR(VLOOKUP($E17,'Nov Pivot'!$W:$X,2,0),0) -> 0 | DQ17: =IFERROR(VLOOKUP($E17,'Nov Pivot'!$Z:$AA,2,0),0) -> 0 | DS17: =IFERROR(VLOOKUP($E17,Kiran!A:C,3,0),0) -> 0
E18: 601088 | F18: East 2 | G18: East2 | H18: Odisha | I18: Bhubaneswar | J18: Amarjit Behera | K18: Biswa Ranjan Jena | L18: Imam Hassan | M18: Active | N18: 280 | O18: =SUMIFS('Dec Raw Data'!$BL:$BL,'Dec Raw Data'!$G:$G,'ASO View'!$E18,'Dec Raw Data'!$BX:$BX,"NB") -> 0 | P18: 0% | Q18: -100% | R18: 31 | S18: =SUMIFS('Dec Raw Data'!$BL:$BL,'Dec Raw Data'!$G:$G,'ASO View'!$E18,'Dec Raw Data'!$BX:$BX,"AIO") -> 0 | T18: 0% | U18: -100% | V18: 39 | W18: =SUMIFS('Dec Raw Data'!$BL:$BL,'Dec Raw Data'!$G:$G,'ASO View'!$E18,'Dec Raw Data'!$BX:$BX,"TDT") -> 0 | X18: 0% | Y18: -100% | Z18: 350 | AA18: =SUMIFS('Dec Raw Data'!$BL:$BL,'Dec Raw Data'!$G:$G,'ASO View'!$E18,'Dec Raw Data'!$BU:$BU,"Consumer") -> 0 | AB18: 0% | AC18: -100% | AD18: 53 | AE18: =SUMIFS('Dec Raw Data'!$BL:$BL,'Dec Raw Data'!$G:$G,'ASO View'!$E18,'Dec Raw Data'!$BX:$BX,"NB",'Dec Raw Data'!$BS:$BS,"premium") -> 0 | AF18: 0% | AG18: 70 | AH18: =SUMIFS('Dec Raw Data'!$BL:$BL,'Dec Raw Data'!$G:$G,'ASO View'!$E18,'Dec Raw Data'!$BU:$BU,"Consumer",'Dec Raw Data'!$BS:$BS,"premium") -> 0 | AI18: 0% | AJ18: -100% | AK18: 0.0225 | AL18: =SUMIFS('Dec Raw Data'!$BY:$BY,'Dec Raw Data'!$BU:$BU,"Accessories",'Dec Raw Data'!$G:$G,'ASO View'!E18) -> 0.000 | AM18: =IFERROR(AL18/AK18,0) -> 0% | AN18: -100% | AO18: 40 | AP18: =SUMIFS('Dec Raw Data'!$BL:$BL,'Dec Raw Data'!$G:$G,'ASO View'!$E18,'Dec Raw Data'!$BU:$BU,"Consumer",'Dec Raw Data'!$BS:$BS,"premium",'Dec Raw Data'!$BX:$BX,"NB",'Dec Raw Data'!$CA:$CA,"SP") -> 0 | AQ18: 0% | AR18: -100% | AS18: 46 | AT18: =SUMIFS('Dec Raw Data'!$BL:$BL,'Dec Raw Data'!$G:$G,'ASO View'!$E18,'Dec Raw Data'!$BU:$BU,"Consumer",'Dec Raw Data'!$BS:$BS,"premium",'Dec Raw Data'!$BX:$BX,"NB",'Dec Raw Data'!$CB:$CB,"Gaming") -> 0 | AU18: 0% | AV18: -100% | AW18: 24 | AX18: =SUMIFS('Dec Raw Data'!$BL:$BL,'Dec Raw Data'!$G:$G,'ASO View'!$E18,'Dec Raw Data'!$BU:$BU,"Consumer",'Dec Raw Data'!$BS:$BS,"premium",'Dec Raw Data'!$BX:$BX,"NB",'Dec Raw Data'!$CB:$CB,"Non-Gaming") -> 0 | AY18: 0% | AZ18: -100% | BA18: 125 | BB18: =SUMIFS('Dec Raw Data'!$BL:$BL,'Dec Raw Data'!$BU:$BU,"visuals",'Dec Raw Data'!$G:$G,'ASO View'!E18) -> 0 | BC18: =IFERROR(BB18/BA18,0) -> 0% | BD18: =IFERROR(BB18/DH18-1,0) -> -100% | BE18: 25 | BF18: =SUMIFS('Dec Raw Data'!$BL:$BL,'Dec Raw Data'!$BU:$BU,"visuals",'Dec Raw Data'!$G:$G,'ASO View'!E18,'Dec Raw Data'!$BS:$BS,"Premium") -> 0 | BG18: 0% | BH18: -100% | BI18: - | BJ18: - | BK18: 0% | BM18: 120 | BN18: =IFERROR(VLOOKUP($E18,'Dec Pivot'!$A:$F,6,0),0) -> 0 | BO18: =IFERROR(BN18/BM18,0) -> 0% | BP18: =IFERROR(BN18/DC18-1,0) -> 0% | BQ18: 48 | BR18: =IFERROR(VLOOKUP($E18,'Dec Pivot'!$A:$F,5,0),0) -> 0 | BS18: =IFERROR(BR18/BQ18,0) -> 0% | BT18: =IFERROR(BR18/DD18-1,0) -> 0% | BU18: 17.8 | BV18: =IFERROR(VLOOKUP($E18,'Dec Pivot'!$AF:$AH,3,0),0) -> 0 | BW18: 0% | BX18: 0% | BY18: 9 | BZ18: =IFERROR(VLOOKUP($E18,'Dec Pivot'!$AI:$AK,3,0),0) -> 0 | CA18: 0% | CB18: 0% | CC18: 8 | CD18: =IFERROR(VLOOKUP($E18,'Dec Pivot'!$AL:$AN,3,0),0) -> 0 | CE18: 0% | CF18: 0% | CG18: 32.4 | CH18: =IFERROR(VLOOKUP($E18,'Dec Pivot'!$J:$O,4,0),0) -> 0 | CI18: =IFERROR(CH18/CG18,0) -> 0% | CJ18: 0% | CK18: 21.6 | CL18: =IFERROR(VLOOKUP($E18,'Dec Pivot'!$J:$O,3,0),0) -> 0 | CM18: =IFERROR(CL18/CK18,0) -> 0% | CO18: 72 | CP18: =IFERROR(VLOOKUP($E18,'Dec Pivot'!$X:$AA,4,0),0) -> 0 | CQ18: =IFERROR(CP18/CO18,0) -> 0% | CR18: =IFERROR(CP18/DI18-1,0) -> 0% | CS18: 30 | CT18: =IFERROR(VLOOKUP(E18,'Dec Pivot'!$AB:$AD,3,0),0) -> 0 | CU18: =IFERROR(CT18/CS18,0) -> 0% | CV18: =IFERROR(CT18/DJ18-1,0) -> 0% | CX18: =SUMIFS('Nov Raw Data'!$BL:$BL,'Nov Raw Data'!$G:$G,'ASO View'!E18,'Nov Raw Data'!$BX:$BX,"NB",'Nov Raw Data'!$CC:$CC,"MTD") -> 263 | CY18: =SUMIFS('Nov Raw Data'!$BL:$BL,'Nov Raw Data'!$G:$G,'ASO View'!E18,'Nov Raw Data'!$BX:$BX,"AIO",'Nov Raw Data'!$CC:$CC,"MTD") -> 24 | CZ18: =SUMIFS('Nov Raw Data'!$BL:$BL,'Nov Raw Data'!$G:$G,'ASO View'!E18,'Nov Raw Data'!$BX:$BX,"TDT",'Nov Raw Data'!$CC:$CC,"MTD") -> 65 | DA18: =SUMIFS('Nov Raw Data'!$BL:$BL,'Nov Raw Data'!$G:$G,'ASO View'!E18,'Nov Raw Data'!$BU:$BU,"consumer",'Nov Raw Data'!$CC:$CC,"MTD") -> 353 | DB18: =SUMIFS('Nov Raw Data'!$BL:$BL,'Nov Raw Data'!$G:$G,'ASO View'!$E18,'Nov Raw Data'!$BU:$BU,"consumer",'Nov Raw Data'!$BS:$BS,"Premium",'Nov Raw Data'!$CC:$CC,"MTD") -> 48 | DC18: =IFERROR(VLOOKUP(E18,'Nov Pivot'!$A:$F,5,0),0) -> 0 | DD18: =IFERROR(VLOOKUP(E18,'Nov Pivot'!$A:$F,4,0),0) -> 0 | DE18: =IFERROR(VLOOKUP($E18,'Nov Pivot'!$AD:$AF,2,0),0) -> 0 | DF18: =IFERROR(VLOOKUP($E18,'Nov Pivot'!$AD:$AF,3,0),0) -> 0 | DG18: =SUMIFS('Nov Raw Data'!$BY:$BY,'Nov Raw Data'!$BU:$BU,"Accessories",'Nov Raw Data'!$G:$G,'ASO View'!E18,'Nov Raw Data'!$CC:$CC,"MTD") -> 0.02 | DH18: =SUMIFS('Nov Raw Data'!$BL:$BL,'Nov Raw Data'!$G:$G,'ASO View'!E18,'Nov Raw Data'!$BU:$BU,"Visuals",'Nov Raw Data'!$CC:$CC,"MTD") -> 94 | DI18: =IFERROR(VLOOKUP(E18,'Nov Pivot'!$K:$P,2,0),0) -> 0 | DJ18: =IFERROR(VLOOKUP(E18,'Nov Pivot'!$K:$P,4,0),0) -> 0 | DK18: =SUMIFS('Nov Raw Data'!$BL:$BL,'Nov Raw Data'!$G:$G,'ASO View'!E18,'Nov Raw Data'!$BU:$BU,"Visuals",'Nov Raw Data'!$BS:$BS,"premium") -> 12 | DL18: =SUMIFS('Nov Raw Data'!$BL:$BL,'Nov Raw Data'!$G:$G,'ASO View'!$E18,'Nov Raw Data'!$BU:$BU,"consumer",'Nov Raw Data'!$BS:$BS,"Premium",'Nov Raw Data'!$CA:$CA,"SP",'Nov Raw Data'!$CC:$CC,"MTD") -> 14 | DM18: =SUMIFS('Nov Raw Data'!$BL:$BL,'Nov Raw Data'!$G:$G,'ASO View'!$E18,'Nov Raw Data'!$BU:$BU,"consumer",'Nov Raw Data'!$BS:$BS,"Premium",'Nov Raw Data'!$CA:$CA,"SP",'Nov Raw Data'!$CB:$CB,"Gaming",'Nov Raw Data'!$CC:$CC,"MTD") -> 3 | DN18: =SUMIFS('Nov Raw Data'!$BL:$BL,'Nov Raw Data'!$G:$G,'ASO View'!$E18,'Nov Raw Data'!$BU:$BU,"consumer",'Nov Raw Data'!$BS:$BS,"Premium",'Nov Raw Data'!$CA:$CA,"SP",'Nov Raw Data'!$CB:$CB,"Non-Gaming",'Nov Raw Data'!$CC:$CC,"MTD") -> 11 | DO18: =IFERROR(VLOOKUP($E18,'Nov Pivot'!$T:$U,2,0),0) -> 0 | DP18: =IFERROR(VLOOKUP($E18,'Nov Pivot'!$W:$X,2,0),0) -> 0 | DQ18: =IFERROR(VLOOKUP($E18,'Nov Pivot'!$Z:$AA,2,0),0) -> 0 | DS18: =IFERROR(VLOOKUP($E18,Kiran!A:C,3,0),0) -> 0
E19: V5339429 | F19: East 2 | G19: East2 | H19: Bihar | I19: Muzaffarpur | J19: Surjeet Kumar | K19: Krishna Kumar Singh | L19: Imam Hassan | M19: Active | N19: 168 | O19: =SUMIFS('Dec Raw Data'!$BL:$BL,'Dec Raw Data'!$G:$G,'ASO View'!$E19,'Dec Raw Data'!$BX:$BX,"NB") -> 22 | P19: 13% | Q19: -89% | R19: 18 | S19: =SUMIFS('Dec Raw Data'!$BL:$BL,'Dec Raw Data'!$G:$G,'ASO View'!$E19,'Dec Raw Data'!$BX:$BX,"AIO") -> 2 | T19: 11% | U19: -91% | V19: 24 | W19: =SUMIFS('Dec Raw Data'!$BL:$BL,'Dec Raw Data'!$G:$G,'ASO View'!$E19,'Dec Raw Data'!$BX:$BX,"TDT") -> 0 | X19: 0% | Y19: -100% | Z19: 210 | AA19: =SUMIFS('Dec Raw Data'!$BL:$BL,'Dec Raw Data'!$G:$G,'ASO View'!$E19,'Dec Raw Data'!$BU:$BU,"Consumer") -> 24 | AB19: 11% | AC19: -90% | AD19: 32 | AE19: =SUMIFS('Dec Raw Data'!$BL:$BL,'Dec Raw Data'!$G:$G,'ASO View'!$E19,'Dec Raw Data'!$BX:$BX,"NB",'Dec Raw Data'!$BS:$BS,"premium") -> 4 | AF19: 13% | AG19: 42 | AH19: =SUMIFS('Dec Raw Data'!$BL:$BL,'Dec Raw Data'!$G:$G,'ASO View'!$E19,'Dec Raw Data'!$BU:$BU,"Consumer",'Dec Raw Data'!$BS:$BS,"premium") -> 4 | AI19: 10% | AJ19: -88% | AK19: 0.02475 | AL19: =SUMIFS('Dec Raw Data'!$BY:$BY,'Dec Raw Data'!$BU:$BU,"Accessories",'Dec Raw Data'!$G:$G,'ASO View'!E19) -> 0.008 | AM19: 33% | AN19: -83% | AO19: 40 | AP19: =SUMIFS('Dec Raw Data'!$BL:$BL,'Dec Raw Data'!$G:$G,'ASO View'!$E19,'Dec Raw Data'!$BU:$BU,"Consumer",'Dec Raw Data'!$BS:$BS,"premium",'Dec Raw Data'!$BX:$BX,"NB",'Dec Raw Data'!$CA:$CA,"SP") -> 4 | AQ19: 10% | AR19: -60% | AS19: 27 | AT19: =SUMIFS('Dec Raw Data'!$BL:$BL,'Dec Raw Data'!$G:$G,'ASO View'!$E19,'Dec Raw Data'!$BU:$BU,"Consumer",'Dec Raw Data'!$BS:$BS,"premium",'Dec Raw Data'!$BX:$BX,"NB",'Dec Raw Data'!$CB:$CB,"Gaming") -> 3 | AU19: 11% | AV19: -50% | AW19: 15 | AX19: =SUMIFS('Dec Raw Data'!$BL:$BL,'Dec Raw Data'!$G:$G,'ASO View'!$E19,'Dec Raw Data'!$BU:$BU,"Consumer",'Dec Raw Data'!$BS:$BS,"premium",'Dec Raw Data'!$BX:$BX,"NB",'Dec Raw Data'!$CB:$CB,"Non-Gaming") -> 1 | AY19: 7% | AZ19: -75% | BA19: 125 | BB19: =SUMIFS('Dec Raw Data'!$BL:$BL,'Dec Raw Data'!$BU:$BU,"visuals",'Dec Raw Data'!$G:$G,'ASO View'!E19) -> 14 | BC19: 11% | BD19: -79% | BE19: 25 | BF19: =SUMIFS('Dec Raw Data'!$BL:$BL,'Dec Raw Data'!$BU:$BU,"visuals",'Dec Raw Data'!$G:$G,'ASO View'!E19,'Dec Raw Data'!$BS:$BS,"Premium") -> 5 | BG19: 20% | BH19: -90% | BI19: 40 | BJ19: 51 | BK19: 128% | BM19: 65 | BN19: =IFERROR(VLOOKUP($E19,'Dec Pivot'!$A:$F,6,0),0) -> 16 | BO19: 25% | BP19: 220% | BQ19: 26 | BR19: =IFERROR(VLOOKUP($E19,'Dec Pivot'!$A:$F,5,0),0) -> 3 | BS19: 12% | BT19: -57% | BU19: 9.6 | BV19: =IFERROR(VLOOKUP($E19,'Dec Pivot'!$AF:$AH,3,0),0) -> 3 | BW19: 31% | BX19: 50% | BY19: 5 | BZ19: =IFERROR(VLOOKUP($E19,'Dec Pivot'!$AI:$AK,3,0),0) -> 3 | CA19: 60% | CB19: 0% | CC19: 5 | CD19: =IFERROR(VLOOKUP($E19,'Dec Pivot'!$AL:$AN,3,0),0) -> 3 | CE19: 60% | CF19: 50% | CG19: 17.55 | CH19: =IFERROR(VLOOKUP($E19,'Dec Pivot'!$J:$O,4,0),0) -> 0 | CI19: 0% | CJ19: -100% | CK19: 11.7 | CL19: =IFERROR(VLOOKUP($E19,'Dec Pivot'!$J:$O,3,0),0) -> 2 | CM19: 17% | CO19: 54 | CP19: =IFERROR(VLOOKUP($E19,'Dec Pivot'!$X:$AA,4,0),0) -> 6 | CQ19: 11% | CR19: 20% | CS19: 20 | CT19: =IFERROR(VLOOKUP(E19,'Dec Pivot'!$AB:$AD,3,0),0) -> 5 | CU19: 25% | CV19: 0% | CX19: =SUMIFS('Nov Raw Data'!$BL:$BL,'Nov Raw Data'!$G:$G,'ASO View'!E19,'Nov Raw Data'!$BX:$BX,"NB",'Nov Raw Data'!$CC:$CC,"MTD") -> 197 | CY19: =SUMIFS('Nov Raw Data'!$BL:$BL,'Nov Raw Data'!$G:$G,'ASO View'!E19,'Nov Raw Data'!$BX:$BX,"AIO",'Nov Raw Data'!$CC:$CC,"MTD") -> 22 | CZ19: =SUMIFS('Nov Raw Data'!$BL:$BL,'Nov Raw Data'!$G:$G,'ASO View'!E19,'Nov Raw Data'!$BX:$BX,"TDT",'Nov Raw Data'!$CC:$CC,"MTD") -> 16 | DA19: =SUMIFS('Nov Raw Data'!$BL:$BL,'Nov Raw Data'!$G:$G,'ASO View'!E19,'Nov Raw Data'!$BU:$BU,"consumer",'Nov Raw Data'!$CC:$CC,"MTD") -> 235 | DB19: =SUMIFS('Nov Raw Data'!$BL:$BL,'Nov Raw Data'!$G:$G,'ASO View'!$E19,'Nov Raw Data'!$BU:$BU,"consumer",'Nov Raw Data'!$BS:$BS,"Premium",'Nov Raw Data'!$CC:$CC,"MTD") -> 33 | DC19: =IFERROR(VLOOKUP(E19,'Nov Pivot'!$A:$F,5,0),0) -> 5 | DD19: =IFERROR(VLOOKUP(E19,'Nov Pivot'!$A:$F,4,0),0) -> 7 | DE19: =IFERROR(VLOOKUP($E19,'Nov Pivot'!$AD:$AF,2,0),0) -> 3 | DF19: =IFERROR(VLOOKUP($E19,'Nov Pivot'!$AD:$AF,3,0),0) -> 1 | DG19: =SUMIFS('Nov Raw Data'!$BY:$BY,'Nov Raw Data'!$BU:$BU,"Accessories",'Nov Raw Data'!$G:$G,'ASO View'!E19,'Nov Raw Data'!$CC:$CC,"MTD") -> 0.05 | DH19: =SUMIFS('Nov Raw Data'!$BL:$BL,'Nov Raw Data'!$G:$G,'ASO View'!E19,'Nov Raw Data'!$BU:$BU,"Visuals",'Nov Raw Data'!$CC:$CC,"MTD") -> 66 | DI19: =IFERROR(VLOOKUP(E19,'Nov Pivot'!$K:$P,2,0),0) -> 5 | DJ19: =IFERROR(VLOOKUP(E19,'Nov Pivot'!$K:$P,4,0),0) -> 0 | DK19: =SUMIFS('Nov Raw Data'!$BL:$BL,'Nov Raw Data'!$G:$G,'ASO View'!E19,'Nov Raw Data'!$BU:$BU,"Visuals",'Nov Raw Data'!$BS:$BS,"premium") -> 50 | DL19: =SUMIFS('Nov Raw Data'!$BL:$BL,'Nov Raw Data'!$G:$G,'ASO View'!$E19,'Nov Raw Data'!$BU:$BU,"consumer",'Nov Raw Data'!$BS:$BS,"Premium",'Nov Raw Data'!$CA:$CA,"SP",'Nov Raw Data'!$CC:$CC,"MTD") -> 10 | DM19: =SUMIFS('Nov Raw Data'!$BL:$BL,'Nov Raw Data'!$G:$G,'ASO View'!$E19,'Nov Raw Data'!$BU:$BU,"consumer",'Nov Raw Data'!$BS:$BS,"Premium",'Nov Raw Data'!$CA:$CA,"SP",'Nov Raw Data'!$CB:$CB,"Gaming",'Nov Raw Data'!$CC:$CC,"MTD") -> 6 | DN19: =SUMIFS('Nov Raw Data'!$BL:$BL,'Nov Raw Data'!$G:$G,'ASO View'!$E19,'Nov Raw Data'!$BU:$BU,"consumer",'Nov Raw Data'!$BS:$BS,"Premium",'Nov Raw Data'!$CA:$CA,"SP",'Nov Raw Data'!$CB:$CB,"Non-Gaming",'Nov Raw Data'!$CC:$CC,"MTD") -> 4 | DO19: =IFERROR(VLOOKUP($E19,'Nov Pivot'!$T:$U,2,0),0) -> 2 | DP19: =IFERROR(VLOOKUP($E19,'Nov Pivot'!$W:$X,2,0),0) -> 0 | DQ19: =IFERROR(VLOOKUP($E19,'Nov Pivot'!$Z:$AA,2,0),0) -> 2 | DS19: =IFERROR(VLOOKUP($E19,Kiran!A:C,3,0),0) -> 3
E20: V5263625 | F20: East 2 | G20: East2 | H20: Odisha | I20: Sambalpur | J20: Manoj Bihari | K20: Biswa Ranjan Jena | L20: Imam Hassan | M20: Active | N20: 180 | O20: =SUMIFS('Dec Raw Data'!$BL:$BL,'Dec Raw Data'!$G:$G,'ASO View'!$E20,'Dec Raw Data'!$BX:$BX,"NB") -> 9 | P20: 5% | Q20: -92% | R20: 20 | S20: =SUMIFS('Dec Raw Data'!$BL:$BL,'Dec Raw Data'!$G:$G,'ASO View'!$E20,'Dec Raw Data'!$BX:$BX,"AIO") -> 3 | T20: 15% | U20: -75% | V20: 25 | W20: =SUMIFS('Dec Raw Data'!$BL:$BL,'Dec Raw Data'!$G:$G,'ASO View'!$E20,'Dec Raw Data'!$BX:$BX,"TDT") -> 2 | X20: 8% | Y20: -86% | Z20: 225 | AA20: =SUMIFS('Dec Raw Data'!$BL:$BL,'Dec Raw Data'!$G:$G,'ASO View'!$E20,'Dec Raw Data'!$BU:$BU,"Consumer") -> 14 | AB20: 6% | AC20: -90% | AD20: 34 | AE20: =SUMIFS('Dec Raw Data'!$BL:$BL,'Dec Raw Data'!$G:$G,'ASO View'!$E20,'Dec Raw Data'!$BX:$BX,"NB",'Dec Raw Data'!$BS:$BS,"premium") -> 5 | AF20: 15% | AG20: 45 | AH20: =SUMIFS('Dec Raw Data'!$BL:$BL,'Dec Raw Data'!$G:$G,'ASO View'!$E20,'Dec Raw Data'!$BU:$BU,"Consumer",'Dec Raw Data'!$BS:$BS,"premium") -> 5 | AI20: 11% | AJ20: -80% | AK20: 0.02475 | AL20: =SUMIFS('Dec Raw Data'!$BY:$BY,'Dec Raw Data'!$BU:$BU,"Accessories",'Dec Raw Data'!$G:$G,'ASO View'!E20) -> 0.001 | AM20: 3% | AN20: -97% | AO20: 20 | AP20: =SUMIFS('Dec Raw Data'!$BL:$BL,'Dec Raw Data'!$G:$G,'ASO View'!$E20,'Dec Raw Data'!$BU:$BU,"Consumer",'Dec Raw Data'!$BS:$BS,"premium",'Dec Raw Data'!$BX:$BX,"NB",'Dec Raw Data'!$CA:$CA,"SP") -> 3 | AQ20: 15% | AR20: 0% | AS20: 29 | AT20: =SUMIFS('Dec Raw Data'!$BL:$BL,'Dec Raw Data'!$G:$G,'ASO View'!$E20,'Dec Raw Data'!$BU:$BU,"Consumer",'Dec Raw Data'!$BS:$BS,"premium",'Dec Raw Data'!$BX:$BX,"NB",'Dec Raw Data'!$CB:$CB,"Gaming") -> 2 | AU20: 7% | AV20: 0% | AW20: 16 | AX20: =SUMIFS('Dec Raw Data'!$BL:$BL,'Dec Raw Data'!$G:$G,'ASO View'!$E20,'Dec Raw Data'!$BU:$BU,"Consumer",'Dec Raw Data'!$BS:$BS,"premium",'Dec Raw Data'!$BX:$BX,"NB",'Dec Raw Data'!$CB:$CB,"Non-Gaming") -> 1 | AY20: 6% | AZ20: -67% | BA20: 125 | BB20: =SUMIFS('Dec Raw Data'!$BL:$BL,'Dec Raw Data'!$BU:$BU,"visuals",'Dec Raw Data'!$G:$G,'ASO View'!E20) -> 5 | BC20: 4% | BD20: -88% | BE20: 25 | BF20: =SUMIFS('Dec Raw Data'!$BL:$BL,'Dec Raw Data'!$BU:$BU,"visuals",'Dec Raw Data'!$G:$G,'ASO View'!E20,'Dec Raw Data'!$BS:$BS,"Premium") -> 0 | BG20: 0% | BH20: -100% | BI20: - | BJ20: - | BK20: 0% | BM20: 80 | BN20: =IFERROR(VLOOKUP($E20,'Dec Pivot'!$A:$F,6,0),0) -> 11 | BO20: 14% | BP20: 1000% | BQ20: 32 | BR20: =IFERROR(VLOOKUP($E20,'Dec Pivot'!$A:$F,5,0),0) -> 4 | BS20: 13% | BT20: 33% | BU20: 11.8 | BV20: =IFERROR(VLOOKUP($E20,'Dec Pivot'!$AF:$AH,3,0),0) -> 4 | BW20: 34% | BX20: 300% | BY20: 6 | BZ20: =IFERROR(VLOOKUP($E20,'Dec Pivot'!$AI:$AK,3,0),0) -> 4 | CA20: 67% | CB20: 0% | CC20: 6 | CD20: =IFERROR(VLOOKUP($E20,'Dec Pivot'!$AL:$AN,3,0),0) -> 4 | CE20: 67% | CF20: 300% | CG20: 21.6 | CH20: =IFERROR(VLOOKUP($E20,'Dec Pivot'!$J:$O,4,0),0) -> 2 | CI20: 9% | CJ20: 100% | CK20: 14.4 | CL20: =IFERROR(VLOOKUP($E20,'Dec Pivot'!$J:$O,3,0),0) -> 3 | CM20: 21% | CO20: 72 | CP20: =IFERROR(VLOOKUP($E20,'Dec Pivot'!$X:$AA,4,0),0) -> 2 | CQ20: 3% | CR20: 100% | CS20: 20 | CT20: =IFERROR(VLOOKUP(E20,'Dec Pivot'!$AB:$AD,3,0),0) -> 4 | CU20: 20% | CV20: 0% | CX20: =SUMIFS('Nov Raw Data'!$BL:$BL,'Nov Raw Data'!$G:$G,'ASO View'!E20,'Nov Raw Data'!$BX:$BX,"NB",'Nov Raw Data'!$CC:$CC,"MTD") -> 114 | CY20: =SUMIFS('Nov Raw Data'!$BL:$BL,'Nov Raw Data'!$G:$G,'ASO View'!E20,'Nov Raw Data'!$BX:$BX,"AIO",'Nov Raw Data'!$CC:$CC,"MTD") -> 12 | CZ20: =SUMIFS('Nov Raw Data'!$BL:$BL,'Nov Raw Data'!$G:$G,'ASO View'!E20,'Nov Raw Data'!$BX:$BX,"TDT",'Nov Raw Data'!$CC:$CC,"MTD") -> 14 | DA20: =SUMIFS('Nov Raw Data'!$BL:$BL,'Nov Raw Data'!$G:$G,'ASO View'!E20,'Nov Raw Data'!$BU:$BU,"consumer",'Nov Raw Data'!$CC:$CC,"MTD") -> 140 | DB20: =SUMIFS('Nov Raw Data'!$BL:$BL,'Nov Raw Data'!$G:$G,'ASO View'!$E20,'Nov Raw Data'!$BU:$BU,"consumer",'Nov Raw Data'!$BS:$BS,"Premium",'Nov Raw Data'!$CC:$CC,"MTD") -> 25 | DC20: =IFERROR(VLOOKUP(E20,'Nov Pivot'!$A:$F,5,0),0) -> 1 | DD20: =IFERROR(VLOOKUP(E20,'Nov Pivot'!$A:$F,4,0),0) -> 3 | DE20: =IFERROR(VLOOKUP($E20,'Nov Pivot'!$AD:$AF,2,0),0) -> 2 | DF20: =IFERROR(VLOOKUP($E20,'Nov Pivot'!$AD:$AF,3,0),0) -> 1 | DG20: =SUMIFS('Nov Raw Data'!$BY:$BY,'Nov Raw Data'!$BU:$BU,"Accessories",'Nov Raw Data'!$G:$G,'ASO View'!E20,'Nov Raw Data'!$CC:$CC,"MTD") -> 0.02 | DH20: =SUMIFS('Nov Raw Data'!$BL:$BL,'Nov Raw Data'!$G:$G,'ASO View'!E20,'Nov Raw Data'!$BU:$BU,"Visuals",'Nov Raw Data'!$CC:$CC,"MTD") -> 40 | DI20: =IFERROR(VLOOKUP(E20,'Nov Pivot'!$K:$P,2,0),0) -> 1 | DJ20: =IFERROR(VLOOKUP(E20,'Nov Pivot'!$K:$P,4,0),0) -> 0 | DK20: =SUMIFS('Nov Raw Data'!$BL:$BL,'Nov Raw Data'!$G:$G,'ASO View'!E20,'Nov Raw Data'!$BU:$BU,"Visuals",'Nov Raw Data'!$BS:$BS,"premium") -> 16 | DL20: =SUMIFS('Nov Raw Data'!$BL:$BL,'Nov Raw Data'!$G:$G,'ASO View'!$E20,'Nov Raw Data'!$BU:$BU,"consumer",'Nov Raw Data'!$BS:$BS,"Premium",'Nov Raw Data'!$CA:$CA,"SP",'Nov Raw Data'!$CC:$CC,"MTD") -> 3 | DM20: =SUMIFS('Nov Raw Data'!$BL:$BL,'Nov Raw Data'!$G:$G,'ASO View'!$E20,'Nov Raw Data'!$BU:$BU,"consumer",'Nov Raw Data'!$BS:$BS,"Premium",'Nov Raw Data'!$CA:$CA,"SP",'Nov Raw Data'!$CB:$CB,"Gaming",'Nov Raw Data'!$CC:$CC,"MTD") -> 0 | DN20: =SUMIFS('Nov Raw Data'!$BL:$BL,'Nov Raw Data'!$G:$G,'ASO View'!$E20,'Nov Raw Data'!$BU:$BU,"consumer",'Nov Raw Data'!$BS:$BS,"Premium",'Nov Raw Data'!$CA:$CA,"SP",'Nov Raw Data'!$CB:$CB,"Non-Gaming",'Nov Raw Data'!$CC:$CC,"MTD") -> 3 | DO20: =IFERROR(VLOOKUP($E20,'Nov Pivot'!$T:$U,2,0),0) -> 1 | DP20: =IFERROR(VLOOKUP($E20,'Nov Pivot'!$W:$X,2,0),0) -> 0 | DQ20: =IFERROR(VLOOKUP($E20,'Nov Pivot'!$Z:$AA,2,0),0) -> 1 | DS20: =IFERROR(VLOOKUP($E20,Kiran!A:C,3,0),0) -> 2
E21: 601177 | F21: East 2 | G21: East2 | H21: Bihar | I21: Patna | J21: Pankaj Kumar | K21: Krishna Kumar Singh | L21: Imam Hassan | M21: Active | N21: 120 | O21: =SUMIFS('Dec Raw Data'!$BL:$BL,'Dec Raw Data'!$G:$G,'ASO View'!$E21,'Dec Raw Data'!$BX:$BX,"NB") -> 11 | P21: 9% | Q21: -94% | R21: 13 | S21: =SUMIFS('Dec Raw Data'!$BL:$BL,'Dec Raw Data'!$G:$G,'ASO View'!$E21,'Dec Raw Data'!$BX:$BX,"AIO") -> 0 | T21: 0% | U21: -100% | V21: 17 | W21: =SUMIFS('Dec Raw Data'!$BL:$BL,'Dec Raw Data'!$G:$G,'ASO View'!$E21,'Dec Raw Data'!$BX:$BX,"TDT") -> 1 | X21: 6% | Y21: -94% | Z21: 150 | AA21: =SUMIFS('Dec Raw Data'!$BL:$BL,'Dec Raw Data'!$G:$G,'ASO View'!$E21,'Dec Raw Data'!$BU:$BU,"Consumer") -> 12 | AB21: 8% | AC21: -95% | AD21: 23 | AE21: =SUMIFS('Dec Raw Data'!$BL:$BL,'Dec Raw Data'!$G:$G,'ASO View'!$E21,'Dec Raw Data'!$BX:$BX,"NB",'Dec Raw Data'!$BS:$BS,"premium") -> 5 | AF21: 22% | AG21: 30 | AH21: =SUMIFS('Dec Raw Data'!$BL:$BL,'Dec Raw Data'!$G:$G,'ASO View'!$E21,'Dec Raw Data'!$BU:$BU,"Consumer",'Dec Raw Data'!$BS:$BS,"premium") -> 5 | AI21: 17% | AJ21: -69% | AK21: 0.01 | AL21: =SUMIFS('Dec Raw Data'!$BY:$BY,'Dec Raw Data'!$BU:$BU,"Accessories",'Dec Raw Data'!$G:$G,'ASO View'!E21) -> 0.008 | AM21: 83% | AN21: -67% | AO21: 40 | AP21: =SUMIFS('Dec Raw Data'!$BL:$BL,'Dec Raw Data'!$G:$G,'ASO View'!$E21,'Dec Raw Data'!$BU:$BU,"Consumer",'Dec Raw Data'!$BS:$BS,"premium",'Dec Raw Data'!$BX:$BX,"NB",'Dec Raw Data'!$CA:$CA,"SP") -> 5 | AQ21: 13% | AR21: 67% | AS21: 20 | AT21: =SUMIFS('Dec Raw Data'!$BL:$BL,'Dec Raw Data'!$G:$G,'ASO View'!$E21,'Dec Raw Data'!$BU:$BU,"Consumer",'Dec Raw Data'!$BS:$BS,"premium",'Dec Raw Data'!$BX:$BX,"NB",'Dec Raw Data'!$CB:$CB,"Gaming") -> 3 | AU21: 15% | AV21: 200% | AW21: 10 | AX21: =SUMIFS('Dec Raw Data'!$BL:$BL,'Dec Raw Data'!$G:$G,'ASO View'!$E21,'Dec Raw Data'!$BU:$BU,"Consumer",'Dec Raw Data'!$BS:$BS,"premium",'Dec Raw Data'!$BX:$BX,"NB",'Dec Raw Data'!$CB:$CB,"Non-Gaming") -> 2 | AY21: 20% | AZ21: 0% | BA21: 125 | BB21: =SUMIFS('Dec Raw Data'!$BL:$BL,'Dec Raw Data'!$BU:$BU,"visuals",'Dec Raw Data'!$G:$G,'ASO View'!E21) -> 14 | BC21: 11% | BD21: -79% | BE21: 25 | BF21: =SUMIFS('Dec Raw Data'!$BL:$BL,'Dec Raw Data'!$BU:$BU,"visuals",'Dec Raw Data'!$G:$G,'ASO View'!E21,'Dec Raw Data'!$BS:$BS,"Premium") -> 10 | BG21: 40% | BH21: -78% | BI21: 40 | BJ21: 26 | BK21: 65% | BM21: 80 | BN21: =IFERROR(VLOOKUP($E21,'Dec Pivot'!$A:$F,6,0),0) -> 6 | BO21: 8% | BP21: 0% | BQ21: 32 | BR21: =IFERROR(VLOOKUP($E21,'Dec Pivot'!$A:$F,5,0),0) -> 4 | BS21: 13% | BT21: 0% | BU21: 11.8 | BV21: =IFERROR(VLOOKUP($E21,'Dec Pivot'!$AF:$AH,3,0),0) -> 0 | BW21: 0% | BX21: 0% | BY21: 6 | BZ21: =IFERROR(VLOOKUP($E21,'Dec Pivot'!$AI:$AK,3,0),0) -> 4 | CA21: 67% | CB21: 0% | CC21: 6 | CD21: =IFERROR(VLOOKUP($E21,'Dec Pivot'!$AL:$AN,3,0),0) -> 4 | CE21: 67% | CF21: 0% | CG21: 21.6 | CH21: =IFERROR(VLOOKUP($E21,'Dec Pivot'!$J:$O,4,0),0) -> 1 | CI21: 5% | CJ21: 0% | CK21: 14.4 | CL21: =IFERROR(VLOOKUP($E21,'Dec Pivot'!$J:$O,3,0),0) -> 0 | CM21: 0% | CO21: 24 | CP21: =IFERROR(VLOOKUP($E21,'Dec Pivot'!$X:$AA,4,0),0) -> 7 | CQ21: 29% | CR21: 0% | CS21: 10 | CT21: =IFERROR(VLOOKUP(E21,'Dec Pivot'!$AB:$AD,3,0),0) -> 8 | CU21: 80% | CV21: 0% | CX21: =SUMIFS('Nov Raw Data'!$BL:$BL,'Nov Raw Data'!$G:$G,'ASO View'!E21,'Nov Raw Data'!$BX:$BX,"NB",'Nov Raw Data'!$CC:$CC,"MTD") -> 197 | CY21: =SUMIFS('Nov Raw Data'!$BL:$BL,'Nov Raw Data'!$G:$G,'ASO View'!E21,'Nov Raw Data'!$BX:$BX,"AIO",'Nov Raw Data'!$CC:$CC,"MTD") -> 9 | CZ21: =SUMIFS('Nov Raw Data'!$BL:$BL,'Nov Raw Data'!$G:$G,'ASO View'!E21,'Nov Raw Data'!$BX:$BX,"TDT",'Nov Raw Data'!$CC:$CC,"MTD") -> 17 | DA21: =SUMIFS('Nov Raw Data'!$BL:$BL,'Nov Raw Data'!$G:$G,'ASO View'!E21,'Nov Raw Data'!$BU:$BU,"consumer",'Nov Raw Data'!$CC:$CC,"MTD") -> 223 | DB21: =SUMIFS('Nov Raw Data'!$BL:$BL,'Nov Raw Data'!$G:$G,'ASO View'!$E21,'Nov Raw Data'!$BU:$BU,"consumer",'Nov Raw Data'!$BS:$BS,"Premium",'Nov Raw Data'!$CC:$CC,"MTD") -> 16 | DC21: =IFERROR(VLOOKUP(E21,'Nov Pivot'!$A:$F,5,0),0) -> 0 | DD21: =IFERROR(VLOOKUP(E21,'Nov Pivot'!$A:$F,4,0),0) -> 0 | DE21: =IFERROR(VLOOKUP($E21,'Nov Pivot'!$AD:$AF,2,0),0) -> 0 | DF21: =IFERROR(VLOOKUP($E21,'Nov Pivot'!$AD:$AF,3,0),0) -> 0 | DG21: =SUMIFS('Nov Raw Data'!$BY:$BY,'Nov Raw Data'!$BU:$BU,"Accessories",'Nov Raw Data'!$G:$G,'ASO View'!E21,'Nov Raw Data'!$CC:$CC,"MTD") -> 0.03 | DH21: =SUMIFS('Nov Raw Data'!$BL:$BL,'Nov Raw Data'!$G:$G,'ASO View'!E21,'Nov Raw Data'!$BU:$BU,"Visuals",'Nov Raw Data'!$CC:$CC,"MTD") -> 66 | DI21: =IFERROR(VLOOKUP(E21,'Nov Pivot'!$K:$P,2,0),0) -> 0 | DJ21: =IFERROR(VLOOKUP(E21,'Nov Pivot'!$K:$P,4,0),0) -> 0 | DK21: =SUMIFS('Nov Raw Data'!$BL:$BL,'Nov Raw Data'!$G:$G,'ASO View'!E21,'Nov Raw Data'!$BU:$BU,"Visuals",'Nov Raw Data'!$BS:$BS,"premium") -> 45 | DL21: =SUMIFS('Nov Raw Data'!$BL:$BL,'Nov Raw Data'!$G:$G,'ASO View'!$E21,'Nov Raw Data'!$BU:$BU,"consumer",'Nov Raw Data'!$BS:$BS,"Premium",'Nov Raw Data'!$CA:$CA,"SP",'Nov Raw Data'!$CC:$CC,"MTD") -> 3 | DM21: =SUMIFS('Nov Raw Data'!$BL:$BL,'Nov Raw Data'!$G:$G,'ASO View'!$E21,'Nov Raw Data'!$BU:$BU,"consumer",'Nov Raw Data'!$BS:$BS,"Premium",'Nov Raw Data'!$CA:$CA,"SP",'Nov Raw Data'!$CB:$CB,"Gaming",'Nov Raw Data'!$CC:$CC,"MTD") -> 1 | DN21: =SUMIFS('Nov Raw Data'!$BL:$BL,'Nov Raw Data'!$G:$G,'ASO View'!$E21,'Nov Raw Data'!$BU:$BU,"consumer",'Nov Raw Data'!$BS:$BS,"Premium",'Nov Raw Data'!$CA:$CA,"SP",'Nov Raw Data'!$CB:$CB,"Non-Gaming",'Nov Raw Data'!$CC:$CC,"MTD") -> 2 | DO21: =IFERROR(VLOOKUP($E21,'Nov Pivot'!$T:$U,2,0),0) -> 0 | DP21: =IFERROR(VLOOKUP($E21,'Nov Pivot'!$W:$X,2,0),0) -> 0 | DQ21: =IFERROR(VLOOKUP($E21,'Nov Pivot'!$Z:$AA,2,0),0) -> 0 | DS21: =IFERROR(VLOOKUP($E21,Kiran!A:C,3,0),0) -> 4
E22: TBH-Bhubaneswar | F22: East 2 | G22: East2 | H22: Bihar | I22: Bhubaneswar | J22: TBH-Bhubaneswar | K22: Biswa Ranjan Jena | L22: Imam Hassan | M22: Vacant | N22: 120 | O22: =SUMIFS('Dec Raw Data'!$BL:$BL,'Dec Raw Data'!$G:$G,'ASO View'!$E22,'Dec Raw Data'!$BX:$BX,"NB") -> 0 | P22: 0% | Q22: 0% | R22: 13 | S22: =SUMIFS('Dec Raw Data'!$BL:$BL,'Dec Raw Data'!$G:$G,'ASO View'!$E22,'Dec Raw Data'!$BX:$BX,"AIO") -> 0 | T22: 0% | U22: 0% | V22: 17 | W22: =SUMIFS('Dec Raw Data'!$BL:$BL,'Dec Raw Data'!$G:$G,'ASO View'!$E22,'Dec Raw Data'!$BX:$BX,"TDT") -> 0 | X22: 0% | Y22: 0% | Z22: 150 | AA22: =SUMIFS('Dec Raw Data'!$BL:$BL,'Dec Raw Data'!$G:$G,'ASO View'!$E22,'Dec Raw Data'!$BU:$BU,"Consumer") -> 0 | AB22: 0% | AC22: 0% | AD22: 23 | AE22: =SUMIFS('Dec Raw Data'!$BL:$BL,'Dec Raw Data'!$G:$G,'ASO View'!$E22,'Dec Raw Data'!$BX:$BX,"NB",'Dec Raw Data'!$BS:$BS,"premium") -> 0 | AF22: 0% | AG22: 30 | AH22: =SUMIFS('Dec Raw Data'!$BL:$BL,'Dec Raw Data'!$G:$G,'ASO View'!$E22,'Dec Raw Data'!$BU:$BU,"Consumer",'Dec Raw Data'!$BS:$BS,"premium") -> 0 | AI22: 0% | AJ22: 0% | AK22: 0.008 | AL22: =SUMIFS('Dec Raw Data'!$BY:$BY,'Dec Raw Data'!$BU:$BU,"Accessories",'Dec Raw Data'!$G:$G,'ASO View'!E22) -> 0.000 | AM22: 0% | AN22: =IFERROR(AL22/DG22-1,0) -> 0% | AO22: 135 | AP22: =SUMIFS('Dec Raw Data'!$BL:$BL,'Dec Raw Data'!$G:$G,'ASO View'!$E22,'Dec Raw Data'!$BU:$BU,"Consumer",'Dec Raw Data'!$BS:$BS,"premium",'Dec Raw Data'!$BX:$BX,"NB",'Dec Raw Data'!$CA:$CA,"SP") -> 0 | AQ22: 0% | AR22: =IFERROR(AP22/DL22-1,0) -> 0% | AS22: 20 | AT22: =SUMIFS('Dec Raw Data'!$BL:$BL,'Dec Raw Data'!$G:$G,'ASO View'!$E22,'Dec Raw Data'!$BU:$BU,"Consumer",'Dec Raw Data'!$BS:$BS,"premium",'Dec Raw Data'!$BX:$BX,"NB",'Dec Raw Data'!$CB:$CB,"Gaming") -> 0 | AU22: 0% | AV22: 0% | AW22: 10 | AX22: =SUMIFS('Dec Raw Data'!$BL:$BL,'Dec Raw Data'!$G:$G,'ASO View'!$E22,'Dec Raw Data'!$BU:$BU,"Consumer",'Dec Raw Data'!$BS:$BS,"premium",'Dec Raw Data'!$BX:$BX,"NB",'Dec Raw Data'!$CB:$CB,"Non-Gaming") -> 0 | AY22: 0% | AZ22: 0% | BA22: 125 | BB22: =SUMIFS('Dec Raw Data'!$BL:$BL,'Dec Raw Data'!$BU:$BU,"visuals",'Dec Raw Data'!$G:$G,'ASO View'!E22) -> 0 | BC22: 0% | BD22: 0% | BE22: 25 | BF22: =SUMIFS('Dec Raw Data'!$BL:$BL,'Dec Raw Data'!$BU:$BU,"visuals",'Dec Raw Data'!$G:$G,'ASO View'!E22,'Dec Raw Data'!$BS:$BS,"Premium") -> 0 | BG22: =IFERROR(BF22/BE22,0) -> 0% | BH22: 0% | BI22: - | BJ22: - | BK22: 0% | BM22: 35 | BN22: =IFERROR(VLOOKUP($E22,'Dec Pivot'!$A:$F,6,0),0) -> 0 | BO22: 0% | BP22: 0% | BQ22: 14 | BR22: =IFERROR(VLOOKUP($E22,'Dec Pivot'!$A:$F,5,0),0) -> 0 | BS22: 0% | BT22: 0% | BU22: 5.2 | BV22: =IFERROR(VLOOKUP($E22,'Dec Pivot'!$AF:$AH,3,0),0) -> 0 | BW22: 0% | BX22: 0% | BY22: 3 | BZ22: =IFERROR(VLOOKUP($E22,'Dec Pivot'!$AI:$AK,3,0),0) -> 0 | CA22: 0% | CB22: 0% | CC22: 2 | CD22: =IFERROR(VLOOKUP($E22,'Dec Pivot'!$AL:$AN,3,0),0) -> 0 | CE22: 0% | CF22: 0% | CG22: 9.45 | CH22: =IFERROR(VLOOKUP($E22,'Dec Pivot'!$J:$O,4,0),0) -> 0 | CI22: 0% | CJ22: 0% | CK22: 6.3 | CL22: =IFERROR(VLOOKUP($E22,'Dec Pivot'!$J:$O,3,0),0) -> 0 | CM22: 0% | CO22: 25 | CP22: =IFERROR(VLOOKUP($E22,'Dec Pivot'!$X:$AA,4,0),0) -> 0 | CQ22: 0% | CR22: 0% | CS22: 10 | CT22: =IFERROR(VLOOKUP(E22,'Dec Pivot'!$AB:$AD,3,0),0) -> 0 | CU22: 0% | CV22: 0% | CX22: =SUMIFS('Nov Raw Data'!$BL:$BL,'Nov Raw Data'!$G:$G,'ASO View'!E22,'Nov Raw Data'!$BX:$BX,"NB",'Nov Raw Data'!$CC:$CC,"MTD") -> 0 | CY22: =SUMIFS('Nov Raw Data'!$BL:$BL,'Nov Raw Data'!$G:$G,'ASO View'!E22,'Nov Raw Data'!$BX:$BX,"AIO",'Nov Raw Data'!$CC:$CC,"MTD") -> 0 | CZ22: =SUMIFS('Nov Raw Data'!$BL:$BL,'Nov Raw Data'!$G:$G,'ASO View'!E22,'Nov Raw Data'!$BX:$BX,"TDT",'Nov Raw Data'!$CC:$CC,"MTD") -> 0 | DA22: =SUMIFS('Nov Raw Data'!$BL:$BL,'Nov Raw Data'!$G:$G,'ASO View'!E22,'Nov Raw Data'!$BU:$BU,"consumer",'Nov Raw Data'!$CC:$CC,"MTD") -> 0 | DB22: =SUMIFS('Nov Raw Data'!$BL:$BL,'Nov Raw Data'!$G:$G,'ASO View'!$E22,'Nov Raw Data'!$BU:$BU,"consumer",'Nov Raw Data'!$BS:$BS,"Premium",'Nov Raw Data'!$CC:$CC,"MTD") -> 0 | DC22: =IFERROR(VLOOKUP(E22,'Nov Pivot'!$A:$F,5,0),0) -> 0 | DD22: =IFERROR(VLOOKUP(E22,'Nov Pivot'!$A:$F,4,0),0) -> 0 | DE22: =IFERROR(VLOOKUP($E22,'Nov Pivot'!$AD:$AF,2,0),0) -> 0 | DF22: =IFERROR(VLOOKUP($E22,'Nov Pivot'!$AD:$AF,3,0),0) -> 0 | DG22: =SUMIFS('Nov Raw Data'!$BY:$BY,'Nov Raw Data'!$BU:$BU,"Accessories",'Nov Raw Data'!$G:$G,'ASO View'!E22,'Nov Raw Data'!$CC:$CC,"MTD") -> 0.00 | DH22: =SUMIFS('Nov Raw Data'!$BL:$BL,'Nov Raw Data'!$G:$G,'ASO View'!E22,'Nov Raw Data'!$BU:$BU,"Visuals",'Nov Raw Data'!$CC:$CC,"MTD") -> 0 | DI22: =IFERROR(VLOOKUP(E22,'Nov Pivot'!$K:$P,2,0),0) -> 0 | DJ22: =IFERROR(VLOOKUP(E22,'Nov Pivot'!$K:$P,4,0),0) -> 0 | DK22: =SUMIFS('Nov Raw Data'!$BL:$BL,'Nov Raw Data'!$G:$G,'ASO View'!E22,'Nov Raw Data'!$BU:$BU,"Visuals",'Nov Raw Data'!$BS:$BS,"premium") -> 0 | DL22: =SUMIFS('Nov Raw Data'!$BL:$BL,'Nov Raw Data'!$G:$G,'ASO View'!$E22,'Nov Raw Data'!$BU:$BU,"consumer",'Nov Raw Data'!$BS:$BS,"Premium",'Nov Raw Data'!$CA:$CA,"SP",'Nov Raw Data'!$CC:$CC,"MTD") -> 0 | DM22: =SUMIFS('Nov Raw Data'!$BL:$BL,'Nov Raw Data'!$G:$G,'ASO View'!$E22,'Nov Raw Data'!$BU:$BU,"consumer",'Nov Raw Data'!$BS:$BS,"Premium",'Nov Raw Data'!$CA:$CA,"SP",'Nov Raw Data'!$CB:$CB,"Gaming",'Nov Raw Data'!$CC:$CC,"MTD") -> 0 | DN22: =SUMIFS('Nov Raw Data'!$BL:$BL,'Nov Raw Data'!$G:$G,'ASO View'!$E22,'Nov Raw Data'!$BU:$BU,"consumer",'Nov Raw Data'!$BS:$BS,"Premium",'Nov Raw Data'!$CA:$CA,"SP",'Nov Raw Data'!$CB:$CB,"Non-Gaming",'Nov Raw Data'!$CC:$CC,"MTD") -> 0 | DO22: =IFERROR(VLOOKUP($E22,'Nov Pivot'!$T:$U,2,0),0) -> 0 | DP22: =IFERROR(VLOOKUP($E22,'Nov Pivot'!$W:$X,2,0),0) -> 0 | DQ22: =IFERROR(VLOOKUP($E22,'Nov Pivot'!$Z:$AA,2,0),0) -> 0 | DS22: =IFERROR(VLOOKUP($E22,Kiran!A:C,3,0),0) -> 0
E23: V5456085 | F23: East 2 | G23: East2 | H23: Bihar | I23: Bhagalpur | J23: Rajesh Kumar | K23: Krishna Kumar Singh | L23: Imam Hassan | M23: Active | N23: 120 | O23: =SUMIFS('Dec Raw Data'!$BL:$BL,'Dec Raw Data'!$G:$G,'ASO View'!$E23,'Dec Raw Data'!$BX:$BX,"NB") -> 0 | P23: 0% | Q23: -100% | R23: 13 | S23: =SUMIFS('Dec Raw Data'!$BL:$BL,'Dec Raw Data'!$G:$G,'ASO View'!$E23,'Dec Raw Data'!$BX:$BX,"AIO") -> 0 | T23: 0% | U23: -100% | V23: 17 | W23: =SUMIFS('Dec Raw Data'!$BL:$BL,'Dec Raw Data'!$G:$G,'ASO View'!$E23,'Dec Raw Data'!$BX:$BX,"TDT") -> 0 | X23: 0% | Y23: 0% | Z23: 150 | AA23: =SUMIFS('Dec Raw Data'!$BL:$BL,'Dec Raw Data'!$G:$G,'ASO View'!$E23,'Dec Raw Data'!$BU:$BU,"Consumer") -> 0 | AB23: 0% | AC23: -100% | AD23: 23 | AE23: =SUMIFS('Dec Raw Data'!$BL:$BL,'Dec Raw Data'!$G:$G,'ASO View'!$E23,'Dec Raw Data'!$BX:$BX,"NB",'Dec Raw Data'!$BS:$BS,"premium") -> 0 | AF23: 0% | AG23: 30 | AH23: =SUMIFS('Dec Raw Data'!$BL:$BL,'Dec Raw Data'!$G:$G,'ASO View'!$E23,'Dec Raw Data'!$BU:$BU,"Consumer",'Dec Raw Data'!$BS:$BS,"premium") -> 0 | AI23: 0% | AJ23: -100% | AK23: 0.02 | AL23: =SUMIFS('Dec Raw Data'!$BY:$BY,'Dec Raw Data'!$BU:$BU,"Accessories",'Dec Raw Data'!$G:$G,'ASO View'!E23) -> 0.000 | AM23: 0% | AN23: -100% | AO23: 135 | AP23: =SUMIFS('Dec Raw Data'!$BL:$BL,'Dec Raw Data'!$G:$G,'ASO View'!$E23,'Dec Raw Data'!$BU:$BU,"Consumer",'Dec Raw Data'!$BS:$BS,"premium",'Dec Raw Data'!$BX:$BX,"NB",'Dec Raw Data'!$CA:$CA,"SP") -> 0 | AQ23: 0% | AR23: =IFERROR(AP23/DL23-1,0) -> -100% | AS23: 20 | AT23: =SUMIFS('Dec Raw Data'!$BL:$BL,'Dec Raw Data'!$G:$G,'ASO View'!$E23,'Dec Raw Data'!$BU:$BU,"Consumer",'Dec Raw Data'!$BS:$BS,"premium",'Dec Raw Data'!$BX:$BX,"NB",'Dec Raw Data'!$CB:$CB,"Gaming") -> 0 | AU23: 0% | AV23: -100% | AW23: 10 | AX23: =SUMIFS('Dec Raw Data'!$BL:$BL,'Dec Raw Data'!$G:$G,'ASO View'!$E23,'Dec Raw Data'!$BU:$BU,"Consumer",'Dec Raw Data'!$BS:$BS,"premium",'Dec Raw Data'!$BX:$BX,"NB",'Dec Raw Data'!$CB:$CB,"Non-Gaming") -> 0 | AY23: 0% | AZ23: -100% | BA23: 125 | BB23: =SUMIFS('Dec Raw Data'!$BL:$BL,'Dec Raw Data'!$BU:$BU,"visuals",'Dec Raw Data'!$G:$G,'ASO View'!E23) -> 0 | BC23: 0% | BD23: -100% | BE23: 25 | BF23: =SUMIFS('Dec Raw Data'!$BL:$BL,'Dec Raw Data'!$BU:$BU,"visuals",'Dec Raw Data'!$G:$G,'ASO View'!E23,'Dec Raw Data'!$BS:$BS,"Premium") -> 0 | BG23: 0% | BH23: -100% | BI23: 44 | BJ23: 0 | BK23: 0% | BM23: 40 | BN23: =IFERROR(VLOOKUP($E23,'Dec Pivot'!$A:$F,6,0),0) -> 0 | BO23: 0% | BP23: -100% | BQ23: 16 | BR23: =IFERROR(VLOOKUP($E23,'Dec Pivot'!$A:$F,5,0),0) -> 0 | BS23: 0% | BT23: -100% | BU23: 6 | BV23: =IFERROR(VLOOKUP($E23,'Dec Pivot'!$AF:$AH,3,0),0) -> 0 | BW23: 0% | BX23: 0% | BY23: 3 | BZ23: =IFERROR(VLOOKUP($E23,'Dec Pivot'!$AI:$AK,3,0),0) -> 0 | CA23: 0% | CB23: 0% | CC23: 3 | CD23: =IFERROR(VLOOKUP($E23,'Dec Pivot'!$AL:$AN,3,0),0) -> 0 | CE23: 0% | CF23: 0% | CG23: 10.8 | CH23: =IFERROR(VLOOKUP($E23,'Dec Pivot'!$J:$O,4,0),0) -> 0 | CI23: 0% | CJ23: 0% | CK23: 7.2 | CL23: =IFERROR(VLOOKUP($E23,'Dec Pivot'!$J:$O,3,0),0) -> 0 | CM23: 0% | CO23: 39 | CP23: =IFERROR(VLOOKUP($E23,'Dec Pivot'!$X:$AA,4,0),0) -> 0 | CQ23: 0% | CR23: 0% | CS23: 20 | CT23: =IFERROR(VLOOKUP(E23,'Dec Pivot'!$AB:$AD,3,0),0) -> 0 | CU23: 0% | CV23: 0% | CX23: =SUMIFS('Nov Raw Data'!$BL:$BL,'Nov Raw Data'!$G:$G,'ASO View'!E23,'Nov Raw Data'!$BX:$BX,"NB",'Nov Raw Data'!$CC:$CC,"MTD") -> 24 | CY23: =SUMIFS('Nov Raw Data'!$BL:$BL,'Nov Raw Data'!$G:$G,'ASO View'!E23,'Nov Raw Data'!$BX:$BX,"AIO",'Nov Raw Data'!$CC:$CC,"MTD") -> 6 | CZ23: =SUMIFS('Nov Raw Data'!$BL:$BL,'Nov Raw Data'!$G:$G,'ASO View'!E23,'Nov Raw Data'!$BX:$BX,"TDT",'Nov Raw Data'!$CC:$CC,"MTD") -> 0 | DA23: =SUMIFS('Nov Raw Data'!$BL:$BL,'Nov Raw Data'!$G:$G,'ASO View'!E23,'Nov Raw Data'!$BU:$BU,"consumer",'Nov Raw Data'!$CC:$CC,"MTD") -> 30 | DB23: =SUMIFS('Nov Raw Data'!$BL:$BL,'Nov Raw Data'!$G:$G,'ASO View'!$E23,'Nov Raw Data'!$BU:$BU,"consumer",'Nov Raw Data'!$BS:$BS,"Premium",'Nov Raw Data'!$CC:$CC,"MTD") -> 8 | DC23: =IFERROR(VLOOKUP(E23,'Nov Pivot'!$A:$F,5,0),0) -> 1 | DD23: =IFERROR(VLOOKUP(E23,'Nov Pivot'!$A:$F,4,0),0) -> 1 | DE23: =IFERROR(VLOOKUP($E23,'Nov Pivot'!$AD:$AF,2,0),0) -> 0 | DF23: =IFERROR(VLOOKUP($E23,'Nov Pivot'!$AD:$AF,3,0),0) -> 0 | DG23: =SUMIFS('Nov Raw Data'!$BY:$BY,'Nov Raw Data'!$BU:$BU,"Accessories",'Nov Raw Data'!$G:$G,'ASO View'!E23,'Nov Raw Data'!$CC:$CC,"MTD") -> 0.00 | DH23: =SUMIFS('Nov Raw Data'!$BL:$BL,'Nov Raw Data'!$G:$G,'ASO View'!E23,'Nov Raw Data'!$BU:$BU,"Visuals",'Nov Raw Data'!$CC:$CC,"MTD") -> 19 | DI23: =IFERROR(VLOOKUP(E23,'Nov Pivot'!$K:$P,2,0),0) -> 0 | DJ23: =IFERROR(VLOOKUP(E23,'Nov Pivot'!$K:$P,4,0),0) -> 0 | DK23: =SUMIFS('Nov Raw Data'!$BL:$BL,'Nov Raw Data'!$G:$G,'ASO View'!E23,'Nov Raw Data'!$BU:$BU,"Visuals",'Nov Raw Data'!$BS:$BS,"premium") -> 6 | DL23: =SUMIFS('Nov Raw Data'!$BL:$BL,'Nov Raw Data'!$G:$G,'ASO View'!$E23,'Nov Raw Data'!$BU:$BU,"consumer",'Nov Raw Data'!$BS:$BS,"Premium",'Nov Raw Data'!$CA:$CA,"SP",'Nov Raw Data'!$CC:$CC,"MTD") -> 2 | DM23: =SUMIFS('Nov Raw Data'!$BL:$BL,'Nov Raw Data'!$G:$G,'ASO View'!$E23,'Nov Raw Data'!$BU:$BU,"consumer",'Nov Raw Data'!$BS:$BS,"Premium",'Nov Raw Data'!$CA:$CA,"SP",'Nov Raw Data'!$CB:$CB,"Gaming",'Nov Raw Data'!$CC:$CC,"MTD") -> 1 | DN23: =SUMIFS('Nov Raw Data'!$BL:$BL,'Nov Raw Data'!$G:$G,'ASO View'!$E23,'Nov Raw Data'!$BU:$BU,"consumer",'Nov Raw Data'!$BS:$BS,"Premium",'Nov Raw Data'!$CA:$CA,"SP",'Nov Raw Data'!$CB:$CB,"Non-Gaming",'Nov Raw Data'!$CC:$CC,"MTD") -> 1 | DO23: =IFERROR(VLOOKUP($E23,'Nov Pivot'!$T:$U,2,0),0) -> 0 | DP23: =IFERROR(VLOOKUP($E23,'Nov Pivot'!$W:$X,2,0),0) -> 0 | DQ23: =IFERROR(VLOOKUP($E23,'Nov Pivot'!$Z:$AA,2,0),0) -> 0 | DS23: =IFERROR(VLOOKUP($E23,Kiran!A:C,3,0),0) -> 0
E24: 601537 | F24: East 2 | G24: East2 | H24: Jharkhand | I24: Ranchi | J24: Saurav Kumar | K24: Krishna Kumar Singh | L24: Imam Hassan | M24: Active | N24: 120 | O24: =SUMIFS('Dec Raw Data'!$BL:$BL,'Dec Raw Data'!$G:$G,'ASO View'!$E24,'Dec Raw Data'!$BX:$BX,"NB") -> 7 | P24: 6% | Q24: -91% | R24: 13 | S24: =SUMIFS('Dec Raw Data'!$BL:$BL,'Dec Raw Data'!$G:$G,'ASO View'!$E24,'Dec Raw Data'!$BX:$BX,"AIO") -> 0 | T24: 0% | U24: -100% | V24: 17 | W24: =SUMIFS('Dec Raw Data'!$BL:$BL,'Dec Raw Data'!$G:$G,'ASO View'!$E24,'Dec Raw Data'!$BX:$BX,"TDT") -> 0 | X24: 0% | Y24: -100% | Z24: 150 | AA24: =SUMIFS('Dec Raw Data'!$BL:$BL,'Dec Raw Data'!$G:$G,'ASO View'!$E24,'Dec Raw Data'!$BU:$BU,"Consumer") -> 7 | AB24: 5% | AC24: -95% | AD24: 23 | AE24: =SUMIFS('Dec Raw Data'!$BL:$BL,'Dec Raw Data'!$G:$G,'ASO View'!$E24,'Dec Raw Data'!$BX:$BX,"NB",'Dec Raw Data'!$BS:$BS,"premium") -> 1 | AF24: 4% | AG24: 30 | AH24: =SUMIFS('Dec Raw Data'!$BL:$BL,'Dec Raw Data'!$G:$G,'ASO View'!$E24,'Dec Raw Data'!$BU:$BU,"Consumer",'Dec Raw Data'!$BS:$BS,"premium") -> 1 | AI24: 3% | AJ24: -99% | AK24: 0.008 | AL24: =SUMIFS('Dec Raw Data'!$BY:$BY,'Dec Raw Data'!$BU:$BU,"Accessories",'Dec Raw Data'!$G:$G,'ASO View'!E24) -> 0.000 | AM24: 0% | AN24: =IFERROR(AL24/DG24-1,0) -> -100% | AO24: 78 | AP24: =SUMIFS('Dec Raw Data'!$BL:$BL,'Dec Raw Data'!$G:$G,'ASO View'!$E24,'Dec Raw Data'!$BU:$BU,"Consumer",'Dec Raw Data'!$BS:$BS,"premium",'Dec Raw Data'!$BX:$BX,"NB",'Dec Raw Data'!$CA:$CA,"SP") -> 1 | AQ24: =IFERROR(AP24/AO24,0) -> 1% | AR24: =IFERROR(AP24/DL24-1,0) -> -97% | AS24: 20 | AT24: =SUMIFS('Dec Raw Data'!$BL:$BL,'Dec Raw Data'!$G:$G,'ASO View'!$E24,'Dec Raw Data'!$BU:$BU,"Consumer",'Dec Raw Data'!$BS:$BS,"premium",'Dec Raw Data'!$BX:$BX,"NB",'Dec Raw Data'!$CB:$CB,"Gaming") -> 1 | AU24: 5% | AV24: -92% | AW24: 10 | AX24: =SUMIFS('Dec Raw Data'!$BL:$BL,'Dec Raw Data'!$G:$G,'ASO View'!$E24,'Dec Raw Data'!$BU:$BU,"Consumer",'Dec Raw Data'!$BS:$BS,"premium",'Dec Raw Data'!$BX:$BX,"NB",'Dec Raw Data'!$CB:$CB,"Non-Gaming") -> 0 | AY24: 0% | AZ24: -100% | BA24: 125 | BB24: =SUMIFS('Dec Raw Data'!$BL:$BL,'Dec Raw Data'!$BU:$BU,"visuals",'Dec Raw Data'!$G:$G,'ASO View'!E24) -> 0 | BC24: 0% | BD24: -100% | BE24: 25 | BF24: =SUMIFS('Dec Raw Data'!$BL:$BL,'Dec Raw Data'!$BU:$BU,"visuals",'Dec Raw Data'!$G:$G,'ASO View'!E24,'Dec Raw Data'!$BS:$BS,"Premium") -> 0 | BG24: =IFERROR(BF24/BE24,0) -> 0% | BH24: =IFERROR(BF24/DK24-1,0) -> -100% | BI24: - | BJ24: - | BK24: =IFERROR(BJ24/BI24,0) -> 0% | BM24: 30 | BN24: =IFERROR(VLOOKUP($E24,'Dec Pivot'!$A:$F,6,0),0) -> 6 | BO24: 20% | BP24: 0% | BQ24: 12 | BR24: =IFERROR(VLOOKUP($E24,'Dec Pivot'!$A:$F,5,0),0) -> 1 | BS24: 8% | BT24: 0% | BU24: 4.4 | BV24: =IFERROR(VLOOKUP($E24,'Dec Pivot'!$AF:$AH,3,0),0) -> 0 | BW24: =IFERROR(BV24/BU24,0) -> 0% | BX24: =IFERROR(BV24/DO24-1,0) -> 0% | BY24: 2 | BZ24: =IFERROR(VLOOKUP($E24,'Dec Pivot'!$AI:$AK,3,0),0) -> 1 | CA24: =IFERROR(BZ24/BY24,0) -> 50% | CB24: =IFERROR(BZ24/DP24-1,0) -> 0% | CC24: 2 | CD24: =IFERROR(VLOOKUP($E24,'Dec Pivot'!$AL:$AN,3,0),0) -> 1 | CE24: =IFERROR(CD24/CC24,0) -> 50% | CF24: =IFERROR(CD24/DQ24-1,0) -> 0% | CG24: 8.1 | CH24: =IFERROR(VLOOKUP($E24,'Dec Pivot'!$J:$O,4,0),0) -> 0 | CI24: 0% | CJ24: =IFERROR(CH24/DF24-1,0) -> 0% | CK24: 5.4 | CL24: =IFERROR(VLOOKUP($E24,'Dec Pivot'!$J:$O,3,0),0) -> 0 | CM24: 0% | CO24: 25 | CP24: =IFERROR(VLOOKUP($E24,'Dec Pivot'!$X:$AA,4,0),0) -> 0 | CQ24: 0% | CR24: 0% | CS24: 10 | CT24: =IFERROR(VLOOKUP(E24,'Dec Pivot'!$AB:$AD,3,0),0) -> 0 | CU24: 0% | CV24: 0% | CX24: =SUMIFS('Nov Raw Data'!$BL:$BL,'Nov Raw Data'!$G:$G,'ASO View'!E24,'Nov Raw Data'!$BX:$BX,"NB",'Nov Raw Data'!$CC:$CC,"MTD") -> 79 | CY24: =SUMIFS('Nov Raw Data'!$BL:$BL,'Nov Raw Data'!$G:$G,'ASO View'!E24,'Nov Raw Data'!$BX:$BX,"AIO",'Nov Raw Data'!$CC:$CC,"MTD") -> 2 | CZ24: =SUMIFS('Nov Raw Data'!$BL:$BL,'Nov Raw Data'!$G:$G,'ASO View'!E24,'Nov Raw Data'!$BX:$BX,"TDT",'Nov Raw Data'!$CC:$CC,"MTD") -> 64 | DA24: =SUMIFS('Nov Raw Data'!$BL:$BL,'Nov Raw Data'!$G:$G,'ASO View'!E24,'Nov Raw Data'!$BU:$BU,"consumer",'Nov Raw Data'!$CC:$CC,"MTD") -> 145 | DB24: =SUMIFS('Nov Raw Data'!$BL:$BL,'Nov Raw Data'!$G:$G,'ASO View'!$E24,'Nov Raw Data'!$BU:$BU,"consumer",'Nov Raw Data'!$BS:$BS,"Premium",'Nov Raw Data'!$CC:$CC,"MTD") -> 111 | DC24: =IFERROR(VLOOKUP(E24,'Nov Pivot'!$A:$F,5,0),0) -> 0 | DD24: =IFERROR(VLOOKUP(E24,'Nov Pivot'!$A:$F,4,0),0) -> 0 | DE24: =IFERROR(VLOOKUP($E24,'Nov Pivot'!$AD:$AF,2,0),0) -> 0 | DF24: =IFERROR(VLOOKUP($E24,'Nov Pivot'!$AD:$AF,3,0),0) -> 0 | DG24: =SUMIFS('Nov Raw Data'!$BY:$BY,'Nov Raw Data'!$BU:$BU,"Accessories",'Nov Raw Data'!$G:$G,'ASO View'!E24,'Nov Raw Data'!$CC:$CC,"MTD") -> 0.00 | DH24: =SUMIFS('Nov Raw Data'!$BL:$BL,'Nov Raw Data'!$G:$G,'ASO View'!E24,'Nov Raw Data'!$BU:$BU,"Visuals",'Nov Raw Data'!$CC:$CC,"MTD") -> 12 | DI24: =IFERROR(VLOOKUP(E24,'Nov Pivot'!$K:$P,2,0),0) -> 0 | DJ24: =IFERROR(VLOOKUP(E24,'Nov Pivot'!$K:$P,4,0),0) -> 0 | DK24: =SUMIFS('Nov Raw Data'!$BL:$BL,'Nov Raw Data'!$G:$G,'ASO View'!E24,'Nov Raw Data'!$BU:$BU,"Visuals",'Nov Raw Data'!$BS:$BS,"premium") -> 1 | DL24: =SUMIFS('Nov Raw Data'!$BL:$BL,'Nov Raw Data'!$G:$G,'ASO View'!$E24,'Nov Raw Data'!$BU:$BU,"consumer",'Nov Raw Data'!$BS:$BS,"Premium",'Nov Raw Data'!$CA:$CA,"SP",'Nov Raw Data'!$CC:$CC,"MTD") -> 30 | DM24: =SUMIFS('Nov Raw Data'!$BL:$BL,'Nov Raw Data'!$G:$G,'ASO View'!$E24,'Nov Raw Data'!$BU:$BU,"consumer",'Nov Raw Data'!$BS:$BS,"Premium",'Nov Raw Data'!$CA:$CA,"SP",'Nov Raw Data'!$CB:$CB,"Gaming",'Nov Raw Data'!$CC:$CC,"MTD") -> 12 | DN24: =SUMIFS('Nov Raw Data'!$BL:$BL,'Nov Raw Data'!$G:$G,'ASO View'!$E24,'Nov Raw Data'!$BU:$BU,"consumer",'Nov Raw Data'!$BS:$BS,"Premium",'Nov Raw Data'!$CA:$CA,"SP",'Nov Raw Data'!$CB:$CB,"Non-Gaming",'Nov Raw Data'!$CC:$CC,"MTD") -> 18 | DO24: =IFERROR(VLOOKUP($E24,'Nov Pivot'!$T:$U,2,0),0) -> 0 | DP24: =IFERROR(VLOOKUP($E24,'Nov Pivot'!$W:$X,2,0),0) -> 0 | DQ24: =IFERROR(VLOOKUP($E24,'Nov Pivot'!$Z:$AA,2,0),0) -> 0 | DS24: =IFERROR(VLOOKUP($E24,Kiran!A:C,3,0),0) -> 1
E25: V5462337 | F25: North 1 | G25: North1 | H25: Delhi | I25: Delhi | J25: Furkan | K25: Kanwaldeep Singh | L25: Gaurav Sharma | M25: Active | N25: 176 | O25: =SUMIFS('Dec Raw Data'!$BL:$BL,'Dec Raw Data'!$G:$G,'ASO View'!$E25,'Dec Raw Data'!$BX:$BX,"NB") -> 7 | P25: 4% | Q25: -92% | R25: 19 | S25: =SUMIFS('Dec Raw Data'!$BL:$BL,'Dec Raw Data'!$G:$G,'ASO View'!$E25,'Dec Raw Data'!$BX:$BX,"AIO") -> 6 | T25: 32% | U25: -76% | V25: 25 | W25: =SUMIFS('Dec Raw Data'!$BL:$BL,'Dec Raw Data'!$G:$G,'ASO View'!$E25,'Dec Raw Data'!$BX:$BX,"TDT") -> 6 | X25: 24% | Y25: -67% | Z25: 220 | AA25: =SUMIFS('Dec Raw Data'!$BL:$BL,'Dec Raw Data'!$G:$G,'ASO View'!$E25,'Dec Raw Data'!$BU:$BU,"Consumer") -> 19 | AB25: 9% | AC25: -86% | AD25: 33 | AE25: =SUMIFS('Dec Raw Data'!$BL:$BL,'Dec Raw Data'!$G:$G,'ASO View'!$E25,'Dec Raw Data'!$BX:$BX,"NB",'Dec Raw Data'!$BS:$BS,"premium") -> 4 | AF25: 12% | AG25: 44 | AH25: =SUMIFS('Dec Raw Data'!$BL:$BL,'Dec Raw Data'!$G:$G,'ASO View'!$E25,'Dec Raw Data'!$BU:$BU,"Consumer",'Dec Raw Data'!$BS:$BS,"premium") -> 5 | AI25: 11% | AJ25: -81% | AK25: 0.02 | AL25: =SUMIFS('Dec Raw Data'!$BY:$BY,'Dec Raw Data'!$BU:$BU,"Accessories",'Dec Raw Data'!$G:$G,'ASO View'!E25) -> 0.000 | AM25: 0% | AN25: 0% | AO25: 25 | AP25: =SUMIFS('Dec Raw Data'!$BL:$BL,'Dec Raw Data'!$G:$G,'ASO View'!$E25,'Dec Raw Data'!$BU:$BU,"Consumer",'Dec Raw Data'!$BS:$BS,"premium",'Dec Raw Data'!$BX:$BX,"NB",'Dec Raw Data'!$CA:$CA,"SP") -> 4 | AQ25: 16% | AR25: =IFERROR(AP25/DL25-1,0) -> 33% | AS25: 29 | AT25: =SUMIFS('Dec Raw Data'!$BL:$BL,'Dec Raw Data'!$G:$G,'ASO View'!$E25,'Dec Raw Data'!$BU:$BU,"Consumer",'Dec Raw Data'!$BS:$BS,"premium",'Dec Raw Data'!$BX:$BX,"NB",'Dec Raw Data'!$CB:$CB,"Gaming") -> 3 | AU25: 10% | AV25: 200% | AW25: 15 | AX25: =SUMIFS('Dec Raw Data'!$BL:$BL,'Dec Raw Data'!$G:$G,'ASO View'!$E25,'Dec Raw Data'!$BU:$BU,"Consumer",'Dec Raw Data'!$BS:$BS,"premium",'Dec Raw Data'!$BX:$BX,"NB",'Dec Raw Data'!$CB:$CB,"Non-Gaming") -> 1 | AY25: 7% | AZ25: -50% | BA25: 125 | BB25: =SUMIFS('Dec Raw Data'!$BL:$BL,'Dec Raw Data'!$BU:$BU,"visuals",'Dec Raw Data'!$G:$G,'ASO View'!E25) -> 0 | BC25: 0% | BD25: 0% | BE25: 25 | BF25: =SUMIFS('Dec Raw Data'!$BL:$BL,'Dec Raw Data'!$BU:$BU,"visuals",'Dec Raw Data'!$G:$G,'ASO View'!E25,'Dec Raw Data'!$BS:$BS,"Premium") -> 0 | BG25: 0% | BH25: 0% | BI25: 30 | BJ25: - | BK25: 0% | BM25: 55 | BN25: =IFERROR(VLOOKUP($E25,'Dec Pivot'!$A:$F,6,0),0) -> 12 | BO25: 22% | BP25: 0% | BQ25: 22 | BR25: =IFERROR(VLOOKUP($E25,'Dec Pivot'!$A:$F,5,0),0) -> 4 | BS25: 18% | BT25: 300% | BU25: 8.2 | BV25: =IFERROR(VLOOKUP($E25,'Dec Pivot'!$AF:$AH,3,0),0) -> 3 | BW25: 37% | BX25: 0% | BY25: 4 | BZ25: =IFERROR(VLOOKUP($E25,'Dec Pivot'!$AI:$AK,3,0),0) -> 3 | CA25: 75% | CB25: 0% | CC25: 4 | CD25: =IFERROR(VLOOKUP($E25,'Dec Pivot'!$AL:$AN,3,0),0) -> 3 | CE25: 75% | CF25: 0% | CG25: 14.85 | CH25: =IFERROR(VLOOKUP($E25,'Dec Pivot'!$J:$O,4,0),0) -> 3 | CI25: 20% | CJ25: 0% | CK25: 9.9 | CL25: =IFERROR(VLOOKUP($E25,'Dec Pivot'!$J:$O,3,0),0) -> 6 | CM25: 61% | CO25: 35.75 | CP25: =IFERROR(VLOOKUP($E25,'Dec Pivot'!$X:$AA,4,0),0) -> 0 | CQ25: 0% | CR25: 0% | CS25: 20 | CT25: =IFERROR(VLOOKUP(E25,'Dec Pivot'!$AB:$AD,3,0),0) -> 0 | CU25: 0% | CV25: 0% | CX25: =SUMIFS('Nov Raw Data'!$BL:$BL,'Nov Raw Data'!$G:$G,'ASO View'!E25,'Nov Raw Data'!$BX:$BX,"NB",'Nov Raw Data'!$CC:$CC,"MTD") -> 93 | CY25: =SUMIFS('Nov Raw Data'!$BL:$BL,'Nov Raw Data'!$G:$G,'ASO View'!E25,'Nov Raw Data'!$BX:$BX,"AIO",'Nov Raw Data'!$CC:$CC,"MTD") -> 25 | CZ25: =SUMIFS('Nov Raw Data'!$BL:$BL,'Nov Raw Data'!$G:$G,'ASO View'!E25,'Nov Raw Data'!$BX:$BX,"TDT",'Nov Raw Data'!$CC:$CC,"MTD") -> 18 | DA25: =SUMIFS('Nov Raw Data'!$BL:$BL,'Nov Raw Data'!$G:$G,'ASO View'!E25,'Nov Raw Data'!$BU:$BU,"consumer",'Nov Raw Data'!$CC:$CC,"MTD") -> 136 | DB25: =SUMIFS('Nov Raw Data'!$BL:$BL,'Nov Raw Data'!$G:$G,'ASO View'!$E25,'Nov Raw Data'!$BU:$BU,"consumer",'Nov Raw Data'!$BS:$BS,"Premium",'Nov Raw Data'!$CC:$CC,"MTD") -> 27 | DC25: =IFERROR(VLOOKUP(E25,'Nov Pivot'!$A:$F,5,0),0) -> 0 | DD25: =IFERROR(VLOOKUP(E25,'Nov Pivot'!$A:$F,4,0),0) -> 1 | DE25: =IFERROR(VLOOKUP($E25,'Nov Pivot'!$AD:$AF,2,0),0) -> 0 | DF25: =IFERROR(VLOOKUP($E25,'Nov Pivot'!$AD:$AF,3,0),0) -> 0 | DG25: =SUMIFS('Nov Raw Data'!$BY:$BY,'Nov Raw Data'!$BU:$BU,"Accessories",'Nov Raw Data'!$G:$G,'ASO View'!E25,'Nov Raw Data'!$CC:$CC,"MTD") -> 0.00 | DH25: =SUMIFS('Nov Raw Data'!$BL:$BL,'Nov Raw Data'!$G:$G,'ASO View'!E25,'Nov Raw Data'!$BU:$BU,"Visuals",'Nov Raw Data'!$CC:$CC,"MTD") -> 0 | DI25: =IFERROR(VLOOKUP(E25,'Nov Pivot'!$K:$P,2,0),0) -> 0 | DJ25: =IFERROR(VLOOKUP(E25,'Nov Pivot'!$K:$P,4,0),0) -> 0 | DK25: =SUMIFS('Nov Raw Data'!$BL:$BL,'Nov Raw Data'!$G:$G,'ASO View'!E25,'Nov Raw Data'!$BU:$BU,"Visuals",'Nov Raw Data'!$BS:$BS,"premium") -> 0 | DL25: =SUMIFS('Nov Raw Data'!$BL:$BL,'Nov Raw Data'!$G:$G,'ASO View'!$E25,'Nov Raw Data'!$BU:$BU,"consumer",'Nov Raw Data'!$BS:$BS,"Premium",'Nov Raw Data'!$CA:$CA,"SP",'Nov Raw Data'!$CC:$CC,"MTD") -> 3 | DM25: =SUMIFS('Nov Raw Data'!$BL:$BL,'Nov Raw Data'!$G:$G,'ASO View'!$E25,'Nov Raw Data'!$BU:$BU,"consumer",'Nov Raw Data'!$BS:$BS,"Premium",'Nov Raw Data'!$CA:$CA,"SP",'Nov Raw Data'!$CB:$CB,"Gaming",'Nov Raw Data'!$CC:$CC,"MTD") -> 1 | DN25: =SUMIFS('Nov Raw Data'!$BL:$BL,'Nov Raw Data'!$G:$G,'ASO View'!$E25,'Nov Raw Data'!$BU:$BU,"consumer",'Nov Raw Data'!$BS:$BS,"Premium",'Nov Raw Data'!$CA:$CA,"SP",'Nov Raw Data'!$CB:$CB,"Non-Gaming",'Nov Raw Data'!$CC:$CC,"MTD") -> 2 | DO25: =IFERROR(VLOOKUP($E25,'Nov Pivot'!$T:$U,2,0),0) -> 0 | DP25: =IFERROR(VLOOKUP($E25,'Nov Pivot'!$W:$X,2,0),0) -> 0 | DQ25: =IFERROR(VLOOKUP($E25,'Nov Pivot'!$Z:$AA,2,0),0) -> 0 | DS25: =IFERROR(VLOOKUP($E25,Kiran!A:C,3,0),0) -> 3
E26: 601341 | F26: North 1 | G26: North1 | H26: Delhi | I26: Delhi | J26: Prateek Verma | K26: Kanwaldeep Singh | L26: Gaurav Sharma | M26: Active | N26: 200 | O26: =SUMIFS('Dec Raw Data'!$BL:$BL,'Dec Raw Data'!$G:$G,'ASO View'!$E26,'Dec Raw Data'!$BX:$BX,"NB") -> 2 | P26: 1% | Q26: -99% | R26: 22 | S26: =SUMIFS('Dec Raw Data'!$BL:$BL,'Dec Raw Data'!$G:$G,'ASO View'!$E26,'Dec Raw Data'!$BX:$BX,"AIO") -> 2 | T26: 9% | U26: -60% | V26: 28 | W26: =SUMIFS('Dec Raw Data'!$BL:$BL,'Dec Raw Data'!$G:$G,'ASO View'!$E26,'Dec Raw Data'!$BX:$BX,"TDT") -> 2 | X26: 7% | Y26: -67% | Z26: 250 | AA26: =SUMIFS('Dec Raw Data'!$BL:$BL,'Dec Raw Data'!$G:$G,'ASO View'!$E26,'Dec Raw Data'!$BU:$BU,"Consumer") -> 6 | AB26: 2% | AC26: -98% | AD26: 38 | AE26: =SUMIFS('Dec Raw Data'!$BL:$BL,'Dec Raw Data'!$G:$G,'ASO View'!$E26,'Dec Raw Data'!$BX:$BX,"NB",'Dec Raw Data'!$BS:$BS,"premium") -> 1 | AF26: 3% | AG26: 50 | AH26: =SUMIFS('Dec Raw Data'!$BL:$BL,'Dec Raw Data'!$G:$G,'ASO View'!$E26,'Dec Raw Data'!$BU:$BU,"Consumer",'Dec Raw Data'!$BS:$BS,"premium") -> 3 | AI26: 6% | AJ26: -98% | AK26: 0.008 | AL26: =SUMIFS('Dec Raw Data'!$BY:$BY,'Dec Raw Data'!$BU:$BU,"Accessories",'Dec Raw Data'!$G:$G,'ASO View'!E26) -> 0.000 | AM26: =IFERROR(AL26/AK26,0) -> 0% | AN26: =IFERROR(AL26/DG26-1,0) -> 0% | AO26: 35 | AP26: =SUMIFS('Dec Raw Data'!$BL:$BL,'Dec Raw Data'!$G:$G,'ASO View'!$E26,'Dec Raw Data'!$BU:$BU,"Consumer",'Dec Raw Data'!$BS:$BS,"premium",'Dec Raw Data'!$BX:$BX,"NB",'Dec Raw Data'!$CA:$CA,"SP") -> 1 | AQ26: =IFERROR(AP26/AO26,0) -> 3% | AR26: =IFERROR(AP26/DL26-1,0) -> -94% | AS26: 33 | AT26: =SUMIFS('Dec Raw Data'!$BL:$BL,'Dec Raw Data'!$G:$G,'ASO View'!$E26,'Dec Raw Data'!$BU:$BU,"Consumer",'Dec Raw Data'!$BS:$BS,"premium",'Dec Raw Data'!$BX:$BX,"NB",'Dec Raw Data'!$CB:$CB,"Gaming") -> 0 | AU26: 0% | AV26: -100% | AW26: 17 | AX26: =SUMIFS('Dec Raw Data'!$BL:$BL,'Dec Raw Data'!$G:$G,'ASO View'!$E26,'Dec Raw Data'!$BU:$BU,"Consumer",'Dec Raw Data'!$BS:$BS,"premium",'Dec Raw Data'!$BX:$BX,"NB",'Dec Raw Data'!$CB:$CB,"Non-Gaming") -> 1 | AY26: 6% | AZ26: -86% | BA26: 125 | BB26: =SUMIFS('Dec Raw Data'!$BL:$BL,'Dec Raw Data'!$BU:$BU,"visuals",'Dec Raw Data'!$G:$G,'ASO View'!E26) -> 0 | BC26: =IFERROR(BB26/BA26,0) -> 0% | BD26: =IFERROR(BB26/DH26-1,0) -> 0% | BE26: 25 | BF26: =SUMIFS('Dec Raw Data'!$BL:$BL,'Dec Raw Data'!$BU:$BU,"visuals",'Dec Raw Data'!$G:$G,'ASO View'!E26,'Dec Raw Data'!$BS:$BS,"Premium") -> 0 | BG26: =IFERROR(BF26/BE26,0) -> 0% | BH26: =IFERROR(BF26/DK26-1,0) -> 0% | BI26: 30 | BJ26: - | BK26: =IFERROR(BJ26/BI26,0) -> 0% | BM26: 50 | BN26: =IFERROR(VLOOKUP($E26,'Dec Pivot'!$A:$F,6,0),0) -> 4 | BO26: =IFERROR(BN26/BM26,0) -> 8% | BP26: =IFERROR(BN26/DC26-1,0) -> 0% | BQ26: 20 | BR26: =IFERROR(VLOOKUP($E26,'Dec Pivot'!$A:$F,5,0),0) -> 2 | BS26: =IFERROR(BR26/BQ26,0) -> 10% | BT26: =IFERROR(BR26/DD26-1,0) -> 0% | BU26: 7.4 | BV26: =IFERROR(VLOOKUP($E26,'Dec Pivot'!$AF:$AH,3,0),0) -> 0 | BW26: =IFERROR(BV26/BU26,0) -> 0% | BX26: =IFERROR(BV26/DO26-1,0) -> 0% | BY26: 4 | BZ26: =IFERROR(VLOOKUP($E26,'Dec Pivot'!$AI:$AK,3,0),0) -> 1 | CA26: =IFERROR(BZ26/BY26,0) -> 25% | CB26: =IFERROR(BZ26/DP26-1,0) -> 0% | CC26: 3 | CD26: =IFERROR(VLOOKUP($E26,'Dec Pivot'!$AL:$AN,3,0),0) -> 1 | CE26: =IFERROR(CD26/CC26,0) -> 33% | CF26: =IFERROR(CD26/DQ26-1,0) -> 0% | CG26: 13.5 | CH26: =IFERROR(VLOOKUP($E26,'Dec Pivot'!$J:$O,4,0),0) -> 1 | CI26: =IFERROR(CH26/CG26,0) -> 7% | CJ26: 0% | CK26: 9 | CL26: =IFERROR(VLOOKUP($E26,'Dec Pivot'!$J:$O,3,0),0) -> 1 | CM26: =IFERROR(CL26/CK26,0) -> 11% | CO26: 25 | CP26: =IFERROR(VLOOKUP($E26,'Dec Pivot'!$X:$AA,4,0),0) -> 0 | CQ26: =IFERROR(CP26/CO26,0) -> 0% | CR26: =IFERROR(CP26/DI26-1,0) -> 0% | CS26: 10 | CT26: =IFERROR(VLOOKUP(E26,'Dec Pivot'!$AB:$AD,3,0),0) -> 0 | CU26: =IFERROR(CT26/CS26,0) -> 0% | CV26: =IFERROR(CT26/DJ26-1,0) -> 0% | CX26: =SUMIFS('Nov Raw Data'!$BL:$BL,'Nov Raw Data'!$G:$G,'ASO View'!E26,'Nov Raw Data'!$BX:$BX,"NB",'Nov Raw Data'!$CC:$CC,"MTD") -> 239 | CY26: =SUMIFS('Nov Raw Data'!$BL:$BL,'Nov Raw Data'!$G:$G,'ASO View'!E26,'Nov Raw Data'!$BX:$BX,"AIO",'Nov Raw Data'!$CC:$CC,"MTD") -> 5 | CZ26: =SUMIFS('Nov Raw Data'!$BL:$BL,'Nov Raw Data'!$G:$G,'ASO View'!E26,'Nov Raw Data'!$BX:$BX,"TDT",'Nov Raw Data'!$CC:$CC,"MTD") -> 6 | DA26: =SUMIFS('Nov Raw Data'!$BL:$BL,'Nov Raw Data'!$G:$G,'ASO View'!E26,'Nov Raw Data'!$BU:$BU,"consumer",'Nov Raw Data'!$CC:$CC,"MTD") -> 250 | DB26: =SUMIFS('Nov Raw Data'!$BL:$BL,'Nov Raw Data'!$G:$G,'ASO View'!$E26,'Nov Raw Data'!$BU:$BU,"consumer",'Nov Raw Data'!$BS:$BS,"Premium",'Nov Raw Data'!$CC:$CC,"MTD") -> 148 | DC26: =IFERROR(VLOOKUP(E26,'Nov Pivot'!$A:$F,5,0),0) -> 0 | DD26: =IFERROR(VLOOKUP(E26,'Nov Pivot'!$A:$F,4,0),0) -> 0 | DE26: =IFERROR(VLOOKUP($E26,'Nov Pivot'!$AD:$AF,2,0),0) -> 0 | DF26: =IFERROR(VLOOKUP($E26,'Nov Pivot'!$AD:$AF,3,0),0) -> 0 | DG26: =SUMIFS('Nov Raw Data'!$BY:$BY,'Nov Raw Data'!$BU:$BU,"Accessories",'Nov Raw Data'!$G:$G,'ASO View'!E26,'Nov Raw Data'!$CC:$CC,"MTD") -> 0.00 | DH26: =SUMIFS('Nov Raw Data'!$BL:$BL,'Nov Raw Data'!$G:$G,'ASO View'!E26,'Nov Raw Data'!$BU:$BU,"Visuals",'Nov Raw Data'!$CC:$CC,"MTD") -> 0 | DI26: =IFERROR(VLOOKUP(E26,'Nov Pivot'!$K:$P,2,0),0) -> 0 | DJ26: =IFERROR(VLOOKUP(E26,'Nov Pivot'!$K:$P,4,0),0) -> 0 | DK26: =SUMIFS('Nov Raw Data'!$BL:$BL,'Nov Raw Data'!$G:$G,'ASO View'!E26,'Nov Raw Data'!$BU:$BU,"Visuals",'Nov Raw Data'!$BS:$BS,"premium") -> 0 | DL26: =SUMIFS('Nov Raw Data'!$BL:$BL,'Nov Raw Data'!$G:$G,'ASO View'!$E26,'Nov Raw Data'!$BU:$BU,"consumer",'Nov Raw Data'!$BS:$BS,"Premium",'Nov Raw Data'!$CA:$CA,"SP",'Nov Raw Data'!$CC:$CC,"MTD") -> 16 | DM26: =SUMIFS('Nov Raw Data'!$BL:$BL,'Nov Raw Data'!$G:$G,'ASO View'!$E26,'Nov Raw Data'!$BU:$BU,"consumer",'Nov Raw Data'!$BS:$BS,"Premium",'Nov Raw Data'!$CA:$CA,"SP",'Nov Raw Data'!$CB:$CB,"Gaming",'Nov Raw Data'!$CC:$CC,"MTD") -> 9 | DN26: =SUMIFS('Nov Raw Data'!$BL:$BL,'Nov Raw Data'!$G:$G,'ASO View'!$E26,'Nov Raw Data'!$BU:$BU,"consumer",'Nov Raw Data'!$BS:$BS,"Premium",'Nov Raw Data'!$CA:$CA,"SP",'Nov Raw Data'!$CB:$CB,"Non-Gaming",'Nov Raw Data'!$CC:$CC,"MTD") -> 7 | DO26: =IFERROR(VLOOKUP($E26,'Nov Pivot'!$T:$U,2,0),0) -> 0 | DP26: =IFERROR(VLOOKUP($E26,'Nov Pivot'!$W:$X,2,0),0) -> 0 | DQ26: =IFERROR(VLOOKUP($E26,'Nov Pivot'!$Z:$AA,2,0),0) -> 0 | DS26: =IFERROR(VLOOKUP($E26,Kiran!A:C,3,0),0) -> 1
E27: V5268361 | F27: North 1 | G27: North1 | H27: Rajasthan | I27: Ajmer | J27: Manoj Kumar | K27: Ganga Singh | L27: Gaurav Sharma | M27: Active | N27: 120 | O27: =SUMIFS('Dec Raw Data'!$BL:$BL,'Dec Raw Data'!$G:$G,'ASO View'!$E27,'Dec Raw Data'!$BX:$BX,"NB") -> 4 | P27: 3% | Q27: 0% | R27: 13 | S27: =SUMIFS('Dec Raw Data'!$BL:$BL,'Dec Raw Data'!$G:$G,'ASO View'!$E27,'Dec Raw Data'!$BX:$BX,"AIO") -> 7 | T27: 54% | U27: 0% | V27: 17 | W27: =SUMIFS('Dec Raw Data'!$BL:$BL,'Dec Raw Data'!$G:$G,'ASO View'!$E27,'Dec Raw Data'!$BX:$BX,"TDT") -> 4 | X27: 24% | Y27: 0% | Z27: 150 | AA27: =SUMIFS('Dec Raw Data'!$BL:$BL,'Dec Raw Data'!$G:$G,'ASO View'!$E27,'Dec Raw Data'!$BU:$BU,"Consumer") -> 15 | AB27: 10% | AC27: 0% | AD27: 23 | AE27: =SUMIFS('Dec Raw Data'!$BL:$BL,'Dec Raw Data'!$G:$G,'ASO View'!$E27,'Dec Raw Data'!$BX:$BX,"NB",'Dec Raw Data'!$BS:$BS,"premium") -> 4 | AF27: 17% | AG27: 30 | AH27: =SUMIFS('Dec Raw Data'!$BL:$BL,'Dec Raw Data'!$G:$G,'ASO View'!$E27,'Dec Raw Data'!$BU:$BU,"Consumer",'Dec Raw Data'!$BS:$BS,"premium") -> 8 | AI27: 27% | AJ27: 0% | AK27: 0.01 | AL27: =SUMIFS('Dec Raw Data'!$BY:$BY,'Dec Raw Data'!$BU:$BU,"Accessories",'Dec Raw Data'!$G:$G,'ASO View'!E27) -> 0.000 | AM27: =IFERROR(AL27/AK27,0) -> 0% | AN27: 0% | AO27: 60 | AP27: =SUMIFS('Dec Raw Data'!$BL:$BL,'Dec Raw Data'!$G:$G,'ASO View'!$E27,'Dec Raw Data'!$BU:$BU,"Consumer",'Dec Raw Data'!$BS:$BS,"premium",'Dec Raw Data'!$BX:$BX,"NB",'Dec Raw Data'!$CA:$CA,"SP") -> 3 | AQ27: 5% | AR27: 0% | AS27: 20 | AT27: =SUMIFS('Dec Raw Data'!$BL:$BL,'Dec Raw Data'!$G:$G,'ASO View'!$E27,'Dec Raw Data'!$BU:$BU,"Consumer",'Dec Raw Data'!$BS:$BS,"premium",'Dec Raw Data'!$BX:$BX,"NB",'Dec Raw Data'!$CB:$CB,"Gaming") -> 3 | AU27: 15% | AV27: 0% | AW27: 10 | AX27: =SUMIFS('Dec Raw Data'!$BL:$BL,'Dec Raw Data'!$G:$G,'ASO View'!$E27,'Dec Raw Data'!$BU:$BU,"Consumer",'Dec Raw Data'!$BS:$BS,"premium",'Dec Raw Data'!$BX:$BX,"NB",'Dec Raw Data'!$CB:$CB,"Non-Gaming") -> 0 | AY27: 0% | AZ27: 0% | BA27: 125 | BB27: =SUMIFS('Dec Raw Data'!$BL:$BL,'Dec Raw Data'!$BU:$BU,"visuals",'Dec Raw Data'!$G:$G,'ASO View'!E27) -> 0 | BC27: =IFERROR(BB27/BA27,0) -> 0% | BD27: =IFERROR(BB27/DH27-1,0) -> 0% | BE27: 25 | BF27: =SUMIFS('Dec Raw Data'!$BL:$BL,'Dec Raw Data'!$BU:$BU,"visuals",'Dec Raw Data'!$G:$G,'ASO View'!E27,'Dec Raw Data'!$BS:$BS,"Premium") -> 0 | BG27: 0% | BH27: 0% | BI27: 69 | BJ27: 181 | BK27: 262% | BM27: 75 | BN27: =IFERROR(VLOOKUP($E27,'Dec Pivot'!$A:$F,6,0),0) -> 8 | BO27: =IFERROR(BN27/BM27,0) -> 11% | BP27: =IFERROR(BN27/DC27-1,0) -> 0% | BQ27: 30 | BR27: =IFERROR(VLOOKUP($E27,'Dec Pivot'!$A:$F,5,0),0) -> 4 | BS27: =IFERROR(BR27/BQ27,0) -> 13% | BT27: =IFERROR(BR27/DD27-1,0) -> 0% | BU27: 11 | BV27: =IFERROR(VLOOKUP($E27,'Dec Pivot'!$AF:$AH,3,0),0) -> 2 | BW27: 18% | BX27: 0% | BY27: 6 | BZ27: =IFERROR(VLOOKUP($E27,'Dec Pivot'!$AI:$AK,3,0),0) -> 2 | CA27: 33% | CB27: 0% | CC27: 5 | CD27: =IFERROR(VLOOKUP($E27,'Dec Pivot'!$AL:$AN,3,0),0) -> 2 | CE27: 40% | CF27: 0% | CG27: 20.25 | CH27: =IFERROR(VLOOKUP($E27,'Dec Pivot'!$J:$O,4,0),0) -> 2 | CI27: =IFERROR(CH27/CG27,0) -> 10% | CJ27: 0% | CK27: 13.5 | CL27: =IFERROR(VLOOKUP($E27,'Dec Pivot'!$J:$O,3,0),0) -> 4 | CM27: =IFERROR(CL27/CK27,0) -> 30% | CO27: 48.75 | CP27: =IFERROR(VLOOKUP($E27,'Dec Pivot'!$X:$AA,4,0),0) -> 0 | CQ27: =IFERROR(CP27/CO27,0) -> 0% | CR27: =IFERROR(CP27/DI27-1,0) -> 0% | CS27: 20 | CT27: =IFERROR(VLOOKUP(E27,'Dec Pivot'!$AB:$AD,3,0),0) -> 0 | CU27: =IFERROR(CT27/CS27,0) -> 0% | CV27: =IFERROR(CT27/DJ27-1,0) -> 0% | CX27: =SUMIFS('Nov Raw Data'!$BL:$BL,'Nov Raw Data'!$G:$G,'ASO View'!D27,'Nov Raw Data'!$BX:$BX,"NB",'Nov Raw Data'!$CC:$CC,"MTD") -> 0 | CY27: =SUMIFS('Nov Raw Data'!$BL:$BL,'Nov Raw Data'!$G:$G,'ASO View'!D27,'Nov Raw Data'!$BX:$BX,"AIO",'Nov Raw Data'!$CC:$CC,"MTD") -> 0 | CZ27: =SUMIFS('Nov Raw Data'!$BL:$BL,'Nov Raw Data'!$G:$G,'ASO View'!D27,'Nov Raw Data'!$BX:$BX,"TDT",'Nov Raw Data'!$CC:$CC,"MTD") -> 0 | DA27: =SUMIFS('Nov Raw Data'!$BL:$BL,'Nov Raw Data'!$G:$G,'ASO View'!D27,'Nov Raw Data'!$BU:$BU,"consumer",'Nov Raw Data'!$CC:$CC,"MTD") -> 0 | DB27: =SUMIFS('Nov Raw Data'!$BL:$BL,'Nov Raw Data'!$G:$G,'ASO View'!$D27,'Nov Raw Data'!$BU:$BU,"consumer",'Nov Raw Data'!$BS:$BS,"Premium",'Nov Raw Data'!$CC:$CC,"MTD") -> 0 | DC27: =IFERROR(VLOOKUP(D27,'Nov Pivot'!$A:$F,5,0),0) -> 0 | DD27: =IFERROR(VLOOKUP(D27,'Nov Pivot'!$A:$F,4,0),0) -> 0 | DE27: =IFERROR(VLOOKUP($D27,'Nov Pivot'!$AD:$AF,2,0),0) -> 0 | DF27: =IFERROR(VLOOKUP($D27,'Nov Pivot'!$AD:$AF,3,0),0) -> 0 | DG27: =SUMIFS('Nov Raw Data'!$BY:$BY,'Nov Raw Data'!$BU:$BU,"Accessories",'Nov Raw Data'!$G:$G,'ASO View'!D27,'Nov Raw Data'!$CC:$CC,"MTD") -> 0.00 | DH27: =SUMIFS('Nov Raw Data'!$BL:$BL,'Nov Raw Data'!$G:$G,'ASO View'!D27,'Nov Raw Data'!$BU:$BU,"Visuals",'Nov Raw Data'!$CC:$CC,"MTD") -> 0 | DI27: =IFERROR(VLOOKUP(D27,'Nov Pivot'!$K:$P,2,0),0) -> 0 | DJ27: =IFERROR(VLOOKUP(D27,'Nov Pivot'!$K:$P,4,0),0) -> 0 | DK27: =SUMIFS('Nov Raw Data'!$BL:$BL,'Nov Raw Data'!$G:$G,'ASO View'!D27,'Nov Raw Data'!$BU:$BU,"Visuals",'Nov Raw Data'!$BS:$BS,"premium") -> 0 | DL27: =SUMIFS('Nov Raw Data'!$BL:$BL,'Nov Raw Data'!$G:$G,'ASO View'!$D27,'Nov Raw Data'!$BU:$BU,"consumer",'Nov Raw Data'!$BS:$BS,"Premium",'Nov Raw Data'!$CA:$CA,"SP",'Nov Raw Data'!$CC:$CC,"MTD") -> 0 | DM27: =SUMIFS('Nov Raw Data'!$BL:$BL,'Nov Raw Data'!$G:$G,'ASO View'!$D27,'Nov Raw Data'!$BU:$BU,"consumer",'Nov Raw Data'!$BS:$BS,"Premium",'Nov Raw Data'!$CA:$CA,"SP",'Nov Raw Data'!$CB:$CB,"Gaming",'Nov Raw Data'!$CC:$CC,"MTD") -> 0 | DN27: =SUMIFS('Nov Raw Data'!$BL:$BL,'Nov Raw Data'!$G:$G,'ASO View'!$D27,'Nov Raw Data'!$BU:$BU,"consumer",'Nov Raw Data'!$BS:$BS,"Premium",'Nov Raw Data'!$CA:$CA,"SP",'Nov Raw Data'!$CB:$CB,"Non-Gaming",'Nov Raw Data'!$CC:$CC,"MTD") -> 0 | DO27: =IFERROR(VLOOKUP($D27,'Nov Pivot'!$T:$U,2,0),0) -> 0 | DP27: =IFERROR(VLOOKUP($D27,'Nov Pivot'!$W:$X,2,0),0) -> 0 | DQ27: =IFERROR(VLOOKUP($D27,'Nov Pivot'!$Z:$AA,2,0),0) -> 0 | DS27: =IFERROR(VLOOKUP($E27,Kiran!A:C,3,0),0) -> 2
E28: V5433235 | F28: North 1 | G28: North1 | H28: Punjab | I28: Bhatinda | J28: Anmol Sachdeva | K28: Naveen Kumar | L28: Gaurav Sharma | M28: Active | N28: 120 | O28: =SUMIFS('Dec Raw Data'!$BL:$BL,'Dec Raw Data'!$G:$G,'ASO View'!$E28,'Dec Raw Data'!$BX:$BX,"NB") -> 2 | P28: 2% | Q28: -96% | R28: 13 | S28: =SUMIFS('Dec Raw Data'!$BL:$BL,'Dec Raw Data'!$G:$G,'ASO View'!$E28,'Dec Raw Data'!$BX:$BX,"AIO") -> 0 | T28: 0% | U28: -100% | V28: 17 | W28: =SUMIFS('Dec Raw Data'!$BL:$BL,'Dec Raw Data'!$G:$G,'ASO View'!$E28,'Dec Raw Data'!$BX:$BX,"TDT") -> 1 | X28: 6% | Y28: -96% | Z28: 150 | AA28: =SUMIFS('Dec Raw Data'!$BL:$BL,'Dec Raw Data'!$G:$G,'ASO View'!$E28,'Dec Raw Data'!$BU:$BU,"Consumer") -> 3 | AB28: 2% | AC28: -96% | AD28: 23 | AE28: =SUMIFS('Dec Raw Data'!$BL:$BL,'Dec Raw Data'!$G:$G,'ASO View'!$E28,'Dec Raw Data'!$BX:$BX,"NB",'Dec Raw Data'!$BS:$BS,"premium") -> 1 | AF28: 4% | AG28: 30 | AH28: =SUMIFS('Dec Raw Data'!$BL:$BL,'Dec Raw Data'!$G:$G,'ASO View'!$E28,'Dec Raw Data'!$BU:$BU,"Consumer",'Dec Raw Data'!$BS:$BS,"premium") -> 1 | AI28: 3% | AJ28: -96% | AK28: 0.008 | AL28: =SUMIFS('Dec Raw Data'!$BY:$BY,'Dec Raw Data'!$BU:$BU,"Accessories",'Dec Raw Data'!$G:$G,'ASO View'!E28) -> 0.000 | AM28: 0% | AN28: 0% | AO28: 0 | AP28: =SUMIFS('Dec Raw Data'!$BL:$BL,'Dec Raw Data'!$G:$G,'ASO View'!$E28,'Dec Raw Data'!$BU:$BU,"Consumer",'Dec Raw Data'!$BS:$BS,"premium",'Dec Raw Data'!$BX:$BX,"NB",'Dec Raw Data'!$CA:$CA,"SP") -> 0 | AQ28: 0% | AR28: -100% | AS28: 20 | AT28: =SUMIFS('Dec Raw Data'!$BL:$BL,'Dec Raw Data'!$G:$G,'ASO View'!$E28,'Dec Raw Data'!$BU:$BU,"Consumer",'Dec Raw Data'!$BS:$BS,"premium",'Dec Raw Data'!$BX:$BX,"NB",'Dec Raw Data'!$CB:$CB,"Gaming") -> 0 | AU28: 0% | AV28: -100% | AW28: 10 | AX28: =SUMIFS('Dec Raw Data'!$BL:$BL,'Dec Raw Data'!$G:$G,'ASO View'!$E28,'Dec Raw Data'!$BU:$BU,"Consumer",'Dec Raw Data'!$BS:$BS,"premium",'Dec Raw Data'!$BX:$BX,"NB",'Dec Raw Data'!$CB:$CB,"Non-Gaming") -> 0 | AY28: 0% | AZ28: -100% | BA28: 125 | BB28: =SUMIFS('Dec Raw Data'!$BL:$BL,'Dec Raw Data'!$BU:$BU,"visuals",'Dec Raw Data'!$G:$G,'ASO View'!E28) -> 0 | BC28: 0% | BD28: -100% | BE28: 25 | BF28: =SUMIFS('Dec Raw Data'!$BL:$BL,'Dec Raw Data'!$BU:$BU,"visuals",'Dec Raw Data'!$G:$G,'ASO View'!E28,'Dec Raw Data'!$BS:$BS,"Premium") -> 0 | BG28: 0% | BH28: =IFERROR(BF28/DK28-1,0) -> -100% | BI28: 24 | BJ28: 139 | BK28: =IFERROR(BJ28/BI28,0) -> 579% | BM28: 70 | BN28: =IFERROR(VLOOKUP($E28,'Dec Pivot'!$A:$F,6,0),0) -> 3 | BO28: 4% | BP28: 0% | BQ28: 28 | BR28: =IFERROR(VLOOKUP($E28,'Dec Pivot'!$A:$F,5,0),0) -> 1 | BS28: 4% | BT28: 0% | BU28: 10.4 | BV28: =IFERROR(VLOOKUP($E28,'Dec Pivot'!$AF:$AH,3,0),0) -> 1 | BW28: 10% | BX28: 0% | BY28: 6 | BZ28: =IFERROR(VLOOKUP($E28,'Dec Pivot'!$AI:$AK,3,0),0) -> 1 | CA28: 17% | CB28: 0% | CC28: 5 | CD28: =IFERROR(VLOOKUP($E28,'Dec Pivot'!$AL:$AN,3,0),0) -> 1 | CE28: 20% | CF28: 0% | CG28: 18.9 | CH28: =IFERROR(VLOOKUP($E28,'Dec Pivot'!$J:$O,4,0),0) -> 1 | CI28: 5% | CJ28: 0% | CK28: 12.6 | CL28: =IFERROR(VLOOKUP($E28,'Dec Pivot'!$J:$O,3,0),0) -> 0 | CM28: 0% | CO28: 45.5 | CP28: =IFERROR(VLOOKUP($E28,'Dec Pivot'!$X:$AA,4,0),0) -> 0 | CQ28: 0% | CR28: 0% | CS28: 20 | CT28: =IFERROR(VLOOKUP(E28,'Dec Pivot'!$AB:$AD,3,0),0) -> 0 | CU28: 0% | CV28: 0% | CX28: =SUMIFS('Nov Raw Data'!$BL:$BL,'Nov Raw Data'!$G:$G,'ASO View'!E28,'Nov Raw Data'!$BX:$BX,"NB",'Nov Raw Data'!$CC:$CC,"MTD") -> 53 | CY28: =SUMIFS('Nov Raw Data'!$BL:$BL,'Nov Raw Data'!$G:$G,'ASO View'!E28,'Nov Raw Data'!$BX:$BX,"AIO",'Nov Raw Data'!$CC:$CC,"MTD") -> 1 | CZ28: =SUMIFS('Nov Raw Data'!$BL:$BL,'Nov Raw Data'!$G:$G,'ASO View'!E28,'Nov Raw Data'!$BX:$BX,"TDT",'Nov Raw Data'!$CC:$CC,"MTD") -> 26 | DA28: =SUMIFS('Nov Raw Data'!$BL:$BL,'Nov Raw Data'!$G:$G,'ASO View'!E28,'Nov Raw Data'!$BU:$BU,"consumer",'Nov Raw Data'!$CC:$CC,"MTD") -> 80 | DB28: =SUMIFS('Nov Raw Data'!$BL:$BL,'Nov Raw Data'!$G:$G,'ASO View'!$E28,'Nov Raw Data'!$BU:$BU,"consumer",'Nov Raw Data'!$BS:$BS,"Premium",'Nov Raw Data'!$CC:$CC,"MTD") -> 25 | DC28: =IFERROR(VLOOKUP(E28,'Nov Pivot'!$A:$F,5,0),0) -> 0 | DD28: =IFERROR(VLOOKUP(E28,'Nov Pivot'!$A:$F,4,0),0) -> 0 | DE28: =IFERROR(VLOOKUP($E28,'Nov Pivot'!$AD:$AF,2,0),0) -> 0 | DF28: =IFERROR(VLOOKUP($E28,'Nov Pivot'!$AD:$AF,3,0),0) -> 0 | DG28: =SUMIFS('Nov Raw Data'!$BY:$BY,'Nov Raw Data'!$BU:$BU,"Accessories",'Nov Raw Data'!$G:$G,'ASO View'!E28,'Nov Raw Data'!$CC:$CC,"MTD") -> 0.00 | DH28: =SUMIFS('Nov Raw Data'!$BL:$BL,'Nov Raw Data'!$G:$G,'ASO View'!E28,'Nov Raw Data'!$BU:$BU,"Visuals",'Nov Raw Data'!$CC:$CC,"MTD") -> 5 | DI28: =IFERROR(VLOOKUP(E28,'Nov Pivot'!$K:$P,2,0),0) -> 0 | DJ28: =IFERROR(VLOOKUP(E28,'Nov Pivot'!$K:$P,4,0),0) -> 0 | DK28: =SUMIFS('Nov Raw Data'!$BL:$BL,'Nov Raw Data'!$G:$G,'ASO View'!E28,'Nov Raw Data'!$BU:$BU,"Visuals",'Nov Raw Data'!$BS:$BS,"premium") -> 5 | DL28: =SUMIFS('Nov Raw Data'!$BL:$BL,'Nov Raw Data'!$G:$G,'ASO View'!$E28,'Nov Raw Data'!$BU:$BU,"consumer",'Nov Raw Data'!$BS:$BS,"Premium",'Nov Raw Data'!$CA:$CA,"SP",'Nov Raw Data'!$CC:$CC,"MTD") -> 16 | DM28: =SUMIFS('Nov Raw Data'!$BL:$BL,'Nov Raw Data'!$G:$G,'ASO View'!$E28,'Nov Raw Data'!$BU:$BU,"consumer",'Nov Raw Data'!$BS:$BS,"Premium",'Nov Raw Data'!$CA:$CA,"SP",'Nov Raw Data'!$CB:$CB,"Gaming",'Nov Raw Data'!$CC:$CC,"MTD") -> 12 | DN28: =SUMIFS('Nov Raw Data'!$BL:$BL,'Nov Raw Data'!$G:$G,'ASO View'!$E28,'Nov Raw Data'!$BU:$BU,"consumer",'Nov Raw Data'!$BS:$BS,"Premium",'Nov Raw Data'!$CA:$CA,"SP",'Nov Raw Data'!$CB:$CB,"Non-Gaming",'Nov Raw Data'!$CC:$CC,"MTD") -> 4 | DO28: =IFERROR(VLOOKUP($E28,'Nov Pivot'!$T:$U,2,0),0) -> 0 | DP28: =IFERROR(VLOOKUP($E28,'Nov Pivot'!$W:$X,2,0),0) -> 0 | DQ28: =IFERROR(VLOOKUP($E28,'Nov Pivot'!$Z:$AA,2,0),0) -> 0 | DS28: =IFERROR(VLOOKUP($E28,Kiran!A:C,3,0),0) -> 0
E29: V5262001 | F29: North 1 | G29: North1 | H29: Delhi | I29: Delhi | J29: Ashwani Kumar | K29: Kanwaldeep Singh | L29: Gaurav Sharma | M29: Active | N29: 560 | O29: =SUMIFS('Dec Raw Data'!$BL:$BL,'Dec Raw Data'!$G:$G,'ASO View'!$E29,'Dec Raw Data'!$BX:$BX,"NB") -> 3 | P29: 1% | Q29: -99% | R29: 62 | S29: =SUMIFS('Dec Raw Data'!$BL:$BL,'Dec Raw Data'!$G:$G,'ASO View'!$E29,'Dec Raw Data'!$BX:$BX,"AIO") -> 4 | T29: 6% | U29: -94% | V29: 78 | W29: =SUMIFS('Dec Raw Data'!$BL:$BL,'Dec Raw Data'!$G:$G,'ASO View'!$E29,'Dec Raw Data'!$BX:$BX,"TDT") -> 0 | X29: 0% | Y29: -100% | Z29: 700 | AA29: =SUMIFS('Dec Raw Data'!$BL:$BL,'Dec Raw Data'!$G:$G,'ASO View'!$E29,'Dec Raw Data'!$BU:$BU,"Consumer") -> 7 | AB29: 1% | AC29: -99% | AD29: 106 | AE29: =SUMIFS('Dec Raw Data'!$BL:$BL,'Dec Raw Data'!$G:$G,'ASO View'!$E29,'Dec Raw Data'!$BX:$BX,"NB",'Dec Raw Data'!$BS:$BS,"premium") -> 3 | AF29: 3% | AG29: 140 | AH29: =SUMIFS('Dec Raw Data'!$BL:$BL,'Dec Raw Data'!$G:$G,'ASO View'!$E29,'Dec Raw Data'!$BU:$BU,"Consumer",'Dec Raw Data'!$BS:$BS,"premium") -> 7 | AI29: 5% | AJ29: -94% | AK29: 0.04 | AL29: =SUMIFS('Dec Raw Data'!$BY:$BY,'Dec Raw Data'!$BU:$BU,"Accessories",'Dec Raw Data'!$G:$G,'ASO View'!E29) -> 0.001 | AM29: =IFERROR(AL29/AK29,0) -> 3% | AN29: =IFERROR(AL29/DG29-1,0) -> -97% | AO29: 0 | AP29: =SUMIFS('Dec Raw Data'!$BL:$BL,'Dec Raw Data'!$G:$G,'ASO View'!$E29,'Dec Raw Data'!$BU:$BU,"Consumer",'Dec Raw Data'!$BS:$BS,"premium",'Dec Raw Data'!$BX:$BX,"NB",'Dec Raw Data'!$CA:$CA,"SP") -> 3 | AQ29: =IFERROR(AP29/AO29,0) -> 0% | AR29: =IFERROR(AP29/DL29-1,0) -> -94% | AS29: 91 | AT29: =SUMIFS('Dec Raw Data'!$BL:$BL,'Dec Raw Data'!$G:$G,'ASO View'!$E29,'Dec Raw Data'!$BU:$BU,"Consumer",'Dec Raw Data'!$BS:$BS,"premium",'Dec Raw Data'!$BX:$BX,"NB",'Dec Raw Data'!$CB:$CB,"Gaming") -> 3 | AU29: 3% | AV29: -50% | AW29: 49 | AX29: =SUMIFS('Dec Raw Data'!$BL:$BL,'Dec Raw Data'!$G:$G,'ASO View'!$E29,'Dec Raw Data'!$BU:$BU,"Consumer",'Dec Raw Data'!$BS:$BS,"premium",'Dec Raw Data'!$BX:$BX,"NB",'Dec Raw Data'!$CB:$CB,"Non-Gaming") -> 0 | AY29: 0% | AZ29: -100% | BA29: 125 | BB29: =SUMIFS('Dec Raw Data'!$BL:$BL,'Dec Raw Data'!$BU:$BU,"visuals",'Dec Raw Data'!$G:$G,'ASO View'!E29) -> 7 | BC29: =IFERROR(BB29/BA29,0) -> 6% | BD29: =IFERROR(BB29/DH29-1,0) -> -98% | BE29: 25 | BF29: =SUMIFS('Dec Raw Data'!$BL:$BL,'Dec Raw Data'!$BU:$BU,"visuals",'Dec Raw Data'!$G:$G,'ASO View'!E29,'Dec Raw Data'!$BS:$BS,"Premium") -> 7 | BG29: =IFERROR(BF29/BE29,0) -> 28% | BH29: =IFERROR(BF29/DK29-1,0) -> -97% | BI29: 40 | BJ29: - | BK29: =IFERROR(BJ29/BI29,0) -> 0% | BM29: 125 | BN29: =IFERROR(VLOOKUP($E29,'Dec Pivot'!$A:$F,6,0),0) -> 7 | BO29: =IFERROR(BN29/BM29,0) -> 6% | BP29: =IFERROR(BN29/DC29-1,0) -> 0% | BQ29: 50 | BR29: =IFERROR(VLOOKUP($E29,'Dec Pivot'!$A:$F,5,0),0) -> 7 | BS29: =IFERROR(BR29/BQ29,0) -> 14% | BT29: =IFERROR(BR29/DD29-1,0) -> -68% | BU29: 18.4 | BV29: =IFERROR(VLOOKUP($E29,'Dec Pivot'!$AF:$AH,3,0),0) -> 3 | BW29: =IFERROR(BV29/BU29,0) -> 16% | BX29: =IFERROR(BV29/DO29-1,0) -> 50% | BY29: 10 | BZ29: =IFERROR(VLOOKUP($E29,'Dec Pivot'!$AI:$AK,3,0),0) -> 3 | CA29: =IFERROR(BZ29/BY29,0) -> 30% | CB29: =IFERROR(BZ29/DP29-1,0) -> 50% | CC29: 9 | CD29: =IFERROR(VLOOKUP($E29,'Dec Pivot'!$AL:$AN,3,0),0) -> 3 | CE29: =IFERROR(CD29/CC29,0) -> 33% | CF29: =IFERROR(CD29/DQ29-1,0) -> 0% | CG29: 33.75 | CH29: =IFERROR(VLOOKUP($E29,'Dec Pivot'!$J:$O,4,0),0) -> 0 | CI29: =IFERROR(CH29/CG29,0) -> 0% | CJ29: =IFERROR(CH29/DF29-1,0) -> -100% | CK29: 22.5 | CL29: =IFERROR(VLOOKUP($E29,'Dec Pivot'!$J:$O,3,0),0) -> 4 | CM29: =IFERROR(CL29/CK29,0) -> 18% | CO29: 81.25 | CP29: =IFERROR(VLOOKUP($E29,'Dec Pivot'!$X:$AA,4,0),0) -> 5 | CQ29: =IFERROR(CP29/CO29,0) -> 6% | CR29: =IFERROR(CP29/DI29-1,0) -> 0% | CS29: 100 | CT29: =IFERROR(VLOOKUP(E29,'Dec Pivot'!$AB:$AD,3,0),0) -> 5 | CU29: =IFERROR(CT29/CS29,0) -> 5% | CV29: =IFERROR(CT29/DJ29-1,0) -> 0% | CX29: =SUMIFS('Nov Raw Data'!$BL:$BL,'Nov Raw Data'!$G:$G,'ASO View'!E29,'Nov Raw Data'!$BX:$BX,"NB",'Nov Raw Data'!$CC:$CC,"MTD") -> 507 | CY29: =SUMIFS('Nov Raw Data'!$BL:$BL,'Nov Raw Data'!$G:$G,'ASO View'!E29,'Nov Raw Data'!$BX:$BX,"AIO",'Nov Raw Data'!$CC:$CC,"MTD") -> 62 | CZ29: =SUMIFS('Nov Raw Data'!$BL:$BL,'Nov Raw Data'!$G:$G,'ASO View'!E29,'Nov Raw Data'!$BX:$BX,"TDT",'Nov Raw Data'!$CC:$CC,"MTD") -> 171 | DA29: =SUMIFS('Nov Raw Data'!$BL:$BL,'Nov Raw Data'!$G:$G,'ASO View'!E29,'Nov Raw Data'!$BU:$BU,"consumer",'Nov Raw Data'!$CC:$CC,"MTD") -> 740 | DB29: =SUMIFS('Nov Raw Data'!$BL:$BL,'Nov Raw Data'!$G:$G,'ASO View'!$E29,'Nov Raw Data'!$BU:$BU,"consumer",'Nov Raw Data'!$BS:$BS,"Premium",'Nov Raw Data'!$CC:$CC,"MTD") -> 109 | DC29: =IFERROR(VLOOKUP(E29,'Nov Pivot'!$A:$F,5,0),0) -> 7 | DD29: =IFERROR(VLOOKUP(E29,'Nov Pivot'!$A:$F,4,0),0) -> 22 | DE29: =IFERROR(VLOOKUP($E29,'Nov Pivot'!$AD:$AF,2,0),0) -> 0 | DF29: =IFERROR(VLOOKUP($E29,'Nov Pivot'!$AD:$AF,3,0),0) -> 3 | DG29: =SUMIFS('Nov Raw Data'!$BY:$BY,'Nov Raw Data'!$BU:$BU,"Accessories",'Nov Raw Data'!$G:$G,'ASO View'!E29,'Nov Raw Data'!$CC:$CC,"MTD") -> 0.05 | DH29: =SUMIFS('Nov Raw Data'!$BL:$BL,'Nov Raw Data'!$G:$G,'ASO View'!E29,'Nov Raw Data'!$BU:$BU,"Visuals",'Nov Raw Data'!$CC:$CC,"MTD") -> 374 | DI29: =IFERROR(VLOOKUP(E29,'Nov Pivot'!$K:$P,2,0),0) -> 0 | DJ29: =IFERROR(VLOOKUP(E29,'Nov Pivot'!$K:$P,4,0),0) -> 0 | DK29: =SUMIFS('Nov Raw Data'!$BL:$BL,'Nov Raw Data'!$G:$G,'ASO View'!E29,'Nov Raw Data'!$BU:$BU,"Visuals",'Nov Raw Data'!$BS:$BS,"premium") -> 224 | DL29: =SUMIFS('Nov Raw Data'!$BL:$BL,'Nov Raw Data'!$G:$G,'ASO View'!$E29,'Nov Raw Data'!$BU:$BU,"consumer",'Nov Raw Data'!$BS:$BS,"Premium",'Nov Raw Data'!$CA:$CA,"SP",'Nov Raw Data'!$CC:$CC,"MTD") -> 51 | DM29: =SUMIFS('Nov Raw Data'!$BL:$BL,'Nov Raw Data'!$G:$G,'ASO View'!$E29,'Nov Raw Data'!$BU:$BU,"consumer",'Nov Raw Data'!$BS:$BS,"Premium",'Nov Raw Data'!$CA:$CA,"SP",'Nov Raw Data'!$CB:$CB,"Gaming",'Nov Raw Data'!$CC:$CC,"MTD") -> 6 | DN29: =SUMIFS('Nov Raw Data'!$BL:$BL,'Nov Raw Data'!$G:$G,'ASO View'!$E29,'Nov Raw Data'!$BU:$BU,"consumer",'Nov Raw Data'!$BS:$BS,"Premium",'Nov Raw Data'!$CA:$CA,"SP",'Nov Raw Data'!$CB:$CB,"Non-Gaming",'Nov Raw Data'!$CC:$CC,"MTD") -> 45 | DO29: =IFERROR(VLOOKUP($E29,'Nov Pivot'!$T:$U,2,0),0) -> 2 | DP29: =IFERROR(VLOOKUP($E29,'Nov Pivot'!$W:$X,2,0),0) -> 2 | DQ29: =IFERROR(VLOOKUP($E29,'Nov Pivot'!$Z:$AA,2,0),0) -> 0 | DS29: =IFERROR(VLOOKUP($E29,Kiran!A:C,3,0),0) -> 3
E30: V5294765 | F30: North 1 | G30: North1 | H30: Punjab | I30: Chandigarh | J30: Manish Kumar | K30: Naveen Kumar | L30: Gaurav Sharma | M30: Active | N30: 140 | O30: =SUMIFS('Dec Raw Data'!$BL:$BL,'Dec Raw Data'!$G:$G,'ASO View'!$E30,'Dec Raw Data'!$BX:$BX,"NB") -> 14 | P30: 10% | Q30: -92% | R30: 15 | S30: =SUMIFS('Dec Raw Data'!$BL:$BL,'Dec Raw Data'!$G:$G,'ASO View'!$E30,'Dec Raw Data'!$BX:$BX,"AIO") -> 4 | T30: 27% | U30: -60% | V30: 20 | W30: =SUMIFS('Dec Raw Data'!$BL:$BL,'Dec Raw Data'!$G:$G,'ASO View'!$E30,'Dec Raw Data'!$BX:$BX,"TDT") -> 11 | X30: 55% | Y30: -73% | Z30: 175 | AA30: =SUMIFS('Dec Raw Data'!$BL:$BL,'Dec Raw Data'!$G:$G,'ASO View'!$E30,'Dec Raw Data'!$BU:$BU,"Consumer") -> 29 | AB30: 17% | AC30: -87% | AD30: 27 | AE30: =SUMIFS('Dec Raw Data'!$BL:$BL,'Dec Raw Data'!$G:$G,'ASO View'!$E30,'Dec Raw Data'!$BX:$BX,"NB",'Dec Raw Data'!$BS:$BS,"premium") -> 6 | AF30: 22% | AG30: 35 | AH30: =SUMIFS('Dec Raw Data'!$BL:$BL,'Dec Raw Data'!$G:$G,'ASO View'!$E30,'Dec Raw Data'!$BU:$BU,"Consumer",'Dec Raw Data'!$BS:$BS,"premium") -> 6 | AI30: 17% | AJ30: -90% | AK30: 0.02 | AL30: =SUMIFS('Dec Raw Data'!$BY:$BY,'Dec Raw Data'!$BU:$BU,"Accessories",'Dec Raw Data'!$G:$G,'ASO View'!E30) -> 0.000 | AM30: 0% | AN30: 0% | AO30: 0 | AP30: =SUMIFS('Dec Raw Data'!$BL:$BL,'Dec Raw Data'!$G:$G,'ASO View'!$E30,'Dec Raw Data'!$BU:$BU,"Consumer",'Dec Raw Data'!$BS:$BS,"premium",'Dec Raw Data'!$BX:$BX,"NB",'Dec Raw Data'!$CA:$CA,"SP") -> 6 | AQ30: 0% | AR30: -68% | AS30: 23 | AT30: =SUMIFS('Dec Raw Data'!$BL:$BL,'Dec Raw Data'!$G:$G,'ASO View'!$E30,'Dec Raw Data'!$BU:$BU,"Consumer",'Dec Raw Data'!$BS:$BS,"premium",'Dec Raw Data'!$BX:$BX,"NB",'Dec Raw Data'!$CB:$CB,"Gaming") -> 6 | AU30: 26% | AV30: -54% | AW30: 12 | AX30: =SUMIFS('Dec Raw Data'!$BL:$BL,'Dec Raw Data'!$G:$G,'ASO View'!$E30,'Dec Raw Data'!$BU:$BU,"Consumer",'Dec Raw Data'!$BS:$BS,"premium",'Dec Raw Data'!$BX:$BX,"NB",'Dec Raw Data'!$CB:$CB,"Non-Gaming") -> 0 | AY30: 0% | AZ30: -100% | BA30: 125 | BB30: =SUMIFS('Dec Raw Data'!$BL:$BL,'Dec Raw Data'!$BU:$BU,"visuals",'Dec Raw Data'!$G:$G,'ASO View'!E30) -> 0 | BC30: 0% | BD30: -100% | BE30: 25 | BF30: =SUMIFS('Dec Raw Data'!$BL:$BL,'Dec Raw Data'!$BU:$BU,"visuals",'Dec Raw Data'!$G:$G,'ASO View'!E30,'Dec Raw Data'!$BS:$BS,"Premium") -> 0 | BG30: 0% | BH30: -100% | BI30: 22 | BJ30: 182 | BK30: 827% | BM30: 80 | BN30: =IFERROR(VLOOKUP($E30,'Dec Pivot'!$A:$F,6,0),0) -> 27 | BO30: 34% | BP30: 575% | BQ30: 32 | BR30: =IFERROR(VLOOKUP($E30,'Dec Pivot'!$A:$F,5,0),0) -> 6 | BS30: 19% | BT30: -63% | BU30: 11.8 | BV30: =IFERROR(VLOOKUP($E30,'Dec Pivot'!$AF:$AH,3,0),0) -> 6 | BW30: 51% | BX30: 500% | BY30: 6 | BZ30: =IFERROR(VLOOKUP($E30,'Dec Pivot'!$AI:$AK,3,0),0) -> 6 | CA30: 100% | CB30: 500% | CC30: 6 | CD30: =IFERROR(VLOOKUP($E30,'Dec Pivot'!$AL:$AN,3,0),0) -> 6 | CE30: 100% | CF30: 500% | CG30: 21.6 | CH30: =IFERROR(VLOOKUP($E30,'Dec Pivot'!$J:$O,4,0),0) -> 10 | CI30: 46% | CJ30: 0% | CK30: 14.4 | CL30: =IFERROR(VLOOKUP($E30,'Dec Pivot'!$J:$O,3,0),0) -> 4 | CM30: 28% | CO30: 52 | CP30: =IFERROR(VLOOKUP($E30,'Dec Pivot'!$X:$AA,4,0),0) -> 0 | CQ30: 0% | CR30: 0% | CS30: 30 | CT30: =IFERROR(VLOOKUP(E30,'Dec Pivot'!$AB:$AD,3,0),0) -> 0 | CU30: 0% | CV30: 0% | CX30: =SUMIFS('Nov Raw Data'!$BL:$BL,'Nov Raw Data'!$G:$G,'ASO View'!E30,'Nov Raw Data'!$BX:$BX,"NB",'Nov Raw Data'!$CC:$CC,"MTD") -> 180 | CY30: =SUMIFS('Nov Raw Data'!$BL:$BL,'Nov Raw Data'!$G:$G,'ASO View'!E30,'Nov Raw Data'!$BX:$BX,"AIO",'Nov Raw Data'!$CC:$CC,"MTD") -> 10 | CZ30: =SUMIFS('Nov Raw Data'!$BL:$BL,'Nov Raw Data'!$G:$G,'ASO View'!E30,'Nov Raw Data'!$BX:$BX,"TDT",'Nov Raw Data'!$CC:$CC,"MTD") -> 41 | DA30: =SUMIFS('Nov Raw Data'!$BL:$BL,'Nov Raw Data'!$G:$G,'ASO View'!E30,'Nov Raw Data'!$BU:$BU,"consumer",'Nov Raw Data'!$CC:$CC,"MTD") -> 231 | DB30: =SUMIFS('Nov Raw Data'!$BL:$BL,'Nov Raw Data'!$G:$G,'ASO View'!$E30,'Nov Raw Data'!$BU:$BU,"consumer",'Nov Raw Data'!$BS:$BS,"Premium",'Nov Raw Data'!$CC:$CC,"MTD") -> 61 | DC30: =IFERROR(VLOOKUP(E30,'Nov Pivot'!$A:$F,5,0),0) -> 4 | DD30: =IFERROR(VLOOKUP(E30,'Nov Pivot'!$A:$F,4,0),0) -> 16 | DE30: =IFERROR(VLOOKUP($E30,'Nov Pivot'!$AD:$AF,2,0),0) -> 0 | DF30: =IFERROR(VLOOKUP($E30,'Nov Pivot'!$AD:$AF,3,0),0) -> 10 | DG30: =SUMIFS('Nov Raw Data'!$BY:$BY,'Nov Raw Data'!$BU:$BU,"Accessories",'Nov Raw Data'!$G:$G,'ASO View'!E30,'Nov Raw Data'!$CC:$CC,"MTD") -> 0.00 | DH30: =SUMIFS('Nov Raw Data'!$BL:$BL,'Nov Raw Data'!$G:$G,'ASO View'!E30,'Nov Raw Data'!$BU:$BU,"Visuals",'Nov Raw Data'!$CC:$CC,"MTD") -> 91 | DI30: =IFERROR(VLOOKUP(E30,'Nov Pivot'!$K:$P,2,0),0) -> 0 | DJ30: =IFERROR(VLOOKUP(E30,'Nov Pivot'!$K:$P,4,0),0) -> 0 | DK30: =SUMIFS('Nov Raw Data'!$BL:$BL,'Nov Raw Data'!$G:$G,'ASO View'!E30,'Nov Raw Data'!$BU:$BU,"Visuals",'Nov Raw Data'!$BS:$BS,"premium") -> 19 | DL30: =SUMIFS('Nov Raw Data'!$BL:$BL,'Nov Raw Data'!$G:$G,'ASO View'!$E30,'Nov Raw Data'!$BU:$BU,"consumer",'Nov Raw Data'!$BS:$BS,"Premium",'Nov Raw Data'!$CA:$CA,"SP",'Nov Raw Data'!$CC:$CC,"MTD") -> 19 | DM30: =SUMIFS('Nov Raw Data'!$BL:$BL,'Nov Raw Data'!$G:$G,'ASO View'!$E30,'Nov Raw Data'!$BU:$BU,"consumer",'Nov Raw Data'!$BS:$BS,"Premium",'Nov Raw Data'!$CA:$CA,"SP",'Nov Raw Data'!$CB:$CB,"Gaming",'Nov Raw Data'!$CC:$CC,"MTD") -> 13 | DN30: =SUMIFS('Nov Raw Data'!$BL:$BL,'Nov Raw Data'!$G:$G,'ASO View'!$E30,'Nov Raw Data'!$BU:$BU,"consumer",'Nov Raw Data'!$BS:$BS,"Premium",'Nov Raw Data'!$CA:$CA,"SP",'Nov Raw Data'!$CB:$CB,"Non-Gaming",'Nov Raw Data'!$CC:$CC,"MTD") -> 6 | DO30: =IFERROR(VLOOKUP($E30,'Nov Pivot'!$T:$U,2,0),0) -> 1 | DP30: =IFERROR(VLOOKUP($E30,'Nov Pivot'!$W:$X,2,0),0) -> 1 | DQ30: =IFERROR(VLOOKUP($E30,'Nov Pivot'!$Z:$AA,2,0),0) -> 1 | DS30: =IFERROR(VLOOKUP($E30,Kiran!A:C,3,0),0) -> 6
A31: . | E31: V5301580 | F31: North 1 | G31: North1 | H31: Rajasthan | I31: Udaipur | J31: Mukesh B | K31: Ganga Singh | L31: Gaurav Sharma | M31: Active | N31: 120 | O31: =SUMIFS('Dec Raw Data'!$BL:$BL,'Dec Raw Data'!$G:$G,'ASO View'!$E31,'Dec Raw Data'!$BX:$BX,"NB") -> 0 | P31: 0% | Q31: -100% | R31: 13 | S31: =SUMIFS('Dec Raw Data'!$BL:$BL,'Dec Raw Data'!$G:$G,'ASO View'!$E31,'Dec Raw Data'!$BX:$BX,"AIO") -> 0 | T31: 0% | U31: -100% | V31: 17 | W31: =SUMIFS('Dec Raw Data'!$BL:$BL,'Dec Raw Data'!$G:$G,'ASO View'!$E31,'Dec Raw Data'!$BX:$BX,"TDT") -> 0 | X31: 0% | Y31: -100% | Z31: 150 | AA31: =SUMIFS('Dec Raw Data'!$BL:$BL,'Dec Raw Data'!$G:$G,'ASO View'!$E31,'Dec Raw Data'!$BU:$BU,"Consumer") -> 0 | AB31: 0% | AC31: -100% | AD31: 23 | AE31: =SUMIFS('Dec Raw Data'!$BL:$BL,'Dec Raw Data'!$G:$G,'ASO View'!$E31,'Dec Raw Data'!$BX:$BX,"NB",'Dec Raw Data'!$BS:$BS,"premium") -> 0 | AF31: 0% | AG31: 30 | AH31: =SUMIFS('Dec Raw Data'!$BL:$BL,'Dec Raw Data'!$G:$G,'ASO View'!$E31,'Dec Raw Data'!$BU:$BU,"Consumer",'Dec Raw Data'!$BS:$BS,"premium") -> 0 | AI31: 0% | AJ31: -100% | AK31: 0.01 | AL31: =SUMIFS('Dec Raw Data'!$BY:$BY,'Dec Raw Data'!$BU:$BU,"Accessories",'Dec Raw Data'!$G:$G,'ASO View'!E31) -> 0.000 | AM31: 0% | AN31: -100% | AO31: 0 | AP31: =SUMIFS('Dec Raw Data'!$BL:$BL,'Dec Raw Data'!$G:$G,'ASO View'!$E31,'Dec Raw Data'!$BU:$BU,"Consumer",'Dec Raw Data'!$BS:$BS,"premium",'Dec Raw Data'!$BX:$BX,"NB",'Dec Raw Data'!$CA:$CA,"SP") -> 0 | AQ31: 0% | AR31: =IFERROR(AP31/DL31-1,0) -> -100% | AS31: 20 | AT31: =SUMIFS('Dec Raw Data'!$BL:$BL,'Dec Raw Data'!$G:$G,'ASO View'!$E31,'Dec Raw Data'!$BU:$BU,"Consumer",'Dec Raw Data'!$BS:$BS,"premium",'Dec Raw Data'!$BX:$BX,"NB",'Dec Raw Data'!$CB:$CB,"Gaming") -> 0 | AU31: 0% | AV31: -100% | AW31: 10 | AX31: =SUMIFS('Dec Raw Data'!$BL:$BL,'Dec Raw Data'!$G:$G,'ASO View'!$E31,'Dec Raw Data'!$BU:$BU,"Consumer",'Dec Raw Data'!$BS:$BS,"premium",'Dec Raw Data'!$BX:$BX,"NB",'Dec Raw Data'!$CB:$CB,"Non-Gaming") -> 0 | AY31: 0% | AZ31: -100% | BA31: 125 | BB31: =SUMIFS('Dec Raw Data'!$BL:$BL,'Dec Raw Data'!$BU:$BU,"visuals",'Dec Raw Data'!$G:$G,'ASO View'!E31) -> 0 | BC31: 0% | BD31: -100% | BE31: 25 | BF31: =SUMIFS('Dec Raw Data'!$BL:$BL,'Dec Raw Data'!$BU:$BU,"visuals",'Dec Raw Data'!$G:$G,'ASO View'!E31,'Dec Raw Data'!$BS:$BS,"Premium") -> 0 | BG31: 0% | BH31: -100% | BI31: 45 | BJ31: 95 | BK31: 211% | BM31: 65 | BN31: =IFERROR(VLOOKUP($E31,'Dec Pivot'!$A:$F,6,0),0) -> 0 | BO31: 0% | BP31: 0% | BQ31: 26 | BR31: =IFERROR(VLOOKUP($E31,'Dec Pivot'!$A:$F,5,0),0) -> 0 | BS31: 0% | BT31: 0% | BU31: 9.6 | BV31: =IFERROR(VLOOKUP($E31,'Dec Pivot'!$AF:$AH,3,0),0) -> 0 | BW31: 0% | BX31: 0% | BY31: 5 | BZ31: =IFERROR(VLOOKUP($E31,'Dec Pivot'!$AI:$AK,3,0),0) -> 0 | CA31: 0% | CB31: 0% | CC31: 5 | CD31: =IFERROR(VLOOKUP($E31,'Dec Pivot'!$AL:$AN,3,0),0) -> 0 | CE31: 0% | CF31: 0% | CG31: 17.55 | CH31: =IFERROR(VLOOKUP($E31,'Dec Pivot'!$J:$O,4,0),0) -> 0 | CI31: 0% | CJ31: =IFERROR(CH31/DF31-1,0) -> 0% | CK31: 11.7 | CL31: =IFERROR(VLOOKUP($E31,'Dec Pivot'!$J:$O,3,0),0) -> 0 | CM31: 0% | CO31: 42.25 | CP31: =IFERROR(VLOOKUP($E31,'Dec Pivot'!$X:$AA,4,0),0) -> 0 | CQ31: 0% | CR31: 0% | CS31: 20 | CT31: =IFERROR(VLOOKUP(E31,'Dec Pivot'!$AB:$AD,3,0),0) -> 0 | CU31: 0% | CV31: 0% | CX31: =SUMIFS('Nov Raw Data'!$BL:$BL,'Nov Raw Data'!$G:$G,'ASO View'!E31,'Nov Raw Data'!$BX:$BX,"NB",'Nov Raw Data'!$CC:$CC,"MTD") -> 88 | CY31: =SUMIFS('Nov Raw Data'!$BL:$BL,'Nov Raw Data'!$G:$G,'ASO View'!E31,'Nov Raw Data'!$BX:$BX,"AIO",'Nov Raw Data'!$CC:$CC,"MTD") -> 2 | CZ31: =SUMIFS('Nov Raw Data'!$BL:$BL,'Nov Raw Data'!$G:$G,'ASO View'!E31,'Nov Raw Data'!$BX:$BX,"TDT",'Nov Raw Data'!$CC:$CC,"MTD") -> 35 | DA31: =SUMIFS('Nov Raw Data'!$BL:$BL,'Nov Raw Data'!$G:$G,'ASO View'!E31,'Nov Raw Data'!$BU:$BU,"consumer",'Nov Raw Data'!$CC:$CC,"MTD") -> 125 | DB31: =SUMIFS('Nov Raw Data'!$BL:$BL,'Nov Raw Data'!$G:$G,'ASO View'!$E31,'Nov Raw Data'!$BU:$BU,"consumer",'Nov Raw Data'!$BS:$BS,"Premium",'Nov Raw Data'!$CC:$CC,"MTD") -> 15 | DC31: =IFERROR(VLOOKUP(E31,'Nov Pivot'!$A:$F,5,0),0) -> 0 | DD31: =IFERROR(VLOOKUP(E31,'Nov Pivot'!$A:$F,4,0),0) -> 0 | DE31: =IFERROR(VLOOKUP($E31,'Nov Pivot'!$AD:$AF,2,0),0) -> 0 | DF31: =IFERROR(VLOOKUP($E31,'Nov Pivot'!$AD:$AF,3,0),0) -> 0 | DG31: =SUMIFS('Nov Raw Data'!$BY:$BY,'Nov Raw Data'!$BU:$BU,"Accessories",'Nov Raw Data'!$G:$G,'ASO View'!E31,'Nov Raw Data'!$CC:$CC,"MTD") -> 0.01 | DH31: =SUMIFS('Nov Raw Data'!$BL:$BL,'Nov Raw Data'!$G:$G,'ASO View'!E31,'Nov Raw Data'!$BU:$BU,"Visuals",'Nov Raw Data'!$CC:$CC,"MTD") -> 49 | DI31: =IFERROR(VLOOKUP(E31,'Nov Pivot'!$K:$P,2,0),0) -> 0 | DJ31: =IFERROR(VLOOKUP(E31,'Nov Pivot'!$K:$P,4,0),0) -> 0 | DK31: =SUMIFS('Nov Raw Data'!$BL:$BL,'Nov Raw Data'!$G:$G,'ASO View'!E31,'Nov Raw Data'!$BU:$BU,"Visuals",'Nov Raw Data'!$BS:$BS,"premium") -> 27 | DL31: =SUMIFS('Nov Raw Data'!$BL:$BL,'Nov Raw Data'!$G:$G,'ASO View'!$E31,'Nov Raw Data'!$BU:$BU,"consumer",'Nov Raw Data'!$BS:$BS,"Premium",'Nov Raw Data'!$CA:$CA,"SP",'Nov Raw Data'!$CC:$CC,"MTD") -> 6 | DM31: =SUMIFS('Nov Raw Data'!$BL:$BL,'Nov Raw Data'!$G:$G,'ASO View'!$E31,'Nov Raw Data'!$BU:$BU,"consumer",'Nov Raw Data'!$BS:$BS,"Premium",'Nov Raw Data'!$CA:$CA,"SP",'Nov Raw Data'!$CB:$CB,"Gaming",'Nov Raw Data'!$CC:$CC,"MTD") -> 5 | DN31: =SUMIFS('Nov Raw Data'!$BL:$BL,'Nov Raw Data'!$G:$G,'ASO View'!$E31,'Nov Raw Data'!$BU:$BU,"consumer",'Nov Raw Data'!$BS:$BS,"Premium",'Nov Raw Data'!$CA:$CA,"SP",'Nov Raw Data'!$CB:$CB,"Non-Gaming",'Nov Raw Data'!$CC:$CC,"MTD") -> 1 | DO31: =IFERROR(VLOOKUP($E31,'Nov Pivot'!$T:$U,2,0),0) -> 0 | DP31: =IFERROR(VLOOKUP($E31,'Nov Pivot'!$W:$X,2,0),0) -> 0 | DQ31: =IFERROR(VLOOKUP($E31,'Nov Pivot'!$Z:$AA,2,0),0) -> 0 | DS31: =IFERROR(VLOOKUP($E31,Kiran!A:C,3,0),0) -> 0
E32: V5266190 | F32: North 1 | G32: North1 | H32: Jammu and Kashmir | I32: Srinagar | J32: Umer Farooq | K32: Karan Kapoor | L32: Gaurav Sharma | M32: Active | N32: 120 | O32: =SUMIFS('Dec Raw Data'!$BL:$BL,'Dec Raw Data'!$G:$G,'ASO View'!$E32,'Dec Raw Data'!$BX:$BX,"NB") -> 6 | P32: 5% | Q32: -94% | R32: 13 | S32: =SUMIFS('Dec Raw Data'!$BL:$BL,'Dec Raw Data'!$G:$G,'ASO View'!$E32,'Dec Raw Data'!$BX:$BX,"AIO") -> 0 | T32: 0% | U32: -100% | V32: 17 | W32: =SUMIFS('Dec Raw Data'!$BL:$BL,'Dec Raw Data'!$G:$G,'ASO View'!$E32,'Dec Raw Data'!$BX:$BX,"TDT") -> 0 | X32: 0% | Y32: -100% | Z32: 150 | AA32: =SUMIFS('Dec Raw Data'!$BL:$BL,'Dec Raw Data'!$G:$G,'ASO View'!$E32,'Dec Raw Data'!$BU:$BU,"Consumer") -> 6 | AB32: 4% | AC32: -95% | AD32: 23 | AE32: =SUMIFS('Dec Raw Data'!$BL:$BL,'Dec Raw Data'!$G:$G,'ASO View'!$E32,'Dec Raw Data'!$BX:$BX,"NB",'Dec Raw Data'!$BS:$BS,"premium") -> 2 | AF32: 9% | AG32: 30 | AH32: =SUMIFS('Dec Raw Data'!$BL:$BL,'Dec Raw Data'!$G:$G,'ASO View'!$E32,'Dec Raw Data'!$BU:$BU,"Consumer",'Dec Raw Data'!$BS:$BS,"premium") -> 2 | AI32: 7% | AJ32: -94% | AK32: 0.01 | AL32: =SUMIFS('Dec Raw Data'!$BY:$BY,'Dec Raw Data'!$BU:$BU,"Accessories",'Dec Raw Data'!$G:$G,'ASO View'!E32) -> 0.004 | AM32: 41% | AN32: =IFERROR(AL32/DG32-1,0) -> -73% | AO32: 0 | AP32: =SUMIFS('Dec Raw Data'!$BL:$BL,'Dec Raw Data'!$G:$G,'ASO View'!$E32,'Dec Raw Data'!$BU:$BU,"Consumer",'Dec Raw Data'!$BS:$BS,"premium",'Dec Raw Data'!$BX:$BX,"NB",'Dec Raw Data'!$CA:$CA,"SP") -> 1 | AQ32: =IFERROR(AP32/AO32,0) -> 0% | AR32: =IFERROR(AP32/DL32-1,0) -> -75% | AS32: 20 | AT32: =SUMIFS('Dec Raw Data'!$BL:$BL,'Dec Raw Data'!$G:$G,'ASO View'!$E32,'Dec Raw Data'!$BU:$BU,"Consumer",'Dec Raw Data'!$BS:$BS,"premium",'Dec Raw Data'!$BX:$BX,"NB",'Dec Raw Data'!$CB:$CB,"Gaming") -> 1 | AU32: 5% | AV32: 0% | AW32: 10 | AX32: =SUMIFS('Dec Raw Data'!$BL:$BL,'Dec Raw Data'!$G:$G,'ASO View'!$E32,'Dec Raw Data'!$BU:$BU,"Consumer",'Dec Raw Data'!$BS:$BS,"premium",'Dec Raw Data'!$BX:$BX,"NB",'Dec Raw Data'!$CB:$CB,"Non-Gaming") -> 0 | AY32: 0% | AZ32: -100% | BA32: 125 | BB32: =SUMIFS('Dec Raw Data'!$BL:$BL,'Dec Raw Data'!$BU:$BU,"visuals",'Dec Raw Data'!$G:$G,'ASO View'!E32) -> 3 | BC32: 2% | BD32: -89% | BE32: 25 | BF32: =SUMIFS('Dec Raw Data'!$BL:$BL,'Dec Raw Data'!$BU:$BU,"visuals",'Dec Raw Data'!$G:$G,'ASO View'!E32,'Dec Raw Data'!$BS:$BS,"Premium") -> 3 | BG32: 12% | BH32: -86% | BI32: 89 | BJ32: - | BK32: 0% | BM32: 60 | BN32: =IFERROR(VLOOKUP($E32,'Dec Pivot'!$A:$F,6,0),0) -> 6 | BO32: 10% | BP32: 20% | BQ32: 24 | BR32: =IFERROR(VLOOKUP($E32,'Dec Pivot'!$A:$F,5,0),0) -> 2 | BS32: 8% | BT32: -33% | BU32: 8.8 | BV32: =IFERROR(VLOOKUP($E32,'Dec Pivot'!$AF:$AH,3,0),0) -> 2 | BW32: =IFERROR(BV32/BU32,0) -> 23% | BX32: 0% | BY32: 5 | BZ32: =IFERROR(VLOOKUP($E32,'Dec Pivot'!$AI:$AK,3,0),0) -> 2 | CA32: =IFERROR(BZ32/BY32,0) -> 40% | CB32: 0% | CC32: 4 | CD32: =IFERROR(VLOOKUP($E32,'Dec Pivot'!$AL:$AN,3,0),0) -> 2 | CE32: =IFERROR(CD32/CC32,0) -> 50% | CF32: 0% | CG32: 16.2 | CH32: =IFERROR(VLOOKUP($E32,'Dec Pivot'!$J:$O,4,0),0) -> 0 | CI32: 0% | CJ32: 0% | CK32: 10.8 | CL32: =IFERROR(VLOOKUP($E32,'Dec Pivot'!$J:$O,3,0),0) -> 0 | CM32: 0% | CO32: 39 | CP32: =IFERROR(VLOOKUP($E32,'Dec Pivot'!$X:$AA,4,0),0) -> 22 | CQ32: 56% | CR32: 5% | CS32: 15 | CT32: =IFERROR(VLOOKUP(E32,'Dec Pivot'!$AB:$AD,3,0),0) -> 3 | CU32: 20% | CV32: 0% | CX32: =SUMIFS('Nov Raw Data'!$BL:$BL,'Nov Raw Data'!$G:$G,'ASO View'!E32,'Nov Raw Data'!$BX:$BX,"NB",'Nov Raw Data'!$CC:$CC,"MTD") -> 102 | CY32: =SUMIFS('Nov Raw Data'!$BL:$BL,'Nov Raw Data'!$G:$G,'ASO View'!E32,'Nov Raw Data'!$BX:$BX,"AIO",'Nov Raw Data'!$CC:$CC,"MTD") -> 13 | CZ32: =SUMIFS('Nov Raw Data'!$BL:$BL,'Nov Raw Data'!$G:$G,'ASO View'!E32,'Nov Raw Data'!$BX:$BX,"TDT",'Nov Raw Data'!$CC:$CC,"MTD") -> 2 | DA32: =SUMIFS('Nov Raw Data'!$BL:$BL,'Nov Raw Data'!$G:$G,'ASO View'!E32,'Nov Raw Data'!$BU:$BU,"consumer",'Nov Raw Data'!$CC:$CC,"MTD") -> 117 | DB32: =SUMIFS('Nov Raw Data'!$BL:$BL,'Nov Raw Data'!$G:$G,'ASO View'!$E32,'Nov Raw Data'!$BU:$BU,"consumer",'Nov Raw Data'!$BS:$BS,"Premium",'Nov Raw Data'!$CC:$CC,"MTD") -> 33 | DC32: =IFERROR(VLOOKUP(E32,'Nov Pivot'!$A:$F,5,0),0) -> 5 | DD32: =IFERROR(VLOOKUP(E32,'Nov Pivot'!$A:$F,4,0),0) -> 3 | DE32: =IFERROR(VLOOKUP($E32,'Nov Pivot'!$AD:$AF,2,0),0) -> 2 | DF32: =IFERROR(VLOOKUP($E32,'Nov Pivot'!$AD:$AF,3,0),0) -> 0 | DG32: =SUMIFS('Nov Raw Data'!$BY:$BY,'Nov Raw Data'!$BU:$BU,"Accessories",'Nov Raw Data'!$G:$G,'ASO View'!E32,'Nov Raw Data'!$CC:$CC,"MTD") -> 0.01 | DH32: =SUMIFS('Nov Raw Data'!$BL:$BL,'Nov Raw Data'!$G:$G,'ASO View'!E32,'Nov Raw Data'!$BU:$BU,"Visuals",'Nov Raw Data'!$CC:$CC,"MTD") -> 28 | DI32: =IFERROR(VLOOKUP(E32,'Nov Pivot'!$K:$P,2,0),0) -> 21 | DJ32: =IFERROR(VLOOKUP(E32,'Nov Pivot'!$K:$P,4,0),0) -> 0 | DK32: =SUMIFS('Nov Raw Data'!$BL:$BL,'Nov Raw Data'!$G:$G,'ASO View'!E32,'Nov Raw Data'!$BU:$BU,"Visuals",'Nov Raw Data'!$BS:$BS,"premium") -> 21 | DL32: =SUMIFS('Nov Raw Data'!$BL:$BL,'Nov Raw Data'!$G:$G,'ASO View'!$E32,'Nov Raw Data'!$BU:$BU,"consumer",'Nov Raw Data'!$BS:$BS,"Premium",'Nov Raw Data'!$CA:$CA,"SP",'Nov Raw Data'!$CC:$CC,"MTD") -> 4 | DM32: =SUMIFS('Nov Raw Data'!$BL:$BL,'Nov Raw Data'!$G:$G,'ASO View'!$E32,'Nov Raw Data'!$BU:$BU,"consumer",'Nov Raw Data'!$BS:$BS,"Premium",'Nov Raw Data'!$CA:$CA,"SP",'Nov Raw Data'!$CB:$CB,"Gaming",'Nov Raw Data'!$CC:$CC,"MTD") -> 0 | DN32: =SUMIFS('Nov Raw Data'!$BL:$BL,'Nov Raw Data'!$G:$G,'ASO View'!$E32,'Nov Raw Data'!$BU:$BU,"consumer",'Nov Raw Data'!$BS:$BS,"Premium",'Nov Raw Data'!$CA:$CA,"SP",'Nov Raw Data'!$CB:$CB,"Non-Gaming",'Nov Raw Data'!$CC:$CC,"MTD") -> 4 | DO32: =IFERROR(VLOOKUP($E32,'Nov Pivot'!$T:$U,2,0),0) -> 0 | DP32: =IFERROR(VLOOKUP($E32,'Nov Pivot'!$W:$X,2,0),0) -> 0 | DQ32: =IFERROR(VLOOKUP($E32,'Nov Pivot'!$Z:$AA,2,0),0) -> 0 | DS32: =IFERROR(VLOOKUP($E32,Kiran!A:C,3,0),0) -> 1
E33: V5265873 | F33: North 1 | G33: North1 | H33: Delhi | I33: Delhi | J33: Vinod Kumar | K33: Kanwaldeep Singh | L33: Gaurav Sharma | M33: Active | N33: 240 | O33: =SUMIFS('Dec Raw Data'!$BL:$BL,'Dec Raw Data'!$G:$G,'ASO View'!$E33,'Dec Raw Data'!$BX:$BX,"NB") -> 14 | P33: 6% | Q33: -93% | R33: 26 | S33: =SUMIFS('Dec Raw Data'!$BL:$BL,'Dec Raw Data'!$G:$G,'ASO View'!$E33,'Dec Raw Data'!$BX:$BX,"AIO") -> 10 | T33: 38% | U33: -64% | V33: 34 | W33: =SUMIFS('Dec Raw Data'!$BL:$BL,'Dec Raw Data'!$G:$G,'ASO View'!$E33,'Dec Raw Data'!$BX:$BX,"TDT") -> 13 | X33: 38% | Y33: -84% | Z33: 300 | AA33: =SUMIFS('Dec Raw Data'!$BL:$BL,'Dec Raw Data'!$G:$G,'ASO View'!$E33,'Dec Raw Data'!$BU:$BU,"Consumer") -> 37 | AB33: 12% | AC33: -88% | AD33: 46 | AE33: =SUMIFS('Dec Raw Data'!$BL:$BL,'Dec Raw Data'!$G:$G,'ASO View'!$E33,'Dec Raw Data'!$BX:$BX,"NB",'Dec Raw Data'!$BS:$BS,"premium") -> 5 | AF33: 11% | AG33: 60 | AH33: =SUMIFS('Dec Raw Data'!$BL:$BL,'Dec Raw Data'!$G:$G,'ASO View'!$E33,'Dec Raw Data'!$BU:$BU,"Consumer",'Dec Raw Data'!$BS:$BS,"premium") -> 6 | AI33: 10% | AJ33: -95% | AK33: 0.02 | AL33: =SUMIFS('Dec Raw Data'!$BY:$BY,'Dec Raw Data'!$BU:$BU,"Accessories",'Dec Raw Data'!$G:$G,'ASO View'!E33) -> 0.000 | AM33: 0% | AN33: -100% | AO33: 0 | AP33: =SUMIFS('Dec Raw Data'!$BL:$BL,'Dec Raw Data'!$G:$G,'ASO View'!$E33,'Dec Raw Data'!$BU:$BU,"Consumer",'Dec Raw Data'!$BS:$BS,"premium",'Dec Raw Data'!$BX:$BX,"NB",'Dec Raw Data'!$CA:$CA,"SP") -> 4 | AQ33: 0% | AR33: 0% | AS33: 39 | AT33: =SUMIFS('Dec Raw Data'!$BL:$BL,'Dec Raw Data'!$G:$G,'ASO View'!$E33,'Dec Raw Data'!$BU:$BU,"Consumer",'Dec Raw Data'!$BS:$BS,"premium",'Dec Raw Data'!$BX:$BX,"NB",'Dec Raw Data'!$CB:$CB,"Gaming") -> 4 | AU33: 10% | AV33: 300% | AW33: 21 | AX33: =SUMIFS('Dec Raw Data'!$BL:$BL,'Dec Raw Data'!$G:$G,'ASO View'!$E33,'Dec Raw Data'!$BU:$BU,"Consumer",'Dec Raw Data'!$BS:$BS,"premium",'Dec Raw Data'!$BX:$BX,"NB",'Dec Raw Data'!$CB:$CB,"Non-Gaming") -> 0 | AY33: 0% | AZ33: -100% | BA33: 125 | BB33: =SUMIFS('Dec Raw Data'!$BL:$BL,'Dec Raw Data'!$BU:$BU,"visuals",'Dec Raw Data'!$G:$G,'ASO View'!E33) -> 0 | BC33: 0% | BD33: -100% | BE33: 25 | BF33: =SUMIFS('Dec Raw Data'!$BL:$BL,'Dec Raw Data'!$BU:$BU,"visuals",'Dec Raw Data'!$G:$G,'ASO View'!E33,'Dec Raw Data'!$BS:$BS,"Premium") -> 0 | BG33: 0% | BH33: -100% | BI33: 71 | BJ33: 0 | BK33: 0% | BM33: 65 | BN33: =IFERROR(VLOOKUP($E33,'Dec Pivot'!$A:$F,6,0),0) -> 24 | BO33: 37% | BP33: 200% | BQ33: 26 | BR33: =IFERROR(VLOOKUP($E33,'Dec Pivot'!$A:$F,5,0),0) -> 6 | BS33: 23% | BT33: 50% | BU33: 9.6 | BV33: =IFERROR(VLOOKUP($E33,'Dec Pivot'!$AF:$AH,3,0),0) -> 5 | BW33: 52% | BX33: =IFERROR(BV33/DO33-1,0) -> 400% | BY33: 5 | BZ33: =IFERROR(VLOOKUP($E33,'Dec Pivot'!$AI:$AK,3,0),0) -> 5 | CA33: 100% | CB33: =IFERROR(BZ33/DP33-1,0) -> 0% | CC33: 5 | CD33: =IFERROR(VLOOKUP($E33,'Dec Pivot'!$AL:$AN,3,0),0) -> 5 | CE33: 100% | CF33: =IFERROR(CD33/DQ33-1,0) -> 400% | CG33: 17.55 | CH33: =IFERROR(VLOOKUP($E33,'Dec Pivot'!$J:$O,4,0),0) -> 7 | CI33: 40% | CJ33: 133% | CK33: 11.7 | CL33: =IFERROR(VLOOKUP($E33,'Dec Pivot'!$J:$O,3,0),0) -> 9 | CM33: 77% | CO33: 42.25 | CP33: =IFERROR(VLOOKUP($E33,'Dec Pivot'!$X:$AA,4,0),0) -> 0 | CQ33: 0% | CR33: 0% | CS33: 30 | CT33: =IFERROR(VLOOKUP(E33,'Dec Pivot'!$AB:$AD,3,0),0) -> 0 | CU33: 0% | CV33: 0% | CX33: =SUMIFS('Nov Raw Data'!$BL:$BL,'Nov Raw Data'!$G:$G,'ASO View'!E33,'Nov Raw Data'!$BX:$BX,"NB",'Nov Raw Data'!$CC:$CC,"MTD") -> 193 | CY33: =SUMIFS('Nov Raw Data'!$BL:$BL,'Nov Raw Data'!$G:$G,'ASO View'!E33,'Nov Raw Data'!$BX:$BX,"AIO",'Nov Raw Data'!$CC:$CC,"MTD") -> 28 | CZ33: =SUMIFS('Nov Raw Data'!$BL:$BL,'Nov Raw Data'!$G:$G,'ASO View'!E33,'Nov Raw Data'!$BX:$BX,"TDT",'Nov Raw Data'!$CC:$CC,"MTD") -> 79 | DA33: =SUMIFS('Nov Raw Data'!$BL:$BL,'Nov Raw Data'!$G:$G,'ASO View'!E33,'Nov Raw Data'!$BU:$BU,"consumer",'Nov Raw Data'!$CC:$CC,"MTD") -> 300 | DB33: =SUMIFS('Nov Raw Data'!$BL:$BL,'Nov Raw Data'!$G:$G,'ASO View'!$E33,'Nov Raw Data'!$BU:$BU,"consumer",'Nov Raw Data'!$BS:$BS,"Premium",'Nov Raw Data'!$CC:$CC,"MTD") -> 113 | DC33: =IFERROR(VLOOKUP(E33,'Nov Pivot'!$A:$F,5,0),0) -> 8 | DD33: =IFERROR(VLOOKUP(E33,'Nov Pivot'!$A:$F,4,0),0) -> 4 | DE33: =IFERROR(VLOOKUP($E33,'Nov Pivot'!$AD:$AF,2,0),0) -> 5 | DF33: =IFERROR(VLOOKUP($E33,'Nov Pivot'!$AD:$AF,3,0),0) -> 3 | DG33: =SUMIFS('Nov Raw Data'!$BY:$BY,'Nov Raw Data'!$BU:$BU,"Accessories",'Nov Raw Data'!$G:$G,'ASO View'!E33,'Nov Raw Data'!$CC:$CC,"MTD") -> 0.02 | DH33: =SUMIFS('Nov Raw Data'!$BL:$BL,'Nov Raw Data'!$G:$G,'ASO View'!E33,'Nov Raw Data'!$BU:$BU,"Visuals",'Nov Raw Data'!$CC:$CC,"MTD") -> 32 | DI33: =IFERROR(VLOOKUP(E33,'Nov Pivot'!$K:$P,2,0),0) -> 0 | DJ33: =IFERROR(VLOOKUP(E33,'Nov Pivot'!$K:$P,4,0),0) -> 0 | DK33: =SUMIFS('Nov Raw Data'!$BL:$BL,'Nov Raw Data'!$G:$G,'ASO View'!E33,'Nov Raw Data'!$BU:$BU,"Visuals",'Nov Raw Data'!$BS:$BS,"premium") -> 6 | DL33: =SUMIFS('Nov Raw Data'!$BL:$BL,'Nov Raw Data'!$G:$G,'ASO View'!$E33,'Nov Raw Data'!$BU:$BU,"consumer",'Nov Raw Data'!$BS:$BS,"Premium",'Nov Raw Data'!$CA:$CA,"SP",'Nov Raw Data'!$CC:$CC,"MTD") -> 4 | DM33: =SUMIFS('Nov Raw Data'!$BL:$BL,'Nov Raw Data'!$G:$G,'ASO View'!$E33,'Nov Raw Data'!$BU:$BU,"consumer",'Nov Raw Data'!$BS:$BS,"Premium",'Nov Raw Data'!$CA:$CA,"SP",'Nov Raw Data'!$CB:$CB,"Gaming",'Nov Raw Data'!$CC:$CC,"MTD") -> 1 | DN33: =SUMIFS('Nov Raw Data'!$BL:$BL,'Nov Raw Data'!$G:$G,'ASO View'!$E33,'Nov Raw Data'!$BU:$BU,"consumer",'Nov Raw Data'!$BS:$BS,"Premium",'Nov Raw Data'!$CA:$CA,"SP",'Nov Raw Data'!$CB:$CB,"Non-Gaming",'Nov Raw Data'!$CC:$CC,"MTD") -> 3 | DO33: =IFERROR(VLOOKUP($E33,'Nov Pivot'!$T:$U,2,0),0) -> 1 | DP33: =IFERROR(VLOOKUP($E33,'Nov Pivot'!$W:$X,2,0),0) -> 0 | DQ33: =IFERROR(VLOOKUP($E33,'Nov Pivot'!$Z:$AA,2,0),0) -> 1 | DS33: =IFERROR(VLOOKUP($E33,Kiran!A:C,3,0),0) -> 4
E34: TBH-Gurugram | F34: North 1 | G34: North1 | H34: Haryana | I34: Gurugram | J34: TBH-Gurugram | K34: Rajat Maheshwari | L34: Gaurav Sharma | M34: Vacant | N34: 200 | O34: =SUMIFS('Dec Raw Data'!$BL:$BL,'Dec Raw Data'!$G:$G,'ASO View'!$E34,'Dec Raw Data'!$BX:$BX,"NB") -> 0 | P34: 0% | Q34: 0% | R34: 22 | S34: =SUMIFS('Dec Raw Data'!$BL:$BL,'Dec Raw Data'!$G:$G,'ASO View'!$E34,'Dec Raw Data'!$BX:$BX,"AIO") -> 0 | T34: 0% | U34: 0% | V34: 28 | W34: =SUMIFS('Dec Raw Data'!$BL:$BL,'Dec Raw Data'!$G:$G,'ASO View'!$E34,'Dec Raw Data'!$BX:$BX,"TDT") -> 0 | X34: 0% | Y34: 0% | Z34: 250 | AA34: =SUMIFS('Dec Raw Data'!$BL:$BL,'Dec Raw Data'!$G:$G,'ASO View'!$E34,'Dec Raw Data'!$BU:$BU,"Consumer") -> 0 | AB34: 0% | AC34: 0% | AD34: 38 | AE34: =SUMIFS('Dec Raw Data'!$BL:$BL,'Dec Raw Data'!$G:$G,'ASO View'!$E34,'Dec Raw Data'!$BX:$BX,"NB",'Dec Raw Data'!$BS:$BS,"premium") -> 0 | AF34: 0% | AG34: 50 | AH34: =SUMIFS('Dec Raw Data'!$BL:$BL,'Dec Raw Data'!$G:$G,'ASO View'!$E34,'Dec Raw Data'!$BU:$BU,"Consumer",'Dec Raw Data'!$BS:$BS,"premium") -> 0 | AI34: 0% | AJ34: 0% | AK34: 0.02 | AL34: =SUMIFS('Dec Raw Data'!$BY:$BY,'Dec Raw Data'!$BU:$BU,"Accessories",'Dec Raw Data'!$G:$G,'ASO View'!E34) -> 0.000 | AM34: 0% | AN34: 0% | AO34: 0 | AP34: =SUMIFS('Dec Raw Data'!$BL:$BL,'Dec Raw Data'!$G:$G,'ASO View'!$E34,'Dec Raw Data'!$BU:$BU,"Consumer",'Dec Raw Data'!$BS:$BS,"premium",'Dec Raw Data'!$BX:$BX,"NB",'Dec Raw Data'!$CA:$CA,"SP") -> 0 | AQ34: 0% | AR34: 0% | AS34: 33 | AT34: =SUMIFS('Dec Raw Data'!$BL:$BL,'Dec Raw Data'!$G:$G,'ASO View'!$E34,'Dec Raw Data'!$BU:$BU,"Consumer",'Dec Raw Data'!$BS:$BS,"premium",'Dec Raw Data'!$BX:$BX,"NB",'Dec Raw Data'!$CB:$CB,"Gaming") -> 0 | AU34: 0% | AV34: 0% | AW34: 17 | AX34: =SUMIFS('Dec Raw Data'!$BL:$BL,'Dec Raw Data'!$G:$G,'ASO View'!$E34,'Dec Raw Data'!$BU:$BU,"Consumer",'Dec Raw Data'!$BS:$BS,"premium",'Dec Raw Data'!$BX:$BX,"NB",'Dec Raw Data'!$CB:$CB,"Non-Gaming") -> 0 | AY34: 0% | AZ34: 0% | BA34: 125 | BB34: =SUMIFS('Dec Raw Data'!$BL:$BL,'Dec Raw Data'!$BU:$BU,"visuals",'Dec Raw Data'!$G:$G,'ASO View'!E34) -> 0 | BC34: 0% | BD34: 0% | BE34: 25 | BF34: =SUMIFS('Dec Raw Data'!$BL:$BL,'Dec Raw Data'!$BU:$BU,"visuals",'Dec Raw Data'!$G:$G,'ASO View'!E34,'Dec Raw Data'!$BS:$BS,"Premium") -> 0 | BG34: 0% | BH34: 0% | BI34: 37 | BJ34: 28 | BK34: 76% | BM34: 70 | BN34: =IFERROR(VLOOKUP($E34,'Dec Pivot'!$A:$F,6,0),0) -> 0 | BO34: 0% | BP34: 0% | BQ34: 28 | BR34: =IFERROR(VLOOKUP($E34,'Dec Pivot'!$A:$F,5,0),0) -> 0 | BS34: 0% | BT34: 0% | BU34: 10.4 | BV34: =IFERROR(VLOOKUP($E34,'Dec Pivot'!$AF:$AH,3,0),0) -> 0 | BW34: 0% | BX34: 0% | BY34: 6 | BZ34: =IFERROR(VLOOKUP($E34,'Dec Pivot'!$AI:$AK,3,0),0) -> 0 | CA34: 0% | CB34: 0% | CC34: 5 | CD34: =IFERROR(VLOOKUP($E34,'Dec Pivot'!$AL:$AN,3,0),0) -> 0 | CE34: 0% | CF34: 0% | CG34: 18.9 | CH34: =IFERROR(VLOOKUP($E34,'Dec Pivot'!$J:$O,4,0),0) -> 0 | CI34: 0% | CJ34: 0% | CK34: 12.6 | CL34: =IFERROR(VLOOKUP($E34,'Dec Pivot'!$J:$O,3,0),0) -> 0 | CM34: 0% | CO34: 45.5 | CP34: =IFERROR(VLOOKUP($E34,'Dec Pivot'!$X:$AA,4,0),0) -> 0 | CQ34: 0% | CR34: 0% | CS34: 25 | CT34: =IFERROR(VLOOKUP(E34,'Dec Pivot'!$AB:$AD,3,0),0) -> 0 | CU34: 0% | CV34: 0% | CX34: =SUMIFS('Nov Raw Data'!$BL:$BL,'Nov Raw Data'!$G:$G,'ASO View'!E34,'Nov Raw Data'!$BX:$BX,"NB",'Nov Raw Data'!$CC:$CC,"MTD") -> 0 | CY34: =SUMIFS('Nov Raw Data'!$BL:$BL,'Nov Raw Data'!$G:$G,'ASO View'!E34,'Nov Raw Data'!$BX:$BX,"AIO",'Nov Raw Data'!$CC:$CC,"MTD") -> 0 | CZ34: =SUMIFS('Nov Raw Data'!$BL:$BL,'Nov Raw Data'!$G:$G,'ASO View'!E34,'Nov Raw Data'!$BX:$BX,"TDT",'Nov Raw Data'!$CC:$CC,"MTD") -> 0 | DA34: =SUMIFS('Nov Raw Data'!$BL:$BL,'Nov Raw Data'!$G:$G,'ASO View'!E34,'Nov Raw Data'!$BU:$BU,"consumer",'Nov Raw Data'!$CC:$CC,"MTD") -> 0 | DB34: =SUMIFS('Nov Raw Data'!$BL:$BL,'Nov Raw Data'!$G:$G,'ASO View'!$E34,'Nov Raw Data'!$BU:$BU,"consumer",'Nov Raw Data'!$BS:$BS,"Premium",'Nov Raw Data'!$CC:$CC,"MTD") -> 0 | DC34: =IFERROR(VLOOKUP(E34,'Nov Pivot'!$A:$F,5,0),0) -> 0 | DD34: =IFERROR(VLOOKUP(E34,'Nov Pivot'!$A:$F,4,0),0) -> 0 | DE34: =IFERROR(VLOOKUP($E34,'Nov Pivot'!$AD:$AF,2,0),0) -> 0 | DF34: =IFERROR(VLOOKUP($E34,'Nov Pivot'!$AD:$AF,3,0),0) -> 0 | DG34: =SUMIFS('Nov Raw Data'!$BY:$BY,'Nov Raw Data'!$BU:$BU,"Accessories",'Nov Raw Data'!$G:$G,'ASO View'!E34,'Nov Raw Data'!$CC:$CC,"MTD") -> 0.00 | DH34: =SUMIFS('Nov Raw Data'!$BL:$BL,'Nov Raw Data'!$G:$G,'ASO View'!E34,'Nov Raw Data'!$BU:$BU,"Visuals",'Nov Raw Data'!$CC:$CC,"MTD") -> 0 | DI34: =IFERROR(VLOOKUP(E34,'Nov Pivot'!$K:$P,2,0),0) -> 0 | DJ34: =IFERROR(VLOOKUP(E34,'Nov Pivot'!$K:$P,4,0),0) -> 0 | DK34: =SUMIFS('Nov Raw Data'!$BL:$BL,'Nov Raw Data'!$G:$G,'ASO View'!E34,'Nov Raw Data'!$BU:$BU,"Visuals",'Nov Raw Data'!$BS:$BS,"premium") -> 0 | DL34: =SUMIFS('Nov Raw Data'!$BL:$BL,'Nov Raw Data'!$G:$G,'ASO View'!$E34,'Nov Raw Data'!$BU:$BU,"consumer",'Nov Raw Data'!$BS:$BS,"Premium",'Nov Raw Data'!$CA:$CA,"SP",'Nov Raw Data'!$CC:$CC,"MTD") -> 0 | DM34: =SUMIFS('Nov Raw Data'!$BL:$BL,'Nov Raw Data'!$G:$G,'ASO View'!$E34,'Nov Raw Data'!$BU:$BU,"consumer",'Nov Raw Data'!$BS:$BS,"Premium",'Nov Raw Data'!$CA:$CA,"SP",'Nov Raw Data'!$CB:$CB,"Gaming",'Nov Raw Data'!$CC:$CC,"MTD") -> 0 | DN34: =SUMIFS('Nov Raw Data'!$BL:$BL,'Nov Raw Data'!$G:$G,'ASO View'!$E34,'Nov Raw Data'!$BU:$BU,"consumer",'Nov Raw Data'!$BS:$BS,"Premium",'Nov Raw Data'!$CA:$CA,"SP",'Nov Raw Data'!$CB:$CB,"Non-Gaming",'Nov Raw Data'!$CC:$CC,"MTD") -> 0 | DO34: =IFERROR(VLOOKUP($E34,'Nov Pivot'!$T:$U,2,0),0) -> 0 | DP34: =IFERROR(VLOOKUP($E34,'Nov Pivot'!$W:$X,2,0),0) -> 0 | DQ34: =IFERROR(VLOOKUP($E34,'Nov Pivot'!$Z:$AA,2,0),0) -> 0 | DS34: =IFERROR(VLOOKUP($E34,Kiran!A:C,3,0),0) -> 0
E35: V5267500 | F35: North 1 | G35: North1 | H35: Haryana | I35: Karnal | J35: Sunil Batra | K35: Rajat Maheshwari | L35: Gaurav Sharma | M35: Active | N35: 200 | O35: =SUMIFS('Dec Raw Data'!$BL:$BL,'Dec Raw Data'!$G:$G,'ASO View'!$E35,'Dec Raw Data'!$BX:$BX,"NB") -> 0 | P35: 0% | Q35: -100% | R35: 22 | S35: =SUMIFS('Dec Raw Data'!$BL:$BL,'Dec Raw Data'!$G:$G,'ASO View'!$E35,'Dec Raw Data'!$BX:$BX,"AIO") -> 0 | T35: 0% | U35: -100% | V35: 28 | W35: =SUMIFS('Dec Raw Data'!$BL:$BL,'Dec Raw Data'!$G:$G,'ASO View'!$E35,'Dec Raw Data'!$BX:$BX,"TDT") -> 0 | X35: 0% | Y35: -100% | Z35: 250 | AA35: =SUMIFS('Dec Raw Data'!$BL:$BL,'Dec Raw Data'!$G:$G,'ASO View'!$E35,'Dec Raw Data'!$BU:$BU,"Consumer") -> 0 | AB35: 0% | AC35: -100% | AD35: 38 | AE35: =SUMIFS('Dec Raw Data'!$BL:$BL,'Dec Raw Data'!$G:$G,'ASO View'!$E35,'Dec Raw Data'!$BX:$BX,"NB",'Dec Raw Data'!$BS:$BS,"premium") -> 0 | AF35: 0% | AG35: 50 | AH35: =SUMIFS('Dec Raw Data'!$BL:$BL,'Dec Raw Data'!$G:$G,'ASO View'!$E35,'Dec Raw Data'!$BU:$BU,"Consumer",'Dec Raw Data'!$BS:$BS,"premium") -> 0 | AI35: 0% | AJ35: -100% | AK35: 0.02 | AL35: =SUMIFS('Dec Raw Data'!$BY:$BY,'Dec Raw Data'!$BU:$BU,"Accessories",'Dec Raw Data'!$G:$G,'ASO View'!E35) -> 0.000 | AM35: =IFERROR(AL35/AK35,0) -> 0% | AN35: -100% | AO35: 0 | AP35: =SUMIFS('Dec Raw Data'!$BL:$BL,'Dec Raw Data'!$G:$G,'ASO View'!$E35,'Dec Raw Data'!$BU:$BU,"Consumer",'Dec Raw Data'!$BS:$BS,"premium",'Dec Raw Data'!$BX:$BX,"NB",'Dec Raw Data'!$CA:$CA,"SP") -> 0 | AQ35: 0% | AR35: -100% | AS35: 33 | AT35: =SUMIFS('Dec Raw Data'!$BL:$BL,'Dec Raw Data'!$G:$G,'ASO View'!$E35,'Dec Raw Data'!$BU:$BU,"Consumer",'Dec Raw Data'!$BS:$BS,"premium",'Dec Raw Data'!$BX:$BX,"NB",'Dec Raw Data'!$CB:$CB,"Gaming") -> 0 | AU35: 0% | AV35: -100% | AW35: 17 | AX35: =SUMIFS('Dec Raw Data'!$BL:$BL,'Dec Raw Data'!$G:$G,'ASO View'!$E35,'Dec Raw Data'!$BU:$BU,"Consumer",'Dec Raw Data'!$BS:$BS,"premium",'Dec Raw Data'!$BX:$BX,"NB",'Dec Raw Data'!$CB:$CB,"Non-Gaming") -> 0 | AY35: 0% | AZ35: -100% | BA35: 125 | BB35: =SUMIFS('Dec Raw Data'!$BL:$BL,'Dec Raw Data'!$BU:$BU,"visuals",'Dec Raw Data'!$G:$G,'ASO View'!E35) -> 0 | BC35: =IFERROR(BB35/BA35,0) -> 0% | BD35: =IFERROR(BB35/DH35-1,0) -> -100% | BE35: 25 | BF35: =SUMIFS('Dec Raw Data'!$BL:$BL,'Dec Raw Data'!$BU:$BU,"visuals",'Dec Raw Data'!$G:$G,'ASO View'!E35,'Dec Raw Data'!$BS:$BS,"Premium") -> 0 | BG35: =IFERROR(BF35/BE35,0) -> 0% | BH35: -100% | BI35: 38 | BJ35: 49 | BK35: 131% | BM35: 80 | BN35: =IFERROR(VLOOKUP($E35,'Dec Pivot'!$A:$F,6,0),0) -> 0 | BO35: =IFERROR(BN35/BM35,0) -> 0% | BP35: =IFERROR(BN35/DC35-1,0) -> -100% | BQ35: 32 | BR35: =IFERROR(VLOOKUP($E35,'Dec Pivot'!$A:$F,5,0),0) -> 0 | BS35: =IFERROR(BR35/BQ35,0) -> 0% | BT35: =IFERROR(BR35/DD35-1,0) -> -100% | BU35: 11.8 | BV35: =IFERROR(VLOOKUP($E35,'Dec Pivot'!$AF:$AH,3,0),0) -> 0 | BW35: 0% | BX35: 0% | BY35: 6 | BZ35: =IFERROR(VLOOKUP($E35,'Dec Pivot'!$AI:$AK,3,0),0) -> 0 | CA35: 0% | CB35: 0% | CC35: 6 | CD35: =IFERROR(VLOOKUP($E35,'Dec Pivot'!$AL:$AN,3,0),0) -> 0 | CE35: 0% | CF35: 0% | CG35: 21.6 | CH35: =IFERROR(VLOOKUP($E35,'Dec Pivot'!$J:$O,4,0),0) -> 0 | CI35: 0% | CJ35: -100% | CK35: 14.4 | CL35: =IFERROR(VLOOKUP($E35,'Dec Pivot'!$J:$O,3,0),0) -> 0 | CM35: 0% | CO35: 52 | CP35: =IFERROR(VLOOKUP($E35,'Dec Pivot'!$X:$AA,4,0),0) -> 0 | CQ35: =IFERROR(CP35/CO35,0) -> 0% | CR35: =IFERROR(CP35/DI35-1,0) -> -100% | CS35: 25 | CT35: =IFERROR(VLOOKUP(E35,'Dec Pivot'!$AB:$AD,3,0),0) -> 0 | CU35: =IFERROR(CT35/CS35,0) -> 0% | CV35: =IFERROR(CT35/DJ35-1,0) -> 0% | CX35: =SUMIFS('Nov Raw Data'!$BL:$BL,'Nov Raw Data'!$G:$G,'ASO View'!E35,'Nov Raw Data'!$BX:$BX,"NB",'Nov Raw Data'!$CC:$CC,"MTD") -> 4 | CY35: =SUMIFS('Nov Raw Data'!$BL:$BL,'Nov Raw Data'!$G:$G,'ASO View'!E35,'Nov Raw Data'!$BX:$BX,"AIO",'Nov Raw Data'!$CC:$CC,"MTD") -> 5 | CZ35: =SUMIFS('Nov Raw Data'!$BL:$BL,'Nov Raw Data'!$G:$G,'ASO View'!E35,'Nov Raw Data'!$BX:$BX,"TDT",'Nov Raw Data'!$CC:$CC,"MTD") -> 23 | DA35: =SUMIFS('Nov Raw Data'!$BL:$BL,'Nov Raw Data'!$G:$G,'ASO View'!E35,'Nov Raw Data'!$BU:$BU,"consumer",'Nov Raw Data'!$CC:$CC,"MTD") -> 32 | DB35: =SUMIFS('Nov Raw Data'!$BL:$BL,'Nov Raw Data'!$G:$G,'ASO View'!$E35,'Nov Raw Data'!$BU:$BU,"consumer",'Nov Raw Data'!$BS:$BS,"Premium",'Nov Raw Data'!$CC:$CC,"MTD") -> 8 | DC35: =IFERROR(VLOOKUP(E35,'Nov Pivot'!$A:$F,5,0),0) -> 1 | DD35: =IFERROR(VLOOKUP(E35,'Nov Pivot'!$A:$F,4,0),0) -> 2 | DE35: =IFERROR(VLOOKUP($E35,'Nov Pivot'!$AD:$AF,2,0),0) -> 0 | DF35: =IFERROR(VLOOKUP($E35,'Nov Pivot'!$AD:$AF,3,0),0) -> 2 | DG35: =SUMIFS('Nov Raw Data'!$BY:$BY,'Nov Raw Data'!$BU:$BU,"Accessories",'Nov Raw Data'!$G:$G,'ASO View'!E35,'Nov Raw Data'!$CC:$CC,"MTD") -> 0.01 | DH35: =SUMIFS('Nov Raw Data'!$BL:$BL,'Nov Raw Data'!$G:$G,'ASO View'!E35,'Nov Raw Data'!$BU:$BU,"Visuals",'Nov Raw Data'!$CC:$CC,"MTD") -> 50 | DI35: =IFERROR(VLOOKUP(E35,'Nov Pivot'!$K:$P,2,0),0) -> 5 | DJ35: =IFERROR(VLOOKUP(E35,'Nov Pivot'!$K:$P,4,0),0) -> 0 | DK35: =SUMIFS('Nov Raw Data'!$BL:$BL,'Nov Raw Data'!$G:$G,'ASO View'!E35,'Nov Raw Data'!$BU:$BU,"Visuals",'Nov Raw Data'!$BS:$BS,"premium") -> 17 | DL35: =SUMIFS('Nov Raw Data'!$BL:$BL,'Nov Raw Data'!$G:$G,'ASO View'!$E35,'Nov Raw Data'!$BU:$BU,"consumer",'Nov Raw Data'!$BS:$BS,"Premium",'Nov Raw Data'!$CA:$CA,"SP",'Nov Raw Data'!$CC:$CC,"MTD") -> 2 | DM35: =SUMIFS('Nov Raw Data'!$BL:$BL,'Nov Raw Data'!$G:$G,'ASO View'!$E35,'Nov Raw Data'!$BU:$BU,"consumer",'Nov Raw Data'!$BS:$BS,"Premium",'Nov Raw Data'!$CA:$CA,"SP",'Nov Raw Data'!$CB:$CB,"Gaming",'Nov Raw Data'!$CC:$CC,"MTD") -> 1 | DN35: =SUMIFS('Nov Raw Data'!$BL:$BL,'Nov Raw Data'!$G:$G,'ASO View'!$E35,'Nov Raw Data'!$BU:$BU,"consumer",'Nov Raw Data'!$BS:$BS,"Premium",'Nov Raw Data'!$CA:$CA,"SP",'Nov Raw Data'!$CB:$CB,"Non-Gaming",'Nov Raw Data'!$CC:$CC,"MTD") -> 1 | DO35: =IFERROR(VLOOKUP($E35,'Nov Pivot'!$T:$U,2,0),0) -> 0 | DP35: =IFERROR(VLOOKUP($E35,'Nov Pivot'!$W:$X,2,0),0) -> 0 | DQ35: =IFERROR(VLOOKUP($E35,'Nov Pivot'!$Z:$AA,2,0),0) -> 0 | DS35: =IFERROR(VLOOKUP($E35,Kiran!A:C,3,0),0) -> 0
E36: V5414354 | F36: North 1 | G36: North1 | H36: Punjab | I36: Ludhiana | J36: Manpreet Singh | K36: Karan Kapoor | L36: Gaurav Sharma | M36: Active | N36: 120 | O36: =SUMIFS('Dec Raw Data'!$BL:$BL,'Dec Raw Data'!$G:$G,'ASO View'!$E36,'Dec Raw Data'!$BX:$BX,"NB") -> 8 | P36: 7% | Q36: -94% | R36: 13 | S36: =SUMIFS('Dec Raw Data'!$BL:$BL,'Dec Raw Data'!$G:$G,'ASO View'!$E36,'Dec Raw Data'!$BX:$BX,"AIO") -> 6 | T36: 46% | U36: -92% | V36: 17 | W36: =SUMIFS('Dec Raw Data'!$BL:$BL,'Dec Raw Data'!$G:$G,'ASO View'!$E36,'Dec Raw Data'!$BX:$BX,"TDT") -> 26 | X36: 153% | Y36: 0% | Z36: 150 | AA36: =SUMIFS('Dec Raw Data'!$BL:$BL,'Dec Raw Data'!$G:$G,'ASO View'!$E36,'Dec Raw Data'!$BU:$BU,"Consumer") -> 40 | AB36: 27% | AC36: -83% | AD36: 23 | AE36: =SUMIFS('Dec Raw Data'!$BL:$BL,'Dec Raw Data'!$G:$G,'ASO View'!$E36,'Dec Raw Data'!$BX:$BX,"NB",'Dec Raw Data'!$BS:$BS,"premium") -> 1 | AF36: 4% | AG36: 30 | AH36: =SUMIFS('Dec Raw Data'!$BL:$BL,'Dec Raw Data'!$G:$G,'ASO View'!$E36,'Dec Raw Data'!$BU:$BU,"Consumer",'Dec Raw Data'!$BS:$BS,"premium") -> 1 | AI36: 3% | AJ36: -83% | AK36: 0.01 | AL36: =SUMIFS('Dec Raw Data'!$BY:$BY,'Dec Raw Data'!$BU:$BU,"Accessories",'Dec Raw Data'!$G:$G,'ASO View'!E36) -> 0.000 | AM36: 0% | AN36: 0% | AO36: 0 | AP36: =SUMIFS('Dec Raw Data'!$BL:$BL,'Dec Raw Data'!$G:$G,'ASO View'!$E36,'Dec Raw Data'!$BU:$BU,"Consumer",'Dec Raw Data'!$BS:$BS,"premium",'Dec Raw Data'!$BX:$BX,"NB",'Dec Raw Data'!$CA:$CA,"SP") -> 1 | AQ36: 0% | AR36: 0% | AS36: 20 | AT36: =SUMIFS('Dec Raw Data'!$BL:$BL,'Dec Raw Data'!$G:$G,'ASO View'!$E36,'Dec Raw Data'!$BU:$BU,"Consumer",'Dec Raw Data'!$BS:$BS,"premium",'Dec Raw Data'!$BX:$BX,"NB",'Dec Raw Data'!$CB:$CB,"Gaming") -> 1 | AU36: 5% | AV36: 0% | AW36: 10 | AX36: =SUMIFS('Dec Raw Data'!$BL:$BL,'Dec Raw Data'!$G:$G,'ASO View'!$E36,'Dec Raw Data'!$BU:$BU,"Consumer",'Dec Raw Data'!$BS:$BS,"premium",'Dec Raw Data'!$BX:$BX,"NB",'Dec Raw Data'!$CB:$CB,"Non-Gaming") -> 0 | AY36: 0% | AZ36: 0% | BA36: 125 | BB36: =SUMIFS('Dec Raw Data'!$BL:$BL,'Dec Raw Data'!$BU:$BU,"visuals",'Dec Raw Data'!$G:$G,'ASO View'!E36) -> 0 | BC36: 0% | BD36: -100% | BE36: 25 | BF36: =SUMIFS('Dec Raw Data'!$BL:$BL,'Dec Raw Data'!$BU:$BU,"visuals",'Dec Raw Data'!$G:$G,'ASO View'!E36,'Dec Raw Data'!$BS:$BS,"Premium") -> 0 | BG36: 0% | BH36: 0% | BI36: 30 | BJ36: 149 | BK36: 497% | BM36: 65 | BN36: =IFERROR(VLOOKUP($E36,'Dec Pivot'!$A:$F,6,0),0) -> 25 | BO36: 38% | BP36: 2400% | BQ36: 26 | BR36: =IFERROR(VLOOKUP($E36,'Dec Pivot'!$A:$F,5,0),0) -> 1 | BS36: 4% | BT36: 0% | BU36: 9.6 | BV36: =IFERROR(VLOOKUP($E36,'Dec Pivot'!$AF:$AH,3,0),0) -> 1 | BW36: 10% | BX36: 0% | BY36: 5 | BZ36: =IFERROR(VLOOKUP($E36,'Dec Pivot'!$AI:$AK,3,0),0) -> 1 | CA36: 20% | CB36: 0% | CC36: 5 | CD36: =IFERROR(VLOOKUP($E36,'Dec Pivot'!$AL:$AN,3,0),0) -> 1 | CE36: 20% | CF36: 0% | CG36: 17.55 | CH36: =IFERROR(VLOOKUP($E36,'Dec Pivot'!$J:$O,4,0),0) -> 19 | CI36: 108% | CJ36: 0% | CK36: 11.7 | CL36: =IFERROR(VLOOKUP($E36,'Dec Pivot'!$J:$O,3,0),0) -> 3 | CM36: 26% | CO36: 42.25 | CP36: =IFERROR(VLOOKUP($E36,'Dec Pivot'!$X:$AA,4,0),0) -> 0 | CQ36: 0% | CR36: 0% | CS36: 30 | CT36: =IFERROR(VLOOKUP(E36,'Dec Pivot'!$AB:$AD,3,0),0) -> 0 | CU36: 0% | CV36: 0% | CX36: =SUMIFS('Nov Raw Data'!$BL:$BL,'Nov Raw Data'!$G:$G,'ASO View'!E36,'Nov Raw Data'!$BX:$BX,"NB",'Nov Raw Data'!$CC:$CC,"MTD") -> 139 | CY36: =SUMIFS('Nov Raw Data'!$BL:$BL,'Nov Raw Data'!$G:$G,'ASO View'!E36,'Nov Raw Data'!$BX:$BX,"AIO",'Nov Raw Data'!$CC:$CC,"MTD") -> 76 | CZ36: =SUMIFS('Nov Raw Data'!$BL:$BL,'Nov Raw Data'!$G:$G,'ASO View'!E36,'Nov Raw Data'!$BX:$BX,"TDT",'Nov Raw Data'!$CC:$CC,"MTD") -> 26 | DA36: =SUMIFS('Nov Raw Data'!$BL:$BL,'Nov Raw Data'!$G:$G,'ASO View'!E36,'Nov Raw Data'!$BU:$BU,"consumer",'Nov Raw Data'!$CC:$CC,"MTD") -> 241 | DB36: =SUMIFS('Nov Raw Data'!$BL:$BL,'Nov Raw Data'!$G:$G,'ASO View'!$E36,'Nov Raw Data'!$BU:$BU,"consumer",'Nov Raw Data'!$BS:$BS,"Premium",'Nov Raw Data'!$CC:$CC,"MTD") -> 6 | DC36: =IFERROR(VLOOKUP(E36,'Nov Pivot'!$A:$F,5,0),0) -> 1 | DD36: =IFERROR(VLOOKUP(E36,'Nov Pivot'!$A:$F,4,0),0) -> 0 | DE36: =IFERROR(VLOOKUP($E36,'Nov Pivot'!$AD:$AF,2,0),0) -> 0 | DF36: =IFERROR(VLOOKUP($E36,'Nov Pivot'!$AD:$AF,3,0),0) -> 0 | DG36: =SUMIFS('Nov Raw Data'!$BY:$BY,'Nov Raw Data'!$BU:$BU,"Accessories",'Nov Raw Data'!$G:$G,'ASO View'!E36,'Nov Raw Data'!$CC:$CC,"MTD") -> 0.00 | DH36: =SUMIFS('Nov Raw Data'!$BL:$BL,'Nov Raw Data'!$G:$G,'ASO View'!E36,'Nov Raw Data'!$BU:$BU,"Visuals",'Nov Raw Data'!$CC:$CC,"MTD") -> 6 | DI36: =IFERROR(VLOOKUP(E36,'Nov Pivot'!$K:$P,2,0),0) -> 0 | DJ36: =IFERROR(VLOOKUP(E36,'Nov Pivot'!$K:$P,4,0),0) -> 0 | DK36: =SUMIFS('Nov Raw Data'!$BL:$BL,'Nov Raw Data'!$G:$G,'ASO View'!E36,'Nov Raw Data'!$BU:$BU,"Visuals",'Nov Raw Data'!$BS:$BS,"premium") -> 0 | DL36: =SUMIFS('Nov Raw Data'!$BL:$BL,'Nov Raw Data'!$G:$G,'ASO View'!$E36,'Nov Raw Data'!$BU:$BU,"consumer",'Nov Raw Data'!$BS:$BS,"Premium",'Nov Raw Data'!$CA:$CA,"SP",'Nov Raw Data'!$CC:$CC,"MTD") -> 0 | DM36: =SUMIFS('Nov Raw Data'!$BL:$BL,'Nov Raw Data'!$G:$G,'ASO View'!$E36,'Nov Raw Data'!$BU:$BU,"consumer",'Nov Raw Data'!$BS:$BS,"Premium",'Nov Raw Data'!$CA:$CA,"SP",'Nov Raw Data'!$CB:$CB,"Gaming",'Nov Raw Data'!$CC:$CC,"MTD") -> 0 | DN36: =SUMIFS('Nov Raw Data'!$BL:$BL,'Nov Raw Data'!$G:$G,'ASO View'!$E36,'Nov Raw Data'!$BU:$BU,"consumer",'Nov Raw Data'!$BS:$BS,"Premium",'Nov Raw Data'!$CA:$CA,"SP",'Nov Raw Data'!$CB:$CB,"Non-Gaming",'Nov Raw Data'!$CC:$CC,"MTD") -> 0 | DO36: =IFERROR(VLOOKUP($E36,'Nov Pivot'!$T:$U,2,0),0) -> 0 | DP36: =IFERROR(VLOOKUP($E36,'Nov Pivot'!$W:$X,2,0),0) -> 0 | DQ36: =IFERROR(VLOOKUP($E36,'Nov Pivot'!$Z:$AA,2,0),0) -> 0 | DS36: =IFERROR(VLOOKUP($E36,Kiran!A:C,3,0),0) -> 1
E37: V5459442 | F37: North 1 | G37: North1 | H37: Rajasthan | I37: Jaipur | J37: Pran Pratap Singh | K37: Ganga Singh | L37: Gaurav Sharma | M37: Active | N37: 200 | O37: =SUMIFS('Dec Raw Data'!$BL:$BL,'Dec Raw Data'!$G:$G,'ASO View'!$E37,'Dec Raw Data'!$BX:$BX,"NB") -> 1 | P37: 1% | Q37: -99% | R37: 22 | S37: =SUMIFS('Dec Raw Data'!$BL:$BL,'Dec Raw Data'!$G:$G,'ASO View'!$E37,'Dec Raw Data'!$BX:$BX,"AIO") -> 1 | T37: 5% | U37: -90% | V37: 28 | W37: =SUMIFS('Dec Raw Data'!$BL:$BL,'Dec Raw Data'!$G:$G,'ASO View'!$E37,'Dec Raw Data'!$BX:$BX,"TDT") -> 16 | X37: 57% | Y37: -77% | Z37: 250 | AA37: =SUMIFS('Dec Raw Data'!$BL:$BL,'Dec Raw Data'!$G:$G,'ASO View'!$E37,'Dec Raw Data'!$BU:$BU,"Consumer") -> 18 | AB37: 7% | AC37: -93% | AD37: 38 | AE37: =SUMIFS('Dec Raw Data'!$BL:$BL,'Dec Raw Data'!$G:$G,'ASO View'!$E37,'Dec Raw Data'!$BX:$BX,"NB",'Dec Raw Data'!$BS:$BS,"premium") -> 1 | AF37: 3% | AG37: 50 | AH37: =SUMIFS('Dec Raw Data'!$BL:$BL,'Dec Raw Data'!$G:$G,'ASO View'!$E37,'Dec Raw Data'!$BU:$BU,"Consumer",'Dec Raw Data'!$BS:$BS,"premium") -> 1 | AI37: 2% | AJ37: -98% | AK37: 0.03 | AL37: =SUMIFS('Dec Raw Data'!$BY:$BY,'Dec Raw Data'!$BU:$BU,"Accessories",'Dec Raw Data'!$G:$G,'ASO View'!E37) -> 0.001 | AM37: 2% | AN37: -97% | AO37: 0 | AP37: =SUMIFS('Dec Raw Data'!$BL:$BL,'Dec Raw Data'!$G:$G,'ASO View'!$E37,'Dec Raw Data'!$BU:$BU,"Consumer",'Dec Raw Data'!$BS:$BS,"premium",'Dec Raw Data'!$BX:$BX,"NB",'Dec Raw Data'!$CA:$CA,"SP") -> 1 | AQ37: 0% | AR37: -90% | AS37: 33 | AT37: =SUMIFS('Dec Raw Data'!$BL:$BL,'Dec Raw Data'!$G:$G,'ASO View'!$E37,'Dec Raw Data'!$BU:$BU,"Consumer",'Dec Raw Data'!$BS:$BS,"premium",'Dec Raw Data'!$BX:$BX,"NB",'Dec Raw Data'!$CB:$CB,"Gaming") -> 1 | AU37: 3% | AV37: -75% | AW37: 17 | AX37: =SUMIFS('Dec Raw Data'!$BL:$BL,'Dec Raw Data'!$G:$G,'ASO View'!$E37,'Dec Raw Data'!$BU:$BU,"Consumer",'Dec Raw Data'!$BS:$BS,"premium",'Dec Raw Data'!$BX:$BX,"NB",'Dec Raw Data'!$CB:$CB,"Non-Gaming") -> 0 | AY37: 0% | AZ37: -100% | BA37: 125 | BB37: =SUMIFS('Dec Raw Data'!$BL:$BL,'Dec Raw Data'!$BU:$BU,"visuals",'Dec Raw Data'!$G:$G,'ASO View'!E37) -> 10 | BC37: 8% | BD37: -70% | BE37: 25 | BF37: =SUMIFS('Dec Raw Data'!$BL:$BL,'Dec Raw Data'!$BU:$BU,"visuals",'Dec Raw Data'!$G:$G,'ASO View'!E37,'Dec Raw Data'!$BS:$BS,"Premium") -> 0 | BG37: 0% | BH37: =IFERROR(BF37/DK37-1,0) -> -100% | BI37: 60 | BJ37: - | BK37: 0% | BM37: 110 | BN37: =IFERROR(VLOOKUP($E37,'Dec Pivot'!$A:$F,6,0),0) -> 12 | BO37: 11% | BP37: 300% | BQ37: 44 | BR37: =IFERROR(VLOOKUP($E37,'Dec Pivot'!$A:$F,5,0),0) -> 1 | BS37: 2% | BT37: -50% | BU37: 16.2 | BV37: =IFERROR(VLOOKUP($E37,'Dec Pivot'!$AF:$AH,3,0),0) -> 1 | BW37: 6% | BX37: -50% | BY37: 9 | BZ37: =IFERROR(VLOOKUP($E37,'Dec Pivot'!$AI:$AK,3,0),0) -> 1 | CA37: 11% | CB37: 0% | CC37: 8 | CD37: =IFERROR(VLOOKUP($E37,'Dec Pivot'!$AL:$AN,3,0),0) -> 1 | CE37: 13% | CF37: -50% | CG37: 29.7 | CH37: =IFERROR(VLOOKUP($E37,'Dec Pivot'!$J:$O,4,0),0) -> 10 | CI37: =IFERROR(CH37/CG37,0) -> 34% | CJ37: 400% | CK37: 19.8 | CL37: =IFERROR(VLOOKUP($E37,'Dec Pivot'!$J:$O,3,0),0) -> 1 | CM37: =IFERROR(CL37/CK37,0) -> 5% | CO37: 71.5 | CP37: =IFERROR(VLOOKUP($E37,'Dec Pivot'!$X:$AA,4,0),0) -> 1 | CQ37: 1% | CR37: 0% | CS37: 50 | CT37: =IFERROR(VLOOKUP(E37,'Dec Pivot'!$AB:$AD,3,0),0) -> 9 | CU37: 18% | CV37: 0% | CX37: =SUMIFS('Nov Raw Data'!$BL:$BL,'Nov Raw Data'!$G:$G,'ASO View'!E37,'Nov Raw Data'!$BX:$BX,"NB",'Nov Raw Data'!$CC:$CC,"MTD") -> 172 | CY37: =SUMIFS('Nov Raw Data'!$BL:$BL,'Nov Raw Data'!$G:$G,'ASO View'!E37,'Nov Raw Data'!$BX:$BX,"AIO",'Nov Raw Data'!$CC:$CC,"MTD") -> 10 | CZ37: =SUMIFS('Nov Raw Data'!$BL:$BL,'Nov Raw Data'!$G:$G,'ASO View'!E37,'Nov Raw Data'!$BX:$BX,"TDT",'Nov Raw Data'!$CC:$CC,"MTD") -> 69 | DA37: =SUMIFS('Nov Raw Data'!$BL:$BL,'Nov Raw Data'!$G:$G,'ASO View'!E37,'Nov Raw Data'!$BU:$BU,"consumer",'Nov Raw Data'!$CC:$CC,"MTD") -> 251 | DB37: =SUMIFS('Nov Raw Data'!$BL:$BL,'Nov Raw Data'!$G:$G,'ASO View'!$E37,'Nov Raw Data'!$BU:$BU,"consumer",'Nov Raw Data'!$BS:$BS,"Premium",'Nov Raw Data'!$CC:$CC,"MTD") -> 49 | DC37: =IFERROR(VLOOKUP(E37,'Nov Pivot'!$A:$F,5,0),0) -> 3 | DD37: =IFERROR(VLOOKUP(E37,'Nov Pivot'!$A:$F,4,0),0) -> 2 | DE37: =IFERROR(VLOOKUP($E37,'Nov Pivot'!$AD:$AF,2,0),0) -> 1 | DF37: =IFERROR(VLOOKUP($E37,'Nov Pivot'!$AD:$AF,3,0),0) -> 2 | DG37: =SUMIFS('Nov Raw Data'!$BY:$BY,'Nov Raw Data'!$BU:$BU,"Accessories",'Nov Raw Data'!$G:$G,'ASO View'!E37,'Nov Raw Data'!$CC:$CC,"MTD") -> 0.02 | DH37: =SUMIFS('Nov Raw Data'!$BL:$BL,'Nov Raw Data'!$G:$G,'ASO View'!E37,'Nov Raw Data'!$BU:$BU,"Visuals",'Nov Raw Data'!$CC:$CC,"MTD") -> 33 | DI37: =IFERROR(VLOOKUP(E37,'Nov Pivot'!$K:$P,2,0),0) -> 0 | DJ37: =IFERROR(VLOOKUP(E37,'Nov Pivot'!$K:$P,4,0),0) -> 0 | DK37: =SUMIFS('Nov Raw Data'!$BL:$BL,'Nov Raw Data'!$G:$G,'ASO View'!E37,'Nov Raw Data'!$BU:$BU,"Visuals",'Nov Raw Data'!$BS:$BS,"premium") -> 11 | DL37: =SUMIFS('Nov Raw Data'!$BL:$BL,'Nov Raw Data'!$G:$G,'ASO View'!$E37,'Nov Raw Data'!$BU:$BU,"consumer",'Nov Raw Data'!$BS:$BS,"Premium",'Nov Raw Data'!$CA:$CA,"SP",'Nov Raw Data'!$CC:$CC,"MTD") -> 10 | DM37: =SUMIFS('Nov Raw Data'!$BL:$BL,'Nov Raw Data'!$G:$G,'ASO View'!$E37,'Nov Raw Data'!$BU:$BU,"consumer",'Nov Raw Data'!$BS:$BS,"Premium",'Nov Raw Data'!$CA:$CA,"SP",'Nov Raw Data'!$CB:$CB,"Gaming",'Nov Raw Data'!$CC:$CC,"MTD") -> 4 | DN37: =SUMIFS('Nov Raw Data'!$BL:$BL,'Nov Raw Data'!$G:$G,'ASO View'!$E37,'Nov Raw Data'!$BU:$BU,"consumer",'Nov Raw Data'!$BS:$BS,"Premium",'Nov Raw Data'!$CA:$CA,"SP",'Nov Raw Data'!$CB:$CB,"Non-Gaming",'Nov Raw Data'!$CC:$CC,"MTD") -> 6 | DO37: =IFERROR(VLOOKUP($E37,'Nov Pivot'!$T:$U,2,0),0) -> 2 | DP37: =IFERROR(VLOOKUP($E37,'Nov Pivot'!$W:$X,2,0),0) -> 0 | DQ37: =IFERROR(VLOOKUP($E37,'Nov Pivot'!$Z:$AA,2,0),0) -> 2 | DS37: =IFERROR(VLOOKUP($E37,Kiran!A:C,3,0),0) -> 1
E38: V5415979 | F38: North 1 | G38: North1 | H38: Rajasthan | I38: Bikaner | J38: Harpal Singh | K38: Ganga Singh | L38: Gaurav Sharma | M38: Active | N38: 144 | O38: =SUMIFS('Dec Raw Data'!$BL:$BL,'Dec Raw Data'!$G:$G,'ASO View'!$E38,'Dec Raw Data'!$BX:$BX,"NB") -> 0 | P38: 0% | Q38: -100% | R38: 16 | S38: =SUMIFS('Dec Raw Data'!$BL:$BL,'Dec Raw Data'!$G:$G,'ASO View'!$E38,'Dec Raw Data'!$BX:$BX,"AIO") -> 0 | T38: 0% | U38: -100% | V38: 20 | W38: =SUMIFS('Dec Raw Data'!$BL:$BL,'Dec Raw Data'!$G:$G,'ASO View'!$E38,'Dec Raw Data'!$BX:$BX,"TDT") -> 0 | X38: 0% | Y38: -100% | Z38: 180 | AA38: =SUMIFS('Dec Raw Data'!$BL:$BL,'Dec Raw Data'!$G:$G,'ASO View'!$E38,'Dec Raw Data'!$BU:$BU,"Consumer") -> 0 | AB38: 0% | AC38: -100% | AD38: 27 | AE38: =SUMIFS('Dec Raw Data'!$BL:$BL,'Dec Raw Data'!$G:$G,'ASO View'!$E38,'Dec Raw Data'!$BX:$BX,"NB",'Dec Raw Data'!$BS:$BS,"premium") -> 0 | AF38: 0% | AG38: 36 | AH38: =SUMIFS('Dec Raw Data'!$BL:$BL,'Dec Raw Data'!$G:$G,'ASO View'!$E38,'Dec Raw Data'!$BU:$BU,"Consumer",'Dec Raw Data'!$BS:$BS,"premium") -> 0 | AI38: 0% | AJ38: -100% | AK38: 0.0035 | AL38: =SUMIFS('Dec Raw Data'!$BY:$BY,'Dec Raw Data'!$BU:$BU,"Accessories",'Dec Raw Data'!$G:$G,'ASO View'!E38) -> 0.000 | AM38: 0% | AN38: =IFERROR(AL38/DG38-1,0) -> 0% | AO38: 0 | AP38: =SUMIFS('Dec Raw Data'!$BL:$BL,'Dec Raw Data'!$G:$G,'ASO View'!$E38,'Dec Raw Data'!$BU:$BU,"Consumer",'Dec Raw Data'!$BS:$BS,"premium",'Dec Raw Data'!$BX:$BX,"NB",'Dec Raw Data'!$CA:$CA,"SP") -> 0 | AQ38: =IFERROR(AP38/AO38,0) -> 0% | AR38: =IFERROR(AP38/DL38-1,0) -> -100% | AS38: 23 | AT38: =SUMIFS('Dec Raw Data'!$BL:$BL,'Dec Raw Data'!$G:$G,'ASO View'!$E38,'Dec Raw Data'!$BU:$BU,"Consumer",'Dec Raw Data'!$BS:$BS,"premium",'Dec Raw Data'!$BX:$BX,"NB",'Dec Raw Data'!$CB:$CB,"Gaming") -> 0 | AU38: 0% | AV38: -100% | AW38: 13 | AX38: =SUMIFS('Dec Raw Data'!$BL:$BL,'Dec Raw Data'!$G:$G,'ASO View'!$E38,'Dec Raw Data'!$BU:$BU,"Consumer",'Dec Raw Data'!$BS:$BS,"premium",'Dec Raw Data'!$BX:$BX,"NB",'Dec Raw Data'!$CB:$CB,"Non-Gaming") -> 0 | AY38: 0% | AZ38: -100% | BA38: 125 | BB38: =SUMIFS('Dec Raw Data'!$BL:$BL,'Dec Raw Data'!$BU:$BU,"visuals",'Dec Raw Data'!$G:$G,'ASO View'!E38) -> 0 | BC38: 0% | BD38: 0% | BE38: 25 | BF38: =SUMIFS('Dec Raw Data'!$BL:$BL,'Dec Raw Data'!$BU:$BU,"visuals",'Dec Raw Data'!$G:$G,'ASO View'!E38,'Dec Raw Data'!$BS:$BS,"Premium") -> 0 | BG38: 0% | BH38: 0% | BI38: 60 | BJ38: 177 | BK38: =IFERROR(BJ38/BI38,0) -> 295% | BM38: 50 | BN38: =IFERROR(VLOOKUP($E38,'Dec Pivot'!$A:$F,6,0),0) -> 0 | BO38: 0% | BP38: 0% | BQ38: 20 | BR38: =IFERROR(VLOOKUP($E38,'Dec Pivot'!$A:$F,5,0),0) -> 0 | BS38: 0% | BT38: 0% | BU38: 7.4 | BV38: =IFERROR(VLOOKUP($E38,'Dec Pivot'!$AF:$AH,3,0),0) -> 0 | BW38: =IFERROR(BV38/BU38,0) -> 0% | BX38: =IFERROR(BV38/DO38-1,0) -> 0% | BY38: 4 | BZ38: =IFERROR(VLOOKUP($E38,'Dec Pivot'!$AI:$AK,3,0),0) -> 0 | CA38: =IFERROR(BZ38/BY38,0) -> 0% | CB38: =IFERROR(BZ38/DP38-1,0) -> 0% | CC38: 3 | CD38: =IFERROR(VLOOKUP($E38,'Dec Pivot'!$AL:$AN,3,0),0) -> 0 | CE38: =IFERROR(CD38/CC38,0) -> 0% | CF38: =IFERROR(CD38/DQ38-1,0) -> 0% | CG38: 13.5 | CH38: =IFERROR(VLOOKUP($E38,'Dec Pivot'!$J:$O,4,0),0) -> 0 | CI38: 0% | CJ38: 0% | CK38: 9 | CL38: =IFERROR(VLOOKUP($E38,'Dec Pivot'!$J:$O,3,0),0) -> 0 | CM38: 0% | CO38: 32.5 | CP38: =IFERROR(VLOOKUP($E38,'Dec Pivot'!$X:$AA,4,0),0) -> 0 | CQ38: 0% | CR38: 0% | CS38: 20 | CT38: =IFERROR(VLOOKUP(E38,'Dec Pivot'!$AB:$AD,3,0),0) -> 0 | CU38: 0% | CV38: 0% | CX38: =SUMIFS('Nov Raw Data'!$BL:$BL,'Nov Raw Data'!$G:$G,'ASO View'!E38,'Nov Raw Data'!$BX:$BX,"NB",'Nov Raw Data'!$CC:$CC,"MTD") -> 139 | CY38: =SUMIFS('Nov Raw Data'!$BL:$BL,'Nov Raw Data'!$G:$G,'ASO View'!E38,'Nov Raw Data'!$BX:$BX,"AIO",'Nov Raw Data'!$CC:$CC,"MTD") -> 15 | CZ38: =SUMIFS('Nov Raw Data'!$BL:$BL,'Nov Raw Data'!$G:$G,'ASO View'!E38,'Nov Raw Data'!$BX:$BX,"TDT",'Nov Raw Data'!$CC:$CC,"MTD") -> 46 | DA38: =SUMIFS('Nov Raw Data'!$BL:$BL,'Nov Raw Data'!$G:$G,'ASO View'!E38,'Nov Raw Data'!$BU:$BU,"consumer",'Nov Raw Data'!$CC:$CC,"MTD") -> 200 | DB38: =SUMIFS('Nov Raw Data'!$BL:$BL,'Nov Raw Data'!$G:$G,'ASO View'!$E38,'Nov Raw Data'!$BU:$BU,"consumer",'Nov Raw Data'!$BS:$BS,"Premium",'Nov Raw Data'!$CC:$CC,"MTD") -> 37 | DC38: =IFERROR(VLOOKUP(E38,'Nov Pivot'!$A:$F,5,0),0) -> 0 | DD38: =IFERROR(VLOOKUP(E38,'Nov Pivot'!$A:$F,4,0),0) -> 0 | DE38: =IFERROR(VLOOKUP($E38,'Nov Pivot'!$AD:$AF,2,0),0) -> 0 | DF38: =IFERROR(VLOOKUP($E38,'Nov Pivot'!$AD:$AF,3,0),0) -> 0 | DG38: =SUMIFS('Nov Raw Data'!$BY:$BY,'Nov Raw Data'!$BU:$BU,"Accessories",'Nov Raw Data'!$G:$G,'ASO View'!E38,'Nov Raw Data'!$CC:$CC,"MTD") -> 0.00 | DH38: =SUMIFS('Nov Raw Data'!$BL:$BL,'Nov Raw Data'!$G:$G,'ASO View'!E38,'Nov Raw Data'!$BU:$BU,"Visuals",'Nov Raw Data'!$CC:$CC,"MTD") -> 0 | DI38: =IFERROR(VLOOKUP(E38,'Nov Pivot'!$K:$P,2,0),0) -> 0 | DJ38: =IFERROR(VLOOKUP(E38,'Nov Pivot'!$K:$P,4,0),0) -> 0 | DK38: =SUMIFS('Nov Raw Data'!$BL:$BL,'Nov Raw Data'!$G:$G,'ASO View'!E38,'Nov Raw Data'!$BU:$BU,"Visuals",'Nov Raw Data'!$BS:$BS,"premium") -> 0 | DL38: =SUMIFS('Nov Raw Data'!$BL:$BL,'Nov Raw Data'!$G:$G,'ASO View'!$E38,'Nov Raw Data'!$BU:$BU,"consumer",'Nov Raw Data'!$BS:$BS,"Premium",'Nov Raw Data'!$CA:$CA,"SP",'Nov Raw Data'!$CC:$CC,"MTD") -> 8 | DM38: =SUMIFS('Nov Raw Data'!$BL:$BL,'Nov Raw Data'!$G:$G,'ASO View'!$E38,'Nov Raw Data'!$BU:$BU,"consumer",'Nov Raw Data'!$BS:$BS,"Premium",'Nov Raw Data'!$CA:$CA,"SP",'Nov Raw Data'!$CB:$CB,"Gaming",'Nov Raw Data'!$CC:$CC,"MTD") -> 4 | DN38: =SUMIFS('Nov Raw Data'!$BL:$BL,'Nov Raw Data'!$G:$G,'ASO View'!$E38,'Nov Raw Data'!$BU:$BU,"consumer",'Nov Raw Data'!$BS:$BS,"Premium",'Nov Raw Data'!$CA:$CA,"SP",'Nov Raw Data'!$CB:$CB,"Non-Gaming",'Nov Raw Data'!$CC:$CC,"MTD") -> 4 | DO38: =IFERROR(VLOOKUP($E38,'Nov Pivot'!$T:$U,2,0),0) -> 0 | DP38: =IFERROR(VLOOKUP($E38,'Nov Pivot'!$W:$X,2,0),0) -> 0 | DQ38: =IFERROR(VLOOKUP($E38,'Nov Pivot'!$Z:$AA,2,0),0) -> 0 | DS38: =IFERROR(VLOOKUP($E38,Kiran!A:C,3,0),0) -> 0
E39: 601113 | F39: North 2 | G39: North2 | H39: Chhattisgarh | I39: Raipur | J39: Shubham Meshram | K39: Kaushal Sharma | L39: Rahil Rasheed | M39: Active | N39: 120 | O39: =SUMIFS('Dec Raw Data'!$BL:$BL,'Dec Raw Data'!$G:$G,'ASO View'!$E39,'Dec Raw Data'!$BX:$BX,"NB") -> 5 | P39: 4% | Q39: -95% | R39: 13 | S39: =SUMIFS('Dec Raw Data'!$BL:$BL,'Dec Raw Data'!$G:$G,'ASO View'!$E39,'Dec Raw Data'!$BX:$BX,"AIO") -> 5 | T39: 38% | U39: -58% | V39: 17 | W39: =SUMIFS('Dec Raw Data'!$BL:$BL,'Dec Raw Data'!$G:$G,'ASO View'!$E39,'Dec Raw Data'!$BX:$BX,"TDT") -> 0 | X39: 0% | Y39: -100% | Z39: 150 | AA39: =SUMIFS('Dec Raw Data'!$BL:$BL,'Dec Raw Data'!$G:$G,'ASO View'!$E39,'Dec Raw Data'!$BU:$BU,"Consumer") -> 10 | AB39: 7% | AC39: -93% | AD39: 23 | AE39: =SUMIFS('Dec Raw Data'!$BL:$BL,'Dec Raw Data'!$G:$G,'ASO View'!$E39,'Dec Raw Data'!$BX:$BX,"NB",'Dec Raw Data'!$BS:$BS,"premium") -> 3 | AF39: 13% | AG39: 30 | AH39: =SUMIFS('Dec Raw Data'!$BL:$BL,'Dec Raw Data'!$G:$G,'ASO View'!$E39,'Dec Raw Data'!$BU:$BU,"Consumer",'Dec Raw Data'!$BS:$BS,"premium") -> 3 | AI39: 10% | AJ39: -93% | AK39: 0.015 | AL39: =SUMIFS('Dec Raw Data'!$BY:$BY,'Dec Raw Data'!$BU:$BU,"Accessories",'Dec Raw Data'!$G:$G,'ASO View'!E39) -> 0.010 | AM39: 67% | AN39: -54% | AO39: 0 | AP39: =SUMIFS('Dec Raw Data'!$BL:$BL,'Dec Raw Data'!$G:$G,'ASO View'!$E39,'Dec Raw Data'!$BU:$BU,"Consumer",'Dec Raw Data'!$BS:$BS,"premium",'Dec Raw Data'!$BX:$BX,"NB",'Dec Raw Data'!$CA:$CA,"SP") -> 3 | AQ39: 0% | AR39: -81% | AS39: 20 | AT39: =SUMIFS('Dec Raw Data'!$BL:$BL,'Dec Raw Data'!$G:$G,'ASO View'!$E39,'Dec Raw Data'!$BU:$BU,"Consumer",'Dec Raw Data'!$BS:$BS,"premium",'Dec Raw Data'!$BX:$BX,"NB",'Dec Raw Data'!$CB:$CB,"Gaming") -> 3 | AU39: 15% | AV39: -80% | AW39: 10 | AX39: =SUMIFS('Dec Raw Data'!$BL:$BL,'Dec Raw Data'!$G:$G,'ASO View'!$E39,'Dec Raw Data'!$BU:$BU,"Consumer",'Dec Raw Data'!$BS:$BS,"premium",'Dec Raw Data'!$BX:$BX,"NB",'Dec Raw Data'!$CB:$CB,"Non-Gaming") -> 0 | AY39: 0% | AZ39: -100% | BA39: 125 | BB39: =SUMIFS('Dec Raw Data'!$BL:$BL,'Dec Raw Data'!$BU:$BU,"visuals",'Dec Raw Data'!$G:$G,'ASO View'!E39) -> 0 | BC39: 0% | BD39: -100% | BE39: 25 | BF39: =SUMIFS('Dec Raw Data'!$BL:$BL,'Dec Raw Data'!$BU:$BU,"visuals",'Dec Raw Data'!$G:$G,'ASO View'!E39,'Dec Raw Data'!$BS:$BS,"Premium") -> 0 | BG39: 0% | BH39: -100% | BI39: 28 | BJ39: 133 | BK39: 484% | BM39: 50 | BN39: =IFERROR(VLOOKUP($E39,'Dec Pivot'!$A:$F,6,0),0) -> 9 | BO39: 18% | BP39: 0% | BQ39: 20 | BR39: =IFERROR(VLOOKUP($E39,'Dec Pivot'!$A:$F,5,0),0) -> 3 | BS39: 15% | BT39: 0% | BU39: 7.4 | BV39: =IFERROR(VLOOKUP($E39,'Dec Pivot'!$AF:$AH,3,0),0) -> 0 | BW39: 0% | BX39: 0% | BY39: 4 | BZ39: =IFERROR(VLOOKUP($E39,'Dec Pivot'!$AI:$AK,3,0),0) -> 3 | CA39: 75% | CB39: 0% | CC39: 3 | CD39: =IFERROR(VLOOKUP($E39,'Dec Pivot'!$AL:$AN,3,0),0) -> 3 | CE39: 100% | CF39: 0% | CG39: 13.5 | CH39: =IFERROR(VLOOKUP($E39,'Dec Pivot'!$J:$O,4,0),0) -> 0 | CI39: 0% | CJ39: 0% | CK39: 9 | CL39: =IFERROR(VLOOKUP($E39,'Dec Pivot'!$J:$O,3,0),0) -> 4 | CM39: 44% | CO39: 32 | CP39: =IFERROR(VLOOKUP($E39,'Dec Pivot'!$X:$AA,4,0),0) -> 4 | CQ39: 13% | CR39: 0% | CS39: 15 | CT39: =IFERROR(VLOOKUP(E39,'Dec Pivot'!$AB:$AD,3,0),0) -> 0 | CU39: 0% | CV39: 0% | CX39: =SUMIFS('Nov Raw Data'!$BL:$BL,'Nov Raw Data'!$G:$G,'ASO View'!E39,'Nov Raw Data'!$BX:$BX,"NB",'Nov Raw Data'!$CC:$CC,"MTD") -> 101 | CY39: =SUMIFS('Nov Raw Data'!$BL:$BL,'Nov Raw Data'!$G:$G,'ASO View'!E39,'Nov Raw Data'!$BX:$BX,"AIO",'Nov Raw Data'!$CC:$CC,"MTD") -> 12 | CZ39: =SUMIFS('Nov Raw Data'!$BL:$BL,'Nov Raw Data'!$G:$G,'ASO View'!E39,'Nov Raw Data'!$BX:$BX,"TDT",'Nov Raw Data'!$CC:$CC,"MTD") -> 37 | DA39: =SUMIFS('Nov Raw Data'!$BL:$BL,'Nov Raw Data'!$G:$G,'ASO View'!E39,'Nov Raw Data'!$BU:$BU,"consumer",'Nov Raw Data'!$CC:$CC,"MTD") -> 150 | DB39: =SUMIFS('Nov Raw Data'!$BL:$BL,'Nov Raw Data'!$G:$G,'ASO View'!$E39,'Nov Raw Data'!$BU:$BU,"consumer",'Nov Raw Data'!$BS:$BS,"Premium",'Nov Raw Data'!$CC:$CC,"MTD") -> 41 | DC39: =IFERROR(VLOOKUP(E39,'Nov Pivot'!$A:$F,5,0),0) -> 0 | DD39: =IFERROR(VLOOKUP(E39,'Nov Pivot'!$A:$F,4,0),0) -> 0 | DE39: =IFERROR(VLOOKUP($E39,'Nov Pivot'!$AD:$AF,2,0),0) -> 0 | DF39: =IFERROR(VLOOKUP($E39,'Nov Pivot'!$AD:$AF,3,0),0) -> 0 | DG39: =SUMIFS('Nov Raw Data'!$BY:$BY,'Nov Raw Data'!$BU:$BU,"Accessories",'Nov Raw Data'!$G:$G,'ASO View'!E39,'Nov Raw Data'!$CC:$CC,"MTD") -> 0.02 | DH39: =SUMIFS('Nov Raw Data'!$BL:$BL,'Nov Raw Data'!$G:$G,'ASO View'!E39,'Nov Raw Data'!$BU:$BU,"Visuals",'Nov Raw Data'!$CC:$CC,"MTD") -> 44 | DI39: =IFERROR(VLOOKUP(E39,'Nov Pivot'!$K:$P,2,0),0) -> 0 | DJ39: =IFERROR(VLOOKUP(E39,'Nov Pivot'!$K:$P,4,0),0) -> 0 | DK39: =SUMIFS('Nov Raw Data'!$BL:$BL,'Nov Raw Data'!$G:$G,'ASO View'!E39,'Nov Raw Data'!$BU:$BU,"Visuals",'Nov Raw Data'!$BS:$BS,"premium") -> 15 | DL39: =SUMIFS('Nov Raw Data'!$BL:$BL,'Nov Raw Data'!$G:$G,'ASO View'!$E39,'Nov Raw Data'!$BU:$BU,"consumer",'Nov Raw Data'!$BS:$BS,"Premium",'Nov Raw Data'!$CA:$CA,"SP",'Nov Raw Data'!$CC:$CC,"MTD") -> 16 | DM39: =SUMIFS('Nov Raw Data'!$BL:$BL,'Nov Raw Data'!$G:$G,'ASO View'!$E39,'Nov Raw Data'!$BU:$BU,"consumer",'Nov Raw Data'!$BS:$BS,"Premium",'Nov Raw Data'!$CA:$CA,"SP",'Nov Raw Data'!$CB:$CB,"Gaming",'Nov Raw Data'!$CC:$CC,"MTD") -> 15 | DN39: =SUMIFS('Nov Raw Data'!$BL:$BL,'Nov Raw Data'!$G:$G,'ASO View'!$E39,'Nov Raw Data'!$BU:$BU,"consumer",'Nov Raw Data'!$BS:$BS,"Premium",'Nov Raw Data'!$CA:$CA,"SP",'Nov Raw Data'!$CB:$CB,"Non-Gaming",'Nov Raw Data'!$CC:$CC,"MTD") -> 1 | DO39: =IFERROR(VLOOKUP($E39,'Nov Pivot'!$T:$U,2,0),0) -> 0 | DP39: =IFERROR(VLOOKUP($E39,'Nov Pivot'!$W:$X,2,0),0) -> 0 | DQ39: =IFERROR(VLOOKUP($E39,'Nov Pivot'!$Z:$AA,2,0),0) -> 0 | DS39: =IFERROR(VLOOKUP($E39,Kiran!A:C,3,0),0) -> 3
E40: V5414474 | F40: North 2 | G40: North2 | H40: Chhattisgarh | I40: Bilaspur | J40: Sudam Pradhan | K40: Kaushal Sharma | L40: Rahil Rasheed | M40: Active | N40: 140 | O40: =SUMIFS('Dec Raw Data'!$BL:$BL,'Dec Raw Data'!$G:$G,'ASO View'!$E40,'Dec Raw Data'!$BX:$BX,"NB") -> 0 | P40: 0% | Q40: -100% | R40: 15 | S40: =SUMIFS('Dec Raw Data'!$BL:$BL,'Dec Raw Data'!$G:$G,'ASO View'!$E40,'Dec Raw Data'!$BX:$BX,"AIO") -> 0 | T40: 0% | U40: 0% | V40: 20 | W40: =SUMIFS('Dec Raw Data'!$BL:$BL,'Dec Raw Data'!$G:$G,'ASO View'!$E40,'Dec Raw Data'!$BX:$BX,"TDT") -> 0 | X40: 0% | Y40: -100% | Z40: 175 | AA40: =SUMIFS('Dec Raw Data'!$BL:$BL,'Dec Raw Data'!$G:$G,'ASO View'!$E40,'Dec Raw Data'!$BU:$BU,"Consumer") -> 0 | AB40: 0% | AC40: -100% | AD40: 27 | AE40: =SUMIFS('Dec Raw Data'!$BL:$BL,'Dec Raw Data'!$G:$G,'ASO View'!$E40,'Dec Raw Data'!$BX:$BX,"NB",'Dec Raw Data'!$BS:$BS,"premium") -> 0 | AF40: 0% | AG40: 35 | AH40: =SUMIFS('Dec Raw Data'!$BL:$BL,'Dec Raw Data'!$G:$G,'ASO View'!$E40,'Dec Raw Data'!$BU:$BU,"Consumer",'Dec Raw Data'!$BS:$BS,"premium") -> 0 | AI40: 0% | AJ40: -100% | AK40: 0.015 | AL40: =SUMIFS('Dec Raw Data'!$BY:$BY,'Dec Raw Data'!$BU:$BU,"Accessories",'Dec Raw Data'!$G:$G,'ASO View'!E40) -> 0.000 | AM40: 0% | AN40: 0% | AO40: 0 | AP40: =SUMIFS('Dec Raw Data'!$BL:$BL,'Dec Raw Data'!$G:$G,'ASO View'!$E40,'Dec Raw Data'!$BU:$BU,"Consumer",'Dec Raw Data'!$BS:$BS,"premium",'Dec Raw Data'!$BX:$BX,"NB",'Dec Raw Data'!$CA:$CA,"SP") -> 0 | AQ40: 0% | AR40: -100% | AS40: 23 | AT40: =SUMIFS('Dec Raw Data'!$BL:$BL,'Dec Raw Data'!$G:$G,'ASO View'!$E40,'Dec Raw Data'!$BU:$BU,"Consumer",'Dec Raw Data'!$BS:$BS,"premium",'Dec Raw Data'!$BX:$BX,"NB",'Dec Raw Data'!$CB:$CB,"Gaming") -> 0 | AU40: 0% | AV40: -100% | AW40: 12 | AX40: =SUMIFS('Dec Raw Data'!$BL:$BL,'Dec Raw Data'!$G:$G,'ASO View'!$E40,'Dec Raw Data'!$BU:$BU,"Consumer",'Dec Raw Data'!$BS:$BS,"premium",'Dec Raw Data'!$BX:$BX,"NB",'Dec Raw Data'!$CB:$CB,"Non-Gaming") -> 0 | AY40: 0% | AZ40: 0% | BA40: 125 | BB40: =SUMIFS('Dec Raw Data'!$BL:$BL,'Dec Raw Data'!$BU:$BU,"visuals",'Dec Raw Data'!$G:$G,'ASO View'!E40) -> 0 | BC40: 0% | BD40: -100% | BE40: 25 | BF40: =SUMIFS('Dec Raw Data'!$BL:$BL,'Dec Raw Data'!$BU:$BU,"visuals",'Dec Raw Data'!$G:$G,'ASO View'!E40,'Dec Raw Data'!$BS:$BS,"Premium") -> 0 | BG40: 0% | BH40: -100% | BI40: 27.5 | BJ40: - | BK40: 0% | BM40: 55 | BN40: =IFERROR(VLOOKUP($E40,'Dec Pivot'!$A:$F,6,0),0) -> 0 | BO40: 0% | BP40: 0% | BQ40: 22 | BR40: =IFERROR(VLOOKUP($E40,'Dec Pivot'!$A:$F,5,0),0) -> 0 | BS40: 0% | BT40: 0% | BU40: 8.2 | BV40: =IFERROR(VLOOKUP($E40,'Dec Pivot'!$AF:$AH,3,0),0) -> 0 | BW40: 0% | BX40: 0% | BY40: 4 | BZ40: =IFERROR(VLOOKUP($E40,'Dec Pivot'!$AI:$AK,3,0),0) -> 0 | CA40: 0% | CB40: 0% | CC40: 4 | CD40: =IFERROR(VLOOKUP($E40,'Dec Pivot'!$AL:$AN,3,0),0) -> 0 | CE40: 0% | CF40: 0% | CG40: 14.85 | CH40: =IFERROR(VLOOKUP($E40,'Dec Pivot'!$J:$O,4,0),0) -> 0 | CI40: 0% | CJ40: 0% | CK40: 9.9 | CL40: =IFERROR(VLOOKUP($E40,'Dec Pivot'!$J:$O,3,0),0) -> 0 | CM40: 0% | CO40: 40 | CP40: =IFERROR(VLOOKUP($E40,'Dec Pivot'!$X:$AA,4,0),0) -> 0 | CQ40: 0% | CR40: 0% | CS40: 20 | CT40: =IFERROR(VLOOKUP(E40,'Dec Pivot'!$AB:$AD,3,0),0) -> 0 | CU40: 0% | CV40: 0% | CX40: =SUMIFS('Nov Raw Data'!$BL:$BL,'Nov Raw Data'!$G:$G,'ASO View'!E40,'Nov Raw Data'!$BX:$BX,"NB",'Nov Raw Data'!$CC:$CC,"MTD") -> 152 | CY40: =SUMIFS('Nov Raw Data'!$BL:$BL,'Nov Raw Data'!$G:$G,'ASO View'!E40,'Nov Raw Data'!$BX:$BX,"AIO",'Nov Raw Data'!$CC:$CC,"MTD") -> 0 | CZ40: =SUMIFS('Nov Raw Data'!$BL:$BL,'Nov Raw Data'!$G:$G,'ASO View'!E40,'Nov Raw Data'!$BX:$BX,"TDT",'Nov Raw Data'!$CC:$CC,"MTD") -> 33 | DA40: =SUMIFS('Nov Raw Data'!$BL:$BL,'Nov Raw Data'!$G:$G,'ASO View'!E40,'Nov Raw Data'!$BU:$BU,"consumer",'Nov Raw Data'!$CC:$CC,"MTD") -> 185 | DB40: =SUMIFS('Nov Raw Data'!$BL:$BL,'Nov Raw Data'!$G:$G,'ASO View'!$E40,'Nov Raw Data'!$BU:$BU,"consumer",'Nov Raw Data'!$BS:$BS,"Premium",'Nov Raw Data'!$CC:$CC,"MTD") -> 53 | DC40: =IFERROR(VLOOKUP(E40,'Nov Pivot'!$A:$F,5,0),0) -> 0 | DD40: =IFERROR(VLOOKUP(E40,'Nov Pivot'!$A:$F,4,0),0) -> 0 | DE40: =IFERROR(VLOOKUP($E40,'Nov Pivot'!$AD:$AF,2,0),0) -> 0 | DF40: =IFERROR(VLOOKUP($E40,'Nov Pivot'!$AD:$AF,3,0),0) -> 0 | DG40: =SUMIFS('Nov Raw Data'!$BY:$BY,'Nov Raw Data'!$BU:$BU,"Accessories",'Nov Raw Data'!$G:$G,'ASO View'!E40,'Nov Raw Data'!$CC:$CC,"MTD") -> 0.00 | DH40: =SUMIFS('Nov Raw Data'!$BL:$BL,'Nov Raw Data'!$G:$G,'ASO View'!E40,'Nov Raw Data'!$BU:$BU,"Visuals",'Nov Raw Data'!$CC:$CC,"MTD") -> 3 | DI40: =IFERROR(VLOOKUP(E40,'Nov Pivot'!$K:$P,2,0),0) -> 0 | DJ40: =IFERROR(VLOOKUP(E40,'Nov Pivot'!$K:$P,4,0),0) -> 0 | DK40: =SUMIFS('Nov Raw Data'!$BL:$BL,'Nov Raw Data'!$G:$G,'ASO View'!E40,'Nov Raw Data'!$BU:$BU,"Visuals",'Nov Raw Data'!$BS:$BS,"premium") -> 3 | DL40: =SUMIFS('Nov Raw Data'!$BL:$BL,'Nov Raw Data'!$G:$G,'ASO View'!$E40,'Nov Raw Data'!$BU:$BU,"consumer",'Nov Raw Data'!$BS:$BS,"Premium",'Nov Raw Data'!$CA:$CA,"SP",'Nov Raw Data'!$CC:$CC,"MTD") -> 13 | DM40: =SUMIFS('Nov Raw Data'!$BL:$BL,'Nov Raw Data'!$G:$G,'ASO View'!$E40,'Nov Raw Data'!$BU:$BU,"consumer",'Nov Raw Data'!$BS:$BS,"Premium",'Nov Raw Data'!$CA:$CA,"SP",'Nov Raw Data'!$CB:$CB,"Gaming",'Nov Raw Data'!$CC:$CC,"MTD") -> 13 | DN40: =SUMIFS('Nov Raw Data'!$BL:$BL,'Nov Raw Data'!$G:$G,'ASO View'!$E40,'Nov Raw Data'!$BU:$BU,"consumer",'Nov Raw Data'!$BS:$BS,"Premium",'Nov Raw Data'!$CA:$CA,"SP",'Nov Raw Data'!$CB:$CB,"Non-Gaming",'Nov Raw Data'!$CC:$CC,"MTD") -> 0 | DO40: =IFERROR(VLOOKUP($E40,'Nov Pivot'!$T:$U,2,0),0) -> 0 | DP40: =IFERROR(VLOOKUP($E40,'Nov Pivot'!$W:$X,2,0),0) -> 0 | DQ40: =IFERROR(VLOOKUP($E40,'Nov Pivot'!$Z:$AA,2,0),0) -> 0 | DS40: =IFERROR(VLOOKUP($E40,Kiran!A:C,3,0),0) -> 0
E41: V5267964 | F41: North 2 | G41: North2 | H41: Uttar Pradesh | I41: Lucknow | J41: Mohd Rashid | K41: Rahul Sarin | L41: Rahil Rasheed | M41: Active | N41: 240 | O41: =SUMIFS('Dec Raw Data'!$BL:$BL,'Dec Raw Data'!$G:$G,'ASO View'!$E41,'Dec Raw Data'!$BX:$BX,"NB") -> 0 | P41: 0% | Q41: -100% | R41: 26 | S41: =SUMIFS('Dec Raw Data'!$BL:$BL,'Dec Raw Data'!$G:$G,'ASO View'!$E41,'Dec Raw Data'!$BX:$BX,"AIO") -> 0 | T41: 0% | U41: -100% | V41: 34 | W41: =SUMIFS('Dec Raw Data'!$BL:$BL,'Dec Raw Data'!$G:$G,'ASO View'!$E41,'Dec Raw Data'!$BX:$BX,"TDT") -> 0 | X41: 0% | Y41: -100% | Z41: 300 | AA41: =SUMIFS('Dec Raw Data'!$BL:$BL,'Dec Raw Data'!$G:$G,'ASO View'!$E41,'Dec Raw Data'!$BU:$BU,"Consumer") -> 0 | AB41: 0% | AC41: -100% | AD41: 46 | AE41: =SUMIFS('Dec Raw Data'!$BL:$BL,'Dec Raw Data'!$G:$G,'ASO View'!$E41,'Dec Raw Data'!$BX:$BX,"NB",'Dec Raw Data'!$BS:$BS,"premium") -> 0 | AF41: 0% | AG41: 60 | AH41: =SUMIFS('Dec Raw Data'!$BL:$BL,'Dec Raw Data'!$G:$G,'ASO View'!$E41,'Dec Raw Data'!$BU:$BU,"Consumer",'Dec Raw Data'!$BS:$BS,"premium") -> 0 | AI41: 0% | AJ41: -100% | AK41: 0.0325 | AL41: =SUMIFS('Dec Raw Data'!$BY:$BY,'Dec Raw Data'!$BU:$BU,"Accessories",'Dec Raw Data'!$G:$G,'ASO View'!E41) -> 0.000 | AM41: 0% | AN41: -100% | AO41: 0 | AP41: =SUMIFS('Dec Raw Data'!$BL:$BL,'Dec Raw Data'!$G:$G,'ASO View'!$E41,'Dec Raw Data'!$BU:$BU,"Consumer",'Dec Raw Data'!$BS:$BS,"premium",'Dec Raw Data'!$BX:$BX,"NB",'Dec Raw Data'!$CA:$CA,"SP") -> 0 | AQ41: 0% | AR41: 0% | AS41: 39 | AT41: =SUMIFS('Dec Raw Data'!$BL:$BL,'Dec Raw Data'!$G:$G,'ASO View'!$E41,'Dec Raw Data'!$BU:$BU,"Consumer",'Dec Raw Data'!$BS:$BS,"premium",'Dec Raw Data'!$BX:$BX,"NB",'Dec Raw Data'!$CB:$CB,"Gaming") -> 0 | AU41: 0% | AV41: 0% | AW41: 21 | AX41: =SUMIFS('Dec Raw Data'!$BL:$BL,'Dec Raw Data'!$G:$G,'ASO View'!$E41,'Dec Raw Data'!$BU:$BU,"Consumer",'Dec Raw Data'!$BS:$BS,"premium",'Dec Raw Data'!$BX:$BX,"NB",'Dec Raw Data'!$CB:$CB,"Non-Gaming") -> 0 | AY41: 0% | AZ41: 0% | BA41: 125 | BB41: =SUMIFS('Dec Raw Data'!$BL:$BL,'Dec Raw Data'!$BU:$BU,"visuals",'Dec Raw Data'!$G:$G,'ASO View'!E41) -> 0 | BC41: 0% | BD41: -100% | BE41: 25 | BF41: =SUMIFS('Dec Raw Data'!$BL:$BL,'Dec Raw Data'!$BU:$BU,"visuals",'Dec Raw Data'!$G:$G,'ASO View'!E41,'Dec Raw Data'!$BS:$BS,"Premium") -> 0 | BG41: 0% | BH41: -100% | BI41: 84 | BJ41: - | BK41: 0% | BM41: 87 | BN41: =IFERROR(VLOOKUP($E41,'Dec Pivot'!$A:$F,6,0),0) -> 0 | BO41: 0% | BP41: 0% | BQ41: 34.8 | BR41: =IFERROR(VLOOKUP($E41,'Dec Pivot'!$A:$F,5,0),0) -> 0 | BS41: 0% | BT41: 0% | BU41: 12.8 | BV41: =IFERROR(VLOOKUP($E41,'Dec Pivot'!$AF:$AH,3,0),0) -> 0 | BW41: 0% | BX41: 0% | BY41: 7 | BZ41: =IFERROR(VLOOKUP($E41,'Dec Pivot'!$AI:$AK,3,0),0) -> 0 | CA41: 0% | CB41: 0% | CC41: 6 | CD41: =IFERROR(VLOOKUP($E41,'Dec Pivot'!$AL:$AN,3,0),0) -> 0 | CE41: 0% | CF41: 0% | CG41: 23.49 | CH41: =IFERROR(VLOOKUP($E41,'Dec Pivot'!$J:$O,4,0),0) -> 0 | CI41: 0% | CJ41: 0% | CK41: 15.66 | CL41: =IFERROR(VLOOKUP($E41,'Dec Pivot'!$J:$O,3,0),0) -> 0 | CM41: 0% | CO41: 30 | CP41: =IFERROR(VLOOKUP($E41,'Dec Pivot'!$X:$AA,4,0),0) -> 0 | CQ41: 0% | CR41: 0% | CS41: 30 | CT41: =IFERROR(VLOOKUP(E41,'Dec Pivot'!$AB:$AD,3,0),0) -> 0 | CU41: 0% | CV41: 0% | CX41: =SUMIFS('Nov Raw Data'!$BL:$BL,'Nov Raw Data'!$G:$G,'ASO View'!E41,'Nov Raw Data'!$BX:$BX,"NB",'Nov Raw Data'!$CC:$CC,"MTD") -> 250 | CY41: =SUMIFS('Nov Raw Data'!$BL:$BL,'Nov Raw Data'!$G:$G,'ASO View'!E41,'Nov Raw Data'!$BX:$BX,"AIO",'Nov Raw Data'!$CC:$CC,"MTD") -> 1 | CZ41: =SUMIFS('Nov Raw Data'!$BL:$BL,'Nov Raw Data'!$G:$G,'ASO View'!E41,'Nov Raw Data'!$BX:$BX,"TDT",'Nov Raw Data'!$CC:$CC,"MTD") -> 33 | DA41: =SUMIFS('Nov Raw Data'!$BL:$BL,'Nov Raw Data'!$G:$G,'ASO View'!E41,'Nov Raw Data'!$BU:$BU,"consumer",'Nov Raw Data'!$CC:$CC,"MTD") -> 284 | DB41: =SUMIFS('Nov Raw Data'!$BL:$BL,'Nov Raw Data'!$G:$G,'ASO View'!$E41,'Nov Raw Data'!$BU:$BU,"consumer",'Nov Raw Data'!$BS:$BS,"Premium",'Nov Raw Data'!$CC:$CC,"MTD") -> 5 | DC41: =IFERROR(VLOOKUP(E41,'Nov Pivot'!$A:$F,5,0),0) -> 0 | DD41: =IFERROR(VLOOKUP(E41,'Nov Pivot'!$A:$F,4,0),0) -> 0 | DE41: =IFERROR(VLOOKUP($E41,'Nov Pivot'!$AD:$AF,2,0),0) -> 0 | DF41: =IFERROR(VLOOKUP($E41,'Nov Pivot'!$AD:$AF,3,0),0) -> 0 | DG41: =SUMIFS('Nov Raw Data'!$BY:$BY,'Nov Raw Data'!$BU:$BU,"Accessories",'Nov Raw Data'!$G:$G,'ASO View'!E41,'Nov Raw Data'!$CC:$CC,"MTD") -> 0.01 | DH41: =SUMIFS('Nov Raw Data'!$BL:$BL,'Nov Raw Data'!$G:$G,'ASO View'!E41,'Nov Raw Data'!$BU:$BU,"Visuals",'Nov Raw Data'!$CC:$CC,"MTD") -> 60 | DI41: =IFERROR(VLOOKUP(E41,'Nov Pivot'!$K:$P,2,0),0) -> 0 | DJ41: =IFERROR(VLOOKUP(E41,'Nov Pivot'!$K:$P,4,0),0) -> 0 | DK41: =SUMIFS('Nov Raw Data'!$BL:$BL,'Nov Raw Data'!$G:$G,'ASO View'!E41,'Nov Raw Data'!$BU:$BU,"Visuals",'Nov Raw Data'!$BS:$BS,"premium") -> 5 | DL41: =SUMIFS('Nov Raw Data'!$BL:$BL,'Nov Raw Data'!$G:$G,'ASO View'!$E41,'Nov Raw Data'!$BU:$BU,"consumer",'Nov Raw Data'!$BS:$BS,"Premium",'Nov Raw Data'!$CA:$CA,"SP",'Nov Raw Data'!$CC:$CC,"MTD") -> 0 | DM41: =SUMIFS('Nov Raw Data'!$BL:$BL,'Nov Raw Data'!$G:$G,'ASO View'!$E41,'Nov Raw Data'!$BU:$BU,"consumer",'Nov Raw Data'!$BS:$BS,"Premium",'Nov Raw Data'!$CA:$CA,"SP",'Nov Raw Data'!$CB:$CB,"Gaming",'Nov Raw Data'!$CC:$CC,"MTD") -> 0 | DN41: =SUMIFS('Nov Raw Data'!$BL:$BL,'Nov Raw Data'!$G:$G,'ASO View'!$E41,'Nov Raw Data'!$BU:$BU,"consumer",'Nov Raw Data'!$BS:$BS,"Premium",'Nov Raw Data'!$CA:$CA,"SP",'Nov Raw Data'!$CB:$CB,"Non-Gaming",'Nov Raw Data'!$CC:$CC,"MTD") -> 0 | DO41: =IFERROR(VLOOKUP($E41,'Nov Pivot'!$T:$U,2,0),0) -> 0 | DP41: =IFERROR(VLOOKUP($E41,'Nov Pivot'!$W:$X,2,0),0) -> 0 | DQ41: =IFERROR(VLOOKUP($E41,'Nov Pivot'!$Z:$AA,2,0),0) -> 0 | DS41: =IFERROR(VLOOKUP($E41,Kiran!A:C,3,0),0) -> 0
